Workbook

Sheet Personalize (hidden)
D1: FORM RESULTS | F1: 0 | G1: MockDraftCentral | H1: ESPN (T. Cockcroft) | I1: Cairo | J1: Teams | K1: Starters | L1: More Starters | N1: ADP
D2: AB | E2: 0 | F2: 1 | G2: Yahoo! | H2: Roto Summit | I2: RotoChamp | J2: 6 | K2: 0 | L2: 0 | M2: ADP
B3: Team 1 | D3: Single | E3: 1 | F3: 2 | G3: CBS | H3: RotoChamp | I3: Fangraphs | J3: 7 | K3: 1 | L3: 1 | M3: Proj. Points
B4: Team 2 | D4: Double | E4: 2 | F4: 3 | G4: ESPN | H4: USA Today | I4: ZiPS | J4: 8 | K4: 2 | L4: 2 | M4: Exp. Rank
B5: Team 3 | D5: Triple | E5: 3 | F5: 4 | G5: Avg of 4 Sites | H5: Fantasy Baseball Café | I5: Steamer | J5: 9 | K5: 3 | L5: 3 | M5: PAPA Rank
B6: Team 4 | D6: HR | E6: 4 | F6: 5 | H6: ESPN (Main) | I6: Marcel | J6: 10 | L6: 4 | M6: By Position
B7: Team 5 | D7: BB | E7: 1 | F7: 6 | H7: Razzball | I7: Combined (MSCZ) | J7: 11 | L7: 5 | M7: AVG
B8: Team 6 | D8: SB | E8: 1 | F8: 7 | H8: Composite | J8: 12 | L8: 6 | M8: HR
B9: Team 7 | D9: CS | E9: -1 | F9: 8 | J9: 13 | L9: 7 | M9: Runs
B10: Team 8 | D10: K | E10: -1 | F10: 9 | J10: 14 | L10: 8 | M10: RBI
B11: Team 9 | D11: R | E11: 1 | F11: 10 | J11: 15 | L11: 9 | M11: SB
B12: Team 10 | D12: RBI | E12: 1 | F12: 11 | J12: 16 | M12: ERA
B13: Team 11 | D13: W | E13: 4 | F13: 12 | J13: 17 | M13: WHIP
B14: Team 12 | D14: L | E14: -2 | F14: 13 | J14: 18 | M14: K's
B15: Team 13 | D15: IP | E15: 1 | F15: 14 | J15: 19 | M15: Wins
A16: =IF((Personalize!$E$18+1)<14,"","Team 14") ->  | B16: Team 14 | D16: Hit Allowed | E16: -1 | F16: 15 | J16: 20 | M16: Saves
A17: =IF((Personalize!$E$18+1)<15,"","Team 15") ->  | B17: Team 15 | D17: BB | E17: -1 | F17: 16 | J17: 21
A18: =IF((Personalize!$E$18+1)<16,"","Team 16") ->  | B18: Team 16 | D18: K | E18: 2.5 | F18: 17 | J18: 22
B19: Team 17 | D19: ER | E19: -1 | F19: 18 | J19: 23
B20: Team 18 | D20: S | E20: 10 | F20: 19 | J20: 24
B21: Team 19 | D21: QS | E21: 0 | F21: 20
B22: Team 20 | D22: # of Teams | E22: 12 | F22: 21
B23: Team 21 | D23: C | E23: 1 | F23: 22
B24: Team 22 | D24: 1B | E24: 1 | F24: 23
B25: Team 23 | D25: 2B | E25: 1 | F25: 24
B26: Team 24 | D26: 3B | E26: 1
D27: SS | E27: 1
B28: TRUE | D28: CI | E28: 0
B29: TRUE | D29: MI | E29: 0
B30: FALSE | D30: OF | E30: 3
D31: LF | E31: 0
D32: CF | E32: 0
D33: RF | E33: 0
D34: DH | E34: 1
D35: SP | E35: 4
D36: RP | E36: 1
D37: P | E37: 1
D38: ADP Site: | E38: =IF(F38=G1,1,IF(F38=G2,2,IF(F38=G3,3,IF(F38=G4,4,IF(F38=G5,5,0))))) -> 5 | F38: Avg of 4 Sites
D39: Rankings: | E39: =IF(F39=H1,1,IF(F39=H2,2,IF(F39=H3,3,IF(F39=H4,4,IF(F39=H5,5,IF(F39=H6,6,IF(F39=H7,7,IF(F39=H8,8,0)))))))) -> 8 | F39: Composite
D40: Projections: | E40: =IF(F40=I1,1,IF(F40=I2,2,IF(F40=I3,3,IF(F40=I4,4,IF(F40=I5,5,IF(F40=I6,6,IF(F40=I7,7,0))))))) -> 7 | F40: Combined (MSCZ)
E41: 1

Sheet Draft Central
B1: ="Current Pick: "&(COUNTA($A$4:$A$600)+1) -> Current Pick: 1 | X1: Sort:
A2: Drafted By (click box to select team) | B2: Name | C2: Pos | D2: OF Elig | E2: Tm | F2: Age | G2: ADP | H2: ADP Rd | I2: Expert Rank | J2: PAPA Rank | K2: Projected Points | L2: Pos Avg | M2: Points Above Pos Avg | N2: W | O2: S | P2: K | Q2: ERA | R2: WHIP | S2: AVG | T2: HR | U2: RBI | V2: R | W2: SB | X2: Odds Curr Avail | Y2: In One Round | Z2: In Two Rounds | AA2: Early | AB2: Late | AC2: Drafted
B4: Miguel Cabrera | C4: =IFERROR(IF(VLOOKUP(B4,'ADP-Rank'!$A$2:$B$600,2,FALSE)="OF",VLOOKUP(B4,'Starter Calc'!$B$2:$AM$600,38,FALSE),(VLOOKUP(B4,'ADP-Rank'!$A$2:$B$600,2,FALSE))),"") -> 1B | D4: =IFERROR(IF(VLOOKUP(B4,'Starter Calc'!$B$2:$E$600,4,FALSE)="","",VLOOKUP(B4,'Starter Calc'!$B$2:$E$600,4,FALSE)),"") ->  | E4: =IFERROR(VLOOKUP($B4,'ADP-Rank'!$A$2:$D$600,3,FALSE),"") -> DET | F4: =IFERROR(VLOOKUP($B4,'ADP-Rank'!$A$2:$W$600,23,FALSE),"") -> 29 | G4: =IFERROR((IF(Personalize!$E$38=1,VLOOKUP($B4,'ADP-Rank'!$A$2:$J$599,4,FALSE),(IF(Personalize!$E$38=2,VLOOKUP($B4,'ADP-Rank'!$A$2:$J$599,7,FALSE),(IF(Personalize!$E$38=3,VLOOKUP($B4,'ADP-Rank'!$A$2:$J$599,10,FALSE),(IF(Personalize!$E$38=4,VLOOKUP($B4,'ADP-Rank'!$A$2:$AD$599,24,FALSE),(IF(Personalize!$E$38=5,VLOOKUP($B4,'ADP-Rank'!$A$2:$AD$599,27,FALSE))))))))))),"") -> 2.165 | H4: =IFERROR((G4/(Personalize!$E$22+1))+1,"") -> 1.166538462 | I4: =IFERROR(CHOOSE(Personalize!$E$39,VLOOKUP($B4,'ADP-Rank'!$A$2:$U$600,13,FALSE),VLOOKUP($B4,'ADP-Rank'!$A$2:$U$600,14,FALSE),VLOOKUP($B4,'ADP-Rank'!$A$2:$U$600,15,FALSE),VLOOKUP($B4,'ADP-Rank'!$A$2:$U$600,16,FALSE),VLOOKUP($B4,'ADP-Rank'!$A$2:$U$600,17,FALSE),VLOOKUP($B4,'ADP-Rank'!$A$2:$U$600,18,FALSE),VLOOKUP($B4,'ADP-Rank'!$A$2:$U$600,19,FALSE),VLOOKUP($B4,'ADP-Rank'!$A$2:$U$600,20,FALSE)),"") -> 2.428571429 | J4: =IFERROR(RANK($M4,$M$4:$M$600,0),"") -> 8 | K4: =IFERROR(IF((OR($C4="RP",$C4="SP")),VLOOKUP($B4,Pitcher!$A$1:$Z$600,20,FALSE),(VLOOKUP($B4,Hitter!$A$1:$Z$600,26,FALSE))),"") -> 504.8114744 | L4: =IFERROR(IF((OR($C4="RP",$C4="SP")),VLOOKUP($C4,'Filtered-P'!$M$3:$P$4,4,FALSE), VLOOKUP($C4,Filtered!$Q$3:$T$14,4,FALSE)),"") -> 389.4967263 | M4: =IFERROR(K4-L4,"") -> 115.3147481 | N4: =IFERROR(IF((OR($C4="RP",$C4="SP")),VLOOKUP($B4,Pitcher!$A$1:$V$600,2,FALSE),""),"") ->  | O4: =IFERROR(IF((OR($C4="RP",$C4="SP")),VLOOKUP($B4,Pitcher!$A$1:$V$600,9,FALSE),""),"") ->  | P4: =IFERROR(IF((OR($C4="RP",$C4="SP")),VLOOKUP($B4,Pitcher!$A$1:$V$600,7,FALSE),""),"") ->  | Q4: =IFERROR(IF((OR($C4="RP",$C4="SP")),VLOOKUP($B4,Pitcher!$A$1:$AB$600,21,FALSE),""),"") ->  | R4: =IFERROR(IF((OR($C4="RP",$C4="SP")),VLOOKUP($B4,Pitcher!$A$1:$V$600,22,FALSE),""),"") ->  | S4: =IFERROR(IF((OR($C4="RP",$C4="SP")),"",VLOOKUP($B4,Hitter!$A$1:$AH$600,27,FALSE)),"") -> 0.3153110755 | T4: =IFERROR(IF((OR($C4="RP",$C4="SP")),"",VLOOKUP($B4,Hitter!$A$1:$AH$600,9,FALSE)),"") -> 30.91551592 | U4: =IFERROR(IF((OR($C4="RP",$C4="SP")),"",VLOOKUP($B4,Hitter!$A$1:$AH$600,10,FALSE)),"") -> 104.0978802 | V4: =IFERROR(IF((OR($C4="RP",$C4="SP")),"",VLOOKUP($B4,Hitter!$A$1:$AH$600,4,FALSE)),"") -> 98.79660728 | W4: =IFERROR(IF((OR($C4="RP",$C4="SP")),"",VLOOKUP($B4,Hitter!$A$1:$AH$600,11,FALSE)),"") -> 3.26408184 | X4: =IFERROR(IF(ISTEXT($A4),"",(1-NORMDIST((COUNTA($A$4:$A$600)),($G4),((AB4-AA4)/6),TRUE))),"") -> 0.9848061574 | Y4: =IFERROR(IF(ISTEXT($A4),"",(1-NORMDIST((COUNTA($A$4:$A$600))+(Personalize!$E$18+1),$G4,((AB4-AA4)/6),TRUE))),"") -> 0.09093817323 | Z4: =IFERROR(IF(ISTEXT($A4),"",(1-NORMDIST((COUNTA($A$4:$A$600))+((Personalize!$E$18+1)*2),$G4,((AB4-AA4)/6),TRUE))),"") -> 6.657281251e-07 | AA4: =IF(Personalize!$E$34=1,VLOOKUP($B4,'ADP-Rank'!$A$2:$J$600,5,FALSE),(IF(Personalize!$E$34=2,VLOOKUP($B4,'ADP-Rank'!$A$2:$J$600,8,FALSE),(IF(Personalize!$E$34=3,VLOOKUP($B4,'ADP-Rank'!$A$2:$O$600,11,FALSE),""))))) -> 1 | AB4: =IF(Personalize!$E$34=1,VLOOKUP($B4,'ADP-Rank'!$A$2:$J$600,6,FALSE),(IF(Personalize!$E$34=2,VLOOKUP($B4,'ADP-Rank'!$A$2:$J$600,9,FALSE),(IF(Personalize!$E$34=3,VLOOKUP($B4,'ADP-Rank'!$A$2:$O$600,12,FALSE),""))))) -> 7 | AC4: =IF(ISBLANK(A4),0,1) -> 0 | AD4: =IF(K4="",0,1) -> 1 | AE4: =A4 -> 0 | AF4: =IF(C4="C",1,IF(C4="1B",2,IF(C4="2B",3,IF(C4="3B",4,IF(C4="SS",5,IF(C4="CI",6,IF(C4="MI",7,IF(C4="OF",11,IF(C4="LF",8,IF(C4="CF",9,IF(C4="RF",10,IF(C4="DH",12,IF(C4="SP",13,IF(C4="RP",14,IF(C4="P",15,16))))))))))))))) -> 2 | AG4: =VLOOKUP(B4,'Starter Calc'!$B$2:$BN$600,65,FALSE) -> Bench
B5: Albert Pujols | C5: =IFERROR(IF(VLOOKUP(B5,'ADP-Rank'!$A$2:$B$600,2,FALSE)="OF",VLOOKUP(B5,'Starter Calc'!$B$2:$AM$600,38,FALSE),(VLOOKUP(B5,'ADP-Rank'!$A$2:$B$600,2,FALSE))),"") -> 1B | D5: =IFERROR(IF(VLOOKUP(B5,'Starter Calc'!$B$2:$E$600,4,FALSE)="","",VLOOKUP(B5,'Starter Calc'!$B$2:$E$600,4,FALSE)),"") ->  | E5: =IFERROR(VLOOKUP($B5,'ADP-Rank'!$A$2:$D$600,3,FALSE),"") -> ANA | F5: =IFERROR(VLOOKUP($B5,'ADP-Rank'!$A$2:$W$600,23,FALSE),"") -> 32 | G5: =IFERROR((IF(Personalize!$E$38=1,VLOOKUP($B5,'ADP-Rank'!$A$2:$J$599,4,FALSE),(IF(Personalize!$E$38=2,VLOOKUP($B5,'ADP-Rank'!$A$2:$J$599,7,FALSE),(IF(Personalize!$E$38=3,VLOOKUP($B5,'ADP-Rank'!$A$2:$J$599,10,FALSE),(IF(Personalize!$E$38=4,VLOOKUP($B5,'ADP-Rank'!$A$2:$AD$599,24,FALSE),(IF(Personalize!$E$38=5,VLOOKUP($B5,'ADP-Rank'!$A$2:$AD$599,27,FALSE))))))))))),"") -> 2.6875 | H5: =IFERROR((G5/(Personalize!$E$22+1))+1,"") -> 1.206730769 | I5: =IFERROR(CHOOSE(Personalize!$E$39,VLOOKUP($B5,'ADP-Rank'!$A$2:$U$600,13,FALSE),VLOOKUP($B5,'ADP-Rank'!$A$2:$U$600,14,FALSE),VLOOKUP($B5,'ADP-Rank'!$A$2:$U$600,15,FALSE),VLOOKUP($B5,'ADP-Rank'!$A$2:$U$600,16,FALSE),VLOOKUP($B5,'ADP-Rank'!$A$2:$U$600,17,FALSE),VLOOKUP($B5,'ADP-Rank'!$A$2:$U$600,18,FALSE),VLOOKUP($B5,'ADP-Rank'!$A$2:$U$600,19,FALSE),VLOOKUP($B5,'ADP-Rank'!$A$2:$U$600,20,FALSE)),"") -> 2.857142857 | J5: =IFERROR(RANK($M5,$M$4:$M$600,0),"") -> 3 | K5: =IFERROR(IF((OR($C5="RP",$C5="SP")),VLOOKUP($B5,Pitcher!$A$1:$Z$600,20,FALSE),(VLOOKUP($B5,Hitter!$A$1:$Z$600,26,FALSE))),"") -> 539.8270008 | L5: =IFERROR(IF((OR($C5="RP",$C5="SP")),VLOOKUP($C5,'Filtered-P'!$M$3:$P$4,4,FALSE), VLOOKUP($C5,Filtered!$Q$3:$T$14,4,FALSE)),"") -> 389.4967263 | M5: =IFERROR(K5-L5,"") -> 150.3302745 | N5: =IFERROR(IF((OR($C5="RP",$C5="SP")),VLOOKUP($B5,Pitcher!$A$1:$V$600,2,FALSE),""),"") ->  | O5: =IFERROR(IF((OR($C5="RP",$C5="SP")),VLOOKUP($B5,Pitcher!$A$1:$V$600,9,FALSE),""),"") ->  | P5: =IFERROR(IF((OR($C5="RP",$C5="SP")),VLOOKUP($B5,Pitcher!$A$1:$V$600,7,FALSE),""),"") ->  | Q5: =IFERROR(IF((OR($C5="RP",$C5="SP")),VLOOKUP($B5,Pitcher!$A$1:$AB$600,21,FALSE),""),"") ->  | R5: =IFERROR(IF((OR($C5="RP",$C5="SP")),VLOOKUP($B5,Pitcher!$A$1:$V$600,22,FALSE),""),"") ->  | S5: =IFERROR(IF((OR($C5="RP",$C5="SP")),"",VLOOKUP($B5,Hitter!$A$1:$AH$600,27,FALSE)),"") -> 0.3048280136 | T5: =IFERROR(IF((OR($C5="RP",$C5="SP")),"",VLOOKUP($B5,Hitter!$A$1:$AH$600,9,FALSE)),"") -> 36.31872358 | U5: =IFERROR(IF((OR($C5="RP",$C5="SP")),"",VLOOKUP($B5,Hitter!$A$1:$AH$600,10,FALSE)),"") -> 106.1642373 | V5: =IFERROR(IF((OR($C5="RP",$C5="SP")),"",VLOOKUP($B5,Hitter!$A$1:$AH$600,4,FALSE)),"") -> 101.6684309 | W5: =IFERROR(IF((OR($C5="RP",$C5="SP")),"",VLOOKUP($B5,Hitter!$A$1:$AH$600,11,FALSE)),"") -> 10.05489303 | X5: =IFERROR(IF(ISTEXT($A5),"",(1-NORMDIST((COUNTA($A$4:$A$600)),($G5),((AB5-AA5)/6),TRUE))),"") -> 0.9964005449 | Y5: =IFERROR(IF(ISTEXT($A5),"",(1-NORMDIST((COUNTA($A$4:$A$600))+(Personalize!$E$18+1),$G5,((AB5-AA5)/6),TRUE))),"") -> 0.2082523933 | Z5: =IFERROR(IF(ISTEXT($A5),"",(1-NORMDIST((COUNTA($A$4:$A$600))+((Personalize!$E$18+1)*2),$G5,((AB5-AA5)/6),TRUE))),"") -> 8.070944123e-06 | AA5: =IF(Personalize!$E$34=1,VLOOKUP($B5,'ADP-Rank'!$A$2:$J$600,5,FALSE),(IF(Personalize!$E$34=2,VLOOKUP($B5,'ADP-Rank'!$A$2:$J$600,8,FALSE),(IF(Personalize!$E$34=3,VLOOKUP($B5,'ADP-Rank'!$A$2:$O$600,11,FALSE),""))))) -> 1 | AB5: =IF(Personalize!$E$34=1,VLOOKUP($B5,'ADP-Rank'!$A$2:$J$600,6,FALSE),(IF(Personalize!$E$34=2,VLOOKUP($B5,'ADP-Rank'!$A$2:$J$600,9,FALSE),(IF(Personalize!$E$34=3,VLOOKUP($B5,'ADP-Rank'!$A$2:$O$600,12,FALSE),""))))) -> 7 | AC5: =IF(ISBLANK(A5),0,1) -> 0 | AD5: =IF(K5="",0,1) -> 1 | AE5: =A5 -> 0 | AF5: =IF(C5="C",1,IF(C5="1B",2,IF(C5="2B",3,IF(C5="3B",4,IF(C5="SS",5,IF(C5="CI",6,IF(C5="MI",7,IF(C5="OF",11,IF(C5="LF",8,IF(C5="CF",9,IF(C5="RF",10,IF(C5="DH",12,IF(C5="SP",13,IF(C5="RP",14,IF(C5="P",15,16))))))))))))))) -> 2 | AG5: =VLOOKUP(B5,'Starter Calc'!$B$2:$BN$600,65,FALSE) -> Bench
B6: Matt Kemp | C6: =IFERROR(IF(VLOOKUP(B6,'ADP-Rank'!$A$2:$B$600,2,FALSE)="OF",VLOOKUP(B6,'Starter Calc'!$B$2:$AM$600,38,FALSE),(VLOOKUP(B6,'ADP-Rank'!$A$2:$B$600,2,FALSE))),"") -> OF | D6: =IFERROR(IF(VLOOKUP(B6,'Starter Calc'!$B$2:$E$600,4,FALSE)="","",VLOOKUP(B6,'Starter Calc'!$B$2:$E$600,4,FALSE)),"") -> CF | E6: =IFERROR(VLOOKUP($B6,'ADP-Rank'!$A$2:$D$600,3,FALSE),"") -> LA | F6: =IFERROR(VLOOKUP($B6,'ADP-Rank'!$A$2:$W$600,23,FALSE),"") -> 28 | G6: =IFERROR((IF(Personalize!$E$38=1,VLOOKUP($B6,'ADP-Rank'!$A$2:$J$599,4,FALSE),(IF(Personalize!$E$38=2,VLOOKUP($B6,'ADP-Rank'!$A$2:$J$599,7,FALSE),(IF(Personalize!$E$38=3,VLOOKUP($B6,'ADP-Rank'!$A$2:$J$599,10,FALSE),(IF(Personalize!$E$38=4,VLOOKUP($B6,'ADP-Rank'!$A$2:$AD$599,24,FALSE),(IF(Personalize!$E$38=5,VLOOKUP($B6,'ADP-Rank'!$A$2:$AD$599,27,FALSE))))))))))),"") -> 4.245 | H6: =IFERROR((G6/(Personalize!$E$22+1))+1,"") -> 1.326538462 | I6: =IFERROR(CHOOSE(Personalize!$E$39,VLOOKUP($B6,'ADP-Rank'!$A$2:$U$600,13,FALSE),VLOOKUP($B6,'ADP-Rank'!$A$2:$U$600,14,FALSE),VLOOKUP($B6,'ADP-Rank'!$A$2:$U$600,15,FALSE),VLOOKUP($B6,'ADP-Rank'!$A$2:$U$600,16,FALSE),VLOOKUP($B6,'ADP-Rank'!$A$2:$U$600,17,FALSE),VLOOKUP($B6,'ADP-Rank'!$A$2:$U$600,18,FALSE),VLOOKUP($B6,'ADP-Rank'!$A$2:$U$600,19,FALSE),VLOOKUP($B6,'ADP-Rank'!$A$2:$U$600,20,FALSE)),"") -> 3.428571429 | J6: =IFERROR(RANK($M6,$M$4:$M$600,0),"") -> 26 | K6: =IFERROR(IF((OR($C6="RP",$C6="SP")),VLOOKUP($B6,Pitcher!$A$1:$Z$600,20,FALSE),(VLOOKUP($B6,Hitter!$A$1:$Z$600,26,FALSE))),"") -> 409.4287105 | L6: =IFERROR(IF((OR($C6="RP",$C6="SP")),VLOOKUP($C6,'Filtered-P'!$M$3:$P$4,4,FALSE), VLOOKUP($C6,Filtered!$Q$3:$T$14,4,FALSE)),"") -> 347.6626137 | M6: =IFERROR(K6-L6,"") -> 61.76609678 | N6: =IFERROR(IF((OR($C6="RP",$C6="SP")),VLOOKUP($B6,Pitcher!$A$1:$V$600,2,FALSE),""),"") ->  | O6: =IFERROR(IF((OR($C6="RP",$C6="SP")),VLOOKUP($B6,Pitcher!$A$1:$V$600,9,FALSE),""),"") ->  | P6: =IFERROR(IF((OR($C6="RP",$C6="SP")),VLOOKUP($B6,Pitcher!$A$1:$V$600,7,FALSE),""),"") ->  | Q6: =IFERROR(IF((OR($C6="RP",$C6="SP")),VLOOKUP($B6,Pitcher!$A$1:$AB$600,21,FALSE),""),"") ->  | R6: =IFERROR(IF((OR($C6="RP",$C6="SP")),VLOOKUP($B6,Pitcher!$A$1:$V$600,22,FALSE),""),"") ->  | S6: =IFERROR(IF((OR($C6="RP",$C6="SP")),"",VLOOKUP($B6,Hitter!$A$1:$AH$600,27,FALSE)),"") -> 0.2828682054 | T6: =IFERROR(IF((OR($C6="RP",$C6="SP")),"",VLOOKUP($B6,Hitter!$A$1:$AH$600,9,FALSE)),"") -> 28.77145151 | U6: =IFERROR(IF((OR($C6="RP",$C6="SP")),"",VLOOKUP($B6,Hitter!$A$1:$AH$600,10,FALSE)),"") -> 98.40560299 | V6: =IFERROR(IF((OR($C6="RP",$C6="SP")),"",VLOOKUP($B6,Hitter!$A$1:$AH$600,4,FALSE)),"") -> 93.45458101 | W6: =IFERROR(IF((OR($C6="RP",$C6="SP")),"",VLOOKUP($B6,Hitter!$A$1:$AH$600,11,FALSE)),"") -> 28.74648674 | X6: =IFERROR(IF(ISTEXT($A6),"",(1-NORMDIST((COUNTA($A$4:$A$600)),($G6),((AB6-AA6)/6),TRUE))),"") -> 0.9999890703 | Y6: =IFERROR(IF(ISTEXT($A6),"",(1-NORMDIST((COUNTA($A$4:$A$600))+(Personalize!$E$18+1),$G6,((AB6-AA6)/6),TRUE))),"") -> 0.7718641401 | Z6: =IFERROR(IF(ISTEXT($A6),"",(1-NORMDIST((COUNTA($A$4:$A$600))+((Personalize!$E$18+1)*2),$G6,((AB6-AA6)/6),TRUE))),"") -> 0.002934606773 | AA6: =IF(Personalize!$E$34=1,VLOOKUP($B6,'ADP-Rank'!$A$2:$J$600,5,FALSE),(IF(Personalize!$E$34=2,VLOOKUP($B6,'ADP-Rank'!$A$2:$J$600,8,FALSE),(IF(Personalize!$E$34=3,VLOOKUP($B6,'ADP-Rank'!$A$2:$O$600,11,FALSE),""))))) -> 1 | AB6: =IF(Personalize!$E$34=1,VLOOKUP($B6,'ADP-Rank'!$A$2:$J$600,6,FALSE),(IF(Personalize!$E$34=2,VLOOKUP($B6,'ADP-Rank'!$A$2:$J$600,9,FALSE),(IF(Personalize!$E$34=3,VLOOKUP($B6,'ADP-Rank'!$A$2:$O$600,12,FALSE),""))))) -> 7 | AC6: =IF(ISBLANK(A6),0,1) -> 0 | AD6: =IF(K6="",0,1) -> 1 | AE6: =A6 -> 0 | AF6: =IF(C6="C",1,IF(C6="1B",2,IF(C6="2B",3,IF(C6="3B",4,IF(C6="SS",5,IF(C6="CI",6,IF(C6="MI",7,IF(C6="OF",11,IF(C6="LF",8,IF(C6="CF",9,IF(C6="RF",10,IF(C6="DH",12,IF(C6="SP",13,IF(C6="RP",14,IF(C6="P",15,16))))))))))))))) -> 11 | AG6: =VLOOKUP(B6,'Starter Calc'!$B$2:$BN$600,65,FALSE) -> Bench
B7: Jose Bautista | C7: =IFERROR(IF(VLOOKUP(B7,'ADP-Rank'!$A$2:$B$600,2,FALSE)="OF",VLOOKUP(B7,'Starter Calc'!$B$2:$AM$600,38,FALSE),(VLOOKUP(B7,'ADP-Rank'!$A$2:$B$600,2,FALSE))),"") -> OF | D7: =IFERROR(IF(VLOOKUP(B7,'Starter Calc'!$B$2:$E$600,4,FALSE)="","",VLOOKUP(B7,'Starter Calc'!$B$2:$E$600,4,FALSE)),"") -> RF | E7: =IFERROR(VLOOKUP($B7,'ADP-Rank'!$A$2:$D$600,3,FALSE),"") -> TOR | F7: =IFERROR(VLOOKUP($B7,'ADP-Rank'!$A$2:$W$600,23,FALSE),"") -> 32 | G7: =IFERROR((IF(Personalize!$E$38=1,VLOOKUP($B7,'ADP-Rank'!$A$2:$J$599,4,FALSE),(IF(Personalize!$E$38=2,VLOOKUP($B7,'ADP-Rank'!$A$2:$J$599,7,FALSE),(IF(Personalize!$E$38=3,VLOOKUP($B7,'ADP-Rank'!$A$2:$J$599,10,FALSE),(IF(Personalize!$E$38=4,VLOOKUP($B7,'ADP-Rank'!$A$2:$AD$599,24,FALSE),(IF(Personalize!$E$38=5,VLOOKUP($B7,'ADP-Rank'!$A$2:$AD$599,27,FALSE))))))))))),"") -> 5.4825 | H7: =IFERROR((G7/(Personalize!$E$22+1))+1,"") -> 1.421730769 | I7: =IFERROR(CHOOSE(Personalize!$E$39,VLOOKUP($B7,'ADP-Rank'!$A$2:$U$600,13,FALSE),VLOOKUP($B7,'ADP-Rank'!$A$2:$U$600,14,FALSE),VLOOKUP($B7,'ADP-Rank'!$A$2:$U$600,15,FALSE),VLOOKUP($B7,'ADP-Rank'!$A$2:$U$600,16,FALSE),VLOOKUP($B7,'ADP-Rank'!$A$2:$U$600,17,FALSE),VLOOKUP($B7,'ADP-Rank'!$A$2:$U$600,18,FALSE),VLOOKUP($B7,'ADP-Rank'!$A$2:$U$600,19,FALSE),VLOOKUP($B7,'ADP-Rank'!$A$2:$U$600,20,FALSE)),"") -> 5.857142857 | J7: =IFERROR(RANK($M7,$M$4:$M$600,0),"") -> 14 | K7: =IFERROR(IF((OR($C7="RP",$C7="SP")),VLOOKUP($B7,Pitcher!$A$1:$Z$600,20,FALSE),(VLOOKUP($B7,Hitter!$A$1:$Z$600,26,FALSE))),"") -> 443.7648361 | L7: =IFERROR(IF((OR($C7="RP",$C7="SP")),VLOOKUP($C7,'Filtered-P'!$M$3:$P$4,4,FALSE), VLOOKUP($C7,Filtered!$Q$3:$T$14,4,FALSE)),"") -> 347.6626137 | M7: =IFERROR(K7-L7,"") -> 96.1022224 | N7: =IFERROR(IF((OR($C7="RP",$C7="SP")),VLOOKUP($B7,Pitcher!$A$1:$V$600,2,FALSE),""),"") ->  | O7: =IFERROR(IF((OR($C7="RP",$C7="SP")),VLOOKUP($B7,Pitcher!$A$1:$V$600,9,FALSE),""),"") ->  | P7: =IFERROR(IF((OR($C7="RP",$C7="SP")),VLOOKUP($B7,Pitcher!$A$1:$V$600,7,FALSE),""),"") ->  | Q7: =IFERROR(IF((OR($C7="RP",$C7="SP")),VLOOKUP($B7,Pitcher!$A$1:$AB$600,21,FALSE),""),"") ->  | R7: =IFERROR(IF((OR($C7="RP",$C7="SP")),VLOOKUP($B7,Pitcher!$A$1:$V$600,22,FALSE),""),"") ->  | S7: =IFERROR(IF((OR($C7="RP",$C7="SP")),"",VLOOKUP($B7,Hitter!$A$1:$AH$600,27,FALSE)),"") -> 0.2680421986 | T7: =IFERROR(IF((OR($C7="RP",$C7="SP")),"",VLOOKUP($B7,Hitter!$A$1:$AH$600,9,FALSE)),"") -> 34.70379515 | U7: =IFERROR(IF((OR($C7="RP",$C7="SP")),"",VLOOKUP($B7,Hitter!$A$1:$AH$600,10,FALSE)),"") -> 91.47176511 | V7: =IFERROR(IF((OR($C7="RP",$C7="SP")),"",VLOOKUP($B7,Hitter!$A$1:$AH$600,4,FALSE)),"") -> 91.00799825 | W7: =IFERROR(IF((OR($C7="RP",$C7="SP")),"",VLOOKUP($B7,Hitter!$A$1:$AH$600,11,FALSE)),"") -> 7.187178925 | X7: =IFERROR(IF(ISTEXT($A7),"",(1-NORMDIST((COUNTA($A$4:$A$600)),($G7),((AB7-AA7)/6),TRUE))),"") -> 0.9999803771 | Y7: =IFERROR(IF(ISTEXT($A7),"",(1-NORMDIST((COUNTA($A$4:$A$600))+(Personalize!$E$18+1),$G7,((AB7-AA7)/6),TRUE))),"") -> 0.9314760859 | Z7: =IFERROR(IF(ISTEXT($A7),"",(1-NORMDIST((COUNTA($A$4:$A$600))+((Personalize!$E$18+1)*2),$G7,((AB7-AA7)/6),TRUE))),"") -> 0.1275341452 | AA7: =IF(Personalize!$E$34=1,VLOOKUP($B7,'ADP-Rank'!$A$2:$J$600,5,FALSE),(IF(Personalize!$E$34=2,VLOOKUP($B7,'ADP-Rank'!$A$2:$J$600,8,FALSE),(IF(Personalize!$E$34=3,VLOOKUP($B7,'ADP-Rank'!$A$2:$O$600,11,FALSE),""))))) -> 1 | AB7: =IF(Personalize!$E$34=1,VLOOKUP($B7,'ADP-Rank'!$A$2:$J$600,6,FALSE),(IF(Personalize!$E$34=2,VLOOKUP($B7,'ADP-Rank'!$A$2:$J$600,9,FALSE),(IF(Personalize!$E$34=3,VLOOKUP($B7,'ADP-Rank'!$A$2:$O$600,12,FALSE),""))))) -> 9 | AC7: =IF(ISBLANK(A7),0,1) -> 0 | AD7: =IF(K7="",0,1) -> 1 | AE7: =A7 -> 0 | AF7: =IF(C7="C",1,IF(C7="1B",2,IF(C7="2B",3,IF(C7="3B",4,IF(C7="SS",5,IF(C7="CI",6,IF(C7="MI",7,IF(C7="OF",11,IF(C7="LF",8,IF(C7="CF",9,IF(C7="RF",10,IF(C7="DH",12,IF(C7="SP",13,IF(C7="RP",14,IF(C7="P",15,16))))))))))))))) -> 11 | AG7: =VLOOKUP(B7,'Starter Calc'!$B$2:$BN$600,65,FALSE) -> Bench
B8: Troy Tulowitzki | C8: =IFERROR(IF(VLOOKUP(B8,'ADP-Rank'!$A$2:$B$600,2,FALSE)="OF",VLOOKUP(B8,'Starter Calc'!$B$2:$AM$600,38,FALSE),(VLOOKUP(B8,'ADP-Rank'!$A$2:$B$600,2,FALSE))),"") -> SS | D8: =IFERROR(IF(VLOOKUP(B8,'Starter Calc'!$B$2:$E$600,4,FALSE)="","",VLOOKUP(B8,'Starter Calc'!$B$2:$E$600,4,FALSE)),"") ->  | E8: =IFERROR(VLOOKUP($B8,'ADP-Rank'!$A$2:$D$600,3,FALSE),"") -> COL | F8: =IFERROR(VLOOKUP($B8,'ADP-Rank'!$A$2:$W$600,23,FALSE),"") -> 28 | G8: =IFERROR((IF(Personalize!$E$38=1,VLOOKUP($B8,'ADP-Rank'!$A$2:$J$599,4,FALSE),(IF(Personalize!$E$38=2,VLOOKUP($B8,'ADP-Rank'!$A$2:$J$599,7,FALSE),(IF(Personalize!$E$38=3,VLOOKUP($B8,'ADP-Rank'!$A$2:$J$599,10,FALSE),(IF(Personalize!$E$38=4,VLOOKUP($B8,'ADP-Rank'!$A$2:$AD$599,24,FALSE),(IF(Personalize!$E$38=5,VLOOKUP($B8,'ADP-Rank'!$A$2:$AD$599,27,FALSE))))))))))),"") -> 6.1975 | H8: =IFERROR((G8/(Personalize!$E$22+1))+1,"") -> 1.476730769 | I8: =IFERROR(CHOOSE(Personalize!$E$39,VLOOKUP($B8,'ADP-Rank'!$A$2:$U$600,13,FALSE),VLOOKUP($B8,'ADP-Rank'!$A$2:$U$600,14,FALSE),VLOOKUP($B8,'ADP-Rank'!$A$2:$U$600,15,FALSE),VLOOKUP($B8,'ADP-Rank'!$A$2:$U$600,16,FALSE),VLOOKUP($B8,'ADP-Rank'!$A$2:$U$600,17,FALSE),VLOOKUP($B8,'ADP-Rank'!$A$2:$U$600,18,FALSE),VLOOKUP($B8,'ADP-Rank'!$A$2:$U$600,19,FALSE),VLOOKUP($B8,'ADP-Rank'!$A$2:$U$600,20,FALSE)),"") -> 8 | J8: =IFERROR(RANK($M8,$M$4:$M$600,0),"") -> 15 | K8: =IFERROR(IF((OR($C8="RP",$C8="SP")),VLOOKUP($B8,Pitcher!$A$1:$Z$600,20,FALSE),(VLOOKUP($B8,Hitter!$A$1:$Z$600,26,FALSE))),"") -> 428.4466127 | L8: =IFERROR(IF((OR($C8="RP",$C8="SP")),VLOOKUP($C8,'Filtered-P'!$M$3:$P$4,4,FALSE), VLOOKUP($C8,Filtered!$Q$3:$T$14,4,FALSE)),"") -> 341.4045566 | M8: =IFERROR(K8-L8,"") -> 87.04205619 | N8: =IFERROR(IF((OR($C8="RP",$C8="SP")),VLOOKUP($B8,Pitcher!$A$1:$V$600,2,FALSE),""),"") ->  | O8: =IFERROR(IF((OR($C8="RP",$C8="SP")),VLOOKUP($B8,Pitcher!$A$1:$V$600,9,FALSE),""),"") ->  | P8: =IFERROR(IF((OR($C8="RP",$C8="SP")),VLOOKUP($B8,Pitcher!$A$1:$V$600,7,FALSE),""),"") ->  | Q8: =IFERROR(IF((OR($C8="RP",$C8="SP")),VLOOKUP($B8,Pitcher!$A$1:$AB$600,21,FALSE),""),"") ->  | R8: =IFERROR(IF((OR($C8="RP",$C8="SP")),VLOOKUP($B8,Pitcher!$A$1:$V$600,22,FALSE),""),"") ->  | S8: =IFERROR(IF((OR($C8="RP",$C8="SP")),"",VLOOKUP($B8,Hitter!$A$1:$AH$600,27,FALSE)),"") -> 0.2928194234 | T8: =IFERROR(IF((OR($C8="RP",$C8="SP")),"",VLOOKUP($B8,Hitter!$A$1:$AH$600,9,FALSE)),"") -> 26.82226282 | U8: =IFERROR(IF((OR($C8="RP",$C8="SP")),"",VLOOKUP($B8,Hitter!$A$1:$AH$600,10,FALSE)),"") -> 94.75939441 | V8: =IFERROR(IF((OR($C8="RP",$C8="SP")),"",VLOOKUP($B8,Hitter!$A$1:$AH$600,4,FALSE)),"") -> 83.70922195 | W8: =IFERROR(IF((OR($C8="RP",$C8="SP")),"",VLOOKUP($B8,Hitter!$A$1:$AH$600,11,FALSE)),"") -> 11.11189873 | X8: =IFERROR(IF(ISTEXT($A8),"",(1-NORMDIST((COUNTA($A$4:$A$600)),($G8),((AB8-AA8)/6),TRUE))),"") -> 0.9999983252 | Y8: =IFERROR(IF(ISTEXT($A8),"",(1-NORMDIST((COUNTA($A$4:$A$600))+(Personalize!$E$18+1),$G8,((AB8-AA8)/6),TRUE))),"") -> 0.9784698692 | Z8: =IFERROR(IF(ISTEXT($A8),"",(1-NORMDIST((COUNTA($A$4:$A$600))+((Personalize!$E$18+1)*2),$G8,((AB8-AA8)/6),TRUE))),"") -> 0.2736286733 | AA8: =IF(Personalize!$E$34=1,VLOOKUP($B8,'ADP-Rank'!$A$2:$J$600,5,FALSE),(IF(Personalize!$E$34=2,VLOOKUP($B8,'ADP-Rank'!$A$2:$J$600,8,FALSE),(IF(Personalize!$E$34=3,VLOOKUP($B8,'ADP-Rank'!$A$2:$O$600,11,FALSE),""))))) -> 1 | AB8: =IF(Personalize!$E$34=1,VLOOKUP($B8,'ADP-Rank'!$A$2:$J$600,6,FALSE),(IF(Personalize!$E$34=2,VLOOKUP($B8,'ADP-Rank'!$A$2:$J$600,9,FALSE),(IF(Personalize!$E$34=3,VLOOKUP($B8,'ADP-Rank'!$A$2:$O$600,12,FALSE),""))))) -> 9 | AC8: =IF(ISBLANK(A8),0,1) -> 0 | AD8: =IF(K8="",0,1) -> 1 | AE8: =A8 -> 0 | AF8: =IF(C8="C",1,IF(C8="1B",2,IF(C8="2B",3,IF(C8="3B",4,IF(C8="SS",5,IF(C8="CI",6,IF(C8="MI",7,IF(C8="OF",11,IF(C8="LF",8,IF(C8="CF",9,IF(C8="RF",10,IF(C8="DH",12,IF(C8="SP",13,IF(C8="RP",14,IF(C8="P",15,16))))))))))))))) -> 5 | AG8: =VLOOKUP(B8,'Starter Calc'!$B$2:$BN$600,65,FALSE) -> Bench
B9: Justin Verlander | C9: =IFERROR(IF(VLOOKUP(B9,'ADP-Rank'!$A$2:$B$600,2,FALSE)="OF",VLOOKUP(B9,'Starter Calc'!$B$2:$AM$600,38,FALSE),(VLOOKUP(B9,'ADP-Rank'!$A$2:$B$600,2,FALSE))),"") -> SP | D9: =IFERROR(IF(VLOOKUP(B9,'Starter Calc'!$B$2:$E$600,4,FALSE)="","",VLOOKUP(B9,'Starter Calc'!$B$2:$E$600,4,FALSE)),"") ->  | E9: =IFERROR(VLOOKUP($B9,'ADP-Rank'!$A$2:$D$600,3,FALSE),"") -> DET | F9: =IFERROR(VLOOKUP($B9,'ADP-Rank'!$A$2:$W$600,23,FALSE),"") -> 29 | G9: =IFERROR((IF(Personalize!$E$38=1,VLOOKUP($B9,'ADP-Rank'!$A$2:$J$599,4,FALSE),(IF(Personalize!$E$38=2,VLOOKUP($B9,'ADP-Rank'!$A$2:$J$599,7,FALSE),(IF(Personalize!$E$38=3,VLOOKUP($B9,'ADP-Rank'!$A$2:$J$599,10,FALSE),(IF(Personalize!$E$38=4,VLOOKUP($B9,'ADP-Rank'!$A$2:$AD$599,24,FALSE),(IF(Personalize!$E$38=5,VLOOKUP($B9,'ADP-Rank'!$A$2:$AD$599,27,FALSE))))))))))),"") -> 9.6875 | H9: =IFERROR((G9/(Personalize!$E$22+1))+1,"") -> 1.745192308 | I9: =IFERROR(CHOOSE(Personalize!$E$39,VLOOKUP($B9,'ADP-Rank'!$A$2:$U$600,13,FALSE),VLOOKUP($B9,'ADP-Rank'!$A$2:$U$600,14,FALSE),VLOOKUP($B9,'ADP-Rank'!$A$2:$U$600,15,FALSE),VLOOKUP($B9,'ADP-Rank'!$A$2:$U$600,16,FALSE),VLOOKUP($B9,'ADP-Rank'!$A$2:$U$600,17,FALSE),VLOOKUP($B9,'ADP-Rank'!$A$2:$U$600,18,FALSE),VLOOKUP($B9,'ADP-Rank'!$A$2:$U$600,19,FALSE),VLOOKUP($B9,'ADP-Rank'!$A$2:$U$600,20,FALSE)),"") -> 19.14285714 | J9: =IFERROR(RANK($M9,$M$4:$M$600,0),"") -> 2 | K9: =IFERROR(IF((OR($C9="RP",$C9="SP")),VLOOKUP($B9,Pitcher!$A$1:$Z$600,20,FALSE),(VLOOKUP($B9,Hitter!$A$1:$Z$600,26,FALSE))),"") -> 500.872351 | L9: =IFERROR(IF((OR($C9="RP",$C9="SP")),VLOOKUP($C9,'Filtered-P'!$M$3:$P$4,4,FALSE), VLOOKUP($C9,Filtered!$Q$3:$T$14,4,FALSE)),"") -> 331.9275286 | M9: =IFERROR(K9-L9,"") -> 168.9448224 | N9: =IFERROR(IF((OR($C9="RP",$C9="SP")),VLOOKUP($B9,Pitcher!$A$1:$V$600,2,FALSE),""),"") -> 17.36571305 | O9: =IFERROR(IF((OR($C9="RP",$C9="SP")),VLOOKUP($B9,Pitcher!$A$1:$V$600,9,FALSE),""),"") -> 0 | P9: =IFERROR(IF((OR($C9="RP",$C9="SP")),VLOOKUP($B9,Pitcher!$A$1:$V$600,7,FALSE),""),"") -> 220.418197 | Q9: =IFERROR(IF((OR($C9="RP",$C9="SP")),VLOOKUP($B9,Pitcher!$A$1:$AB$600,21,FALSE),""),"") -> 3.116423212 | R9: =IFERROR(IF((OR($C9="RP",$C9="SP")),VLOOKUP($B9,Pitcher!$A$1:$V$600,22,FALSE),""),"") -> 1.119602658 | S9: =IFERROR(IF((OR($C9="RP",$C9="SP")),"",VLOOKUP($B9,Hitter!$A$1:$AH$600,27,FALSE)),"") ->  | T9: =IFERROR(IF((OR($C9="RP",$C9="SP")),"",VLOOKUP($B9,Hitter!$A$1:$AH$600,9,FALSE)),"") ->  | U9: =IFERROR(IF((OR($C9="RP",$C9="SP")),"",VLOOKUP($B9,Hitter!$A$1:$AH$600,10,FALSE)),"") ->  | V9: =IFERROR(IF((OR($C9="RP",$C9="SP")),"",VLOOKUP($B9,Hitter!$A$1:$AH$600,4,FALSE)),"") ->  | W9: =IFERROR(IF((OR($C9="RP",$C9="SP")),"",VLOOKUP($B9,Hitter!$A$1:$AH$600,11,FALSE)),"") ->  | X9: =IFERROR(IF(ISTEXT($A9),"",(1-NORMDIST((COUNTA($A$4:$A$600)),($G9),((AB9-AA9)/6),TRUE))),"") -> 0.9873102512 | Y9: =IFERROR(IF(ISTEXT($A9),"",(1-NORMDIST((COUNTA($A$4:$A$600))+(Personalize!$E$18+1),$G9,((AB9-AA9)/6),TRUE))),"") -> 0.9233374638 | Z9: =IFERROR(IF(ISTEXT($A9),"",(1-NORMDIST((COUNTA($A$4:$A$600))+((Personalize!$E$18+1)*2),$G9,((AB9-AA9)/6),TRUE))),"") -> 0.7324344074 | AA9: =IF(Personalize!$E$34=1,VLOOKUP($B9,'ADP-Rank'!$A$2:$J$600,5,FALSE),(IF(Personalize!$E$34=2,VLOOKUP($B9,'ADP-Rank'!$A$2:$J$600,8,FALSE),(IF(Personalize!$E$34=3,VLOOKUP($B9,'ADP-Rank'!$A$2:$O$600,11,FALSE),""))))) -> 2 | AB9: =IF(Personalize!$E$34=1,VLOOKUP($B9,'ADP-Rank'!$A$2:$J$600,6,FALSE),(IF(Personalize!$E$34=2,VLOOKUP($B9,'ADP-Rank'!$A$2:$J$600,9,FALSE),(IF(Personalize!$E$34=3,VLOOKUP($B9,'ADP-Rank'!$A$2:$O$600,12,FALSE),""))))) -> 28 | AC9: =IF(ISBLANK(A9),0,1) -> 0 | AD9: =IF(K9="",0,1) -> 1 | AE9: =A9 -> 0 | AF9: =IF(C9="C",1,IF(C9="1B",2,IF(C9="2B",3,IF(C9="3B",4,IF(C9="SS",5,IF(C9="CI",6,IF(C9="MI",7,IF(C9="OF",11,IF(C9="LF",8,IF(C9="CF",9,IF(C9="RF",10,IF(C9="DH",12,IF(C9="SP",13,IF(C9="RP",14,IF(C9="P",15,16))))))))))))))) -> 13 | AG9: =VLOOKUP(B9,'Starter Calc'!$B$2:$BN$600,65,FALSE) -> Bench
B10: Joey Votto | C10: =IFERROR(IF(VLOOKUP(B10,'ADP-Rank'!$A$2:$B$600,2,FALSE)="OF",VLOOKUP(B10,'Starter Calc'!$B$2:$AM$600,38,FALSE),(VLOOKUP(B10,'ADP-Rank'!$A$2:$B$600,2,FALSE))),"") -> 1B | D10: =IFERROR(IF(VLOOKUP(B10,'Starter Calc'!$B$2:$E$600,4,FALSE)="","",VLOOKUP(B10,'Starter Calc'!$B$2:$E$600,4,FALSE)),"") ->  | E10: =IFERROR(VLOOKUP($B10,'ADP-Rank'!$A$2:$D$600,3,FALSE),"") -> CIN | F10: =IFERROR(VLOOKUP($B10,'ADP-Rank'!$A$2:$W$600,23,FALSE),"") -> 29 | G10: =IFERROR((IF(Personalize!$E$38=1,VLOOKUP($B10,'ADP-Rank'!$A$2:$J$599,4,FALSE),(IF(Personalize!$E$38=2,VLOOKUP($B10,'ADP-Rank'!$A$2:$J$599,7,FALSE),(IF(Personalize!$E$38=3,VLOOKUP($B10,'ADP-Rank'!$A$2:$J$599,10,FALSE),(IF(Personalize!$E$38=4,VLOOKUP($B10,'ADP-Rank'!$A$2:$AD$599,24,FALSE),(IF(Personalize!$E$38=5,VLOOKUP($B10,'ADP-Rank'!$A$2:$AD$599,27,FALSE))))))))))),"") -> 10.085 | H10: =IFERROR((G10/(Personalize!$E$22+1))+1,"") -> 1.775769231 | I10: =IFERROR(CHOOSE(Personalize!$E$39,VLOOKUP($B10,'ADP-Rank'!$A$2:$U$600,13,FALSE),VLOOKUP($B10,'ADP-Rank'!$A$2:$U$600,14,FALSE),VLOOKUP($B10,'ADP-Rank'!$A$2:$U$600,15,FALSE),VLOOKUP($B10,'ADP-Rank'!$A$2:$U$600,16,FALSE),VLOOKUP($B10,'ADP-Rank'!$A$2:$U$600,17,FALSE),VLOOKUP($B10,'ADP-Rank'!$A$2:$U$600,18,FALSE),VLOOKUP($B10,'ADP-Rank'!$A$2:$U$600,19,FALSE),VLOOKUP($B10,'ADP-Rank'!$A$2:$U$600,20,FALSE)),"") -> 7 | J10: =IFERROR(RANK($M10,$M$4:$M$600,0),"") -> 23 | K10: =IFERROR(IF((OR($C10="RP",$C10="SP")),VLOOKUP($B10,Pitcher!$A$1:$Z$600,20,FALSE),(VLOOKUP($B10,Hitter!$A$1:$Z$600,26,FALSE))),"") -> 457.6382215 | L10: =IFERROR(IF((OR($C10="RP",$C10="SP")),VLOOKUP($C10,'Filtered-P'!$M$3:$P$4,4,FALSE), VLOOKUP($C10,Filtered!$Q$3:$T$14,4,FALSE)),"") -> 389.4967263 | M10: =IFERROR(K10-L10,"") -> 68.14149518 | N10: =IFERROR(IF((OR($C10="RP",$C10="SP")),VLOOKUP($B10,Pitcher!$A$1:$V$600,2,FALSE),""),"") ->  | O10: =IFERROR(IF((OR($C10="RP",$C10="SP")),VLOOKUP($B10,Pitcher!$A$1:$V$600,9,FALSE),""),"") ->  | P10: =IFERROR(IF((OR($C10="RP",$C10="SP")),VLOOKUP($B10,Pitcher!$A$1:$V$600,7,FALSE),""),"") ->  | Q10: =IFERROR(IF((OR($C10="RP",$C10="SP")),VLOOKUP($B10,Pitcher!$A$1:$AB$600,21,FALSE),""),"") ->  | R10: =IFERROR(IF((OR($C10="RP",$C10="SP")),VLOOKUP($B10,Pitcher!$A$1:$V$600,22,FALSE),""),"") ->  | S10: =IFERROR(IF((OR($C10="RP",$C10="SP")),"",VLOOKUP($B10,Hitter!$A$1:$AH$600,27,FALSE)),"") -> 0.300684654 | T10: =IFERROR(IF((OR($C10="RP",$C10="SP")),"",VLOOKUP($B10,Hitter!$A$1:$AH$600,9,FALSE)),"") -> 29.08415956 | U10: =IFERROR(IF((OR($C10="RP",$C10="SP")),"",VLOOKUP($B10,Hitter!$A$1:$AH$600,10,FALSE)),"") -> 96.06922885 | V10: =IFERROR(IF((OR($C10="RP",$C10="SP")),"",VLOOKUP($B10,Hitter!$A$1:$AH$600,4,FALSE)),"") -> 94.34789851 | W10: =IFERROR(IF((OR($C10="RP",$C10="SP")),"",VLOOKUP($B10,Hitter!$A$1:$AH$600,11,FALSE)),"") -> 9.558164494 | X10: =IFERROR(IF(ISTEXT($A10),"",(1-NORMDIST((COUNTA($A$4:$A$600)),($G10),((AB10-AA10)/6),TRUE))),"") -> 0.9999922739 | Y10: =IFERROR(IF(ISTEXT($A10),"",(1-NORMDIST((COUNTA($A$4:$A$600))+(Personalize!$E$18+1),$G10,((AB10-AA10)/6),TRUE))),"") -> 0.9976148039 | Z10: =IFERROR(IF(ISTEXT($A10),"",(1-NORMDIST((COUNTA($A$4:$A$600))+((Personalize!$E$18+1)*2),$G10,((AB10-AA10)/6),TRUE))),"") -> 0.9069397075 | AA10: =IF(Personalize!$E$34=1,VLOOKUP($B10,'ADP-Rank'!$A$2:$J$600,5,FALSE),(IF(Personalize!$E$34=2,VLOOKUP($B10,'ADP-Rank'!$A$2:$J$600,8,FALSE),(IF(Personalize!$E$34=3,VLOOKUP($B10,'ADP-Rank'!$A$2:$O$600,11,FALSE),""))))) -> 4 | AB10: =IF(Personalize!$E$34=1,VLOOKUP($B10,'ADP-Rank'!$A$2:$J$600,6,FALSE),(IF(Personalize!$E$34=2,VLOOKUP($B10,'ADP-Rank'!$A$2:$J$600,9,FALSE),(IF(Personalize!$E$34=3,VLOOKUP($B10,'ADP-Rank'!$A$2:$O$600,12,FALSE),""))))) -> 18 | AC10: =IF(ISBLANK(A10),0,1) -> 0 | AD10: =IF(K10="",0,1) -> 1 | AE10: =A10 -> 0 | AF10: =IF(C10="C",1,IF(C10="1B",2,IF(C10="2B",3,IF(C10="3B",4,IF(C10="SS",5,IF(C10="CI",6,IF(C10="MI",7,IF(C10="OF",11,IF(C10="LF",8,IF(C10="CF",9,IF(C10="RF",10,IF(C10="DH",12,IF(C10="SP",13,IF(C10="RP",14,IF(C10="P",15,16))))))))))))))) -> 2 | AG10: =VLOOKUP(B10,'Starter Calc'!$B$2:$BN$600,65,FALSE) -> Bench
B11: Robinson Cano | C11: =IFERROR(IF(VLOOKUP(B11,'ADP-Rank'!$A$2:$B$600,2,FALSE)="OF",VLOOKUP(B11,'Starter Calc'!$B$2:$AM$600,38,FALSE),(VLOOKUP(B11,'ADP-Rank'!$A$2:$B$600,2,FALSE))),"") -> 2B | D11: =IFERROR(IF(VLOOKUP(B11,'Starter Calc'!$B$2:$E$600,4,FALSE)="","",VLOOKUP(B11,'Starter Calc'!$B$2:$E$600,4,FALSE)),"") ->  | E11: =IFERROR(VLOOKUP($B11,'ADP-Rank'!$A$2:$D$600,3,FALSE),"") -> NYY | F11: =IFERROR(VLOOKUP($B11,'ADP-Rank'!$A$2:$W$600,23,FALSE),"") -> 30 | G11: =IFERROR((IF(Personalize!$E$38=1,VLOOKUP($B11,'ADP-Rank'!$A$2:$J$599,4,FALSE),(IF(Personalize!$E$38=2,VLOOKUP($B11,'ADP-Rank'!$A$2:$J$599,7,FALSE),(IF(Personalize!$E$38=3,VLOOKUP($B11,'ADP-Rank'!$A$2:$J$599,10,FALSE),(IF(Personalize!$E$38=4,VLOOKUP($B11,'ADP-Rank'!$A$2:$AD$599,24,FALSE),(IF(Personalize!$E$38=5,VLOOKUP($B11,'ADP-Rank'!$A$2:$AD$599,27,FALSE))))))))))),"") -> 10.135 | H11: =IFERROR((G11/(Personalize!$E$22+1))+1,"") -> 1.779615385 | I11: =IFERROR(CHOOSE(Personalize!$E$39,VLOOKUP($B11,'ADP-Rank'!$A$2:$U$600,13,FALSE),VLOOKUP($B11,'ADP-Rank'!$A$2:$U$600,14,FALSE),VLOOKUP($B11,'ADP-Rank'!$A$2:$U$600,15,FALSE),VLOOKUP($B11,'ADP-Rank'!$A$2:$U$600,16,FALSE),VLOOKUP($B11,'ADP-Rank'!$A$2:$U$600,17,FALSE),VLOOKUP($B11,'ADP-Rank'!$A$2:$U$600,18,FALSE),VLOOKUP($B11,'ADP-Rank'!$A$2:$U$600,19,FALSE),VLOOKUP($B11,'ADP-Rank'!$A$2:$U$600,20,FALSE)),"") -> 9.142857143 | J11: =IFERROR(RANK($M11,$M$4:$M$600,0),"") -> 12 | K11: =IFERROR(IF((OR($C11="RP",$C11="SP")),VLOOKUP($B11,Pitcher!$A$1:$Z$600,20,FALSE),(VLOOKUP($B11,Hitter!$A$1:$Z$600,26,FALSE))),"") -> 454.2496571 | L11: =IFERROR(IF((OR($C11="RP",$C11="SP")),VLOOKUP($C11,'Filtered-P'!$M$3:$P$4,4,FALSE), VLOOKUP($C11,Filtered!$Q$3:$T$14,4,FALSE)),"") -> 354.8310871 | M11: =IFERROR(K11-L11,"") -> 99.41856999 | N11: =IFERROR(IF((OR($C11="RP",$C11="SP")),VLOOKUP($B11,Pitcher!$A$1:$V$600,2,FALSE),""),"") ->  | O11: =IFERROR(IF((OR($C11="RP",$C11="SP")),VLOOKUP($B11,Pitcher!$A$1:$V$600,9,FALSE),""),"") ->  | P11: =IFERROR(IF((OR($C11="RP",$C11="SP")),VLOOKUP($B11,Pitcher!$A$1:$V$600,7,FALSE),""),"") ->  | Q11: =IFERROR(IF((OR($C11="RP",$C11="SP")),VLOOKUP($B11,Pitcher!$A$1:$AB$600,21,FALSE),""),"") ->  | R11: =IFERROR(IF((OR($C11="RP",$C11="SP")),VLOOKUP($B11,Pitcher!$A$1:$V$600,22,FALSE),""),"") ->  | S11: =IFERROR(IF((OR($C11="RP",$C11="SP")),"",VLOOKUP($B11,Hitter!$A$1:$AH$600,27,FALSE)),"") -> 0.2992243025 | T11: =IFERROR(IF((OR($C11="RP",$C11="SP")),"",VLOOKUP($B11,Hitter!$A$1:$AH$600,9,FALSE)),"") -> 24.05289633 | U11: =IFERROR(IF((OR($C11="RP",$C11="SP")),"",VLOOKUP($B11,Hitter!$A$1:$AH$600,10,FALSE)),"") -> 98.5666879 | V11: =IFERROR(IF((OR($C11="RP",$C11="SP")),"",VLOOKUP($B11,Hitter!$A$1:$AH$600,4,FALSE)),"") -> 91.84532119 | W11: =IFERROR(IF((OR($C11="RP",$C11="SP")),"",VLOOKUP($B11,Hitter!$A$1:$AH$600,11,FALSE)),"") -> 5.444410099 | X11: =IFERROR(IF(ISTEXT($A11),"",(1-NORMDIST((COUNTA($A$4:$A$600)),($G11),((AB11-AA11)/6),TRUE))),"") -> 0.9999985494 | Y11: =IFERROR(IF(ISTEXT($A11),"",(1-NORMDIST((COUNTA($A$4:$A$600))+(Personalize!$E$18+1),$G11,((AB11-AA11)/6),TRUE))),"") -> 0.9989018122 | Z11: =IFERROR(IF(ISTEXT($A11),"",(1-NORMDIST((COUNTA($A$4:$A$600))+((Personalize!$E$18+1)*2),$G11,((AB11-AA11)/6),TRUE))),"") -> 0.9260407655 | AA11: =IF(Personalize!$E$34=1,VLOOKUP($B11,'ADP-Rank'!$A$2:$J$600,5,FALSE),(IF(Personalize!$E$34=2,VLOOKUP($B11,'ADP-Rank'!$A$2:$J$600,8,FALSE),(IF(Personalize!$E$34=3,VLOOKUP($B11,'ADP-Rank'!$A$2:$O$600,11,FALSE),""))))) -> 4 | AB11: =IF(Personalize!$E$34=1,VLOOKUP($B11,'ADP-Rank'!$A$2:$J$600,6,FALSE),(IF(Personalize!$E$34=2,VLOOKUP($B11,'ADP-Rank'!$A$2:$J$600,9,FALSE),(IF(Personalize!$E$34=3,VLOOKUP($B11,'ADP-Rank'!$A$2:$O$600,12,FALSE),""))))) -> 17 | AC11: =IF(ISBLANK(A11),0,1) -> 0 | AD11: =IF(K11="",0,1) -> 1 | AE11: =A11 -> 0 | AF11: =IF(C11="C",1,IF(C11="1B",2,IF(C11="2B",3,IF(C11="3B",4,IF(C11="SS",5,IF(C11="CI",6,IF(C11="MI",7,IF(C11="OF",11,IF(C11="LF",8,IF(C11="CF",9,IF(C11="RF",10,IF(C11="DH",12,IF(C11="SP",13,IF(C11="RP",14,IF(C11="P",15,16))))))))))))))) -> 3 | AG11: =VLOOKUP(B11,'Starter Calc'!$B$2:$BN$600,65,FALSE) -> Bench
B12: Adrian Gonzalez | C12: =IFERROR(IF(VLOOKUP(B12,'ADP-Rank'!$A$2:$B$600,2,FALSE)="OF",VLOOKUP(B12,'Starter Calc'!$B$2:$AM$600,38,FALSE),(VLOOKUP(B12,'ADP-Rank'!$A$2:$B$600,2,FALSE))),"") -> 1B | D12: =IFERROR(IF(VLOOKUP(B12,'Starter Calc'!$B$2:$E$600,4,FALSE)="","",VLOOKUP(B12,'Starter Calc'!$B$2:$E$600,4,FALSE)),"") ->  | E12: =IFERROR(VLOOKUP($B12,'ADP-Rank'!$A$2:$D$600,3,FALSE),"") -> BOS | F12: =IFERROR(VLOOKUP($B12,'ADP-Rank'!$A$2:$W$600,23,FALSE),"") -> 30 | G12: =IFERROR((IF(Personalize!$E$38=1,VLOOKUP($B12,'ADP-Rank'!$A$2:$J$599,4,FALSE),(IF(Personalize!$E$38=2,VLOOKUP($B12,'ADP-Rank'!$A$2:$J$599,7,FALSE),(IF(Personalize!$E$38=3,VLOOKUP($B12,'ADP-Rank'!$A$2:$J$599,10,FALSE),(IF(Personalize!$E$38=4,VLOOKUP($B12,'ADP-Rank'!$A$2:$AD$599,24,FALSE),(IF(Personalize!$E$38=5,VLOOKUP($B12,'ADP-Rank'!$A$2:$AD$599,27,FALSE))))))))))),"") -> 10.445 | H12: =IFERROR((G12/(Personalize!$E$22+1))+1,"") -> 1.803461538 | I12: =IFERROR(CHOOSE(Personalize!$E$39,VLOOKUP($B12,'ADP-Rank'!$A$2:$U$600,13,FALSE),VLOOKUP($B12,'ADP-Rank'!$A$2:$U$600,14,FALSE),VLOOKUP($B12,'ADP-Rank'!$A$2:$U$600,15,FALSE),VLOOKUP($B12,'ADP-Rank'!$A$2:$U$600,16,FALSE),VLOOKUP($B12,'ADP-Rank'!$A$2:$U$600,17,FALSE),VLOOKUP($B12,'ADP-Rank'!$A$2:$U$600,18,FALSE),VLOOKUP($B12,'ADP-Rank'!$A$2:$U$600,19,FALSE),VLOOKUP($B12,'ADP-Rank'!$A$2:$U$600,20,FALSE)),"") -> 12.42857143 | J12: =IFERROR(RANK($M12,$M$4:$M$600,0),"") -> 17 | K12: =IFERROR(IF((OR($C12="RP",$C12="SP")),VLOOKUP($B12,Pitcher!$A$1:$Z$600,20,FALSE),(VLOOKUP($B12,Hitter!$A$1:$Z$600,26,FALSE))),"") -> 470.732375 | L12: =IFERROR(IF((OR($C12="RP",$C12="SP")),VLOOKUP($C12,'Filtered-P'!$M$3:$P$4,4,FALSE), VLOOKUP($C12,Filtered!$Q$3:$T$14,4,FALSE)),"") -> 389.4967263 | M12: =IFERROR(K12-L12,"") -> 81.23564864 | N12: =IFERROR(IF((OR($C12="RP",$C12="SP")),VLOOKUP($B12,Pitcher!$A$1:$V$600,2,FALSE),""),"") ->  | O12: =IFERROR(IF((OR($C12="RP",$C12="SP")),VLOOKUP($B12,Pitcher!$A$1:$V$600,9,FALSE),""),"") ->  | P12: =IFERROR(IF((OR($C12="RP",$C12="SP")),VLOOKUP($B12,Pitcher!$A$1:$V$600,7,FALSE),""),"") ->  | Q12: =IFERROR(IF((OR($C12="RP",$C12="SP")),VLOOKUP($B12,Pitcher!$A$1:$AB$600,21,FALSE),""),"") ->  | R12: =IFERROR(IF((OR($C12="RP",$C12="SP")),VLOOKUP($B12,Pitcher!$A$1:$V$600,22,FALSE),""),"") ->  | S12: =IFERROR(IF((OR($C12="RP",$C12="SP")),"",VLOOKUP($B12,Hitter!$A$1:$AH$600,27,FALSE)),"") -> 0.303272801 | T12: =IFERROR(IF((OR($C12="RP",$C12="SP")),"",VLOOKUP($B12,Hitter!$A$1:$AH$600,9,FALSE)),"") -> 29.45192159 | U12: =IFERROR(IF((OR($C12="RP",$C12="SP")),"",VLOOKUP($B12,Hitter!$A$1:$AH$600,10,FALSE)),"") -> 102.486827 | V12: =IFERROR(IF((OR($C12="RP",$C12="SP")),"",VLOOKUP($B12,Hitter!$A$1:$AH$600,4,FALSE)),"") -> 93.42696787 | W12: =IFERROR(IF((OR($C12="RP",$C12="SP")),"",VLOOKUP($B12,Hitter!$A$1:$AH$600,11,FALSE)),"") -> 1.302148986 | X12: =IFERROR(IF(ISTEXT($A12),"",(1-NORMDIST((COUNTA($A$4:$A$600)),($G12),((AB12-AA12)/6),TRUE))),"") -> 0.9999962049 | Y12: =IFERROR(IF(ISTEXT($A12),"",(1-NORMDIST((COUNTA($A$4:$A$600))+(Personalize!$E$18+1),$G12,((AB12-AA12)/6),TRUE))),"") -> 0.998541865 | Z12: =IFERROR(IF(ISTEXT($A12),"",(1-NORMDIST((COUNTA($A$4:$A$600))+((Personalize!$E$18+1)*2),$G12,((AB12-AA12)/6),TRUE))),"") -> 0.9300855613 | AA12: =IF(Personalize!$E$34=1,VLOOKUP($B12,'ADP-Rank'!$A$2:$J$600,5,FALSE),(IF(Personalize!$E$34=2,VLOOKUP($B12,'ADP-Rank'!$A$2:$J$600,8,FALSE),(IF(Personalize!$E$34=3,VLOOKUP($B12,'ADP-Rank'!$A$2:$O$600,11,FALSE),""))))) -> 3 | AB12: =IF(Personalize!$E$34=1,VLOOKUP($B12,'ADP-Rank'!$A$2:$J$600,6,FALSE),(IF(Personalize!$E$34=2,VLOOKUP($B12,'ADP-Rank'!$A$2:$J$600,9,FALSE),(IF(Personalize!$E$34=3,VLOOKUP($B12,'ADP-Rank'!$A$2:$O$600,12,FALSE),""))))) -> 17 | AC12: =IF(ISBLANK(A12),0,1) -> 0 | AD12: =IF(K12="",0,1) -> 1 | AE12: =A12 -> 0 | AF12: =IF(C12="C",1,IF(C12="1B",2,IF(C12="2B",3,IF(C12="3B",4,IF(C12="SS",5,IF(C12="CI",6,IF(C12="MI",7,IF(C12="OF",11,IF(C12="LF",8,IF(C12="CF",9,IF(C12="RF",10,IF(C12="DH",12,IF(C12="SP",13,IF(C12="RP",14,IF(C12="P",15,16))))))))))))))) -> 2 | AG12: =VLOOKUP(B12,'Starter Calc'!$B$2:$BN$600,65,FALSE) -> Bench
B13: Roy Halladay | C13: =IFERROR(IF(VLOOKUP(B13,'ADP-Rank'!$A$2:$B$600,2,FALSE)="OF",VLOOKUP(B13,'Starter Calc'!$B$2:$AM$600,38,FALSE),(VLOOKUP(B13,'ADP-Rank'!$A$2:$B$600,2,FALSE))),"") -> SP | D13: =IFERROR(IF(VLOOKUP(B13,'Starter Calc'!$B$2:$E$600,4,FALSE)="","",VLOOKUP(B13,'Starter Calc'!$B$2:$E$600,4,FALSE)),"") ->  | E13: =IFERROR(VLOOKUP($B13,'ADP-Rank'!$A$2:$D$600,3,FALSE),"") -> PHI | F13: =IFERROR(VLOOKUP($B13,'ADP-Rank'!$A$2:$W$600,23,FALSE),"") -> 35 | G13: =IFERROR((IF(Personalize!$E$38=1,VLOOKUP($B13,'ADP-Rank'!$A$2:$J$599,4,FALSE),(IF(Personalize!$E$38=2,VLOOKUP($B13,'ADP-Rank'!$A$2:$J$599,7,FALSE),(IF(Personalize!$E$38=3,VLOOKUP($B13,'ADP-Rank'!$A$2:$J$599,10,FALSE),(IF(Personalize!$E$38=4,VLOOKUP($B13,'ADP-Rank'!$A$2:$AD$599,24,FALSE),(IF(Personalize!$E$38=5,VLOOKUP($B13,'ADP-Rank'!$A$2:$AD$599,27,FALSE))))))))))),"") -> 11.2975 | H13: =IFERROR((G13/(Personalize!$E$22+1))+1,"") -> 1.869038462 | I13: =IFERROR(CHOOSE(Personalize!$E$39,VLOOKUP($B13,'ADP-Rank'!$A$2:$U$600,13,FALSE),VLOOKUP($B13,'ADP-Rank'!$A$2:$U$600,14,FALSE),VLOOKUP($B13,'ADP-Rank'!$A$2:$U$600,15,FALSE),VLOOKUP($B13,'ADP-Rank'!$A$2:$U$600,16,FALSE),VLOOKUP($B13,'ADP-Rank'!$A$2:$U$600,17,FALSE),VLOOKUP($B13,'ADP-Rank'!$A$2:$U$600,18,FALSE),VLOOKUP($B13,'ADP-Rank'!$A$2:$U$600,19,FALSE),VLOOKUP($B13,'ADP-Rank'!$A$2:$U$600,20,FALSE)),"") -> 15.42857143 | J13: =IFERROR(RANK($M13,$M$4:$M$600,0),"") -> 9 | K13: =IFERROR(IF((OR($C13="RP",$C13="SP")),VLOOKUP($B13,Pitcher!$A$1:$Z$600,20,FALSE),(VLOOKUP($B13,Hitter!$A$1:$Z$600,26,FALSE))),"") -> 442.818841 | L13: =IFERROR(IF((OR($C13="RP",$C13="SP")),VLOOKUP($C13,'Filtered-P'!$M$3:$P$4,4,FALSE), VLOOKUP($C13,Filtered!$Q$3:$T$14,4,FALSE)),"") -> 331.9275286 | M13: =IFERROR(K13-L13,"") -> 110.8913124 | N13: =IFERROR(IF((OR($C13="RP",$C13="SP")),VLOOKUP($B13,Pitcher!$A$1:$V$600,2,FALSE),""),"") -> 16.14541997 | O13: =IFERROR(IF((OR($C13="RP",$C13="SP")),VLOOKUP($B13,Pitcher!$A$1:$V$600,9,FALSE),""),"") -> 0 | P13: =IFERROR(IF((OR($C13="RP",$C13="SP")),VLOOKUP($B13,Pitcher!$A$1:$V$600,7,FALSE),""),"") -> 193.3776989 | Q13: =IFERROR(IF((OR($C13="RP",$C13="SP")),VLOOKUP($B13,Pitcher!$A$1:$AB$600,21,FALSE),""),"") -> 2.906841436 | R13: =IFERROR(IF((OR($C13="RP",$C13="SP")),VLOOKUP($B13,Pitcher!$A$1:$V$600,22,FALSE),""),"") -> 1.083849821 | S13: =IFERROR(IF((OR($C13="RP",$C13="SP")),"",VLOOKUP($B13,Hitter!$A$1:$AH$600,27,FALSE)),"") ->  | T13: =IFERROR(IF((OR($C13="RP",$C13="SP")),"",VLOOKUP($B13,Hitter!$A$1:$AH$600,9,FALSE)),"") ->  | U13: =IFERROR(IF((OR($C13="RP",$C13="SP")),"",VLOOKUP($B13,Hitter!$A$1:$AH$600,10,FALSE)),"") ->  | V13: =IFERROR(IF((OR($C13="RP",$C13="SP")),"",VLOOKUP($B13,Hitter!$A$1:$AH$600,4,FALSE)),"") ->  | W13: =IFERROR(IF((OR($C13="RP",$C13="SP")),"",VLOOKUP($B13,Hitter!$A$1:$AH$600,11,FALSE)),"") ->  | X13: =IFERROR(IF(ISTEXT($A13),"",(1-NORMDIST((COUNTA($A$4:$A$600)),($G13),((AB13-AA13)/6),TRUE))),"") -> 0.9966500126 | Y13: =IFERROR(IF(ISTEXT($A13),"",(1-NORMDIST((COUNTA($A$4:$A$600))+(Personalize!$E$18+1),$G13,((AB13-AA13)/6),TRUE))),"") -> 0.9693551705 | Z13: =IFERROR(IF(ISTEXT($A13),"",(1-NORMDIST((COUNTA($A$4:$A$600))+((Personalize!$E$18+1)*2),$G13,((AB13-AA13)/6),TRUE))),"") -> 0.8488233596 | AA13: =IF(Personalize!$E$34=1,VLOOKUP($B13,'ADP-Rank'!$A$2:$J$600,5,FALSE),(IF(Personalize!$E$34=2,VLOOKUP($B13,'ADP-Rank'!$A$2:$J$600,8,FALSE),(IF(Personalize!$E$34=3,VLOOKUP($B13,'ADP-Rank'!$A$2:$O$600,11,FALSE),""))))) -> 5 | AB13: =IF(Personalize!$E$34=1,VLOOKUP($B13,'ADP-Rank'!$A$2:$J$600,6,FALSE),(IF(Personalize!$E$34=2,VLOOKUP($B13,'ADP-Rank'!$A$2:$J$600,9,FALSE),(IF(Personalize!$E$34=3,VLOOKUP($B13,'ADP-Rank'!$A$2:$O$600,12,FALSE),""))))) -> 30 | AC13: =IF(ISBLANK(A13),0,1) -> 0 | AD13: =IF(K13="",0,1) -> 1 | AE13: =A13 -> 0 | AF13: =IF(C13="C",1,IF(C13="1B",2,IF(C13="2B",3,IF(C13="3B",4,IF(C13="SS",5,IF(C13="CI",6,IF(C13="MI",7,IF(C13="OF",11,IF(C13="LF",8,IF(C13="CF",9,IF(C13="RF",10,IF(C13="DH",12,IF(C13="SP",13,IF(C13="RP",14,IF(C13="P",15,16))))))))))))))) -> 13 | AG13: =VLOOKUP(B13,'Starter Calc'!$B$2:$BN$600,65,FALSE) -> Bench
B14: Jacoby Ellsbury | C14: =IFERROR(IF(VLOOKUP(B14,'ADP-Rank'!$A$2:$B$600,2,FALSE)="OF",VLOOKUP(B14,'Starter Calc'!$B$2:$AM$600,38,FALSE),(VLOOKUP(B14,'ADP-Rank'!$A$2:$B$600,2,FALSE))),"") -> OF | D14: =IFERROR(IF(VLOOKUP(B14,'Starter Calc'!$B$2:$E$600,4,FALSE)="","",VLOOKUP(B14,'Starter Calc'!$B$2:$E$600,4,FALSE)),"") -> CF | E14: =IFERROR(VLOOKUP($B14,'ADP-Rank'!$A$2:$D$600,3,FALSE),"") -> BOS | F14: =IFERROR(VLOOKUP($B14,'ADP-Rank'!$A$2:$W$600,23,FALSE),"") -> 29 | G14: =IFERROR((IF(Personalize!$E$38=1,VLOOKUP($B14,'ADP-Rank'!$A$2:$J$599,4,FALSE),(IF(Personalize!$E$38=2,VLOOKUP($B14,'ADP-Rank'!$A$2:$J$599,7,FALSE),(IF(Personalize!$E$38=3,VLOOKUP($B14,'ADP-Rank'!$A$2:$J$599,10,FALSE),(IF(Personalize!$E$38=4,VLOOKUP($B14,'ADP-Rank'!$A$2:$AD$599,24,FALSE),(IF(Personalize!$E$38=5,VLOOKUP($B14,'ADP-Rank'!$A$2:$AD$599,27,FALSE))))))))))),"") -> 11.915 | H14: =IFERROR((G14/(Personalize!$E$22+1))+1,"") -> 1.916538462 | I14: =IFERROR(CHOOSE(Personalize!$E$39,VLOOKUP($B14,'ADP-Rank'!$A$2:$U$600,13,FALSE),VLOOKUP($B14,'ADP-Rank'!$A$2:$U$600,14,FALSE),VLOOKUP($B14,'ADP-Rank'!$A$2:$U$600,15,FALSE),VLOOKUP($B14,'ADP-Rank'!$A$2:$U$600,16,FALSE),VLOOKUP($B14,'ADP-Rank'!$A$2:$U$600,17,FALSE),VLOOKUP($B14,'ADP-Rank'!$A$2:$U$600,18,FALSE),VLOOKUP($B14,'ADP-Rank'!$A$2:$U$600,19,FALSE),VLOOKUP($B14,'ADP-Rank'!$A$2:$U$600,20,FALSE)),"") -> 9.428571429 | J14: =IFERROR(RANK($M14,$M$4:$M$600,0),"") -> 34 | K14: =IFERROR(IF((OR($C14="RP",$C14="SP")),VLOOKUP($B14,Pitcher!$A$1:$Z$600,20,FALSE),(VLOOKUP($B14,Hitter!$A$1:$Z$600,26,FALSE))),"") -> 394.3593298 | L14: =IFERROR(IF((OR($C14="RP",$C14="SP")),VLOOKUP($C14,'Filtered-P'!$M$3:$P$4,4,FALSE), VLOOKUP($C14,Filtered!$Q$3:$T$14,4,FALSE)),"") -> 347.6626137 | M14: =IFERROR(K14-L14,"") -> 46.69671608 | N14: =IFERROR(IF((OR($C14="RP",$C14="SP")),VLOOKUP($B14,Pitcher!$A$1:$V$600,2,FALSE),""),"") ->  | O14: =IFERROR(IF((OR($C14="RP",$C14="SP")),VLOOKUP($B14,Pitcher!$A$1:$V$600,9,FALSE),""),"") ->  | P14: =IFERROR(IF((OR($C14="RP",$C14="SP")),VLOOKUP($B14,Pitcher!$A$1:$V$600,7,FALSE),""),"") ->  | Q14: =IFERROR(IF((OR($C14="RP",$C14="SP")),VLOOKUP($B14,Pitcher!$A$1:$AB$600,21,FALSE),""),"") ->  | R14: =IFERROR(IF((OR($C14="RP",$C14="SP")),VLOOKUP($B14,Pitcher!$A$1:$V$600,22,FALSE),""),"") ->  | S14: =IFERROR(IF((OR($C14="RP",$C14="SP")),"",VLOOKUP($B14,Hitter!$A$1:$AH$600,27,FALSE)),"") -> 0.2946946843 | T14: =IFERROR(IF((OR($C14="RP",$C14="SP")),"",VLOOKUP($B14,Hitter!$A$1:$AH$600,9,FALSE)),"") -> 16.2822239 | U14: =IFERROR(IF((OR($C14="RP",$C14="SP")),"",VLOOKUP($B14,Hitter!$A$1:$AH$600,10,FALSE)),"") -> 67.75751863 | V14: =IFERROR(IF((OR($C14="RP",$C14="SP")),"",VLOOKUP($B14,Hitter!$A$1:$AH$600,4,FALSE)),"") -> 86.80512888 | W14: =IFERROR(IF((OR($C14="RP",$C14="SP")),"",VLOOKUP($B14,Hitter!$A$1:$AH$600,11,FALSE)),"") -> 37.81333529 | X14: =IFERROR(IF(ISTEXT($A14),"",(1-NORMDIST((COUNTA($A$4:$A$600)),($G14),((AB14-AA14)/6),TRUE))),"") -> 0.9999999809 | Y14: =IFERROR(IF(ISTEXT($A14),"",(1-NORMDIST((COUNTA($A$4:$A$600))+(Personalize!$E$18+1),$G14,((AB14-AA14)/6),TRUE))),"") -> 0.9999485915 | Z14: =IFERROR(IF(ISTEXT($A14),"",(1-NORMDIST((COUNTA($A$4:$A$600))+((Personalize!$E$18+1)*2),$G14,((AB14-AA14)/6),TRUE))),"") -> 0.9883494547 | AA14: =IF(Personalize!$E$34=1,VLOOKUP($B14,'ADP-Rank'!$A$2:$J$600,5,FALSE),(IF(Personalize!$E$34=2,VLOOKUP($B14,'ADP-Rank'!$A$2:$J$600,8,FALSE),(IF(Personalize!$E$34=3,VLOOKUP($B14,'ADP-Rank'!$A$2:$O$600,11,FALSE),""))))) -> 3 | AB14: =IF(Personalize!$E$34=1,VLOOKUP($B14,'ADP-Rank'!$A$2:$J$600,6,FALSE),(IF(Personalize!$E$34=2,VLOOKUP($B14,'ADP-Rank'!$A$2:$J$600,9,FALSE),(IF(Personalize!$E$34=3,VLOOKUP($B14,'ADP-Rank'!$A$2:$O$600,12,FALSE),""))))) -> 16 | AC14: =IF(ISBLANK(A14),0,1) -> 0 | AD14: =IF(K14="",0,1) -> 1 | AE14: =A14 -> 0 | AF14: =IF(C14="C",1,IF(C14="1B",2,IF(C14="2B",3,IF(C14="3B",4,IF(C14="SS",5,IF(C14="CI",6,IF(C14="MI",7,IF(C14="OF",11,IF(C14="LF",8,IF(C14="CF",9,IF(C14="RF",10,IF(C14="DH",12,IF(C14="SP",13,IF(C14="RP",14,IF(C14="P",15,16))))))))))))))) -> 11 | AG14: =VLOOKUP(B14,'Starter Calc'!$B$2:$BN$600,65,FALSE) -> Bench
B15: Clayton Kershaw | C15: =IFERROR(IF(VLOOKUP(B15,'ADP-Rank'!$A$2:$B$600,2,FALSE)="OF",VLOOKUP(B15,'Starter Calc'!$B$2:$AM$600,38,FALSE),(VLOOKUP(B15,'ADP-Rank'!$A$2:$B$600,2,FALSE))),"") -> SP | D15: =IFERROR(IF(VLOOKUP(B15,'Starter Calc'!$B$2:$E$600,4,FALSE)="","",VLOOKUP(B15,'Starter Calc'!$B$2:$E$600,4,FALSE)),"") ->  | E15: =IFERROR(VLOOKUP($B15,'ADP-Rank'!$A$2:$D$600,3,FALSE),"") -> LA | F15: =IFERROR(VLOOKUP($B15,'ADP-Rank'!$A$2:$W$600,23,FALSE),"") -> 24 | G15: =IFERROR((IF(Personalize!$E$38=1,VLOOKUP($B15,'ADP-Rank'!$A$2:$J$599,4,FALSE),(IF(Personalize!$E$38=2,VLOOKUP($B15,'ADP-Rank'!$A$2:$J$599,7,FALSE),(IF(Personalize!$E$38=3,VLOOKUP($B15,'ADP-Rank'!$A$2:$J$599,10,FALSE),(IF(Personalize!$E$38=4,VLOOKUP($B15,'ADP-Rank'!$A$2:$AD$599,24,FALSE),(IF(Personalize!$E$38=5,VLOOKUP($B15,'ADP-Rank'!$A$2:$AD$599,27,FALSE))))))))))),"") -> 13.5025 | H15: =IFERROR((G15/(Personalize!$E$22+1))+1,"") -> 2.038653846 | I15: =IFERROR(CHOOSE(Personalize!$E$39,VLOOKUP($B15,'ADP-Rank'!$A$2:$U$600,13,FALSE),VLOOKUP($B15,'ADP-Rank'!$A$2:$U$600,14,FALSE),VLOOKUP($B15,'ADP-Rank'!$A$2:$U$600,15,FALSE),VLOOKUP($B15,'ADP-Rank'!$A$2:$U$600,16,FALSE),VLOOKUP($B15,'ADP-Rank'!$A$2:$U$600,17,FALSE),VLOOKUP($B15,'ADP-Rank'!$A$2:$U$600,18,FALSE),VLOOKUP($B15,'ADP-Rank'!$A$2:$U$600,19,FALSE),VLOOKUP($B15,'ADP-Rank'!$A$2:$U$600,20,FALSE)),"") -> 18 | J15: =IFERROR(RANK($M15,$M$4:$M$600,0),"") -> 1 | K15: =IFERROR(IF((OR($C15="RP",$C15="SP")),VLOOKUP($B15,Pitcher!$A$1:$Z$600,20,FALSE),(VLOOKUP($B15,Hitter!$A$1:$Z$600,26,FALSE))),"") -> 511.1092324 | L15: =IFERROR(IF((OR($C15="RP",$C15="SP")),VLOOKUP($C15,'Filtered-P'!$M$3:$P$4,4,FALSE), VLOOKUP($C15,Filtered!$Q$3:$T$14,4,FALSE)),"") -> 331.9275286 | M15: =IFERROR(K15-L15,"") -> 179.1817038 | N15: =IFERROR(IF((OR($C15="RP",$C15="SP")),VLOOKUP($B15,Pitcher!$A$1:$V$600,2,FALSE),""),"") -> 15.13459003 | O15: =IFERROR(IF((OR($C15="RP",$C15="SP")),VLOOKUP($B15,Pitcher!$A$1:$V$600,9,FALSE),""),"") -> 0 | P15: =IFERROR(IF((OR($C15="RP",$C15="SP")),VLOOKUP($B15,Pitcher!$A$1:$V$600,7,FALSE),""),"") -> 221.9012233 | Q15: =IFERROR(IF((OR($C15="RP",$C15="SP")),VLOOKUP($B15,Pitcher!$A$1:$AB$600,21,FALSE),""),"") -> 2.775329483 | R15: =IFERROR(IF((OR($C15="RP",$C15="SP")),VLOOKUP($B15,Pitcher!$A$1:$V$600,22,FALSE),""),"") -> 1.108239522 | S15: =IFERROR(IF((OR($C15="RP",$C15="SP")),"",VLOOKUP($B15,Hitter!$A$1:$AH$600,27,FALSE)),"") ->  | T15: =IFERROR(IF((OR($C15="RP",$C15="SP")),"",VLOOKUP($B15,Hitter!$A$1:$AH$600,9,FALSE)),"") ->  | U15: =IFERROR(IF((OR($C15="RP",$C15="SP")),"",VLOOKUP($B15,Hitter!$A$1:$AH$600,10,FALSE)),"") ->  | V15: =IFERROR(IF((OR($C15="RP",$C15="SP")),"",VLOOKUP($B15,Hitter!$A$1:$AH$600,4,FALSE)),"") ->  | W15: =IFERROR(IF((OR($C15="RP",$C15="SP")),"",VLOOKUP($B15,Hitter!$A$1:$AH$600,11,FALSE)),"") ->  | X15: =IFERROR(IF(ISTEXT($A15),"",(1-NORMDIST((COUNTA($A$4:$A$600)),($G15),((AB15-AA15)/6),TRUE))),"") -> 0.9990832691 | Y15: =IFERROR(IF(ISTEXT($A15),"",(1-NORMDIST((COUNTA($A$4:$A$600))+(Personalize!$E$18+1),$G15,((AB15-AA15)/6),TRUE))),"") -> 0.9895079167 | Z15: =IFERROR(IF(ISTEXT($A15),"",(1-NORMDIST((COUNTA($A$4:$A$600))+((Personalize!$E$18+1)*2),$G15,((AB15-AA15)/6),TRUE))),"") -> 0.9332674881 | AA15: =IF(Personalize!$E$34=1,VLOOKUP($B15,'ADP-Rank'!$A$2:$J$600,5,FALSE),(IF(Personalize!$E$34=2,VLOOKUP($B15,'ADP-Rank'!$A$2:$J$600,8,FALSE),(IF(Personalize!$E$34=3,VLOOKUP($B15,'ADP-Rank'!$A$2:$O$600,11,FALSE),""))))) -> 3 | AB15: =IF(Personalize!$E$34=1,VLOOKUP($B15,'ADP-Rank'!$A$2:$J$600,6,FALSE),(IF(Personalize!$E$34=2,VLOOKUP($B15,'ADP-Rank'!$A$2:$J$600,9,FALSE),(IF(Personalize!$E$34=3,VLOOKUP($B15,'ADP-Rank'!$A$2:$O$600,12,FALSE),""))))) -> 29 | AC15: =IF(ISBLANK(A15),0,1) -> 0 | AD15: =IF(K15="",0,1) -> 1 | AE15: =A15 -> 0 | AF15: =IF(C15="C",1,IF(C15="1B",2,IF(C15="2B",3,IF(C15="3B",4,IF(C15="SS",5,IF(C15="CI",6,IF(C15="MI",7,IF(C15="OF",11,IF(C15="LF",8,IF(C15="CF",9,IF(C15="RF",10,IF(C15="DH",12,IF(C15="SP",13,IF(C15="RP",14,IF(C15="P",15,16))))))))))))))) -> 13 | AG15: =VLOOKUP(B15,'Starter Calc'!$B$2:$BN$600,65,FALSE) -> Bench
B16: Prince Fielder | C16: =IFERROR(IF(VLOOKUP(B16,'ADP-Rank'!$A$2:$B$600,2,FALSE)="OF",VLOOKUP(B16,'Starter Calc'!$B$2:$AM$600,38,FALSE),(VLOOKUP(B16,'ADP-Rank'!$A$2:$B$600,2,FALSE))),"") -> 1B | D16: =IFERROR(IF(VLOOKUP(B16,'Starter Calc'!$B$2:$E$600,4,FALSE)="","",VLOOKUP(B16,'Starter Calc'!$B$2:$E$600,4,FALSE)),"") ->  | E16: =IFERROR(VLOOKUP($B16,'ADP-Rank'!$A$2:$D$600,3,FALSE),"") -> DET | F16: =IFERROR(VLOOKUP($B16,'ADP-Rank'!$A$2:$W$600,23,FALSE),"") -> 28 | G16: =IFERROR((IF(Personalize!$E$38=1,VLOOKUP($B16,'ADP-Rank'!$A$2:$J$599,4,FALSE),(IF(Personalize!$E$38=2,VLOOKUP($B16,'ADP-Rank'!$A$2:$J$599,7,FALSE),(IF(Personalize!$E$38=3,VLOOKUP($B16,'ADP-Rank'!$A$2:$J$599,10,FALSE),(IF(Personalize!$E$38=4,VLOOKUP($B16,'ADP-Rank'!$A$2:$AD$599,24,FALSE),(IF(Personalize!$E$38=5,VLOOKUP($B16,'ADP-Rank'!$A$2:$AD$599,27,FALSE))))))))))),"") -> 14.4775 | H16: =IFERROR((G16/(Personalize!$E$22+1))+1,"") -> 2.113653846 | I16: =IFERROR(CHOOSE(Personalize!$E$39,VLOOKUP($B16,'ADP-Rank'!$A$2:$U$600,13,FALSE),VLOOKUP($B16,'ADP-Rank'!$A$2:$U$600,14,FALSE),VLOOKUP($B16,'ADP-Rank'!$A$2:$U$600,15,FALSE),VLOOKUP($B16,'ADP-Rank'!$A$2:$U$600,16,FALSE),VLOOKUP($B16,'ADP-Rank'!$A$2:$U$600,17,FALSE),VLOOKUP($B16,'ADP-Rank'!$A$2:$U$600,18,FALSE),VLOOKUP($B16,'ADP-Rank'!$A$2:$U$600,19,FALSE),VLOOKUP($B16,'ADP-Rank'!$A$2:$U$600,20,FALSE)),"") -> 13.71428571 | J16: =IFERROR(RANK($M16,$M$4:$M$600,0),"") -> 22 | K16: =IFERROR(IF((OR($C16="RP",$C16="SP")),VLOOKUP($B16,Pitcher!$A$1:$Z$600,20,FALSE),(VLOOKUP($B16,Hitter!$A$1:$Z$600,26,FALSE))),"") -> 457.6697258 | L16: =IFERROR(IF((OR($C16="RP",$C16="SP")),VLOOKUP($C16,'Filtered-P'!$M$3:$P$4,4,FALSE), VLOOKUP($C16,Filtered!$Q$3:$T$14,4,FALSE)),"") -> 389.4967263 | M16: =IFERROR(K16-L16,"") -> 68.17299949 | N16: =IFERROR(IF((OR($C16="RP",$C16="SP")),VLOOKUP($B16,Pitcher!$A$1:$V$600,2,FALSE),""),"") ->  | O16: =IFERROR(IF((OR($C16="RP",$C16="SP")),VLOOKUP($B16,Pitcher!$A$1:$V$600,9,FALSE),""),"") ->  | P16: =IFERROR(IF((OR($C16="RP",$C16="SP")),VLOOKUP($B16,Pitcher!$A$1:$V$600,7,FALSE),""),"") ->  | Q16: =IFERROR(IF((OR($C16="RP",$C16="SP")),VLOOKUP($B16,Pitcher!$A$1:$AB$600,21,FALSE),""),"") ->  | R16: =IFERROR(IF((OR($C16="RP",$C16="SP")),VLOOKUP($B16,Pitcher!$A$1:$V$600,22,FALSE),""),"") ->  | S16: =IFERROR(IF((OR($C16="RP",$C16="SP")),"",VLOOKUP($B16,Hitter!$A$1:$AH$600,27,FALSE)),"") -> 0.2767183852 | T16: =IFERROR(IF((OR($C16="RP",$C16="SP")),"",VLOOKUP($B16,Hitter!$A$1:$AH$600,9,FALSE)),"") -> 32.60257062 | U16: =IFERROR(IF((OR($C16="RP",$C16="SP")),"",VLOOKUP($B16,Hitter!$A$1:$AH$600,10,FALSE)),"") -> 103.2356181 | V16: =IFERROR(IF((OR($C16="RP",$C16="SP")),"",VLOOKUP($B16,Hitter!$A$1:$AH$600,4,FALSE)),"") -> 90.28608918 | W16: =IFERROR(IF((OR($C16="RP",$C16="SP")),"",VLOOKUP($B16,Hitter!$A$1:$AH$600,11,FALSE)),"") -> 1.888244288 | X16: =IFERROR(IF(ISTEXT($A16),"",(1-NORMDIST((COUNTA($A$4:$A$600)),($G16),((AB16-AA16)/6),TRUE))),"") -> 0.9999999717 | Y16: =IFERROR(IF(ISTEXT($A16),"",(1-NORMDIST((COUNTA($A$4:$A$600))+(Personalize!$E$18+1),$G16,((AB16-AA16)/6),TRUE))),"") -> 0.9999807717 | Z16: =IFERROR(IF(ISTEXT($A16),"",(1-NORMDIST((COUNTA($A$4:$A$600))+((Personalize!$E$18+1)*2),$G16,((AB16-AA16)/6),TRUE))),"") -> 0.9974768439 | AA16: =IF(Personalize!$E$34=1,VLOOKUP($B16,'ADP-Rank'!$A$2:$J$600,5,FALSE),(IF(Personalize!$E$34=2,VLOOKUP($B16,'ADP-Rank'!$A$2:$J$600,8,FALSE),(IF(Personalize!$E$34=3,VLOOKUP($B16,'ADP-Rank'!$A$2:$O$600,11,FALSE),""))))) -> 7 | AB16: =IF(Personalize!$E$34=1,VLOOKUP($B16,'ADP-Rank'!$A$2:$J$600,6,FALSE),(IF(Personalize!$E$34=2,VLOOKUP($B16,'ADP-Rank'!$A$2:$J$600,9,FALSE),(IF(Personalize!$E$34=3,VLOOKUP($B16,'ADP-Rank'!$A$2:$O$600,12,FALSE),""))))) -> 23 | AC16: =IF(ISBLANK(A16),0,1) -> 0 | AD16: =IF(K16="",0,1) -> 1 | AE16: =A16 -> 0 | AF16: =IF(C16="C",1,IF(C16="1B",2,IF(C16="2B",3,IF(C16="3B",4,IF(C16="SS",5,IF(C16="CI",6,IF(C16="MI",7,IF(C16="OF",11,IF(C16="LF",8,IF(C16="CF",9,IF(C16="RF",10,IF(C16="DH",12,IF(C16="SP",13,IF(C16="RP",14,IF(C16="P",15,16))))))))))))))) -> 2 | AG16: =VLOOKUP(B16,'Starter Calc'!$B$2:$BN$600,65,FALSE) -> Bench
B17: Evan Longoria | C17: =IFERROR(IF(VLOOKUP(B17,'ADP-Rank'!$A$2:$B$600,2,FALSE)="OF",VLOOKUP(B17,'Starter Calc'!$B$2:$AM$600,38,FALSE),(VLOOKUP(B17,'ADP-Rank'!$A$2:$B$600,2,FALSE))),"") -> 3B | D17: =IFERROR(IF(VLOOKUP(B17,'Starter Calc'!$B$2:$E$600,4,FALSE)="","",VLOOKUP(B17,'Starter Calc'!$B$2:$E$600,4,FALSE)),"") ->  | E17: =IFERROR(VLOOKUP($B17,'ADP-Rank'!$A$2:$D$600,3,FALSE),"") -> TB | F17: =IFERROR(VLOOKUP($B17,'ADP-Rank'!$A$2:$W$600,23,FALSE),"") -> 27 | G17: =IFERROR((IF(Personalize!$E$38=1,VLOOKUP($B17,'ADP-Rank'!$A$2:$J$599,4,FALSE),(IF(Personalize!$E$38=2,VLOOKUP($B17,'ADP-Rank'!$A$2:$J$599,7,FALSE),(IF(Personalize!$E$38=3,VLOOKUP($B17,'ADP-Rank'!$A$2:$J$599,10,FALSE),(IF(Personalize!$E$38=4,VLOOKUP($B17,'ADP-Rank'!$A$2:$AD$599,24,FALSE),(IF(Personalize!$E$38=5,VLOOKUP($B17,'ADP-Rank'!$A$2:$AD$599,27,FALSE))))))))))),"") -> 14.9675 | H17: =IFERROR((G17/(Personalize!$E$22+1))+1,"") -> 2.151346154 | I17: =IFERROR(CHOOSE(Personalize!$E$39,VLOOKUP($B17,'ADP-Rank'!$A$2:$U$600,13,FALSE),VLOOKUP($B17,'ADP-Rank'!$A$2:$U$600,14,FALSE),VLOOKUP($B17,'ADP-Rank'!$A$2:$U$600,15,FALSE),VLOOKUP($B17,'ADP-Rank'!$A$2:$U$600,16,FALSE),VLOOKUP($B17,'ADP-Rank'!$A$2:$U$600,17,FALSE),VLOOKUP($B17,'ADP-Rank'!$A$2:$U$600,18,FALSE),VLOOKUP($B17,'ADP-Rank'!$A$2:$U$600,19,FALSE),VLOOKUP($B17,'ADP-Rank'!$A$2:$U$600,20,FALSE)),"") -> 14.14285714 | J17: =IFERROR(RANK($M17,$M$4:$M$600,0),"") -> 19 | K17: =IFERROR(IF((OR($C17="RP",$C17="SP")),VLOOKUP($B17,Pitcher!$A$1:$Z$600,20,FALSE),(VLOOKUP($B17,Hitter!$A$1:$Z$600,26,FALSE))),"") -> 406.209381 | L17: =IFERROR(IF((OR($C17="RP",$C17="SP")),VLOOKUP($C17,'Filtered-P'!$M$3:$P$4,4,FALSE), VLOOKUP($C17,Filtered!$Q$3:$T$14,4,FALSE)),"") -> 326.1386933 | M17: =IFERROR(K17-L17,"") -> 80.07068766 | N17: =IFERROR(IF((OR($C17="RP",$C17="SP")),VLOOKUP($B17,Pitcher!$A$1:$V$600,2,FALSE),""),"") ->  | O17: =IFERROR(IF((OR($C17="RP",$C17="SP")),VLOOKUP($B17,Pitcher!$A$1:$V$600,9,FALSE),""),"") ->  | P17: =IFERROR(IF((OR($C17="RP",$C17="SP")),VLOOKUP($B17,Pitcher!$A$1:$V$600,7,FALSE),""),"") ->  | Q17: =IFERROR(IF((OR($C17="RP",$C17="SP")),VLOOKUP($B17,Pitcher!$A$1:$AB$600,21,FALSE),""),"") ->  | R17: =IFERROR(IF((OR($C17="RP",$C17="SP")),VLOOKUP($B17,Pitcher!$A$1:$V$600,22,FALSE),""),"") ->  | S17: =IFERROR(IF((OR($C17="RP",$C17="SP")),"",VLOOKUP($B17,Hitter!$A$1:$AH$600,27,FALSE)),"") -> 0.2726521721 | T17: =IFERROR(IF((OR($C17="RP",$C17="SP")),"",VLOOKUP($B17,Hitter!$A$1:$AH$600,9,FALSE)),"") -> 27.43272396 | U17: =IFERROR(IF((OR($C17="RP",$C17="SP")),"",VLOOKUP($B17,Hitter!$A$1:$AH$600,10,FALSE)),"") -> 95.74726158 | V17: =IFERROR(IF((OR($C17="RP",$C17="SP")),"",VLOOKUP($B17,Hitter!$A$1:$AH$600,4,FALSE)),"") -> 83.94505379 | W17: =IFERROR(IF((OR($C17="RP",$C17="SP")),"",VLOOKUP($B17,Hitter!$A$1:$AH$600,11,FALSE)),"") -> 7.516449644 | X17: =IFERROR(IF(ISTEXT($A17),"",(1-NORMDIST((COUNTA($A$4:$A$600)),($G17),((AB17-AA17)/6),TRUE))),"") -> 0.9999999363 | Y17: =IFERROR(IF(ISTEXT($A17),"",(1-NORMDIST((COUNTA($A$4:$A$600))+(Personalize!$E$18+1),$G17,((AB17-AA17)/6),TRUE))),"") -> 0.9999740999 | Z17: =IFERROR(IF(ISTEXT($A17),"",(1-NORMDIST((COUNTA($A$4:$A$600))+((Personalize!$E$18+1)*2),$G17,((AB17-AA17)/6),TRUE))),"") -> 0.997538725 | AA17: =IF(Personalize!$E$34=1,VLOOKUP($B17,'ADP-Rank'!$A$2:$J$600,5,FALSE),(IF(Personalize!$E$34=2,VLOOKUP($B17,'ADP-Rank'!$A$2:$J$600,8,FALSE),(IF(Personalize!$E$34=3,VLOOKUP($B17,'ADP-Rank'!$A$2:$O$600,11,FALSE),""))))) -> 3 | AB17: =IF(Personalize!$E$34=1,VLOOKUP($B17,'ADP-Rank'!$A$2:$J$600,6,FALSE),(IF(Personalize!$E$34=2,VLOOKUP($B17,'ADP-Rank'!$A$2:$J$600,9,FALSE),(IF(Personalize!$E$34=3,VLOOKUP($B17,'ADP-Rank'!$A$2:$O$600,12,FALSE),""))))) -> 20 | AC17: =IF(ISBLANK(A17),0,1) -> 0 | AD17: =IF(K17="",0,1) -> 1 | AE17: =A17 -> 0 | AF17: =IF(C17="C",1,IF(C17="1B",2,IF(C17="2B",3,IF(C17="3B",4,IF(C17="SS",5,IF(C17="CI",6,IF(C17="MI",7,IF(C17="OF",11,IF(C17="LF",8,IF(C17="CF",9,IF(C17="RF",10,IF(C17="DH",12,IF(C17="SP",13,IF(C17="RP",14,IF(C17="P",15,16))))))))))))))) -> 4 | AG17: =VLOOKUP(B17,'Starter Calc'!$B$2:$BN$600,65,FALSE) -> Bench
B18: Justin Upton | C18: =IFERROR(IF(VLOOKUP(B18,'ADP-Rank'!$A$2:$B$600,2,FALSE)="OF",VLOOKUP(B18,'Starter Calc'!$B$2:$AM$600,38,FALSE),(VLOOKUP(B18,'ADP-Rank'!$A$2:$B$600,2,FALSE))),"") -> OF | D18: =IFERROR(IF(VLOOKUP(B18,'Starter Calc'!$B$2:$E$600,4,FALSE)="","",VLOOKUP(B18,'Starter Calc'!$B$2:$E$600,4,FALSE)),"") -> RF | E18: =IFERROR(VLOOKUP($B18,'ADP-Rank'!$A$2:$D$600,3,FALSE),"") -> ARI | F18: =IFERROR(VLOOKUP($B18,'ADP-Rank'!$A$2:$W$600,23,FALSE),"") -> 25 | G18: =IFERROR((IF(Personalize!$E$38=1,VLOOKUP($B18,'ADP-Rank'!$A$2:$J$599,4,FALSE),(IF(Personalize!$E$38=2,VLOOKUP($B18,'ADP-Rank'!$A$2:$J$599,7,FALSE),(IF(Personalize!$E$38=3,VLOOKUP($B18,'ADP-Rank'!$A$2:$J$599,10,FALSE),(IF(Personalize!$E$38=4,VLOOKUP($B18,'ADP-Rank'!$A$2:$AD$599,24,FALSE),(IF(Personalize!$E$38=5,VLOOKUP($B18,'ADP-Rank'!$A$2:$AD$599,27,FALSE))))))))))),"") -> 14.9925 | H18: =IFERROR((G18/(Personalize!$E$22+1))+1,"") -> 2.153269231 | I18: =IFERROR(CHOOSE(Personalize!$E$39,VLOOKUP($B18,'ADP-Rank'!$A$2:$U$600,13,FALSE),VLOOKUP($B18,'ADP-Rank'!$A$2:$U$600,14,FALSE),VLOOKUP($B18,'ADP-Rank'!$A$2:$U$600,15,FALSE),VLOOKUP($B18,'ADP-Rank'!$A$2:$U$600,16,FALSE),VLOOKUP($B18,'ADP-Rank'!$A$2:$U$600,17,FALSE),VLOOKUP($B18,'ADP-Rank'!$A$2:$U$600,18,FALSE),VLOOKUP($B18,'ADP-Rank'!$A$2:$U$600,19,FALSE),VLOOKUP($B18,'ADP-Rank'!$A$2:$U$600,20,FALSE)),"") -> 11.71428571 | J18: =IFERROR(RANK($M18,$M$4:$M$600,0),"") -> 31 | K18: =IFERROR(IF((OR($C18="RP",$C18="SP")),VLOOKUP($B18,Pitcher!$A$1:$Z$600,20,FALSE),(VLOOKUP($B18,Hitter!$A$1:$Z$600,26,FALSE))),"") -> 398.0165415 | L18: =IFERROR(IF((OR($C18="RP",$C18="SP")),VLOOKUP($C18,'Filtered-P'!$M$3:$P$4,4,FALSE), VLOOKUP($C18,Filtered!$Q$3:$T$14,4,FALSE)),"") -> 347.6626137 | M18: =IFERROR(K18-L18,"") -> 50.35392778 | N18: =IFERROR(IF((OR($C18="RP",$C18="SP")),VLOOKUP($B18,Pitcher!$A$1:$V$600,2,FALSE),""),"") ->  | O18: =IFERROR(IF((OR($C18="RP",$C18="SP")),VLOOKUP($B18,Pitcher!$A$1:$V$600,9,FALSE),""),"") ->  | P18: =IFERROR(IF((OR($C18="RP",$C18="SP")),VLOOKUP($B18,Pitcher!$A$1:$V$600,7,FALSE),""),"") ->  | Q18: =IFERROR(IF((OR($C18="RP",$C18="SP")),VLOOKUP($B18,Pitcher!$A$1:$AB$600,21,FALSE),""),"") ->  | R18: =IFERROR(IF((OR($C18="RP",$C18="SP")),VLOOKUP($B18,Pitcher!$A$1:$V$600,22,FALSE),""),"") ->  | S18: =IFERROR(IF((OR($C18="RP",$C18="SP")),"",VLOOKUP($B18,Hitter!$A$1:$AH$600,27,FALSE)),"") -> 0.2847713524 | T18: =IFERROR(IF((OR($C18="RP",$C18="SP")),"",VLOOKUP($B18,Hitter!$A$1:$AH$600,9,FALSE)),"") -> 26.25253642 | U18: =IFERROR(IF((OR($C18="RP",$C18="SP")),"",VLOOKUP($B18,Hitter!$A$1:$AH$600,10,FALSE)),"") -> 84.60737593 | V18: =IFERROR(IF((OR($C18="RP",$C18="SP")),"",VLOOKUP($B18,Hitter!$A$1:$AH$600,4,FALSE)),"") -> 90.42748095 | W18: =IFERROR(IF((OR($C18="RP",$C18="SP")),"",VLOOKUP($B18,Hitter!$A$1:$AH$600,11,FALSE)),"") -> 18.74672144 | X18: =IFERROR(IF(ISTEXT($A18),"",(1-NORMDIST((COUNTA($A$4:$A$600)),($G18),((AB18-AA18)/6),TRUE))),"") -> 1 | Y18: =IFERROR(IF(ISTEXT($A18),"",(1-NORMDIST((COUNTA($A$4:$A$600))+(Personalize!$E$18+1),$G18,((AB18-AA18)/6),TRUE))),"") -> 0.9999999434 | Z18: =IFERROR(IF(ISTEXT($A18),"",(1-NORMDIST((COUNTA($A$4:$A$600))+((Personalize!$E$18+1)*2),$G18,((AB18-AA18)/6),TRUE))),"") -> 0.9998873633 | AA18: =IF(Personalize!$E$34=1,VLOOKUP($B18,'ADP-Rank'!$A$2:$J$600,5,FALSE),(IF(Personalize!$E$34=2,VLOOKUP($B18,'ADP-Rank'!$A$2:$J$600,8,FALSE),(IF(Personalize!$E$34=3,VLOOKUP($B18,'ADP-Rank'!$A$2:$O$600,11,FALSE),""))))) -> 3 | AB18: =IF(Personalize!$E$34=1,VLOOKUP($B18,'ADP-Rank'!$A$2:$J$600,6,FALSE),(IF(Personalize!$E$34=2,VLOOKUP($B18,'ADP-Rank'!$A$2:$J$600,9,FALSE),(IF(Personalize!$E$34=3,VLOOKUP($B18,'ADP-Rank'!$A$2:$O$600,12,FALSE),""))))) -> 16 | AC18: =IF(ISBLANK(A18),0,1) -> 0 | AD18: =IF(K18="",0,1) -> 1 | AE18: =A18 -> 0 | AF18: =IF(C18="C",1,IF(C18="1B",2,IF(C18="2B",3,IF(C18="3B",4,IF(C18="SS",5,IF(C18="CI",6,IF(C18="MI",7,IF(C18="OF",11,IF(C18="LF",8,IF(C18="CF",9,IF(C18="RF",10,IF(C18="DH",12,IF(C18="SP",13,IF(C18="RP",14,IF(C18="P",15,16))))))))))))))) -> 11 | AG18: =VLOOKUP(B18,'Starter Calc'!$B$2:$BN$600,65,FALSE) -> Bench
B19: Dustin Pedroia | C19: =IFERROR(IF(VLOOKUP(B19,'ADP-Rank'!$A$2:$B$600,2,FALSE)="OF",VLOOKUP(B19,'Starter Calc'!$B$2:$AM$600,38,FALSE),(VLOOKUP(B19,'ADP-Rank'!$A$2:$B$600,2,FALSE))),"") -> 2B | D19: =IFERROR(IF(VLOOKUP(B19,'Starter Calc'!$B$2:$E$600,4,FALSE)="","",VLOOKUP(B19,'Starter Calc'!$B$2:$E$600,4,FALSE)),"") ->  | E19: =IFERROR(VLOOKUP($B19,'ADP-Rank'!$A$2:$D$600,3,FALSE),"") -> BOS | F19: =IFERROR(VLOOKUP($B19,'ADP-Rank'!$A$2:$W$600,23,FALSE),"") -> 29 | G19: =IFERROR((IF(Personalize!$E$38=1,VLOOKUP($B19,'ADP-Rank'!$A$2:$J$599,4,FALSE),(IF(Personalize!$E$38=2,VLOOKUP($B19,'ADP-Rank'!$A$2:$J$599,7,FALSE),(IF(Personalize!$E$38=3,VLOOKUP($B19,'ADP-Rank'!$A$2:$J$599,10,FALSE),(IF(Personalize!$E$38=4,VLOOKUP($B19,'ADP-Rank'!$A$2:$AD$599,24,FALSE),(IF(Personalize!$E$38=5,VLOOKUP($B19,'ADP-Rank'!$A$2:$AD$599,27,FALSE))))))))))),"") -> 18.035 | H19: =IFERROR((G19/(Personalize!$E$22+1))+1,"") -> 2.387307692 | I19: =IFERROR(CHOOSE(Personalize!$E$39,VLOOKUP($B19,'ADP-Rank'!$A$2:$U$600,13,FALSE),VLOOKUP($B19,'ADP-Rank'!$A$2:$U$600,14,FALSE),VLOOKUP($B19,'ADP-Rank'!$A$2:$U$600,15,FALSE),VLOOKUP($B19,'ADP-Rank'!$A$2:$U$600,16,FALSE),VLOOKUP($B19,'ADP-Rank'!$A$2:$U$600,17,FALSE),VLOOKUP($B19,'ADP-Rank'!$A$2:$U$600,18,FALSE),VLOOKUP($B19,'ADP-Rank'!$A$2:$U$600,19,FALSE),VLOOKUP($B19,'ADP-Rank'!$A$2:$U$600,20,FALSE)),"") -> 16.57142857 | J19: =IFERROR(RANK($M19,$M$4:$M$600,0),"") -> 20 | K19: =IFERROR(IF((OR($C19="RP",$C19="SP")),VLOOKUP($B19,Pitcher!$A$1:$Z$600,20,FALSE),(VLOOKUP($B19,Hitter!$A$1:$Z$600,26,FALSE))),"") -> 431.2468651 | L19: =IFERROR(IF((OR($C19="RP",$C19="SP")),VLOOKUP($C19,'Filtered-P'!$M$3:$P$4,4,FALSE), VLOOKUP($C19,Filtered!$Q$3:$T$14,4,FALSE)),"") -> 354.8310871 | M19: =IFERROR(K19-L19,"") -> 76.41577799 | N19: =IFERROR(IF((OR($C19="RP",$C19="SP")),VLOOKUP($B19,Pitcher!$A$1:$V$600,2,FALSE),""),"") ->  | O19: =IFERROR(IF((OR($C19="RP",$C19="SP")),VLOOKUP($B19,Pitcher!$A$1:$V$600,9,FALSE),""),"") ->  | P19: =IFERROR(IF((OR($C19="RP",$C19="SP")),VLOOKUP($B19,Pitcher!$A$1:$V$600,7,FALSE),""),"") ->  | Q19: =IFERROR(IF((OR($C19="RP",$C19="SP")),VLOOKUP($B19,Pitcher!$A$1:$AB$600,21,FALSE),""),"") ->  | R19: =IFERROR(IF((OR($C19="RP",$C19="SP")),VLOOKUP($B19,Pitcher!$A$1:$V$600,22,FALSE),""),"") ->  | S19: =IFERROR(IF((OR($C19="RP",$C19="SP")),"",VLOOKUP($B19,Hitter!$A$1:$AH$600,27,FALSE)),"") -> 0.2939765228 | T19: =IFERROR(IF((OR($C19="RP",$C19="SP")),"",VLOOKUP($B19,Hitter!$A$1:$AH$600,9,FALSE)),"") -> 16.85441288 | U19: =IFERROR(IF((OR($C19="RP",$C19="SP")),"",VLOOKUP($B19,Hitter!$A$1:$AH$600,10,FALSE)),"") -> 72.79579722 | V19: =IFERROR(IF((OR($C19="RP",$C19="SP")),"",VLOOKUP($B19,Hitter!$A$1:$AH$600,4,FALSE)),"") -> 90.34032998 | W19: =IFERROR(IF((OR($C19="RP",$C19="SP")),"",VLOOKUP($B19,Hitter!$A$1:$AH$600,11,FALSE)),"") -> 18.75725705 | X19: =IFERROR(IF(ISTEXT($A19),"",(1-NORMDIST((COUNTA($A$4:$A$600)),($G19),((AB19-AA19)/6),TRUE))),"") -> 0.9999999991 | Y19: =IFERROR(IF(ISTEXT($A19),"",(1-NORMDIST((COUNTA($A$4:$A$600))+(Personalize!$E$18+1),$G19,((AB19-AA19)/6),TRUE))),"") -> 0.9999993669 | Z19: =IFERROR(IF(ISTEXT($A19),"",(1-NORMDIST((COUNTA($A$4:$A$600))+((Personalize!$E$18+1)*2),$G19,((AB19-AA19)/6),TRUE))),"") -> 0.9998826185 | AA19: =IF(Personalize!$E$34=1,VLOOKUP($B19,'ADP-Rank'!$A$2:$J$600,5,FALSE),(IF(Personalize!$E$34=2,VLOOKUP($B19,'ADP-Rank'!$A$2:$J$600,8,FALSE),(IF(Personalize!$E$34=3,VLOOKUP($B19,'ADP-Rank'!$A$2:$O$600,11,FALSE),""))))) -> 8 | AB19: =IF(Personalize!$E$34=1,VLOOKUP($B19,'ADP-Rank'!$A$2:$J$600,6,FALSE),(IF(Personalize!$E$34=2,VLOOKUP($B19,'ADP-Rank'!$A$2:$J$600,9,FALSE),(IF(Personalize!$E$34=3,VLOOKUP($B19,'ADP-Rank'!$A$2:$O$600,12,FALSE),""))))) -> 26 | AC19: =IF(ISBLANK(A19),0,1) -> 0 | AD19: =IF(K19="",0,1) -> 1 | AE19: =A19 -> 0 | AF19: =IF(C19="C",1,IF(C19="1B",2,IF(C19="2B",3,IF(C19="3B",4,IF(C19="SS",5,IF(C19="CI",6,IF(C19="MI",7,IF(C19="OF",11,IF(C19="LF",8,IF(C19="CF",9,IF(C19="RF",10,IF(C19="DH",12,IF(C19="SP",13,IF(C19="RP",14,IF(C19="P",15,16))))))))))))))) -> 3 | AG19: =VLOOKUP(B19,'Starter Calc'!$B$2:$BN$600,65,FALSE) -> Bench
B20: Carlos Gonzalez | C20: =IFERROR(IF(VLOOKUP(B20,'ADP-Rank'!$A$2:$B$600,2,FALSE)="OF",VLOOKUP(B20,'Starter Calc'!$B$2:$AM$600,38,FALSE),(VLOOKUP(B20,'ADP-Rank'!$A$2:$B$600,2,FALSE))),"") -> OF | D20: =IFERROR(IF(VLOOKUP(B20,'Starter Calc'!$B$2:$E$600,4,FALSE)="","",VLOOKUP(B20,'Starter Calc'!$B$2:$E$600,4,FALSE)),"") -> RF,CF,LF | E20: =IFERROR(VLOOKUP($B20,'ADP-Rank'!$A$2:$D$600,3,FALSE),"") -> COL | F20: =IFERROR(VLOOKUP($B20,'ADP-Rank'!$A$2:$W$600,23,FALSE),"") -> 27 | G20: =IFERROR((IF(Personalize!$E$38=1,VLOOKUP($B20,'ADP-Rank'!$A$2:$J$599,4,FALSE),(IF(Personalize!$E$38=2,VLOOKUP($B20,'ADP-Rank'!$A$2:$J$599,7,FALSE),(IF(Personalize!$E$38=3,VLOOKUP($B20,'ADP-Rank'!$A$2:$J$599,10,FALSE),(IF(Personalize!$E$38=4,VLOOKUP($B20,'ADP-Rank'!$A$2:$AD$599,24,FALSE),(IF(Personalize!$E$38=5,VLOOKUP($B20,'ADP-Rank'!$A$2:$AD$599,27,FALSE))))))))))),"") -> 18.48 | H20: =IFERROR((G20/(Personalize!$E$22+1))+1,"") -> 2.421538462 | I20: =IFERROR(CHOOSE(Personalize!$E$39,VLOOKUP($B20,'ADP-Rank'!$A$2:$U$600,13,FALSE),VLOOKUP($B20,'ADP-Rank'!$A$2:$U$600,14,FALSE),VLOOKUP($B20,'ADP-Rank'!$A$2:$U$600,15,FALSE),VLOOKUP($B20,'ADP-Rank'!$A$2:$U$600,16,FALSE),VLOOKUP($B20,'ADP-Rank'!$A$2:$U$600,17,FALSE),VLOOKUP($B20,'ADP-Rank'!$A$2:$U$600,18,FALSE),VLOOKUP($B20,'ADP-Rank'!$A$2:$U$600,19,FALSE),VLOOKUP($B20,'ADP-Rank'!$A$2:$U$600,20,FALSE)),"") -> 14.14285714 | J20: =IFERROR(RANK($M20,$M$4:$M$600,0),"") -> 42 | K20: =IFERROR(IF((OR($C20="RP",$C20="SP")),VLOOKUP($B20,Pitcher!$A$1:$Z$600,20,FALSE),(VLOOKUP($B20,Hitter!$A$1:$Z$600,26,FALSE))),"") -> 382.3703259 | L20: =IFERROR(IF((OR($C20="RP",$C20="SP")),VLOOKUP($C20,'Filtered-P'!$M$3:$P$4,4,FALSE), VLOOKUP($C20,Filtered!$Q$3:$T$14,4,FALSE)),"") -> 347.6626137 | M20: =IFERROR(K20-L20,"") -> 34.70771221 | N20: =IFERROR(IF((OR($C20="RP",$C20="SP")),VLOOKUP($B20,Pitcher!$A$1:$V$600,2,FALSE),""),"") ->  | O20: =IFERROR(IF((OR($C20="RP",$C20="SP")),VLOOKUP($B20,Pitcher!$A$1:$V$600,9,FALSE),""),"") ->  | P20: =IFERROR(IF((OR($C20="RP",$C20="SP")),VLOOKUP($B20,Pitcher!$A$1:$V$600,7,FALSE),""),"") ->  | Q20: =IFERROR(IF((OR($C20="RP",$C20="SP")),VLOOKUP($B20,Pitcher!$A$1:$AB$600,21,FALSE),""),"") ->  | R20: =IFERROR(IF((OR($C20="RP",$C20="SP")),VLOOKUP($B20,Pitcher!$A$1:$V$600,22,FALSE),""),"") ->  | S20: =IFERROR(IF((OR($C20="RP",$C20="SP")),"",VLOOKUP($B20,Hitter!$A$1:$AH$600,27,FALSE)),"") -> 0.2985465641 | T20: =IFERROR(IF((OR($C20="RP",$C20="SP")),"",VLOOKUP($B20,Hitter!$A$1:$AH$600,9,FALSE)),"") -> 24.8570951 | U20: =IFERROR(IF((OR($C20="RP",$C20="SP")),"",VLOOKUP($B20,Hitter!$A$1:$AH$600,10,FALSE)),"") -> 85.46733561 | V20: =IFERROR(IF((OR($C20="RP",$C20="SP")),"",VLOOKUP($B20,Hitter!$A$1:$AH$600,4,FALSE)),"") -> 85.04132375 | W20: =IFERROR(IF((OR($C20="RP",$C20="SP")),"",VLOOKUP($B20,Hitter!$A$1:$AH$600,11,FALSE)),"") -> 19.13109296 | X20: =IFERROR(IF(ISTEXT($A20),"",(1-NORMDIST((COUNTA($A$4:$A$600)),($G20),((AB20-AA20)/6),TRUE))),"") -> 0.9999999996 | Y20: =IFERROR(IF(ISTEXT($A20),"",(1-NORMDIST((COUNTA($A$4:$A$600))+(Personalize!$E$18+1),$G20,((AB20-AA20)/6),TRUE))),"") -> 0.9999997033 | Z20: =IFERROR(IF(ISTEXT($A20),"",(1-NORMDIST((COUNTA($A$4:$A$600))+((Personalize!$E$18+1)*2),$G20,((AB20-AA20)/6),TRUE))),"") -> 0.9999350549 | AA20: =IF(Personalize!$E$34=1,VLOOKUP($B20,'ADP-Rank'!$A$2:$J$600,5,FALSE),(IF(Personalize!$E$34=2,VLOOKUP($B20,'ADP-Rank'!$A$2:$J$600,8,FALSE),(IF(Personalize!$E$34=3,VLOOKUP($B20,'ADP-Rank'!$A$2:$O$600,11,FALSE),""))))) -> 5 | AB20: =IF(Personalize!$E$34=1,VLOOKUP($B20,'ADP-Rank'!$A$2:$J$600,6,FALSE),(IF(Personalize!$E$34=2,VLOOKUP($B20,'ADP-Rank'!$A$2:$J$600,9,FALSE),(IF(Personalize!$E$34=3,VLOOKUP($B20,'ADP-Rank'!$A$2:$O$600,12,FALSE),""))))) -> 23 | AC20: =IF(ISBLANK(A20),0,1) -> 0 | AD20: =IF(K20="",0,1) -> 1 | AE20: =A20 -> 0 | AF20: =IF(C20="C",1,IF(C20="1B",2,IF(C20="2B",3,IF(C20="3B",4,IF(C20="SS",5,IF(C20="CI",6,IF(C20="MI",7,IF(C20="OF",11,IF(C20="LF",8,IF(C20="CF",9,IF(C20="RF",10,IF(C20="DH",12,IF(C20="SP",13,IF(C20="RP",14,IF(C20="P",15,16))))))))))))))) -> 11 | AG20: =VLOOKUP(B20,'Starter Calc'!$B$2:$BN$600,65,FALSE) -> Bench
B21: Cliff Lee | C21: =IFERROR(IF(VLOOKUP(B21,'ADP-Rank'!$A$2:$B$600,2,FALSE)="OF",VLOOKUP(B21,'Starter Calc'!$B$2:$AM$600,38,FALSE),(VLOOKUP(B21,'ADP-Rank'!$A$2:$B$600,2,FALSE))),"") -> SP | D21: =IFERROR(IF(VLOOKUP(B21,'Starter Calc'!$B$2:$E$600,4,FALSE)="","",VLOOKUP(B21,'Starter Calc'!$B$2:$E$600,4,FALSE)),"") ->  | E21: =IFERROR(VLOOKUP($B21,'ADP-Rank'!$A$2:$D$600,3,FALSE),"") -> PHI | F21: =IFERROR(VLOOKUP($B21,'ADP-Rank'!$A$2:$W$600,23,FALSE),"") -> 34 | G21: =IFERROR((IF(Personalize!$E$38=1,VLOOKUP($B21,'ADP-Rank'!$A$2:$J$599,4,FALSE),(IF(Personalize!$E$38=2,VLOOKUP($B21,'ADP-Rank'!$A$2:$J$599,7,FALSE),(IF(Personalize!$E$38=3,VLOOKUP($B21,'ADP-Rank'!$A$2:$J$599,10,FALSE),(IF(Personalize!$E$38=4,VLOOKUP($B21,'ADP-Rank'!$A$2:$AD$599,24,FALSE),(IF(Personalize!$E$38=5,VLOOKUP($B21,'ADP-Rank'!$A$2:$AD$599,27,FALSE))))))))))),"") -> 18.7825 | H21: =IFERROR((G21/(Personalize!$E$22+1))+1,"") -> 2.444807692 | I21: =IFERROR(CHOOSE(Personalize!$E$39,VLOOKUP($B21,'ADP-Rank'!$A$2:$U$600,13,FALSE),VLOOKUP($B21,'ADP-Rank'!$A$2:$U$600,14,FALSE),VLOOKUP($B21,'ADP-Rank'!$A$2:$U$600,15,FALSE),VLOOKUP($B21,'ADP-Rank'!$A$2:$U$600,16,FALSE),VLOOKUP($B21,'ADP-Rank'!$A$2:$U$600,17,FALSE),VLOOKUP($B21,'ADP-Rank'!$A$2:$U$600,18,FALSE),VLOOKUP($B21,'ADP-Rank'!$A$2:$U$600,19,FALSE),VLOOKUP($B21,'ADP-Rank'!$A$2:$U$600,20,FALSE)),"") -> 21.42857143 | J21: =IFERROR(RANK($M21,$M$4:$M$600,0),"") -> 5 | K21: =IFERROR(IF((OR($C21="RP",$C21="SP")),VLOOKUP($B21,Pitcher!$A$1:$Z$600,20,FALSE),(VLOOKUP($B21,Hitter!$A$1:$Z$600,26,FALSE))),"") -> 454.7930076 | L21: =IFERROR(IF((OR($C21="RP",$C21="SP")),VLOOKUP($C21,'Filtered-P'!$M$3:$P$4,4,FALSE), VLOOKUP($C21,Filtered!$Q$3:$T$14,4,FALSE)),"") -> 331.9275286 | M21: =IFERROR(K21-L21,"") -> 122.8654789 | N21: =IFERROR(IF((OR($C21="RP",$C21="SP")),VLOOKUP($B21,Pitcher!$A$1:$V$600,2,FALSE),""),"") -> 14.74062847 | O21: =IFERROR(IF((OR($C21="RP",$C21="SP")),VLOOKUP($B21,Pitcher!$A$1:$V$600,9,FALSE),""),"") -> 0 | P21: =IFERROR(IF((OR($C21="RP",$C21="SP")),VLOOKUP($B21,Pitcher!$A$1:$V$600,7,FALSE),""),"") -> 199.2835207 | Q21: =IFERROR(IF((OR($C21="RP",$C21="SP")),VLOOKUP($B21,Pitcher!$A$1:$AB$600,21,FALSE),""),"") -> 2.933346542 | R21: =IFERROR(IF((OR($C21="RP",$C21="SP")),VLOOKUP($B21,Pitcher!$A$1:$V$600,22,FALSE),""),"") -> 1.078031147 | S21: =IFERROR(IF((OR($C21="RP",$C21="SP")),"",VLOOKUP($B21,Hitter!$A$1:$AH$600,27,FALSE)),"") ->  | T21: =IFERROR(IF((OR($C21="RP",$C21="SP")),"",VLOOKUP($B21,Hitter!$A$1:$AH$600,9,FALSE)),"") ->  | U21: =IFERROR(IF((OR($C21="RP",$C21="SP")),"",VLOOKUP($B21,Hitter!$A$1:$AH$600,10,FALSE)),"") ->  | V21: =IFERROR(IF((OR($C21="RP",$C21="SP")),"",VLOOKUP($B21,Hitter!$A$1:$AH$600,4,FALSE)),"") ->  | W21: =IFERROR(IF((OR($C21="RP",$C21="SP")),"",VLOOKUP($B21,Hitter!$A$1:$AH$600,11,FALSE)),"") ->  | X21: =IFERROR(IF(ISTEXT($A21),"",(1-NORMDIST((COUNTA($A$4:$A$600)),($G21),((AB21-AA21)/6),TRUE))),"") -> 0.9999999985 | Y21: =IFERROR(IF(ISTEXT($A21),"",(1-NORMDIST((COUNTA($A$4:$A$600))+(Personalize!$E$18+1),$G21,((AB21-AA21)/6),TRUE))),"") -> 0.9999993037 | Z21: =IFERROR(IF(ISTEXT($A21),"",(1-NORMDIST((COUNTA($A$4:$A$600))+((Personalize!$E$18+1)*2),$G21,((AB21-AA21)/6),TRUE))),"") -> 0.9999006995 | AA21: =IF(Personalize!$E$34=1,VLOOKUP($B21,'ADP-Rank'!$A$2:$J$600,5,FALSE),(IF(Personalize!$E$34=2,VLOOKUP($B21,'ADP-Rank'!$A$2:$J$600,8,FALSE),(IF(Personalize!$E$34=3,VLOOKUP($B21,'ADP-Rank'!$A$2:$O$600,11,FALSE),""))))) -> 14 | AB21: =IF(Personalize!$E$34=1,VLOOKUP($B21,'ADP-Rank'!$A$2:$J$600,6,FALSE),(IF(Personalize!$E$34=2,VLOOKUP($B21,'ADP-Rank'!$A$2:$J$600,9,FALSE),(IF(Personalize!$E$34=3,VLOOKUP($B21,'ADP-Rank'!$A$2:$O$600,12,FALSE),""))))) -> 33 | AC21: =IF(ISBLANK(A21),0,1) -> 0 | AD21: =IF(K21="",0,1) -> 1 | AE21: =A21 -> 0 | AF21: =IF(C21="C",1,IF(C21="1B",2,IF(C21="2B",3,IF(C21="3B",4,IF(C21="SS",5,IF(C21="CI",6,IF(C21="MI",7,IF(C21="OF",11,IF(C21="LF",8,IF(C21="CF",9,IF(C21="RF",10,IF(C21="DH",12,IF(C21="SP",13,IF(C21="RP",14,IF(C21="P",15,16))))))))))))))) -> 13 | AG21: =VLOOKUP(B21,'Starter Calc'!$B$2:$BN$600,65,FALSE) -> Bench
B22: Hanley Ramirez | C22: =IFERROR(IF(VLOOKUP(B22,'ADP-Rank'!$A$2:$B$600,2,FALSE)="OF",VLOOKUP(B22,'Starter Calc'!$B$2:$AM$600,38,FALSE),(VLOOKUP(B22,'ADP-Rank'!$A$2:$B$600,2,FALSE))),"") -> SS | D22: =IFERROR(IF(VLOOKUP(B22,'Starter Calc'!$B$2:$E$600,4,FALSE)="","",VLOOKUP(B22,'Starter Calc'!$B$2:$E$600,4,FALSE)),"") ->  | E22: =IFERROR(VLOOKUP($B22,'ADP-Rank'!$A$2:$D$600,3,FALSE),"") -> MIA | F22: =IFERROR(VLOOKUP($B22,'ADP-Rank'!$A$2:$W$600,23,FALSE),"") -> 29 | G22: =IFERROR((IF(Personalize!$E$38=1,VLOOKUP($B22,'ADP-Rank'!$A$2:$J$599,4,FALSE),(IF(Personalize!$E$38=2,VLOOKUP($B22,'ADP-Rank'!$A$2:$J$599,7,FALSE),(IF(Personalize!$E$38=3,VLOOKUP($B22,'ADP-Rank'!$A$2:$J$599,10,FALSE),(IF(Personalize!$E$38=4,VLOOKUP($B22,'ADP-Rank'!$A$2:$AD$599,24,FALSE),(IF(Personalize!$E$38=5,VLOOKUP($B22,'ADP-Rank'!$A$2:$AD$599,27,FALSE))))))))))),"") -> 20.76 | H22: =IFERROR((G22/(Personalize!$E$22+1))+1,"") -> 2.596923077 | I22: =IFERROR(CHOOSE(Personalize!$E$39,VLOOKUP($B22,'ADP-Rank'!$A$2:$U$600,13,FALSE),VLOOKUP($B22,'ADP-Rank'!$A$2:$U$600,14,FALSE),VLOOKUP($B22,'ADP-Rank'!$A$2:$U$600,15,FALSE),VLOOKUP($B22,'ADP-Rank'!$A$2:$U$600,16,FALSE),VLOOKUP($B22,'ADP-Rank'!$A$2:$U$600,17,FALSE),VLOOKUP($B22,'ADP-Rank'!$A$2:$U$600,18,FALSE),VLOOKUP($B22,'ADP-Rank'!$A$2:$U$600,19,FALSE),VLOOKUP($B22,'ADP-Rank'!$A$2:$U$600,20,FALSE)),"") -> 17.14285714 | J22: =IFERROR(RANK($M22,$M$4:$M$600,0),"") -> 79 | K22: =IFERROR(IF((OR($C22="RP",$C22="SP")),VLOOKUP($B22,Pitcher!$A$1:$Z$600,20,FALSE),(VLOOKUP($B22,Hitter!$A$1:$Z$600,26,FALSE))),"") -> 339.9138831 | L22: =IFERROR(IF((OR($C22="RP",$C22="SP")),VLOOKUP($C22,'Filtered-P'!$M$3:$P$4,4,FALSE), VLOOKUP($C22,Filtered!$Q$3:$T$14,4,FALSE)),"") -> 341.4045566 | M22: =IFERROR(K22-L22,"") -> -1.490673429 | N22: =IFERROR(IF((OR($C22="RP",$C22="SP")),VLOOKUP($B22,Pitcher!$A$1:$V$600,2,FALSE),""),"") ->  | O22: =IFERROR(IF((OR($C22="RP",$C22="SP")),VLOOKUP($B22,Pitcher!$A$1:$V$600,9,FALSE),""),"") ->  | P22: =IFERROR(IF((OR($C22="RP",$C22="SP")),VLOOKUP($B22,Pitcher!$A$1:$V$600,7,FALSE),""),"") ->  | Q22: =IFERROR(IF((OR($C22="RP",$C22="SP")),VLOOKUP($B22,Pitcher!$A$1:$AB$600,21,FALSE),""),"") ->  | R22: =IFERROR(IF((OR($C22="RP",$C22="SP")),VLOOKUP($B22,Pitcher!$A$1:$V$600,22,FALSE),""),"") ->  | S22: =IFERROR(IF((OR($C22="RP",$C22="SP")),"",VLOOKUP($B22,Hitter!$A$1:$AH$600,27,FALSE)),"") -> 0.286905763 | T22: =IFERROR(IF((OR($C22="RP",$C22="SP")),"",VLOOKUP($B22,Hitter!$A$1:$AH$600,9,FALSE)),"") -> 17.31543631 | U22: =IFERROR(IF((OR($C22="RP",$C22="SP")),"",VLOOKUP($B22,Hitter!$A$1:$AH$600,10,FALSE)),"") -> 66.12965212 | V22: =IFERROR(IF((OR($C22="RP",$C22="SP")),"",VLOOKUP($B22,Hitter!$A$1:$AH$600,4,FALSE)),"") -> 76.11639486 | W22: =IFERROR(IF((OR($C22="RP",$C22="SP")),"",VLOOKUP($B22,Hitter!$A$1:$AH$600,11,FALSE)),"") -> 24.39681464 | X22: =IFERROR(IF(ISTEXT($A22),"",(1-NORMDIST((COUNTA($A$4:$A$600)),($G22),((AB22-AA22)/6),TRUE))),"") -> 1 | Y22: =IFERROR(IF(ISTEXT($A22),"",(1-NORMDIST((COUNTA($A$4:$A$600))+(Personalize!$E$18+1),$G22,((AB22-AA22)/6),TRUE))),"") -> 0.9999999994 | Z22: =IFERROR(IF(ISTEXT($A22),"",(1-NORMDIST((COUNTA($A$4:$A$600))+((Personalize!$E$18+1)*2),$G22,((AB22-AA22)/6),TRUE))),"") -> 0.9999994025 | AA22: =IF(Personalize!$E$34=1,VLOOKUP($B22,'ADP-Rank'!$A$2:$J$600,5,FALSE),(IF(Personalize!$E$34=2,VLOOKUP($B22,'ADP-Rank'!$A$2:$J$600,8,FALSE),(IF(Personalize!$E$34=3,VLOOKUP($B22,'ADP-Rank'!$A$2:$O$600,11,FALSE),""))))) -> 11 | AB22: =IF(Personalize!$E$34=1,VLOOKUP($B22,'ADP-Rank'!$A$2:$J$600,6,FALSE),(IF(Personalize!$E$34=2,VLOOKUP($B22,'ADP-Rank'!$A$2:$J$600,9,FALSE),(IF(Personalize!$E$34=3,VLOOKUP($B22,'ADP-Rank'!$A$2:$O$600,12,FALSE),""))))) -> 28 | AC22: =IF(ISBLANK(A22),0,1) -> 0 | AD22: =IF(K22="",0,1) -> 1 | AE22: =A22 -> 0 | AF22: =IF(C22="C",1,IF(C22="1B",2,IF(C22="2B",3,IF(C22="3B",4,IF(C22="SS",5,IF(C22="CI",6,IF(C22="MI",7,IF(C22="OF",11,IF(C22="LF",8,IF(C22="CF",9,IF(C22="RF",10,IF(C22="DH",12,IF(C22="SP",13,IF(C22="RP",14,IF(C22="P",15,16))))))))))))))) -> 5 | AG22: =VLOOKUP(B22,'Starter Calc'!$B$2:$BN$600,65,FALSE) -> Bench
B23: Curtis Granderson | C23: =IFERROR(IF(VLOOKUP(B23,'ADP-Rank'!$A$2:$B$600,2,FALSE)="OF",VLOOKUP(B23,'Starter Calc'!$B$2:$AM$600,38,FALSE),(VLOOKUP(B23,'ADP-Rank'!$A$2:$B$600,2,FALSE))),"") -> OF | D23: =IFERROR(IF(VLOOKUP(B23,'Starter Calc'!$B$2:$E$600,4,FALSE)="","",VLOOKUP(B23,'Starter Calc'!$B$2:$E$600,4,FALSE)),"") -> CF | E23: =IFERROR(VLOOKUP($B23,'ADP-Rank'!$A$2:$D$600,3,FALSE),"") -> NYY | F23: =IFERROR(VLOOKUP($B23,'ADP-Rank'!$A$2:$W$600,23,FALSE),"") -> 31 | G23: =IFERROR((IF(Personalize!$E$38=1,VLOOKUP($B23,'ADP-Rank'!$A$2:$J$599,4,FALSE),(IF(Personalize!$E$38=2,VLOOKUP($B23,'ADP-Rank'!$A$2:$J$599,7,FALSE),(IF(Personalize!$E$38=3,VLOOKUP($B23,'ADP-Rank'!$A$2:$J$599,10,FALSE),(IF(Personalize!$E$38=4,VLOOKUP($B23,'ADP-Rank'!$A$2:$AD$599,24,FALSE),(IF(Personalize!$E$38=5,VLOOKUP($B23,'ADP-Rank'!$A$2:$AD$599,27,FALSE))))))))))),"") -> 21.935 | H23: =IFERROR((G23/(Personalize!$E$22+1))+1,"") -> 2.687307692 | I23: =IFERROR(CHOOSE(Personalize!$E$39,VLOOKUP($B23,'ADP-Rank'!$A$2:$U$600,13,FALSE),VLOOKUP($B23,'ADP-Rank'!$A$2:$U$600,14,FALSE),VLOOKUP($B23,'ADP-Rank'!$A$2:$U$600,15,FALSE),VLOOKUP($B23,'ADP-Rank'!$A$2:$U$600,16,FALSE),VLOOKUP($B23,'ADP-Rank'!$A$2:$U$600,17,FALSE),VLOOKUP($B23,'ADP-Rank'!$A$2:$U$600,18,FALSE),VLOOKUP($B23,'ADP-Rank'!$A$2:$U$600,19,FALSE),VLOOKUP($B23,'ADP-Rank'!$A$2:$U$600,20,FALSE)),"") -> 21.71428571 | J23: =IFERROR(RANK($M23,$M$4:$M$600,0),"") -> 35 | K23: =IFERROR(IF((OR($C23="RP",$C23="SP")),VLOOKUP($B23,Pitcher!$A$1:$Z$600,20,FALSE),(VLOOKUP($B23,Hitter!$A$1:$Z$600,26,FALSE))),"") -> 394.1018986 | L23: =IFERROR(IF((OR($C23="RP",$C23="SP")),VLOOKUP($C23,'Filtered-P'!$M$3:$P$4,4,FALSE), VLOOKUP($C23,Filtered!$Q$3:$T$14,4,FALSE)),"") -> 347.6626137 | M23: =IFERROR(K23-L23,"") -> 46.4392849 | N23: =IFERROR(IF((OR($C23="RP",$C23="SP")),VLOOKUP($B23,Pitcher!$A$1:$V$600,2,FALSE),""),"") ->  | O23: =IFERROR(IF((OR($C23="RP",$C23="SP")),VLOOKUP($B23,Pitcher!$A$1:$V$600,9,FALSE),""),"") ->  | P23: =IFERROR(IF((OR($C23="RP",$C23="SP")),VLOOKUP($B23,Pitcher!$A$1:$V$600,7,FALSE),""),"") ->  | Q23: =IFERROR(IF((OR($C23="RP",$C23="SP")),VLOOKUP($B23,Pitcher!$A$1:$AB$600,21,FALSE),""),"") ->  | R23: =IFERROR(IF((OR($C23="RP",$C23="SP")),VLOOKUP($B23,Pitcher!$A$1:$V$600,22,FALSE),""),"") ->  | S23: =IFERROR(IF((OR($C23="RP",$C23="SP")),"",VLOOKUP($B23,Hitter!$A$1:$AH$600,27,FALSE)),"") -> 0.2557979418 | T23: =IFERROR(IF((OR($C23="RP",$C23="SP")),"",VLOOKUP($B23,Hitter!$A$1:$AH$600,9,FALSE)),"") -> 29.72689603 | U23: =IFERROR(IF((OR($C23="RP",$C23="SP")),"",VLOOKUP($B23,Hitter!$A$1:$AH$600,10,FALSE)),"") -> 85.93135213 | V23: =IFERROR(IF((OR($C23="RP",$C23="SP")),"",VLOOKUP($B23,Hitter!$A$1:$AH$600,4,FALSE)),"") -> 100.443413 | W23: =IFERROR(IF((OR($C23="RP",$C23="SP")),"",VLOOKUP($B23,Hitter!$A$1:$AH$600,11,FALSE)),"") -> 17.053608 | X23: =IFERROR(IF(ISTEXT($A23),"",(1-NORMDIST((COUNTA($A$4:$A$600)),($G23),((AB23-AA23)/6),TRUE))),"") -> 1 | Y23: =IFERROR(IF(ISTEXT($A23),"",(1-NORMDIST((COUNTA($A$4:$A$600))+(Personalize!$E$18+1),$G23,((AB23-AA23)/6),TRUE))),"") -> 1 | Z23: =IFERROR(IF(ISTEXT($A23),"",(1-NORMDIST((COUNTA($A$4:$A$600))+((Personalize!$E$18+1)*2),$G23,((AB23-AA23)/6),TRUE))),"") -> 0.9999999893 | AA23: =IF(Personalize!$E$34=1,VLOOKUP($B23,'ADP-Rank'!$A$2:$J$600,5,FALSE),(IF(Personalize!$E$34=2,VLOOKUP($B23,'ADP-Rank'!$A$2:$J$600,8,FALSE),(IF(Personalize!$E$34=3,VLOOKUP($B23,'ADP-Rank'!$A$2:$O$600,11,FALSE),""))))) -> 12 | AB23: =IF(Personalize!$E$34=1,VLOOKUP($B23,'ADP-Rank'!$A$2:$J$600,6,FALSE),(IF(Personalize!$E$34=2,VLOOKUP($B23,'ADP-Rank'!$A$2:$J$600,9,FALSE),(IF(Personalize!$E$34=3,VLOOKUP($B23,'ADP-Rank'!$A$2:$O$600,12,FALSE),""))))) -> 28 | AC23: =IF(ISBLANK(A23),0,1) -> 0 | AD23: =IF(K23="",0,1) -> 1 | AE23: =A23 -> 0 | AF23: =IF(C23="C",1,IF(C23="1B",2,IF(C23="2B",3,IF(C23="3B",4,IF(C23="SS",5,IF(C23="CI",6,IF(C23="MI",7,IF(C23="OF",11,IF(C23="LF",8,IF(C23="CF",9,IF(C23="RF",10,IF(C23="DH",12,IF(C23="SP",13,IF(C23="RP",14,IF(C23="P",15,16))))))))))))))) -> 11 | AG23: =VLOOKUP(B23,'Starter Calc'!$B$2:$BN$600,65,FALSE) -> Bench
B24: Jose Reyes | C24: =IFERROR(IF(VLOOKUP(B24,'ADP-Rank'!$A$2:$B$600,2,FALSE)="OF",VLOOKUP(B24,'Starter Calc'!$B$2:$AM$600,38,FALSE),(VLOOKUP(B24,'ADP-Rank'!$A$2:$B$600,2,FALSE))),"") -> SS | D24: =IFERROR(IF(VLOOKUP(B24,'Starter Calc'!$B$2:$E$600,4,FALSE)="","",VLOOKUP(B24,'Starter Calc'!$B$2:$E$600,4,FALSE)),"") ->  | E24: =IFERROR(VLOOKUP($B24,'ADP-Rank'!$A$2:$D$600,3,FALSE),"") -> MIA | F24: =IFERROR(VLOOKUP($B24,'ADP-Rank'!$A$2:$W$600,23,FALSE),"") -> 29 | G24: =IFERROR((IF(Personalize!$E$38=1,VLOOKUP($B24,'ADP-Rank'!$A$2:$J$599,4,FALSE),(IF(Personalize!$E$38=2,VLOOKUP($B24,'ADP-Rank'!$A$2:$J$599,7,FALSE),(IF(Personalize!$E$38=3,VLOOKUP($B24,'ADP-Rank'!$A$2:$J$599,10,FALSE),(IF(Personalize!$E$38=4,VLOOKUP($B24,'ADP-Rank'!$A$2:$AD$599,24,FALSE),(IF(Personalize!$E$38=5,VLOOKUP($B24,'ADP-Rank'!$A$2:$AD$599,27,FALSE))))))))))),"") -> 23.065 | H24: =IFERROR((G24/(Personalize!$E$22+1))+1,"") -> 2.774230769 | I24: =IFERROR(CHOOSE(Personalize!$E$39,VLOOKUP($B24,'ADP-Rank'!$A$2:$U$600,13,FALSE),VLOOKUP($B24,'ADP-Rank'!$A$2:$U$600,14,FALSE),VLOOKUP($B24,'ADP-Rank'!$A$2:$U$600,15,FALSE),VLOOKUP($B24,'ADP-Rank'!$A$2:$U$600,16,FALSE),VLOOKUP($B24,'ADP-Rank'!$A$2:$U$600,17,FALSE),VLOOKUP($B24,'ADP-Rank'!$A$2:$U$600,18,FALSE),VLOOKUP($B24,'ADP-Rank'!$A$2:$U$600,19,FALSE),VLOOKUP($B24,'ADP-Rank'!$A$2:$U$600,20,FALSE)),"") -> 25.71428571 | J24: =IFERROR(RANK($M24,$M$4:$M$600,0),"") -> 64 | K24: =IFERROR(IF((OR($C24="RP",$C24="SP")),VLOOKUP($B24,Pitcher!$A$1:$Z$600,20,FALSE),(VLOOKUP($B24,Hitter!$A$1:$Z$600,26,FALSE))),"") -> 352.133177 | L24: =IFERROR(IF((OR($C24="RP",$C24="SP")),VLOOKUP($C24,'Filtered-P'!$M$3:$P$4,4,FALSE), VLOOKUP($C24,Filtered!$Q$3:$T$14,4,FALSE)),"") -> 341.4045566 | M24: =IFERROR(K24-L24,"") -> 10.72862048 | N24: =IFERROR(IF((OR($C24="RP",$C24="SP")),VLOOKUP($B24,Pitcher!$A$1:$V$600,2,FALSE),""),"") ->  | O24: =IFERROR(IF((OR($C24="RP",$C24="SP")),VLOOKUP($B24,Pitcher!$A$1:$V$600,9,FALSE),""),"") ->  | P24: =IFERROR(IF((OR($C24="RP",$C24="SP")),VLOOKUP($B24,Pitcher!$A$1:$V$600,7,FALSE),""),"") ->  | Q24: =IFERROR(IF((OR($C24="RP",$C24="SP")),VLOOKUP($B24,Pitcher!$A$1:$AB$600,21,FALSE),""),"") ->  | R24: =IFERROR(IF((OR($C24="RP",$C24="SP")),VLOOKUP($B24,Pitcher!$A$1:$V$600,22,FALSE),""),"") ->  | S24: =IFERROR(IF((OR($C24="RP",$C24="SP")),"",VLOOKUP($B24,Hitter!$A$1:$AH$600,27,FALSE)),"") -> 0.2994610427 | T24: =IFERROR(IF((OR($C24="RP",$C24="SP")),"",VLOOKUP($B24,Hitter!$A$1:$AH$600,9,FALSE)),"") -> 8.905447956 | U24: =IFERROR(IF((OR($C24="RP",$C24="SP")),"",VLOOKUP($B24,Hitter!$A$1:$AH$600,10,FALSE)),"") -> 47.56347309 | V24: =IFERROR(IF((OR($C24="RP",$C24="SP")),"",VLOOKUP($B24,Hitter!$A$1:$AH$600,4,FALSE)),"") -> 76.25124934 | W24: =IFERROR(IF((OR($C24="RP",$C24="SP")),"",VLOOKUP($B24,Hitter!$A$1:$AH$600,11,FALSE)),"") -> 29.02448054 | X24: =IFERROR(IF(ISTEXT($A24),"",(1-NORMDIST((COUNTA($A$4:$A$600)),($G24),((AB24-AA24)/6),TRUE))),"") -> 0.9999999991 | Y24: =IFERROR(IF(ISTEXT($A24),"",(1-NORMDIST((COUNTA($A$4:$A$600))+(Personalize!$E$18+1),$G24,((AB24-AA24)/6),TRUE))),"") -> 0.9999998336 | Z24: =IFERROR(IF(ISTEXT($A24),"",(1-NORMDIST((COUNTA($A$4:$A$600))+((Personalize!$E$18+1)*2),$G24,((AB24-AA24)/6),TRUE))),"") -> 0.9999861056 | AA24: =IF(Personalize!$E$34=1,VLOOKUP($B24,'ADP-Rank'!$A$2:$J$600,5,FALSE),(IF(Personalize!$E$34=2,VLOOKUP($B24,'ADP-Rank'!$A$2:$J$600,8,FALSE),(IF(Personalize!$E$34=3,VLOOKUP($B24,'ADP-Rank'!$A$2:$O$600,11,FALSE),""))))) -> 8 | AB24: =IF(Personalize!$E$34=1,VLOOKUP($B24,'ADP-Rank'!$A$2:$J$600,6,FALSE),(IF(Personalize!$E$34=2,VLOOKUP($B24,'ADP-Rank'!$A$2:$J$600,9,FALSE),(IF(Personalize!$E$34=3,VLOOKUP($B24,'ADP-Rank'!$A$2:$O$600,12,FALSE),""))))) -> 31 | AC24: =IF(ISBLANK(A24),0,1) -> 0 | AD24: =IF(K24="",0,1) -> 1 | AE24: =A24 -> 0 | AF24: =IF(C24="C",1,IF(C24="1B",2,IF(C24="2B",3,IF(C24="3B",4,IF(C24="SS",5,IF(C24="CI",6,IF(C24="MI",7,IF(C24="OF",11,IF(C24="LF",8,IF(C24="CF",9,IF(C24="RF",10,IF(C24="DH",12,IF(C24="SP",13,IF(C24="RP",14,IF(C24="P",15,16))))))))))))))) -> 5 | AG24: =VLOOKUP(B24,'Starter Calc'!$B$2:$BN$600,65,FALSE) -> Bench
B25: Ryan Braun | C25: =IFERROR(IF(VLOOKUP(B25,'ADP-Rank'!$A$2:$B$600,2,FALSE)="OF",VLOOKUP(B25,'Starter Calc'!$B$2:$AM$600,38,FALSE),(VLOOKUP(B25,'ADP-Rank'!$A$2:$B$600,2,FALSE))),"") -> OF | D25: =IFERROR(IF(VLOOKUP(B25,'Starter Calc'!$B$2:$E$600,4,FALSE)="","",VLOOKUP(B25,'Starter Calc'!$B$2:$E$600,4,FALSE)),"") -> LF | E25: =IFERROR(VLOOKUP($B25,'ADP-Rank'!$A$2:$D$600,3,FALSE),"") -> MIL | F25: =IFERROR(VLOOKUP($B25,'ADP-Rank'!$A$2:$W$600,23,FALSE),"") -> 29 | G25: =IFERROR((IF(Personalize!$E$38=1,VLOOKUP($B25,'ADP-Rank'!$A$2:$J$599,4,FALSE),(IF(Personalize!$E$38=2,VLOOKUP($B25,'ADP-Rank'!$A$2:$J$599,7,FALSE),(IF(Personalize!$E$38=3,VLOOKUP($B25,'ADP-Rank'!$A$2:$J$599,10,FALSE),(IF(Personalize!$E$38=4,VLOOKUP($B25,'ADP-Rank'!$A$2:$AD$599,24,FALSE),(IF(Personalize!$E$38=5,VLOOKUP($B25,'ADP-Rank'!$A$2:$AD$599,27,FALSE))))))))))),"") -> 23.4175 | H25: =IFERROR((G25/(Personalize!$E$22+1))+1,"") -> 2.801346154 | I25: =IFERROR(CHOOSE(Personalize!$E$39,VLOOKUP($B25,'ADP-Rank'!$A$2:$U$600,13,FALSE),VLOOKUP($B25,'ADP-Rank'!$A$2:$U$600,14,FALSE),VLOOKUP($B25,'ADP-Rank'!$A$2:$U$600,15,FALSE),VLOOKUP($B25,'ADP-Rank'!$A$2:$U$600,16,FALSE),VLOOKUP($B25,'ADP-Rank'!$A$2:$U$600,17,FALSE),VLOOKUP($B25,'ADP-Rank'!$A$2:$U$600,18,FALSE),VLOOKUP($B25,'ADP-Rank'!$A$2:$U$600,19,FALSE),VLOOKUP($B25,'ADP-Rank'!$A$2:$U$600,20,FALSE)),"") -> 1.714285714 | J25: =IFERROR(RANK($M25,$M$4:$M$600,0),"") -> 6 | K25: =IFERROR(IF((OR($C25="RP",$C25="SP")),VLOOKUP($B25,Pitcher!$A$1:$Z$600,20,FALSE),(VLOOKUP($B25,Hitter!$A$1:$Z$600,26,FALSE))),"") -> 468.1182062 | L25: =IFERROR(IF((OR($C25="RP",$C25="SP")),VLOOKUP($C25,'Filtered-P'!$M$3:$P$4,4,FALSE), VLOOKUP($C25,Filtered!$Q$3:$T$14,4,FALSE)),"") -> 347.6626137 | M25: =IFERROR(K25-L25,"") -> 120.4555924 | N25: =IFERROR(IF((OR($C25="RP",$C25="SP")),VLOOKUP($B25,Pitcher!$A$1:$V$600,2,FALSE),""),"") ->  | O25: =IFERROR(IF((OR($C25="RP",$C25="SP")),VLOOKUP($B25,Pitcher!$A$1:$V$600,9,FALSE),""),"") ->  | P25: =IFERROR(IF((OR($C25="RP",$C25="SP")),VLOOKUP($B25,Pitcher!$A$1:$V$600,7,FALSE),""),"") ->  | Q25: =IFERROR(IF((OR($C25="RP",$C25="SP")),VLOOKUP($B25,Pitcher!$A$1:$AB$600,21,FALSE),""),"") ->  | R25: =IFERROR(IF((OR($C25="RP",$C25="SP")),VLOOKUP($B25,Pitcher!$A$1:$V$600,22,FALSE),""),"") ->  | S25: =IFERROR(IF((OR($C25="RP",$C25="SP")),"",VLOOKUP($B25,Hitter!$A$1:$AH$600,27,FALSE)),"") -> 0.3040156225 | T25: =IFERROR(IF((OR($C25="RP",$C25="SP")),"",VLOOKUP($B25,Hitter!$A$1:$AH$600,9,FALSE)),"") -> 28.58472291 | U25: =IFERROR(IF((OR($C25="RP",$C25="SP")),"",VLOOKUP($B25,Hitter!$A$1:$AH$600,10,FALSE)),"") -> 98.99425765 | V25: =IFERROR(IF((OR($C25="RP",$C25="SP")),"",VLOOKUP($B25,Hitter!$A$1:$AH$600,4,FALSE)),"") -> 95.68645548 | W25: =IFERROR(IF((OR($C25="RP",$C25="SP")),"",VLOOKUP($B25,Hitter!$A$1:$AH$600,11,FALSE)),"") -> 20.46038383 | X25: =IFERROR(IF(ISTEXT($A25),"",(1-NORMDIST((COUNTA($A$4:$A$600)),($G25),((AB25-AA25)/6),TRUE))),"") -> 0.9995891166 | Y25: =IFERROR(IF(ISTEXT($A25),"",(1-NORMDIST((COUNTA($A$4:$A$600))+(Personalize!$E$18+1),$G25,((AB25-AA25)/6),TRUE))),"") -> 0.9977819173 | Z25: =IFERROR(IF(ISTEXT($A25),"",(1-NORMDIST((COUNTA($A$4:$A$600))+((Personalize!$E$18+1)*2),$G25,((AB25-AA25)/6),TRUE))),"") -> 0.9904955692 | AA25: =IF(Personalize!$E$34=1,VLOOKUP($B25,'ADP-Rank'!$A$2:$J$600,5,FALSE),(IF(Personalize!$E$34=2,VLOOKUP($B25,'ADP-Rank'!$A$2:$J$600,8,FALSE),(IF(Personalize!$E$34=3,VLOOKUP($B25,'ADP-Rank'!$A$2:$O$600,11,FALSE),""))))) -> 1 | AB25: =IF(Personalize!$E$34=1,VLOOKUP($B25,'ADP-Rank'!$A$2:$J$600,6,FALSE),(IF(Personalize!$E$34=2,VLOOKUP($B25,'ADP-Rank'!$A$2:$J$600,9,FALSE),(IF(Personalize!$E$34=3,VLOOKUP($B25,'ADP-Rank'!$A$2:$O$600,12,FALSE),""))))) -> 43 | AC25: =IF(ISBLANK(A25),0,1) -> 0 | AD25: =IF(K25="",0,1) -> 1 | AE25: =A25 -> 0 | AF25: =IF(C25="C",1,IF(C25="1B",2,IF(C25="2B",3,IF(C25="3B",4,IF(C25="SS",5,IF(C25="CI",6,IF(C25="MI",7,IF(C25="OF",11,IF(C25="LF",8,IF(C25="CF",9,IF(C25="RF",10,IF(C25="DH",12,IF(C25="SP",13,IF(C25="RP",14,IF(C25="P",15,16))))))))))))))) -> 11 | AG25: =VLOOKUP(B25,'Starter Calc'!$B$2:$BN$600,65,FALSE) -> Bench
B26: Ian Kinsler | C26: =IFERROR(IF(VLOOKUP(B26,'ADP-Rank'!$A$2:$B$600,2,FALSE)="OF",VLOOKUP(B26,'Starter Calc'!$B$2:$AM$600,38,FALSE),(VLOOKUP(B26,'ADP-Rank'!$A$2:$B$600,2,FALSE))),"") -> 2B | D26: =IFERROR(IF(VLOOKUP(B26,'Starter Calc'!$B$2:$E$600,4,FALSE)="","",VLOOKUP(B26,'Starter Calc'!$B$2:$E$600,4,FALSE)),"") ->  | E26: =IFERROR(VLOOKUP($B26,'ADP-Rank'!$A$2:$D$600,3,FALSE),"") -> TEX | F26: =IFERROR(VLOOKUP($B26,'ADP-Rank'!$A$2:$W$600,23,FALSE),"") -> 30 | G26: =IFERROR((IF(Personalize!$E$38=1,VLOOKUP($B26,'ADP-Rank'!$A$2:$J$599,4,FALSE),(IF(Personalize!$E$38=2,VLOOKUP($B26,'ADP-Rank'!$A$2:$J$599,7,FALSE),(IF(Personalize!$E$38=3,VLOOKUP($B26,'ADP-Rank'!$A$2:$J$599,10,FALSE),(IF(Personalize!$E$38=4,VLOOKUP($B26,'ADP-Rank'!$A$2:$AD$599,24,FALSE),(IF(Personalize!$E$38=5,VLOOKUP($B26,'ADP-Rank'!$A$2:$AD$599,27,FALSE))))))))))),"") -> 23.5675 | H26: =IFERROR((G26/(Personalize!$E$22+1))+1,"") -> 2.812884615 | I26: =IFERROR(CHOOSE(Personalize!$E$39,VLOOKUP($B26,'ADP-Rank'!$A$2:$U$600,13,FALSE),VLOOKUP($B26,'ADP-Rank'!$A$2:$U$600,14,FALSE),VLOOKUP($B26,'ADP-Rank'!$A$2:$U$600,15,FALSE),VLOOKUP($B26,'ADP-Rank'!$A$2:$U$600,16,FALSE),VLOOKUP($B26,'ADP-Rank'!$A$2:$U$600,17,FALSE),VLOOKUP($B26,'ADP-Rank'!$A$2:$U$600,18,FALSE),VLOOKUP($B26,'ADP-Rank'!$A$2:$U$600,19,FALSE),VLOOKUP($B26,'ADP-Rank'!$A$2:$U$600,20,FALSE)),"") -> 21 | J26: =IFERROR(RANK($M26,$M$4:$M$600,0),"") -> 16 | K26: =IFERROR(IF((OR($C26="RP",$C26="SP")),VLOOKUP($B26,Pitcher!$A$1:$Z$600,20,FALSE),(VLOOKUP($B26,Hitter!$A$1:$Z$600,26,FALSE))),"") -> 437.8497034 | L26: =IFERROR(IF((OR($C26="RP",$C26="SP")),VLOOKUP($C26,'Filtered-P'!$M$3:$P$4,4,FALSE), VLOOKUP($C26,Filtered!$Q$3:$T$14,4,FALSE)),"") -> 354.8310871 | M26: =IFERROR(K26-L26,"") -> 83.01861634 | N26: =IFERROR(IF((OR($C26="RP",$C26="SP")),VLOOKUP($B26,Pitcher!$A$1:$V$600,2,FALSE),""),"") ->  | O26: =IFERROR(IF((OR($C26="RP",$C26="SP")),VLOOKUP($B26,Pitcher!$A$1:$V$600,9,FALSE),""),"") ->  | P26: =IFERROR(IF((OR($C26="RP",$C26="SP")),VLOOKUP($B26,Pitcher!$A$1:$V$600,7,FALSE),""),"") ->  | Q26: =IFERROR(IF((OR($C26="RP",$C26="SP")),VLOOKUP($B26,Pitcher!$A$1:$AB$600,21,FALSE),""),"") ->  | R26: =IFERROR(IF((OR($C26="RP",$C26="SP")),VLOOKUP($B26,Pitcher!$A$1:$V$600,22,FALSE),""),"") ->  | S26: =IFERROR(IF((OR($C26="RP",$C26="SP")),"",VLOOKUP($B26,Hitter!$A$1:$AH$600,27,FALSE)),"") -> 0.2658125076 | T26: =IFERROR(IF((OR($C26="RP",$C26="SP")),"",VLOOKUP($B26,Hitter!$A$1:$AH$600,9,FALSE)),"") -> 22.78455655 | U26: =IFERROR(IF((OR($C26="RP",$C26="SP")),"",VLOOKUP($B26,Hitter!$A$1:$AH$600,10,FALSE)),"") -> 72.27847276 | V26: =IFERROR(IF((OR($C26="RP",$C26="SP")),"",VLOOKUP($B26,Hitter!$A$1:$AH$600,4,FALSE)),"") -> 98.79419802 | W26: =IFERROR(IF((OR($C26="RP",$C26="SP")),"",VLOOKUP($B26,Hitter!$A$1:$AH$600,11,FALSE)),"") -> 23.73944617 | X26: =IFERROR(IF(ISTEXT($A26),"",(1-NORMDIST((COUNTA($A$4:$A$600)),($G26),((AB26-AA26)/6),TRUE))),"") -> 1 | Y26: =IFERROR(IF(ISTEXT($A26),"",(1-NORMDIST((COUNTA($A$4:$A$600))+(Personalize!$E$18+1),$G26,((AB26-AA26)/6),TRUE))),"") -> 0.9999999991 | Z26: =IFERROR(IF(ISTEXT($A26),"",(1-NORMDIST((COUNTA($A$4:$A$600))+((Personalize!$E$18+1)*2),$G26,((AB26-AA26)/6),TRUE))),"") -> 0.9999996657 | AA26: =IF(Personalize!$E$34=1,VLOOKUP($B26,'ADP-Rank'!$A$2:$J$600,5,FALSE),(IF(Personalize!$E$34=2,VLOOKUP($B26,'ADP-Rank'!$A$2:$J$600,8,FALSE),(IF(Personalize!$E$34=3,VLOOKUP($B26,'ADP-Rank'!$A$2:$O$600,11,FALSE),""))))) -> 12 | AB26: =IF(Personalize!$E$34=1,VLOOKUP($B26,'ADP-Rank'!$A$2:$J$600,6,FALSE),(IF(Personalize!$E$34=2,VLOOKUP($B26,'ADP-Rank'!$A$2:$J$600,9,FALSE),(IF(Personalize!$E$34=3,VLOOKUP($B26,'ADP-Rank'!$A$2:$O$600,12,FALSE),""))))) -> 32 | AC26: =IF(ISBLANK(A26),0,1) -> 0 | AD26: =IF(K26="",0,1) -> 1 | AE26: =A26 -> 0 | AF26: =IF(C26="C",1,IF(C26="1B",2,IF(C26="2B",3,IF(C26="3B",4,IF(C26="SS",5,IF(C26="CI",6,IF(C26="MI",7,IF(C26="OF",11,IF(C26="LF",8,IF(C26="CF",9,IF(C26="RF",10,IF(C26="DH",12,IF(C26="SP",13,IF(C26="RP",14,IF(C26="P",15,16))))))))))))))) -> 3 | AG26: =VLOOKUP(B26,'Starter Calc'!$B$2:$BN$600,65,FALSE) -> Bench
B27: Mark Teixeira | C27: =IFERROR(IF(VLOOKUP(B27,'ADP-Rank'!$A$2:$B$600,2,FALSE)="OF",VLOOKUP(B27,'Starter Calc'!$B$2:$AM$600,38,FALSE),(VLOOKUP(B27,'ADP-Rank'!$A$2:$B$600,2,FALSE))),"") -> 1B | D27: =IFERROR(IF(VLOOKUP(B27,'Starter Calc'!$B$2:$E$600,4,FALSE)="","",VLOOKUP(B27,'Starter Calc'!$B$2:$E$600,4,FALSE)),"") ->  | E27: =IFERROR(VLOOKUP($B27,'ADP-Rank'!$A$2:$D$600,3,FALSE),"") -> NYY | F27: =IFERROR(VLOOKUP($B27,'ADP-Rank'!$A$2:$W$600,23,FALSE),"") -> 32 | G27: =IFERROR((IF(Personalize!$E$38=1,VLOOKUP($B27,'ADP-Rank'!$A$2:$J$599,4,FALSE),(IF(Personalize!$E$38=2,VLOOKUP($B27,'ADP-Rank'!$A$2:$J$599,7,FALSE),(IF(Personalize!$E$38=3,VLOOKUP($B27,'ADP-Rank'!$A$2:$J$599,10,FALSE),(IF(Personalize!$E$38=4,VLOOKUP($B27,'ADP-Rank'!$A$2:$AD$599,24,FALSE),(IF(Personalize!$E$38=5,VLOOKUP($B27,'ADP-Rank'!$A$2:$AD$599,27,FALSE))))))))))),"") -> 24.9225 | H27: =IFERROR((G27/(Personalize!$E$22+1))+1,"") -> 2.917115385 | I27: =IFERROR(CHOOSE(Personalize!$E$39,VLOOKUP($B27,'ADP-Rank'!$A$2:$U$600,13,FALSE),VLOOKUP($B27,'ADP-Rank'!$A$2:$U$600,14,FALSE),VLOOKUP($B27,'ADP-Rank'!$A$2:$U$600,15,FALSE),VLOOKUP($B27,'ADP-Rank'!$A$2:$U$600,16,FALSE),VLOOKUP($B27,'ADP-Rank'!$A$2:$U$600,17,FALSE),VLOOKUP($B27,'ADP-Rank'!$A$2:$U$600,18,FALSE),VLOOKUP($B27,'ADP-Rank'!$A$2:$U$600,19,FALSE),VLOOKUP($B27,'ADP-Rank'!$A$2:$U$600,20,FALSE)),"") -> 26.14285714 | J27: =IFERROR(RANK($M27,$M$4:$M$600,0),"") -> 30 | K27: =IFERROR(IF((OR($C27="RP",$C27="SP")),VLOOKUP($B27,Pitcher!$A$1:$Z$600,20,FALSE),(VLOOKUP($B27,Hitter!$A$1:$Z$600,26,FALSE))),"") -> 441.5764265 | L27: =IFERROR(IF((OR($C27="RP",$C27="SP")),VLOOKUP($C27,'Filtered-P'!$M$3:$P$4,4,FALSE), VLOOKUP($C27,Filtered!$Q$3:$T$14,4,FALSE)),"") -> 389.4967263 | M27: =IFERROR(K27-L27,"") -> 52.07970014 | N27: =IFERROR(IF((OR($C27="RP",$C27="SP")),VLOOKUP($B27,Pitcher!$A$1:$V$600,2,FALSE),""),"") ->  | O27: =IFERROR(IF((OR($C27="RP",$C27="SP")),VLOOKUP($B27,Pitcher!$A$1:$V$600,9,FALSE),""),"") ->  | P27: =IFERROR(IF((OR($C27="RP",$C27="SP")),VLOOKUP($B27,Pitcher!$A$1:$V$600,7,FALSE),""),"") ->  | Q27: =IFERROR(IF((OR($C27="RP",$C27="SP")),VLOOKUP($B27,Pitcher!$A$1:$AB$600,21,FALSE),""),"") ->  | R27: =IFERROR(IF((OR($C27="RP",$C27="SP")),VLOOKUP($B27,Pitcher!$A$1:$V$600,22,FALSE),""),"") ->  | S27: =IFERROR(IF((OR($C27="RP",$C27="SP")),"",VLOOKUP($B27,Hitter!$A$1:$AH$600,27,FALSE)),"") -> 0.2622007792 | T27: =IFERROR(IF((OR($C27="RP",$C27="SP")),"",VLOOKUP($B27,Hitter!$A$1:$AH$600,9,FALSE)),"") -> 31.77372929 | U27: =IFERROR(IF((OR($C27="RP",$C27="SP")),"",VLOOKUP($B27,Hitter!$A$1:$AH$600,10,FALSE)),"") -> 104.1201698 | V27: =IFERROR(IF((OR($C27="RP",$C27="SP")),"",VLOOKUP($B27,Hitter!$A$1:$AH$600,4,FALSE)),"") -> 91.5543262 | W27: =IFERROR(IF((OR($C27="RP",$C27="SP")),"",VLOOKUP($B27,Hitter!$A$1:$AH$600,11,FALSE)),"") -> 2.536105847 | X27: =IFERROR(IF(ISTEXT($A27),"",(1-NORMDIST((COUNTA($A$4:$A$600)),($G27),((AB27-AA27)/6),TRUE))),"") -> 0.9999999998 | Y27: =IFERROR(IF(ISTEXT($A27),"",(1-NORMDIST((COUNTA($A$4:$A$600))+(Personalize!$E$18+1),$G27,((AB27-AA27)/6),TRUE))),"") -> 0.9999999574 | Z27: =IFERROR(IF(ISTEXT($A27),"",(1-NORMDIST((COUNTA($A$4:$A$600))+((Personalize!$E$18+1)*2),$G27,((AB27-AA27)/6),TRUE))),"") -> 0.9999962788 | AA27: =IF(Personalize!$E$34=1,VLOOKUP($B27,'ADP-Rank'!$A$2:$J$600,5,FALSE),(IF(Personalize!$E$34=2,VLOOKUP($B27,'ADP-Rank'!$A$2:$J$600,8,FALSE),(IF(Personalize!$E$34=3,VLOOKUP($B27,'ADP-Rank'!$A$2:$O$600,11,FALSE),""))))) -> 15 | AB27: =IF(Personalize!$E$34=1,VLOOKUP($B27,'ADP-Rank'!$A$2:$J$600,6,FALSE),(IF(Personalize!$E$34=2,VLOOKUP($B27,'ADP-Rank'!$A$2:$J$600,9,FALSE),(IF(Personalize!$E$34=3,VLOOKUP($B27,'ADP-Rank'!$A$2:$O$600,12,FALSE),""))))) -> 39 | AC27: =IF(ISBLANK(A27),0,1) -> 0 | AD27: =IF(K27="",0,1) -> 1 | AE27: =A27 -> 0 | AF27: =IF(C27="C",1,IF(C27="1B",2,IF(C27="2B",3,IF(C27="3B",4,IF(C27="SS",5,IF(C27="CI",6,IF(C27="MI",7,IF(C27="OF",11,IF(C27="LF",8,IF(C27="CF",9,IF(C27="RF",10,IF(C27="DH",12,IF(C27="SP",13,IF(C27="RP",14,IF(C27="P",15,16))))))))))))))) -> 2 | AG27: =VLOOKUP(B27,'Starter Calc'!$B$2:$BN$600,65,FALSE) -> Bench
B28: Felix Hernandez | C28: =IFERROR(IF(VLOOKUP(B28,'ADP-Rank'!$A$2:$B$600,2,FALSE)="OF",VLOOKUP(B28,'Starter Calc'!$B$2:$AM$600,38,FALSE),(VLOOKUP(B28,'ADP-Rank'!$A$2:$B$600,2,FALSE))),"") -> SP | D28: =IFERROR(IF(VLOOKUP(B28,'Starter Calc'!$B$2:$E$600,4,FALSE)="","",VLOOKUP(B28,'Starter Calc'!$B$2:$E$600,4,FALSE)),"") ->  | E28: =IFERROR(VLOOKUP($B28,'ADP-Rank'!$A$2:$D$600,3,FALSE),"") -> SEA | F28: =IFERROR(VLOOKUP($B28,'ADP-Rank'!$A$2:$W$600,23,FALSE),"") -> 26 | G28: =IFERROR((IF(Personalize!$E$38=1,VLOOKUP($B28,'ADP-Rank'!$A$2:$J$599,4,FALSE),(IF(Personalize!$E$38=2,VLOOKUP($B28,'ADP-Rank'!$A$2:$J$599,7,FALSE),(IF(Personalize!$E$38=3,VLOOKUP($B28,'ADP-Rank'!$A$2:$J$599,10,FALSE),(IF(Personalize!$E$38=4,VLOOKUP($B28,'ADP-Rank'!$A$2:$AD$599,24,FALSE),(IF(Personalize!$E$38=5,VLOOKUP($B28,'ADP-Rank'!$A$2:$AD$599,27,FALSE))))))))))),"") -> 24.925 | H28: =IFERROR((G28/(Personalize!$E$22+1))+1,"") -> 2.917307692 | I28: =IFERROR(CHOOSE(Personalize!$E$39,VLOOKUP($B28,'ADP-Rank'!$A$2:$U$600,13,FALSE),VLOOKUP($B28,'ADP-Rank'!$A$2:$U$600,14,FALSE),VLOOKUP($B28,'ADP-Rank'!$A$2:$U$600,15,FALSE),VLOOKUP($B28,'ADP-Rank'!$A$2:$U$600,16,FALSE),VLOOKUP($B28,'ADP-Rank'!$A$2:$U$600,17,FALSE),VLOOKUP($B28,'ADP-Rank'!$A$2:$U$600,18,FALSE),VLOOKUP($B28,'ADP-Rank'!$A$2:$U$600,19,FALSE),VLOOKUP($B28,'ADP-Rank'!$A$2:$U$600,20,FALSE)),"") -> 32.85714286 | J28: =IFERROR(RANK($M28,$M$4:$M$600,0),"") -> 10 | K28: =IFERROR(IF((OR($C28="RP",$C28="SP")),VLOOKUP($B28,Pitcher!$A$1:$Z$600,20,FALSE),(VLOOKUP($B28,Hitter!$A$1:$Z$600,26,FALSE))),"") -> 433.7662791 | L28: =IFERROR(IF((OR($C28="RP",$C28="SP")),VLOOKUP($C28,'Filtered-P'!$M$3:$P$4,4,FALSE), VLOOKUP($C28,Filtered!$Q$3:$T$14,4,FALSE)),"") -> 331.9275286 | M28: =IFERROR(K28-L28,"") -> 101.8387505 | N28: =IFERROR(IF((OR($C28="RP",$C28="SP")),VLOOKUP($B28,Pitcher!$A$1:$V$600,2,FALSE),""),"") -> 13.8599635 | O28: =IFERROR(IF((OR($C28="RP",$C28="SP")),VLOOKUP($B28,Pitcher!$A$1:$V$600,9,FALSE),""),"") -> 0 | P28: =IFERROR(IF((OR($C28="RP",$C28="SP")),VLOOKUP($B28,Pitcher!$A$1:$V$600,7,FALSE),""),"") -> 207.6923584 | Q28: =IFERROR(IF((OR($C28="RP",$C28="SP")),VLOOKUP($B28,Pitcher!$A$1:$AB$600,21,FALSE),""),"") -> 3.160601395 | R28: =IFERROR(IF((OR($C28="RP",$C28="SP")),VLOOKUP($B28,Pitcher!$A$1:$V$600,22,FALSE),""),"") -> 1.181295165 | S28: =IFERROR(IF((OR($C28="RP",$C28="SP")),"",VLOOKUP($B28,Hitter!$A$1:$AH$600,27,FALSE)),"") ->  | T28: =IFERROR(IF((OR($C28="RP",$C28="SP")),"",VLOOKUP($B28,Hitter!$A$1:$AH$600,9,FALSE)),"") ->  | U28: =IFERROR(IF((OR($C28="RP",$C28="SP")),"",VLOOKUP($B28,Hitter!$A$1:$AH$600,10,FALSE)),"") ->  | V28: =IFERROR(IF((OR($C28="RP",$C28="SP")),"",VLOOKUP($B28,Hitter!$A$1:$AH$600,4,FALSE)),"") ->  | W28: =IFERROR(IF((OR($C28="RP",$C28="SP")),"",VLOOKUP($B28,Hitter!$A$1:$AH$600,11,FALSE)),"") ->  | X28: =IFERROR(IF(ISTEXT($A28),"",(1-NORMDIST((COUNTA($A$4:$A$600)),($G28),((AB28-AA28)/6),TRUE))),"") -> 0.999998519 | Y28: =IFERROR(IF(ISTEXT($A28),"",(1-NORMDIST((COUNTA($A$4:$A$600))+(Personalize!$E$18+1),$G28,((AB28-AA28)/6),TRUE))),"") -> 0.9999705516 | Z28: =IFERROR(IF(ISTEXT($A28),"",(1-NORMDIST((COUNTA($A$4:$A$600))+((Personalize!$E$18+1)*2),$G28,((AB28-AA28)/6),TRUE))),"") -> 0.999611608 | AA28: =IF(Personalize!$E$34=1,VLOOKUP($B28,'ADP-Rank'!$A$2:$J$600,5,FALSE),(IF(Personalize!$E$34=2,VLOOKUP($B28,'ADP-Rank'!$A$2:$J$600,8,FALSE),(IF(Personalize!$E$34=3,VLOOKUP($B28,'ADP-Rank'!$A$2:$O$600,11,FALSE),""))))) -> 13 | AB28: =IF(Personalize!$E$34=1,VLOOKUP($B28,'ADP-Rank'!$A$2:$J$600,6,FALSE),(IF(Personalize!$E$34=2,VLOOKUP($B28,'ADP-Rank'!$A$2:$J$600,9,FALSE),(IF(Personalize!$E$34=3,VLOOKUP($B28,'ADP-Rank'!$A$2:$O$600,12,FALSE),""))))) -> 45 | AC28: =IF(ISBLANK(A28),0,1) -> 0 | AD28: =IF(K28="",0,1) -> 1 | AE28: =A28 -> 0 | AF28: =IF(C28="C",1,IF(C28="1B",2,IF(C28="2B",3,IF(C28="3B",4,IF(C28="SS",5,IF(C28="CI",6,IF(C28="MI",7,IF(C28="OF",11,IF(C28="LF",8,IF(C28="CF",9,IF(C28="RF",10,IF(C28="DH",12,IF(C28="SP",13,IF(C28="RP",14,IF(C28="P",15,16))))))))))))))) -> 13 | AG28: =VLOOKUP(B28,'Starter Calc'!$B$2:$BN$600,65,FALSE) -> Bench
B29: Tim Lincecum | C29: =IFERROR(IF(VLOOKUP(B29,'ADP-Rank'!$A$2:$B$600,2,FALSE)="OF",VLOOKUP(B29,'Starter Calc'!$B$2:$AM$600,38,FALSE),(VLOOKUP(B29,'ADP-Rank'!$A$2:$B$600,2,FALSE))),"") -> SP | D29: =IFERROR(IF(VLOOKUP(B29,'Starter Calc'!$B$2:$E$600,4,FALSE)="","",VLOOKUP(B29,'Starter Calc'!$B$2:$E$600,4,FALSE)),"") ->  | E29: =IFERROR(VLOOKUP($B29,'ADP-Rank'!$A$2:$D$600,3,FALSE),"") -> SF | F29: =IFERROR(VLOOKUP($B29,'ADP-Rank'!$A$2:$W$600,23,FALSE),"") -> 28 | G29: =IFERROR((IF(Personalize!$E$38=1,VLOOKUP($B29,'ADP-Rank'!$A$2:$J$599,4,FALSE),(IF(Personalize!$E$38=2,VLOOKUP($B29,'ADP-Rank'!$A$2:$J$599,7,FALSE),(IF(Personalize!$E$38=3,VLOOKUP($B29,'ADP-Rank'!$A$2:$J$599,10,FALSE),(IF(Personalize!$E$38=4,VLOOKUP($B29,'ADP-Rank'!$A$2:$AD$599,24,FALSE),(IF(Personalize!$E$38=5,VLOOKUP($B29,'ADP-Rank'!$A$2:$AD$599,27,FALSE))))))))))),"") -> 25.2975 | H29: =IFERROR((G29/(Personalize!$E$22+1))+1,"") -> 2.945961538 | I29: =IFERROR(CHOOSE(Personalize!$E$39,VLOOKUP($B29,'ADP-Rank'!$A$2:$U$600,13,FALSE),VLOOKUP($B29,'ADP-Rank'!$A$2:$U$600,14,FALSE),VLOOKUP($B29,'ADP-Rank'!$A$2:$U$600,15,FALSE),VLOOKUP($B29,'ADP-Rank'!$A$2:$U$600,16,FALSE),VLOOKUP($B29,'ADP-Rank'!$A$2:$U$600,17,FALSE),VLOOKUP($B29,'ADP-Rank'!$A$2:$U$600,18,FALSE),VLOOKUP($B29,'ADP-Rank'!$A$2:$U$600,19,FALSE),VLOOKUP($B29,'ADP-Rank'!$A$2:$U$600,20,FALSE)),"") -> 36.85714286 | J29: =IFERROR(RANK($M29,$M$4:$M$600,0),"") -> 7 | K29: =IFERROR(IF((OR($C29="RP",$C29="SP")),VLOOKUP($B29,Pitcher!$A$1:$Z$600,20,FALSE),(VLOOKUP($B29,Hitter!$A$1:$Z$600,26,FALSE))),"") -> 451.7016603 | L29: =IFERROR(IF((OR($C29="RP",$C29="SP")),VLOOKUP($C29,'Filtered-P'!$M$3:$P$4,4,FALSE), VLOOKUP($C29,Filtered!$Q$3:$T$14,4,FALSE)),"") -> 331.9275286 | M29: =IFERROR(K29-L29,"") -> 119.7741316 | N29: =IFERROR(IF((OR($C29="RP",$C29="SP")),VLOOKUP($B29,Pitcher!$A$1:$V$600,2,FALSE),""),"") -> 13.69376151 | O29: =IFERROR(IF((OR($C29="RP",$C29="SP")),VLOOKUP($B29,Pitcher!$A$1:$V$600,9,FALSE),""),"") -> 0 | P29: =IFERROR(IF((OR($C29="RP",$C29="SP")),VLOOKUP($B29,Pitcher!$A$1:$V$600,7,FALSE),""),"") -> 211.6205414 | Q29: =IFERROR(IF((OR($C29="RP",$C29="SP")),VLOOKUP($B29,Pitcher!$A$1:$AB$600,21,FALSE),""),"") -> 3.106134001 | R29: =IFERROR(IF((OR($C29="RP",$C29="SP")),VLOOKUP($B29,Pitcher!$A$1:$V$600,22,FALSE),""),"") -> 1.203406933 | S29: =IFERROR(IF((OR($C29="RP",$C29="SP")),"",VLOOKUP($B29,Hitter!$A$1:$AH$600,27,FALSE)),"") ->  | T29: =IFERROR(IF((OR($C29="RP",$C29="SP")),"",VLOOKUP($B29,Hitter!$A$1:$AH$600,9,FALSE)),"") ->  | U29: =IFERROR(IF((OR($C29="RP",$C29="SP")),"",VLOOKUP($B29,Hitter!$A$1:$AH$600,10,FALSE)),"") ->  | V29: =IFERROR(IF((OR($C29="RP",$C29="SP")),"",VLOOKUP($B29,Hitter!$A$1:$AH$600,4,FALSE)),"") ->  | W29: =IFERROR(IF((OR($C29="RP",$C29="SP")),"",VLOOKUP($B29,Hitter!$A$1:$AH$600,11,FALSE)),"") ->  | X29: =IFERROR(IF(ISTEXT($A29),"",(1-NORMDIST((COUNTA($A$4:$A$600)),($G29),((AB29-AA29)/6),TRUE))),"") -> 0.9999999703 | Y29: =IFERROR(IF(ISTEXT($A29),"",(1-NORMDIST((COUNTA($A$4:$A$600))+(Personalize!$E$18+1),$G29,((AB29-AA29)/6),TRUE))),"") -> 0.9999985005 | Z29: =IFERROR(IF(ISTEXT($A29),"",(1-NORMDIST((COUNTA($A$4:$A$600))+((Personalize!$E$18+1)*2),$G29,((AB29-AA29)/6),TRUE))),"") -> 0.9999558893 | AA29: =IF(Personalize!$E$34=1,VLOOKUP($B29,'ADP-Rank'!$A$2:$J$600,5,FALSE),(IF(Personalize!$E$34=2,VLOOKUP($B29,'ADP-Rank'!$A$2:$J$600,8,FALSE),(IF(Personalize!$E$34=3,VLOOKUP($B29,'ADP-Rank'!$A$2:$O$600,11,FALSE),""))))) -> 13 | AB29: =IF(Personalize!$E$34=1,VLOOKUP($B29,'ADP-Rank'!$A$2:$J$600,6,FALSE),(IF(Personalize!$E$34=2,VLOOKUP($B29,'ADP-Rank'!$A$2:$J$600,9,FALSE),(IF(Personalize!$E$34=3,VLOOKUP($B29,'ADP-Rank'!$A$2:$O$600,12,FALSE),""))))) -> 41 | AC29: =IF(ISBLANK(A29),0,1) -> 0 | AD29: =IF(K29="",0,1) -> 1 | AE29: =A29 -> 0 | AF29: =IF(C29="C",1,IF(C29="1B",2,IF(C29="2B",3,IF(C29="3B",4,IF(C29="SS",5,IF(C29="CI",6,IF(C29="MI",7,IF(C29="OF",11,IF(C29="LF",8,IF(C29="CF",9,IF(C29="RF",10,IF(C29="DH",12,IF(C29="SP",13,IF(C29="RP",14,IF(C29="P",15,16))))))))))))))) -> 13 | AG29: =VLOOKUP(B29,'Starter Calc'!$B$2:$BN$600,65,FALSE) -> Bench
B30: CC Sabathia | C30: =IFERROR(IF(VLOOKUP(B30,'ADP-Rank'!$A$2:$B$600,2,FALSE)="OF",VLOOKUP(B30,'Starter Calc'!$B$2:$AM$600,38,FALSE),(VLOOKUP(B30,'ADP-Rank'!$A$2:$B$600,2,FALSE))),"") -> SP | D30: =IFERROR(IF(VLOOKUP(B30,'Starter Calc'!$B$2:$E$600,4,FALSE)="","",VLOOKUP(B30,'Starter Calc'!$B$2:$E$600,4,FALSE)),"") ->  | E30: =IFERROR(VLOOKUP($B30,'ADP-Rank'!$A$2:$D$600,3,FALSE),"") -> NYY | F30: =IFERROR(VLOOKUP($B30,'ADP-Rank'!$A$2:$W$600,23,FALSE),"") -> 32 | G30: =IFERROR((IF(Personalize!$E$38=1,VLOOKUP($B30,'ADP-Rank'!$A$2:$J$599,4,FALSE),(IF(Personalize!$E$38=2,VLOOKUP($B30,'ADP-Rank'!$A$2:$J$599,7,FALSE),(IF(Personalize!$E$38=3,VLOOKUP($B30,'ADP-Rank'!$A$2:$J$599,10,FALSE),(IF(Personalize!$E$38=4,VLOOKUP($B30,'ADP-Rank'!$A$2:$AD$599,24,FALSE),(IF(Personalize!$E$38=5,VLOOKUP($B30,'ADP-Rank'!$A$2:$AD$599,27,FALSE))))))))))),"") -> 27.3325 | H30: =IFERROR((G30/(Personalize!$E$22+1))+1,"") -> 3.1025 | I30: =IFERROR(CHOOSE(Personalize!$E$39,VLOOKUP($B30,'ADP-Rank'!$A$2:$U$600,13,FALSE),VLOOKUP($B30,'ADP-Rank'!$A$2:$U$600,14,FALSE),VLOOKUP($B30,'ADP-Rank'!$A$2:$U$600,15,FALSE),VLOOKUP($B30,'ADP-Rank'!$A$2:$U$600,16,FALSE),VLOOKUP($B30,'ADP-Rank'!$A$2:$U$600,17,FALSE),VLOOKUP($B30,'ADP-Rank'!$A$2:$U$600,18,FALSE),VLOOKUP($B30,'ADP-Rank'!$A$2:$U$600,19,FALSE),VLOOKUP($B30,'ADP-Rank'!$A$2:$U$600,20,FALSE)),"") -> 36.42857143 | J30: =IFERROR(RANK($M30,$M$4:$M$600,0),"") -> 27 | K30: =IFERROR(IF((OR($C30="RP",$C30="SP")),VLOOKUP($B30,Pitcher!$A$1:$Z$600,20,FALSE),(VLOOKUP($B30,Hitter!$A$1:$Z$600,26,FALSE))),"") -> 390.7475219 | L30: =IFERROR(IF((OR($C30="RP",$C30="SP")),VLOOKUP($C30,'Filtered-P'!$M$3:$P$4,4,FALSE), VLOOKUP($C30,Filtered!$Q$3:$T$14,4,FALSE)),"") -> 331.9275286 | M30: =IFERROR(K30-L30,"") -> 58.81999328 | N30: =IFERROR(IF((OR($C30="RP",$C30="SP")),VLOOKUP($B30,Pitcher!$A$1:$V$600,2,FALSE),""),"") -> 15.9824697 | O30: =IFERROR(IF((OR($C30="RP",$C30="SP")),VLOOKUP($B30,Pitcher!$A$1:$V$600,9,FALSE),""),"") -> 0 | P30: =IFERROR(IF((OR($C30="RP",$C30="SP")),VLOOKUP($B30,Pitcher!$A$1:$V$600,7,FALSE),""),"") -> 191.034057 | Q30: =IFERROR(IF((OR($C30="RP",$C30="SP")),VLOOKUP($B30,Pitcher!$A$1:$AB$600,21,FALSE),""),"") -> 3.428000578 | R30: =IFERROR(IF((OR($C30="RP",$C30="SP")),VLOOKUP($B30,Pitcher!$A$1:$V$600,22,FALSE),""),"") -> 1.23562319 | S30: =IFERROR(IF((OR($C30="RP",$C30="SP")),"",VLOOKUP($B30,Hitter!$A$1:$AH$600,27,FALSE)),"") ->  | T30: =IFERROR(IF((OR($C30="RP",$C30="SP")),"",VLOOKUP($B30,Hitter!$A$1:$AH$600,9,FALSE)),"") ->  | U30: =IFERROR(IF((OR($C30="RP",$C30="SP")),"",VLOOKUP($B30,Hitter!$A$1:$AH$600,10,FALSE)),"") ->  | V30: =IFERROR(IF((OR($C30="RP",$C30="SP")),"",VLOOKUP($B30,Hitter!$A$1:$AH$600,4,FALSE)),"") ->  | W30: =IFERROR(IF((OR($C30="RP",$C30="SP")),"",VLOOKUP($B30,Hitter!$A$1:$AH$600,11,FALSE)),"") ->  | X30: =IFERROR(IF(ISTEXT($A30),"",(1-NORMDIST((COUNTA($A$4:$A$600)),($G30),((AB30-AA30)/6),TRUE))),"") -> 0.9999999994 | Y30: =IFERROR(IF(ISTEXT($A30),"",(1-NORMDIST((COUNTA($A$4:$A$600))+(Personalize!$E$18+1),$G30,((AB30-AA30)/6),TRUE))),"") -> 0.9999999409 | Z30: =IFERROR(IF(ISTEXT($A30),"",(1-NORMDIST((COUNTA($A$4:$A$600))+((Personalize!$E$18+1)*2),$G30,((AB30-AA30)/6),TRUE))),"") -> 0.9999968836 | AA30: =IF(Personalize!$E$34=1,VLOOKUP($B30,'ADP-Rank'!$A$2:$J$600,5,FALSE),(IF(Personalize!$E$34=2,VLOOKUP($B30,'ADP-Rank'!$A$2:$J$600,8,FALSE),(IF(Personalize!$E$34=3,VLOOKUP($B30,'ADP-Rank'!$A$2:$O$600,11,FALSE),""))))) -> 21 | AB30: =IF(Personalize!$E$34=1,VLOOKUP($B30,'ADP-Rank'!$A$2:$J$600,6,FALSE),(IF(Personalize!$E$34=2,VLOOKUP($B30,'ADP-Rank'!$A$2:$J$600,9,FALSE),(IF(Personalize!$E$34=3,VLOOKUP($B30,'ADP-Rank'!$A$2:$O$600,12,FALSE),""))))) -> 48 | AC30: =IF(ISBLANK(A30),0,1) -> 0 | AD30: =IF(K30="",0,1) -> 1 | AE30: =A30 -> 0 | AF30: =IF(C30="C",1,IF(C30="1B",2,IF(C30="2B",3,IF(C30="3B",4,IF(C30="SS",5,IF(C30="CI",6,IF(C30="MI",7,IF(C30="OF",11,IF(C30="LF",8,IF(C30="CF",9,IF(C30="RF",10,IF(C30="DH",12,IF(C30="SP",13,IF(C30="RP",14,IF(C30="P",15,16))))))))))))))) -> 13 | AG30: =VLOOKUP(B30,'Starter Calc'!$B$2:$BN$600,65,FALSE) -> Bench
B31: Jered Weaver | C31: =IFERROR(IF(VLOOKUP(B31,'ADP-Rank'!$A$2:$B$600,2,FALSE)="OF",VLOOKUP(B31,'Starter Calc'!$B$2:$AM$600,38,FALSE),(VLOOKUP(B31,'ADP-Rank'!$A$2:$B$600,2,FALSE))),"") -> SP | D31: =IFERROR(IF(VLOOKUP(B31,'Starter Calc'!$B$2:$E$600,4,FALSE)="","",VLOOKUP(B31,'Starter Calc'!$B$2:$E$600,4,FALSE)),"") ->  | E31: =IFERROR(VLOOKUP($B31,'ADP-Rank'!$A$2:$D$600,3,FALSE),"") -> ANA | F31: =IFERROR(VLOOKUP($B31,'ADP-Rank'!$A$2:$W$600,23,FALSE),"") -> 30 | G31: =IFERROR((IF(Personalize!$E$38=1,VLOOKUP($B31,'ADP-Rank'!$A$2:$J$599,4,FALSE),(IF(Personalize!$E$38=2,VLOOKUP($B31,'ADP-Rank'!$A$2:$J$599,7,FALSE),(IF(Personalize!$E$38=3,VLOOKUP($B31,'ADP-Rank'!$A$2:$J$599,10,FALSE),(IF(Personalize!$E$38=4,VLOOKUP($B31,'ADP-Rank'!$A$2:$AD$599,24,FALSE),(IF(Personalize!$E$38=5,VLOOKUP($B31,'ADP-Rank'!$A$2:$AD$599,27,FALSE))))))))))),"") -> 29.085 | H31: =IFERROR((G31/(Personalize!$E$22+1))+1,"") -> 3.237307692 | I31: =IFERROR(CHOOSE(Personalize!$E$39,VLOOKUP($B31,'ADP-Rank'!$A$2:$U$600,13,FALSE),VLOOKUP($B31,'ADP-Rank'!$A$2:$U$600,14,FALSE),VLOOKUP($B31,'ADP-Rank'!$A$2:$U$600,15,FALSE),VLOOKUP($B31,'ADP-Rank'!$A$2:$U$600,16,FALSE),VLOOKUP($B31,'ADP-Rank'!$A$2:$U$600,17,FALSE),VLOOKUP($B31,'ADP-Rank'!$A$2:$U$600,18,FALSE),VLOOKUP($B31,'ADP-Rank'!$A$2:$U$600,19,FALSE),VLOOKUP($B31,'ADP-Rank'!$A$2:$U$600,20,FALSE)),"") -> 41.28571429 | J31: =IFERROR(RANK($M31,$M$4:$M$600,0),"") -> 25 | K31: =IFERROR(IF((OR($C31="RP",$C31="SP")),VLOOKUP($B31,Pitcher!$A$1:$Z$600,20,FALSE),(VLOOKUP($B31,Hitter!$A$1:$Z$600,26,FALSE))),"") -> 398.2244168 | L31: =IFERROR(IF((OR($C31="RP",$C31="SP")),VLOOKUP($C31,'Filtered-P'!$M$3:$P$4,4,FALSE), VLOOKUP($C31,Filtered!$Q$3:$T$14,4,FALSE)),"") -> 331.9275286 | M31: =IFERROR(K31-L31,"") -> 66.29688818 | N31: =IFERROR(IF((OR($C31="RP",$C31="SP")),VLOOKUP($B31,Pitcher!$A$1:$V$600,2,FALSE),""),"") -> 14.77422604 | O31: =IFERROR(IF((OR($C31="RP",$C31="SP")),VLOOKUP($B31,Pitcher!$A$1:$V$600,9,FALSE),""),"") -> 0 | P31: =IFERROR(IF((OR($C31="RP",$C31="SP")),VLOOKUP($B31,Pitcher!$A$1:$V$600,7,FALSE),""),"") -> 186.8127083 | Q31: =IFERROR(IF((OR($C31="RP",$C31="SP")),VLOOKUP($B31,Pitcher!$A$1:$AB$600,21,FALSE),""),"") -> 3.316215291 | R31: =IFERROR(IF((OR($C31="RP",$C31="SP")),VLOOKUP($B31,Pitcher!$A$1:$V$600,22,FALSE),""),"") -> 1.150244194 | S31: =IFERROR(IF((OR($C31="RP",$C31="SP")),"",VLOOKUP($B31,Hitter!$A$1:$AH$600,27,FALSE)),"") ->  | T31: =IFERROR(IF((OR($C31="RP",$C31="SP")),"",VLOOKUP($B31,Hitter!$A$1:$AH$600,9,FALSE)),"") ->  | U31: =IFERROR(IF((OR($C31="RP",$C31="SP")),"",VLOOKUP($B31,Hitter!$A$1:$AH$600,10,FALSE)),"") ->  | V31: =IFERROR(IF((OR($C31="RP",$C31="SP")),"",VLOOKUP($B31,Hitter!$A$1:$AH$600,4,FALSE)),"") ->  | W31: =IFERROR(IF((OR($C31="RP",$C31="SP")),"",VLOOKUP($B31,Hitter!$A$1:$AH$600,11,FALSE)),"") ->  | X31: =IFERROR(IF(ISTEXT($A31),"",(1-NORMDIST((COUNTA($A$4:$A$600)),($G31),((AB31-AA31)/6),TRUE))),"") -> 0.9999988002 | Y31: =IFERROR(IF(ISTEXT($A31),"",(1-NORMDIST((COUNTA($A$4:$A$600))+(Personalize!$E$18+1),$G31,((AB31-AA31)/6),TRUE))),"") -> 0.9999832975 | Z31: =IFERROR(IF(ISTEXT($A31),"",(1-NORMDIST((COUNTA($A$4:$A$600))+((Personalize!$E$18+1)*2),$G31,((AB31-AA31)/6),TRUE))),"") -> 0.9998290892 | AA31: =IF(Personalize!$E$34=1,VLOOKUP($B31,'ADP-Rank'!$A$2:$J$600,5,FALSE),(IF(Personalize!$E$34=2,VLOOKUP($B31,'ADP-Rank'!$A$2:$J$600,8,FALSE),(IF(Personalize!$E$34=3,VLOOKUP($B31,'ADP-Rank'!$A$2:$O$600,11,FALSE),""))))) -> 18 | AB31: =IF(Personalize!$E$34=1,VLOOKUP($B31,'ADP-Rank'!$A$2:$J$600,6,FALSE),(IF(Personalize!$E$34=2,VLOOKUP($B31,'ADP-Rank'!$A$2:$J$600,9,FALSE),(IF(Personalize!$E$34=3,VLOOKUP($B31,'ADP-Rank'!$A$2:$O$600,12,FALSE),""))))) -> 55 | AC31: =IF(ISBLANK(A31),0,1) -> 0 | AD31: =IF(K31="",0,1) -> 1 | AE31: =A31 -> 0 | AF31: =IF(C31="C",1,IF(C31="1B",2,IF(C31="2B",3,IF(C31="3B",4,IF(C31="SS",5,IF(C31="CI",6,IF(C31="MI",7,IF(C31="OF",11,IF(C31="LF",8,IF(C31="CF",9,IF(C31="RF",10,IF(C31="DH",12,IF(C31="SP",13,IF(C31="RP",14,IF(C31="P",15,16))))))))))))))) -> 13 | AG31: =VLOOKUP(B31,'Starter Calc'!$B$2:$BN$600,65,FALSE) -> Bench
B32: Mike Stanton | C32: =IFERROR(IF(VLOOKUP(B32,'ADP-Rank'!$A$2:$B$600,2,FALSE)="OF",VLOOKUP(B32,'Starter Calc'!$B$2:$AM$600,38,FALSE),(VLOOKUP(B32,'ADP-Rank'!$A$2:$B$600,2,FALSE))),"") -> OF | D32: =IFERROR(IF(VLOOKUP(B32,'Starter Calc'!$B$2:$E$600,4,FALSE)="","",VLOOKUP(B32,'Starter Calc'!$B$2:$E$600,4,FALSE)),"") -> RF | E32: =IFERROR(VLOOKUP($B32,'ADP-Rank'!$A$2:$D$600,3,FALSE),"") -> MIA | F32: =IFERROR(VLOOKUP($B32,'ADP-Rank'!$A$2:$W$600,23,FALSE),"") -> 23 | G32: =IFERROR((IF(Personalize!$E$38=1,VLOOKUP($B32,'ADP-Rank'!$A$2:$J$599,4,FALSE),(IF(Personalize!$E$38=2,VLOOKUP($B32,'ADP-Rank'!$A$2:$J$599,7,FALSE),(IF(Personalize!$E$38=3,VLOOKUP($B32,'ADP-Rank'!$A$2:$J$599,10,FALSE),(IF(Personalize!$E$38=4,VLOOKUP($B32,'ADP-Rank'!$A$2:$AD$599,24,FALSE),(IF(Personalize!$E$38=5,VLOOKUP($B32,'ADP-Rank'!$A$2:$AD$599,27,FALSE))))))))))),"") -> 30.0025 | H32: =IFERROR((G32/(Personalize!$E$22+1))+1,"") -> 3.307884615 | I32: =IFERROR(CHOOSE(Personalize!$E$39,VLOOKUP($B32,'ADP-Rank'!$A$2:$U$600,13,FALSE),VLOOKUP($B32,'ADP-Rank'!$A$2:$U$600,14,FALSE),VLOOKUP($B32,'ADP-Rank'!$A$2:$U$600,15,FALSE),VLOOKUP($B32,'ADP-Rank'!$A$2:$U$600,16,FALSE),VLOOKUP($B32,'ADP-Rank'!$A$2:$U$600,17,FALSE),VLOOKUP($B32,'ADP-Rank'!$A$2:$U$600,18,FALSE),VLOOKUP($B32,'ADP-Rank'!$A$2:$U$600,19,FALSE),VLOOKUP($B32,'ADP-Rank'!$A$2:$U$600,20,FALSE)),"") -> 26.42857143 | J32: =IFERROR(RANK($M32,$M$4:$M$600,0),"") -> 60 | K32: =IFERROR(IF((OR($C32="RP",$C32="SP")),VLOOKUP($B32,Pitcher!$A$1:$Z$600,20,FALSE),(VLOOKUP($B32,Hitter!$A$1:$Z$600,26,FALSE))),"") -> 362.3757859 | L32: =IFERROR(IF((OR($C32="RP",$C32="SP")),VLOOKUP($C32,'Filtered-P'!$M$3:$P$4,4,FALSE), VLOOKUP($C32,Filtered!$Q$3:$T$14,4,FALSE)),"") -> 347.6626137 | M32: =IFERROR(K32-L32,"") -> 14.71317223 | N32: =IFERROR(IF((OR($C32="RP",$C32="SP")),VLOOKUP($B32,Pitcher!$A$1:$V$600,2,FALSE),""),"") ->  | O32: =IFERROR(IF((OR($C32="RP",$C32="SP")),VLOOKUP($B32,Pitcher!$A$1:$V$600,9,FALSE),""),"") ->  | P32: =IFERROR(IF((OR($C32="RP",$C32="SP")),VLOOKUP($B32,Pitcher!$A$1:$V$600,7,FALSE),""),"") ->  | Q32: =IFERROR(IF((OR($C32="RP",$C32="SP")),VLOOKUP($B32,Pitcher!$A$1:$AB$600,21,FALSE),""),"") ->  | R32: =IFERROR(IF((OR($C32="RP",$C32="SP")),VLOOKUP($B32,Pitcher!$A$1:$V$600,22,FALSE),""),"") ->  | S32: =IFERROR(IF((OR($C32="RP",$C32="SP")),"",VLOOKUP($B32,Hitter!$A$1:$AH$600,27,FALSE)),"") -> 0.265751405 | T32: =IFERROR(IF((OR($C32="RP",$C32="SP")),"",VLOOKUP($B32,Hitter!$A$1:$AH$600,9,FALSE)),"") -> 33.02328107 | U32: =IFERROR(IF((OR($C32="RP",$C32="SP")),"",VLOOKUP($B32,Hitter!$A$1:$AH$600,10,FALSE)),"") -> 90.43641749 | V32: =IFERROR(IF((OR($C32="RP",$C32="SP")),"",VLOOKUP($B32,Hitter!$A$1:$AH$600,4,FALSE)),"") -> 79.02477362 | W32: =IFERROR(IF((OR($C32="RP",$C32="SP")),"",VLOOKUP($B32,Hitter!$A$1:$AH$600,11,FALSE)),"") -> 5.960258173 | X32: =IFERROR(IF(ISTEXT($A32),"",(1-NORMDIST((COUNTA($A$4:$A$600)),($G32),((AB32-AA32)/6),TRUE))),"") -> 1 | Y32: =IFERROR(IF(ISTEXT($A32),"",(1-NORMDIST((COUNTA($A$4:$A$600))+(Personalize!$E$18+1),$G32,((AB32-AA32)/6),TRUE))),"") -> 1 | Z32: =IFERROR(IF(ISTEXT($A32),"",(1-NORMDIST((COUNTA($A$4:$A$600))+((Personalize!$E$18+1)*2),$G32,((AB32-AA32)/6),TRUE))),"") -> 1 | AA32: =IF(Personalize!$E$34=1,VLOOKUP($B32,'ADP-Rank'!$A$2:$J$600,5,FALSE),(IF(Personalize!$E$34=2,VLOOKUP($B32,'ADP-Rank'!$A$2:$J$600,8,FALSE),(IF(Personalize!$E$34=3,VLOOKUP($B32,'ADP-Rank'!$A$2:$O$600,11,FALSE),""))))) -> 13 | AB32: =IF(Personalize!$E$34=1,VLOOKUP($B32,'ADP-Rank'!$A$2:$J$600,6,FALSE),(IF(Personalize!$E$34=2,VLOOKUP($B32,'ADP-Rank'!$A$2:$J$600,9,FALSE),(IF(Personalize!$E$34=3,VLOOKUP($B32,'ADP-Rank'!$A$2:$O$600,12,FALSE),""))))) -> 33 | AC32: =IF(ISBLANK(A32),0,1) -> 0 | AD32: =IF(K32="",0,1) -> 1 | AE32: =A32 -> 0 | AF32: =IF(C32="C",1,IF(C32="1B",2,IF(C32="2B",3,IF(C32="3B",4,IF(C32="SS",5,IF(C32="CI",6,IF(C32="MI",7,IF(C32="OF",11,IF(C32="LF",8,IF(C32="CF",9,IF(C32="RF",10,IF(C32="DH",12,IF(C32="SP",13,IF(C32="RP",14,IF(C32="P",15,16))))))))))))))) -> 11 | AG32: =VLOOKUP(B32,'Starter Calc'!$B$2:$BN$600,65,FALSE) -> Bench
B33: Andrew McCutchen | C33: =IFERROR(IF(VLOOKUP(B33,'ADP-Rank'!$A$2:$B$600,2,FALSE)="OF",VLOOKUP(B33,'Starter Calc'!$B$2:$AM$600,38,FALSE),(VLOOKUP(B33,'ADP-Rank'!$A$2:$B$600,2,FALSE))),"") -> OF | D33: =IFERROR(IF(VLOOKUP(B33,'Starter Calc'!$B$2:$E$600,4,FALSE)="","",VLOOKUP(B33,'Starter Calc'!$B$2:$E$600,4,FALSE)),"") -> CF | E33: =IFERROR(VLOOKUP($B33,'ADP-Rank'!$A$2:$D$600,3,FALSE),"") -> PIT | F33: =IFERROR(VLOOKUP($B33,'ADP-Rank'!$A$2:$W$600,23,FALSE),"") -> 26 | G33: =IFERROR((IF(Personalize!$E$38=1,VLOOKUP($B33,'ADP-Rank'!$A$2:$J$599,4,FALSE),(IF(Personalize!$E$38=2,VLOOKUP($B33,'ADP-Rank'!$A$2:$J$599,7,FALSE),(IF(Personalize!$E$38=3,VLOOKUP($B33,'ADP-Rank'!$A$2:$J$599,10,FALSE),(IF(Personalize!$E$38=4,VLOOKUP($B33,'ADP-Rank'!$A$2:$AD$599,24,FALSE),(IF(Personalize!$E$38=5,VLOOKUP($B33,'ADP-Rank'!$A$2:$AD$599,27,FALSE))))))))))),"") -> 30.7225 | H33: =IFERROR((G33/(Personalize!$E$22+1))+1,"") -> 3.363269231 | I33: =IFERROR(CHOOSE(Personalize!$E$39,VLOOKUP($B33,'ADP-Rank'!$A$2:$U$600,13,FALSE),VLOOKUP($B33,'ADP-Rank'!$A$2:$U$600,14,FALSE),VLOOKUP($B33,'ADP-Rank'!$A$2:$U$600,15,FALSE),VLOOKUP($B33,'ADP-Rank'!$A$2:$U$600,16,FALSE),VLOOKUP($B33,'ADP-Rank'!$A$2:$U$600,17,FALSE),VLOOKUP($B33,'ADP-Rank'!$A$2:$U$600,18,FALSE),VLOOKUP($B33,'ADP-Rank'!$A$2:$U$600,19,FALSE),VLOOKUP($B33,'ADP-Rank'!$A$2:$U$600,20,FALSE)),"") -> 26.28571429 | J33: =IFERROR(RANK($M33,$M$4:$M$600,0),"") -> 32 | K33: =IFERROR(IF((OR($C33="RP",$C33="SP")),VLOOKUP($B33,Pitcher!$A$1:$Z$600,20,FALSE),(VLOOKUP($B33,Hitter!$A$1:$Z$600,26,FALSE))),"") -> 395.6270279 | L33: =IFERROR(IF((OR($C33="RP",$C33="SP")),VLOOKUP($C33,'Filtered-P'!$M$3:$P$4,4,FALSE), VLOOKUP($C33,Filtered!$Q$3:$T$14,4,FALSE)),"") -> 347.6626137 | M33: =IFERROR(K33-L33,"") -> 47.96441418 | N33: =IFERROR(IF((OR($C33="RP",$C33="SP")),VLOOKUP($B33,Pitcher!$A$1:$V$600,2,FALSE),""),"") ->  | O33: =IFERROR(IF((OR($C33="RP",$C33="SP")),VLOOKUP($B33,Pitcher!$A$1:$V$600,9,FALSE),""),"") ->  | P33: =IFERROR(IF((OR($C33="RP",$C33="SP")),VLOOKUP($B33,Pitcher!$A$1:$V$600,7,FALSE),""),"") ->  | Q33: =IFERROR(IF((OR($C33="RP",$C33="SP")),VLOOKUP($B33,Pitcher!$A$1:$AB$600,21,FALSE),""),"") ->  | R33: =IFERROR(IF((OR($C33="RP",$C33="SP")),VLOOKUP($B33,Pitcher!$A$1:$V$600,22,FALSE),""),"") ->  | S33: =IFERROR(IF((OR($C33="RP",$C33="SP")),"",VLOOKUP($B33,Hitter!$A$1:$AH$600,27,FALSE)),"") -> 0.2728351223 | T33: =IFERROR(IF((OR($C33="RP",$C33="SP")),"",VLOOKUP($B33,Hitter!$A$1:$AH$600,9,FALSE)),"") -> 18.27514778 | U33: =IFERROR(IF((OR($C33="RP",$C33="SP")),"",VLOOKUP($B33,Hitter!$A$1:$AH$600,10,FALSE)),"") -> 71.52159785 | V33: =IFERROR(IF((OR($C33="RP",$C33="SP")),"",VLOOKUP($B33,Hitter!$A$1:$AH$600,4,FALSE)),"") -> 87.71413909 | W33: =IFERROR(IF((OR($C33="RP",$C33="SP")),"",VLOOKUP($B33,Hitter!$A$1:$AH$600,11,FALSE)),"") -> 24.9107062 | X33: =IFERROR(IF(ISTEXT($A33),"",(1-NORMDIST((COUNTA($A$4:$A$600)),($G33),((AB33-AA33)/6),TRUE))),"") -> 1 | Y33: =IFERROR(IF(ISTEXT($A33),"",(1-NORMDIST((COUNTA($A$4:$A$600))+(Personalize!$E$18+1),$G33,((AB33-AA33)/6),TRUE))),"") -> 1 | Z33: =IFERROR(IF(ISTEXT($A33),"",(1-NORMDIST((COUNTA($A$4:$A$600))+((Personalize!$E$18+1)*2),$G33,((AB33-AA33)/6),TRUE))),"") -> 0.9999999938 | AA33: =IF(Personalize!$E$34=1,VLOOKUP($B33,'ADP-Rank'!$A$2:$J$600,5,FALSE),(IF(Personalize!$E$34=2,VLOOKUP($B33,'ADP-Rank'!$A$2:$J$600,8,FALSE),(IF(Personalize!$E$34=3,VLOOKUP($B33,'ADP-Rank'!$A$2:$O$600,11,FALSE),""))))) -> 14 | AB33: =IF(Personalize!$E$34=1,VLOOKUP($B33,'ADP-Rank'!$A$2:$J$600,6,FALSE),(IF(Personalize!$E$34=2,VLOOKUP($B33,'ADP-Rank'!$A$2:$J$600,9,FALSE),(IF(Personalize!$E$34=3,VLOOKUP($B33,'ADP-Rank'!$A$2:$O$600,12,FALSE),""))))) -> 39 | AC33: =IF(ISBLANK(A33),0,1) -> 0 | AD33: =IF(K33="",0,1) -> 1 | AE33: =A33 -> 0 | AF33: =IF(C33="C",1,IF(C33="1B",2,IF(C33="2B",3,IF(C33="3B",4,IF(C33="SS",5,IF(C33="CI",6,IF(C33="MI",7,IF(C33="OF",11,IF(C33="LF",8,IF(C33="CF",9,IF(C33="RF",10,IF(C33="DH",12,IF(C33="SP",13,IF(C33="RP",14,IF(C33="P",15,16))))))))))))))) -> 11 | AG33: =VLOOKUP(B33,'Starter Calc'!$B$2:$BN$600,65,FALSE) -> Bench
B34: Cole Hamels | C34: =IFERROR(IF(VLOOKUP(B34,'ADP-Rank'!$A$2:$B$600,2,FALSE)="OF",VLOOKUP(B34,'Starter Calc'!$B$2:$AM$600,38,FALSE),(VLOOKUP(B34,'ADP-Rank'!$A$2:$B$600,2,FALSE))),"") -> SP | D34: =IFERROR(IF(VLOOKUP(B34,'Starter Calc'!$B$2:$E$600,4,FALSE)="","",VLOOKUP(B34,'Starter Calc'!$B$2:$E$600,4,FALSE)),"") ->  | E34: =IFERROR(VLOOKUP($B34,'ADP-Rank'!$A$2:$D$600,3,FALSE),"") -> PHI | F34: =IFERROR(VLOOKUP($B34,'ADP-Rank'!$A$2:$W$600,23,FALSE),"") -> 29 | G34: =IFERROR((IF(Personalize!$E$38=1,VLOOKUP($B34,'ADP-Rank'!$A$2:$J$599,4,FALSE),(IF(Personalize!$E$38=2,VLOOKUP($B34,'ADP-Rank'!$A$2:$J$599,7,FALSE),(IF(Personalize!$E$38=3,VLOOKUP($B34,'ADP-Rank'!$A$2:$J$599,10,FALSE),(IF(Personalize!$E$38=4,VLOOKUP($B34,'ADP-Rank'!$A$2:$AD$599,24,FALSE),(IF(Personalize!$E$38=5,VLOOKUP($B34,'ADP-Rank'!$A$2:$AD$599,27,FALSE))))))))))),"") -> 32.7025 | H34: =IFERROR((G34/(Personalize!$E$22+1))+1,"") -> 3.515576923 | I34: =IFERROR(CHOOSE(Personalize!$E$39,VLOOKUP($B34,'ADP-Rank'!$A$2:$U$600,13,FALSE),VLOOKUP($B34,'ADP-Rank'!$A$2:$U$600,14,FALSE),VLOOKUP($B34,'ADP-Rank'!$A$2:$U$600,15,FALSE),VLOOKUP($B34,'ADP-Rank'!$A$2:$U$600,16,FALSE),VLOOKUP($B34,'ADP-Rank'!$A$2:$U$600,17,FALSE),VLOOKUP($B34,'ADP-Rank'!$A$2:$U$600,18,FALSE),VLOOKUP($B34,'ADP-Rank'!$A$2:$U$600,19,FALSE),VLOOKUP($B34,'ADP-Rank'!$A$2:$U$600,20,FALSE)),"") -> 42.42857143 | J34: =IFERROR(RANK($M34,$M$4:$M$600,0),"") -> 29 | K34: =IFERROR(IF((OR($C34="RP",$C34="SP")),VLOOKUP($B34,Pitcher!$A$1:$Z$600,20,FALSE),(VLOOKUP($B34,Hitter!$A$1:$Z$600,26,FALSE))),"") -> 387.3636153 | L34: =IFERROR(IF((OR($C34="RP",$C34="SP")),VLOOKUP($C34,'Filtered-P'!$M$3:$P$4,4,FALSE), VLOOKUP($C34,Filtered!$Q$3:$T$14,4,FALSE)),"") -> 331.9275286 | M34: =IFERROR(K34-L34,"") -> 55.4360867 | N34: =IFERROR(IF((OR($C34="RP",$C34="SP")),VLOOKUP($B34,Pitcher!$A$1:$V$600,2,FALSE),""),"") -> 12.90040682 | O34: =IFERROR(IF((OR($C34="RP",$C34="SP")),VLOOKUP($B34,Pitcher!$A$1:$V$600,9,FALSE),""),"") -> 0 | P34: =IFERROR(IF((OR($C34="RP",$C34="SP")),VLOOKUP($B34,Pitcher!$A$1:$V$600,7,FALSE),""),"") -> 180.9946829 | Q34: =IFERROR(IF((OR($C34="RP",$C34="SP")),VLOOKUP($B34,Pitcher!$A$1:$AB$600,21,FALSE),""),"") -> 3.332980369 | R34: =IFERROR(IF((OR($C34="RP",$C34="SP")),VLOOKUP($B34,Pitcher!$A$1:$V$600,22,FALSE),""),"") -> 1.134115553 | S34: =IFERROR(IF((OR($C34="RP",$C34="SP")),"",VLOOKUP($B34,Hitter!$A$1:$AH$600,27,FALSE)),"") ->  | T34: =IFERROR(IF((OR($C34="RP",$C34="SP")),"",VLOOKUP($B34,Hitter!$A$1:$AH$600,9,FALSE)),"") ->  | U34: =IFERROR(IF((OR($C34="RP",$C34="SP")),"",VLOOKUP($B34,Hitter!$A$1:$AH$600,10,FALSE)),"") ->  | V34: =IFERROR(IF((OR($C34="RP",$C34="SP")),"",VLOOKUP($B34,Hitter!$A$1:$AH$600,4,FALSE)),"") ->  | W34: =IFERROR(IF((OR($C34="RP",$C34="SP")),"",VLOOKUP($B34,Hitter!$A$1:$AH$600,11,FALSE)),"") ->  | X34: =IFERROR(IF(ISTEXT($A34),"",(1-NORMDIST((COUNTA($A$4:$A$600)),($G34),((AB34-AA34)/6),TRUE))),"") -> 0.9999999897 | Y34: =IFERROR(IF(ISTEXT($A34),"",(1-NORMDIST((COUNTA($A$4:$A$600))+(Personalize!$E$18+1),$G34,((AB34-AA34)/6),TRUE))),"") -> 0.9999997223 | Z34: =IFERROR(IF(ISTEXT($A34),"",(1-NORMDIST((COUNTA($A$4:$A$600))+((Personalize!$E$18+1)*2),$G34,((AB34-AA34)/6),TRUE))),"") -> 0.9999947386 | AA34: =IF(Personalize!$E$34=1,VLOOKUP($B34,'ADP-Rank'!$A$2:$J$600,5,FALSE),(IF(Personalize!$E$34=2,VLOOKUP($B34,'ADP-Rank'!$A$2:$J$600,8,FALSE),(IF(Personalize!$E$34=3,VLOOKUP($B34,'ADP-Rank'!$A$2:$O$600,11,FALSE),""))))) -> 18 | AB34: =IF(Personalize!$E$34=1,VLOOKUP($B34,'ADP-Rank'!$A$2:$J$600,6,FALSE),(IF(Personalize!$E$34=2,VLOOKUP($B34,'ADP-Rank'!$A$2:$J$600,9,FALSE),(IF(Personalize!$E$34=3,VLOOKUP($B34,'ADP-Rank'!$A$2:$O$600,12,FALSE),""))))) -> 53 | AC34: =IF(ISBLANK(A34),0,1) -> 0 | AD34: =IF(K34="",0,1) -> 1 | AE34: =A34 -> 0 | AF34: =IF(C34="C",1,IF(C34="1B",2,IF(C34="2B",3,IF(C34="3B",4,IF(C34="SS",5,IF(C34="CI",6,IF(C34="MI",7,IF(C34="OF",11,IF(C34="LF",8,IF(C34="CF",9,IF(C34="RF",10,IF(C34="DH",12,IF(C34="SP",13,IF(C34="RP",14,IF(C34="P",15,16))))))))))))))) -> 13 | AG34: =VLOOKUP(B34,'Starter Calc'!$B$2:$BN$600,65,FALSE) -> Bench
B35: Adrian Beltre | C35: =IFERROR(IF(VLOOKUP(B35,'ADP-Rank'!$A$2:$B$600,2,FALSE)="OF",VLOOKUP(B35,'Starter Calc'!$B$2:$AM$600,38,FALSE),(VLOOKUP(B35,'ADP-Rank'!$A$2:$B$600,2,FALSE))),"") -> 3B | D35: =IFERROR(IF(VLOOKUP(B35,'Starter Calc'!$B$2:$E$600,4,FALSE)="","",VLOOKUP(B35,'Starter Calc'!$B$2:$E$600,4,FALSE)),"") ->  | E35: =IFERROR(VLOOKUP($B35,'ADP-Rank'!$A$2:$D$600,3,FALSE),"") -> TEX | F35: =IFERROR(VLOOKUP($B35,'ADP-Rank'!$A$2:$W$600,23,FALSE),"") -> 33 | G35: =IFERROR((IF(Personalize!$E$38=1,VLOOKUP($B35,'ADP-Rank'!$A$2:$J$599,4,FALSE),(IF(Personalize!$E$38=2,VLOOKUP($B35,'ADP-Rank'!$A$2:$J$599,7,FALSE),(IF(Personalize!$E$38=3,VLOOKUP($B35,'ADP-Rank'!$A$2:$J$599,10,FALSE),(IF(Personalize!$E$38=4,VLOOKUP($B35,'ADP-Rank'!$A$2:$AD$599,24,FALSE),(IF(Personalize!$E$38=5,VLOOKUP($B35,'ADP-Rank'!$A$2:$AD$599,27,FALSE))))))))))),"") -> 34.02 | H35: =IFERROR((G35/(Personalize!$E$22+1))+1,"") -> 3.616923077 | I35: =IFERROR(CHOOSE(Personalize!$E$39,VLOOKUP($B35,'ADP-Rank'!$A$2:$U$600,13,FALSE),VLOOKUP($B35,'ADP-Rank'!$A$2:$U$600,14,FALSE),VLOOKUP($B35,'ADP-Rank'!$A$2:$U$600,15,FALSE),VLOOKUP($B35,'ADP-Rank'!$A$2:$U$600,16,FALSE),VLOOKUP($B35,'ADP-Rank'!$A$2:$U$600,17,FALSE),VLOOKUP($B35,'ADP-Rank'!$A$2:$U$600,18,FALSE),VLOOKUP($B35,'ADP-Rank'!$A$2:$U$600,19,FALSE),VLOOKUP($B35,'ADP-Rank'!$A$2:$U$600,20,FALSE)),"") -> 32.57142857 | J35: =IFERROR(RANK($M35,$M$4:$M$600,0),"") -> 41 | K35: =IFERROR(IF((OR($C35="RP",$C35="SP")),VLOOKUP($B35,Pitcher!$A$1:$Z$600,20,FALSE),(VLOOKUP($B35,Hitter!$A$1:$Z$600,26,FALSE))),"") -> 365.5354368 | L35: =IFERROR(IF((OR($C35="RP",$C35="SP")),VLOOKUP($C35,'Filtered-P'!$M$3:$P$4,4,FALSE), VLOOKUP($C35,Filtered!$Q$3:$T$14,4,FALSE)),"") -> 326.1386933 | M35: =IFERROR(K35-L35,"") -> 39.39674347 | N35: =IFERROR(IF((OR($C35="RP",$C35="SP")),VLOOKUP($B35,Pitcher!$A$1:$V$600,2,FALSE),""),"") ->  | O35: =IFERROR(IF((OR($C35="RP",$C35="SP")),VLOOKUP($B35,Pitcher!$A$1:$V$600,9,FALSE),""),"") ->  | P35: =IFERROR(IF((OR($C35="RP",$C35="SP")),VLOOKUP($B35,Pitcher!$A$1:$V$600,7,FALSE),""),"") ->  | Q35: =IFERROR(IF((OR($C35="RP",$C35="SP")),VLOOKUP($B35,Pitcher!$A$1:$AB$600,21,FALSE),""),"") ->  | R35: =IFERROR(IF((OR($C35="RP",$C35="SP")),VLOOKUP($B35,Pitcher!$A$1:$V$600,22,FALSE),""),"") ->  | S35: =IFERROR(IF((OR($C35="RP",$C35="SP")),"",VLOOKUP($B35,Hitter!$A$1:$AH$600,27,FALSE)),"") -> 0.2876372642 | T35: =IFERROR(IF((OR($C35="RP",$C35="SP")),"",VLOOKUP($B35,Hitter!$A$1:$AH$600,9,FALSE)),"") -> 22.88048375 | U35: =IFERROR(IF((OR($C35="RP",$C35="SP")),"",VLOOKUP($B35,Hitter!$A$1:$AH$600,10,FALSE)),"") -> 83.56015314 | V35: =IFERROR(IF((OR($C35="RP",$C35="SP")),"",VLOOKUP($B35,Hitter!$A$1:$AH$600,4,FALSE)),"") -> 71.02718702 | W35: =IFERROR(IF((OR($C35="RP",$C35="SP")),"",VLOOKUP($B35,Hitter!$A$1:$AH$600,11,FALSE)),"") -> 3.965773327 | X35: =IFERROR(IF(ISTEXT($A35),"",(1-NORMDIST((COUNTA($A$4:$A$600)),($G35),((AB35-AA35)/6),TRUE))),"") -> 1 | Y35: =IFERROR(IF(ISTEXT($A35),"",(1-NORMDIST((COUNTA($A$4:$A$600))+(Personalize!$E$18+1),$G35,((AB35-AA35)/6),TRUE))),"") -> 1 | Z35: =IFERROR(IF(ISTEXT($A35),"",(1-NORMDIST((COUNTA($A$4:$A$600))+((Personalize!$E$18+1)*2),$G35,((AB35-AA35)/6),TRUE))),"") -> 1 | AA35: =IF(Personalize!$E$34=1,VLOOKUP($B35,'ADP-Rank'!$A$2:$J$600,5,FALSE),(IF(Personalize!$E$34=2,VLOOKUP($B35,'ADP-Rank'!$A$2:$J$600,8,FALSE),(IF(Personalize!$E$34=3,VLOOKUP($B35,'ADP-Rank'!$A$2:$O$600,11,FALSE),""))))) -> 18 | AB35: =IF(Personalize!$E$34=1,VLOOKUP($B35,'ADP-Rank'!$A$2:$J$600,6,FALSE),(IF(Personalize!$E$34=2,VLOOKUP($B35,'ADP-Rank'!$A$2:$J$600,9,FALSE),(IF(Personalize!$E$34=3,VLOOKUP($B35,'ADP-Rank'!$A$2:$O$600,12,FALSE),""))))) -> 42 | AC35: =IF(ISBLANK(A35),0,1) -> 0 | AD35: =IF(K35="",0,1) -> 1 | AE35: =A35 -> 0 | AF35: =IF(C35="C",1,IF(C35="1B",2,IF(C35="2B",3,IF(C35="3B",4,IF(C35="SS",5,IF(C35="CI",6,IF(C35="MI",7,IF(C35="OF",11,IF(C35="LF",8,IF(C35="CF",9,IF(C35="RF",10,IF(C35="DH",12,IF(C35="SP",13,IF(C35="RP",14,IF(C35="P",15,16))))))))))))))) -> 4 | AG35: =VLOOKUP(B35,'Starter Calc'!$B$2:$BN$600,65,FALSE) -> Bench
B36: David Wright | C36: =IFERROR(IF(VLOOKUP(B36,'ADP-Rank'!$A$2:$B$600,2,FALSE)="OF",VLOOKUP(B36,'Starter Calc'!$B$2:$AM$600,38,FALSE),(VLOOKUP(B36,'ADP-Rank'!$A$2:$B$600,2,FALSE))),"") -> 3B | D36: =IFERROR(IF(VLOOKUP(B36,'Starter Calc'!$B$2:$E$600,4,FALSE)="","",VLOOKUP(B36,'Starter Calc'!$B$2:$E$600,4,FALSE)),"") ->  | E36: =IFERROR(VLOOKUP($B36,'ADP-Rank'!$A$2:$D$600,3,FALSE),"") -> NYM | F36: =IFERROR(VLOOKUP($B36,'ADP-Rank'!$A$2:$W$600,23,FALSE),"") -> 30 | G36: =IFERROR((IF(Personalize!$E$38=1,VLOOKUP($B36,'ADP-Rank'!$A$2:$J$599,4,FALSE),(IF(Personalize!$E$38=2,VLOOKUP($B36,'ADP-Rank'!$A$2:$J$599,7,FALSE),(IF(Personalize!$E$38=3,VLOOKUP($B36,'ADP-Rank'!$A$2:$J$599,10,FALSE),(IF(Personalize!$E$38=4,VLOOKUP($B36,'ADP-Rank'!$A$2:$AD$599,24,FALSE),(IF(Personalize!$E$38=5,VLOOKUP($B36,'ADP-Rank'!$A$2:$AD$599,27,FALSE))))))))))),"") -> 35.595 | H36: =IFERROR((G36/(Personalize!$E$22+1))+1,"") -> 3.738076923 | I36: =IFERROR(CHOOSE(Personalize!$E$39,VLOOKUP($B36,'ADP-Rank'!$A$2:$U$600,13,FALSE),VLOOKUP($B36,'ADP-Rank'!$A$2:$U$600,14,FALSE),VLOOKUP($B36,'ADP-Rank'!$A$2:$U$600,15,FALSE),VLOOKUP($B36,'ADP-Rank'!$A$2:$U$600,16,FALSE),VLOOKUP($B36,'ADP-Rank'!$A$2:$U$600,17,FALSE),VLOOKUP($B36,'ADP-Rank'!$A$2:$U$600,18,FALSE),VLOOKUP($B36,'ADP-Rank'!$A$2:$U$600,19,FALSE),VLOOKUP($B36,'ADP-Rank'!$A$2:$U$600,20,FALSE)),"") -> 39.28571429 | J36: =IFERROR(RANK($M36,$M$4:$M$600,0),"") -> 94 | K36: =IFERROR(IF((OR($C36="RP",$C36="SP")),VLOOKUP($B36,Pitcher!$A$1:$Z$600,20,FALSE),(VLOOKUP($B36,Hitter!$A$1:$Z$600,26,FALSE))),"") -> 311.832029 | L36: =IFERROR(IF((OR($C36="RP",$C36="SP")),VLOOKUP($C36,'Filtered-P'!$M$3:$P$4,4,FALSE), VLOOKUP($C36,Filtered!$Q$3:$T$14,4,FALSE)),"") -> 326.1386933 | M36: =IFERROR(K36-L36,"") -> -14.30666431 | N36: =IFERROR(IF((OR($C36="RP",$C36="SP")),VLOOKUP($B36,Pitcher!$A$1:$V$600,2,FALSE),""),"") ->  | O36: =IFERROR(IF((OR($C36="RP",$C36="SP")),VLOOKUP($B36,Pitcher!$A$1:$V$600,9,FALSE),""),"") ->  | P36: =IFERROR(IF((OR($C36="RP",$C36="SP")),VLOOKUP($B36,Pitcher!$A$1:$V$600,7,FALSE),""),"") ->  | Q36: =IFERROR(IF((OR($C36="RP",$C36="SP")),VLOOKUP($B36,Pitcher!$A$1:$AB$600,21,FALSE),""),"") ->  | R36: =IFERROR(IF((OR($C36="RP",$C36="SP")),VLOOKUP($B36,Pitcher!$A$1:$V$600,22,FALSE),""),"") ->  | S36: =IFERROR(IF((OR($C36="RP",$C36="SP")),"",VLOOKUP($B36,Hitter!$A$1:$AH$600,27,FALSE)),"") -> 0.2716484131 | T36: =IFERROR(IF((OR($C36="RP",$C36="SP")),"",VLOOKUP($B36,Hitter!$A$1:$AH$600,9,FALSE)),"") -> 17.39047022 | U36: =IFERROR(IF((OR($C36="RP",$C36="SP")),"",VLOOKUP($B36,Hitter!$A$1:$AH$600,10,FALSE)),"") -> 71.69983766 | V36: =IFERROR(IF((OR($C36="RP",$C36="SP")),"",VLOOKUP($B36,Hitter!$A$1:$AH$600,4,FALSE)),"") -> 71.45380085 | W36: =IFERROR(IF((OR($C36="RP",$C36="SP")),"",VLOOKUP($B36,Hitter!$A$1:$AH$600,11,FALSE)),"") -> 15.96876779 | X36: =IFERROR(IF(ISTEXT($A36),"",(1-NORMDIST((COUNTA($A$4:$A$600)),($G36),((AB36-AA36)/6),TRUE))),"") -> 1 | Y36: =IFERROR(IF(ISTEXT($A36),"",(1-NORMDIST((COUNTA($A$4:$A$600))+(Personalize!$E$18+1),$G36,((AB36-AA36)/6),TRUE))),"") -> 0.9999999991 | Z36: =IFERROR(IF(ISTEXT($A36),"",(1-NORMDIST((COUNTA($A$4:$A$600))+((Personalize!$E$18+1)*2),$G36,((AB36-AA36)/6),TRUE))),"") -> 0.9999999587 | AA36: =IF(Personalize!$E$34=1,VLOOKUP($B36,'ADP-Rank'!$A$2:$J$600,5,FALSE),(IF(Personalize!$E$34=2,VLOOKUP($B36,'ADP-Rank'!$A$2:$J$600,8,FALSE),(IF(Personalize!$E$34=3,VLOOKUP($B36,'ADP-Rank'!$A$2:$O$600,11,FALSE),""))))) -> 16 | AB36: =IF(Personalize!$E$34=1,VLOOKUP($B36,'ADP-Rank'!$A$2:$J$600,6,FALSE),(IF(Personalize!$E$34=2,VLOOKUP($B36,'ADP-Rank'!$A$2:$J$600,9,FALSE),(IF(Personalize!$E$34=3,VLOOKUP($B36,'ADP-Rank'!$A$2:$O$600,12,FALSE),""))))) -> 48 | AC36: =IF(ISBLANK(A36),0,1) -> 0 | AD36: =IF(K36="",0,1) -> 1 | AE36: =A36 -> 0 | AF36: =IF(C36="C",1,IF(C36="1B",2,IF(C36="2B",3,IF(C36="3B",4,IF(C36="SS",5,IF(C36="CI",6,IF(C36="MI",7,IF(C36="OF",11,IF(C36="LF",8,IF(C36="CF",9,IF(C36="RF",10,IF(C36="DH",12,IF(C36="SP",13,IF(C36="RP",14,IF(C36="P",15,16))))))))))))))) -> 4 | AG36: =VLOOKUP(B36,'Starter Calc'!$B$2:$BN$600,65,FALSE) -> Bench
B37: Josh Hamilton | C37: =IFERROR(IF(VLOOKUP(B37,'ADP-Rank'!$A$2:$B$600,2,FALSE)="OF",VLOOKUP(B37,'Starter Calc'!$B$2:$AM$600,38,FALSE),(VLOOKUP(B37,'ADP-Rank'!$A$2:$B$600,2,FALSE))),"") -> OF | D37: =IFERROR(IF(VLOOKUP(B37,'Starter Calc'!$B$2:$E$600,4,FALSE)="","",VLOOKUP(B37,'Starter Calc'!$B$2:$E$600,4,FALSE)),"") -> CF,LF | E37: =IFERROR(VLOOKUP($B37,'ADP-Rank'!$A$2:$D$600,3,FALSE),"") -> TEX | F37: =IFERROR(VLOOKUP($B37,'ADP-Rank'!$A$2:$W$600,23,FALSE),"") -> 31 | G37: =IFERROR((IF(Personalize!$E$38=1,VLOOKUP($B37,'ADP-Rank'!$A$2:$J$599,4,FALSE),(IF(Personalize!$E$38=2,VLOOKUP($B37,'ADP-Rank'!$A$2:$J$599,7,FALSE),(IF(Personalize!$E$38=3,VLOOKUP($B37,'ADP-Rank'!$A$2:$J$599,10,FALSE),(IF(Personalize!$E$38=4,VLOOKUP($B37,'ADP-Rank'!$A$2:$AD$599,24,FALSE),(IF(Personalize!$E$38=5,VLOOKUP($B37,'ADP-Rank'!$A$2:$AD$599,27,FALSE))))))))))),"") -> 36.705 | H37: =IFERROR((G37/(Personalize!$E$22+1))+1,"") -> 3.823461538 | I37: =IFERROR(CHOOSE(Personalize!$E$39,VLOOKUP($B37,'ADP-Rank'!$A$2:$U$600,13,FALSE),VLOOKUP($B37,'ADP-Rank'!$A$2:$U$600,14,FALSE),VLOOKUP($B37,'ADP-Rank'!$A$2:$U$600,15,FALSE),VLOOKUP($B37,'ADP-Rank'!$A$2:$U$600,16,FALSE),VLOOKUP($B37,'ADP-Rank'!$A$2:$U$600,17,FALSE),VLOOKUP($B37,'ADP-Rank'!$A$2:$U$600,18,FALSE),VLOOKUP($B37,'ADP-Rank'!$A$2:$U$600,19,FALSE),VLOOKUP($B37,'ADP-Rank'!$A$2:$U$600,20,FALSE)),"") -> 32.71428571 | J37: =IFERROR(RANK($M37,$M$4:$M$600,0),"") -> 74 | K37: =IFERROR(IF((OR($C37="RP",$C37="SP")),VLOOKUP($B37,Pitcher!$A$1:$Z$600,20,FALSE),(VLOOKUP($B37,Hitter!$A$1:$Z$600,26,FALSE))),"") -> 350.0591964 | L37: =IFERROR(IF((OR($C37="RP",$C37="SP")),VLOOKUP($C37,'Filtered-P'!$M$3:$P$4,4,FALSE), VLOOKUP($C37,Filtered!$Q$3:$T$14,4,FALSE)),"") -> 347.6626137 | M37: =IFERROR(K37-L37,"") -> 2.396582685 | N37: =IFERROR(IF((OR($C37="RP",$C37="SP")),VLOOKUP($B37,Pitcher!$A$1:$V$600,2,FALSE),""),"") ->  | O37: =IFERROR(IF((OR($C37="RP",$C37="SP")),VLOOKUP($B37,Pitcher!$A$1:$V$600,9,FALSE),""),"") ->  | P37: =IFERROR(IF((OR($C37="RP",$C37="SP")),VLOOKUP($B37,Pitcher!$A$1:$V$600,7,FALSE),""),"") ->  | Q37: =IFERROR(IF((OR($C37="RP",$C37="SP")),VLOOKUP($B37,Pitcher!$A$1:$AB$600,21,FALSE),""),"") ->  | R37: =IFERROR(IF((OR($C37="RP",$C37="SP")),VLOOKUP($B37,Pitcher!$A$1:$V$600,22,FALSE),""),"") ->  | S37: =IFERROR(IF((OR($C37="RP",$C37="SP")),"",VLOOKUP($B37,Hitter!$A$1:$AH$600,27,FALSE)),"") -> 0.297203974 | T37: =IFERROR(IF((OR($C37="RP",$C37="SP")),"",VLOOKUP($B37,Hitter!$A$1:$AH$600,9,FALSE)),"") -> 22.30611881 | U37: =IFERROR(IF((OR($C37="RP",$C37="SP")),"",VLOOKUP($B37,Hitter!$A$1:$AH$600,10,FALSE)),"") -> 83.53462163 | V37: =IFERROR(IF((OR($C37="RP",$C37="SP")),"",VLOOKUP($B37,Hitter!$A$1:$AH$600,4,FALSE)),"") -> 72.51236813 | W37: =IFERROR(IF((OR($C37="RP",$C37="SP")),"",VLOOKUP($B37,Hitter!$A$1:$AH$600,11,FALSE)),"") -> 7.322927073 | X37: =IFERROR(IF(ISTEXT($A37),"",(1-NORMDIST((COUNTA($A$4:$A$600)),($G37),((AB37-AA37)/6),TRUE))),"") -> 1 | Y37: =IFERROR(IF(ISTEXT($A37),"",(1-NORMDIST((COUNTA($A$4:$A$600))+(Personalize!$E$18+1),$G37,((AB37-AA37)/6),TRUE))),"") -> 1 | Z37: =IFERROR(IF(ISTEXT($A37),"",(1-NORMDIST((COUNTA($A$4:$A$600))+((Personalize!$E$18+1)*2),$G37,((AB37-AA37)/6),TRUE))),"") -> 1 | AA37: =IF(Personalize!$E$34=1,VLOOKUP($B37,'ADP-Rank'!$A$2:$J$600,5,FALSE),(IF(Personalize!$E$34=2,VLOOKUP($B37,'ADP-Rank'!$A$2:$J$600,8,FALSE),(IF(Personalize!$E$34=3,VLOOKUP($B37,'ADP-Rank'!$A$2:$O$600,11,FALSE),""))))) -> 17 | AB37: =IF(Personalize!$E$34=1,VLOOKUP($B37,'ADP-Rank'!$A$2:$J$600,6,FALSE),(IF(Personalize!$E$34=2,VLOOKUP($B37,'ADP-Rank'!$A$2:$J$600,9,FALSE),(IF(Personalize!$E$34=3,VLOOKUP($B37,'ADP-Rank'!$A$2:$O$600,12,FALSE),""))))) -> 44 | AC37: =IF(ISBLANK(A37),0,1) -> 0 | AD37: =IF(K37="",0,1) -> 1 | AE37: =A37 -> 0 | AF37: =IF(C37="C",1,IF(C37="1B",2,IF(C37="2B",3,IF(C37="3B",4,IF(C37="SS",5,IF(C37="CI",6,IF(C37="MI",7,IF(C37="OF",11,IF(C37="LF",8,IF(C37="CF",9,IF(C37="RF",10,IF(C37="DH",12,IF(C37="SP",13,IF(C37="RP",14,IF(C37="P",15,16))))))))))))))) -> 11 | AG37: =VLOOKUP(B37,'Starter Calc'!$B$2:$BN$600,65,FALSE) -> Bench
B38: Matt Holliday | C38: =IFERROR(IF(VLOOKUP(B38,'ADP-Rank'!$A$2:$B$600,2,FALSE)="OF",VLOOKUP(B38,'Starter Calc'!$B$2:$AM$600,38,FALSE),(VLOOKUP(B38,'ADP-Rank'!$A$2:$B$600,2,FALSE))),"") -> OF | D38: =IFERROR(IF(VLOOKUP(B38,'Starter Calc'!$B$2:$E$600,4,FALSE)="","",VLOOKUP(B38,'Starter Calc'!$B$2:$E$600,4,FALSE)),"") -> LF | E38: =IFERROR(VLOOKUP($B38,'ADP-Rank'!$A$2:$D$600,3,FALSE),"") -> STL | F38: =IFERROR(VLOOKUP($B38,'ADP-Rank'!$A$2:$W$600,23,FALSE),"") -> 32 | G38: =IFERROR((IF(Personalize!$E$38=1,VLOOKUP($B38,'ADP-Rank'!$A$2:$J$599,4,FALSE),(IF(Personalize!$E$38=2,VLOOKUP($B38,'ADP-Rank'!$A$2:$J$599,7,FALSE),(IF(Personalize!$E$38=3,VLOOKUP($B38,'ADP-Rank'!$A$2:$J$599,10,FALSE),(IF(Personalize!$E$38=4,VLOOKUP($B38,'ADP-Rank'!$A$2:$AD$599,24,FALSE),(IF(Personalize!$E$38=5,VLOOKUP($B38,'ADP-Rank'!$A$2:$AD$599,27,FALSE))))))))))),"") -> 37.9225 | H38: =IFERROR((G38/(Personalize!$E$22+1))+1,"") -> 3.917115385 | I38: =IFERROR(CHOOSE(Personalize!$E$39,VLOOKUP($B38,'ADP-Rank'!$A$2:$U$600,13,FALSE),VLOOKUP($B38,'ADP-Rank'!$A$2:$U$600,14,FALSE),VLOOKUP($B38,'ADP-Rank'!$A$2:$U$600,15,FALSE),VLOOKUP($B38,'ADP-Rank'!$A$2:$U$600,16,FALSE),VLOOKUP($B38,'ADP-Rank'!$A$2:$U$600,17,FALSE),VLOOKUP($B38,'ADP-Rank'!$A$2:$U$600,18,FALSE),VLOOKUP($B38,'ADP-Rank'!$A$2:$U$600,19,FALSE),VLOOKUP($B38,'ADP-Rank'!$A$2:$U$600,20,FALSE)),"") -> 36.14285714 | J38: =IFERROR(RANK($M38,$M$4:$M$600,0),"") -> 40 | K38: =IFERROR(IF((OR($C38="RP",$C38="SP")),VLOOKUP($B38,Pitcher!$A$1:$Z$600,20,FALSE),(VLOOKUP($B38,Hitter!$A$1:$Z$600,26,FALSE))),"") -> 388.3353164 | L38: =IFERROR(IF((OR($C38="RP",$C38="SP")),VLOOKUP($C38,'Filtered-P'!$M$3:$P$4,4,FALSE), VLOOKUP($C38,Filtered!$Q$3:$T$14,4,FALSE)),"") -> 347.6626137 | M38: =IFERROR(K38-L38,"") -> 40.67270269 | N38: =IFERROR(IF((OR($C38="RP",$C38="SP")),VLOOKUP($B38,Pitcher!$A$1:$V$600,2,FALSE),""),"") ->  | O38: =IFERROR(IF((OR($C38="RP",$C38="SP")),VLOOKUP($B38,Pitcher!$A$1:$V$600,9,FALSE),""),"") ->  | P38: =IFERROR(IF((OR($C38="RP",$C38="SP")),VLOOKUP($B38,Pitcher!$A$1:$V$600,7,FALSE),""),"") ->  | Q38: =IFERROR(IF((OR($C38="RP",$C38="SP")),VLOOKUP($B38,Pitcher!$A$1:$AB$600,21,FALSE),""),"") ->  | R38: =IFERROR(IF((OR($C38="RP",$C38="SP")),VLOOKUP($B38,Pitcher!$A$1:$V$600,22,FALSE),""),"") ->  | S38: =IFERROR(IF((OR($C38="RP",$C38="SP")),"",VLOOKUP($B38,Hitter!$A$1:$AH$600,27,FALSE)),"") -> 0.2917079893 | T38: =IFERROR(IF((OR($C38="RP",$C38="SP")),"",VLOOKUP($B38,Hitter!$A$1:$AH$600,9,FALSE)),"") -> 21.14934796 | U38: =IFERROR(IF((OR($C38="RP",$C38="SP")),"",VLOOKUP($B38,Hitter!$A$1:$AH$600,10,FALSE)),"") -> 82.72720814 | V38: =IFERROR(IF((OR($C38="RP",$C38="SP")),"",VLOOKUP($B38,Hitter!$A$1:$AH$600,4,FALSE)),"") -> 83.01331276 | W38: =IFERROR(IF((OR($C38="RP",$C38="SP")),"",VLOOKUP($B38,Hitter!$A$1:$AH$600,11,FALSE)),"") -> 7.697400223 | X38: =IFERROR(IF(ISTEXT($A38),"",(1-NORMDIST((COUNTA($A$4:$A$600)),($G38),((AB38-AA38)/6),TRUE))),"") -> 1 | Y38: =IFERROR(IF(ISTEXT($A38),"",(1-NORMDIST((COUNTA($A$4:$A$600))+(Personalize!$E$18+1),$G38,((AB38-AA38)/6),TRUE))),"") -> 1 | Z38: =IFERROR(IF(ISTEXT($A38),"",(1-NORMDIST((COUNTA($A$4:$A$600))+((Personalize!$E$18+1)*2),$G38,((AB38-AA38)/6),TRUE))),"") -> 0.9999999997 | AA38: =IF(Personalize!$E$34=1,VLOOKUP($B38,'ADP-Rank'!$A$2:$J$600,5,FALSE),(IF(Personalize!$E$34=2,VLOOKUP($B38,'ADP-Rank'!$A$2:$J$600,8,FALSE),(IF(Personalize!$E$34=3,VLOOKUP($B38,'ADP-Rank'!$A$2:$O$600,11,FALSE),""))))) -> 25 | AB38: =IF(Personalize!$E$34=1,VLOOKUP($B38,'ADP-Rank'!$A$2:$J$600,6,FALSE),(IF(Personalize!$E$34=2,VLOOKUP($B38,'ADP-Rank'!$A$2:$J$600,9,FALSE),(IF(Personalize!$E$34=3,VLOOKUP($B38,'ADP-Rank'!$A$2:$O$600,12,FALSE),""))))) -> 55 | AC38: =IF(ISBLANK(A38),0,1) -> 0 | AD38: =IF(K38="",0,1) -> 1 | AE38: =A38 -> 0 | AF38: =IF(C38="C",1,IF(C38="1B",2,IF(C38="2B",3,IF(C38="3B",4,IF(C38="SS",5,IF(C38="CI",6,IF(C38="MI",7,IF(C38="OF",11,IF(C38="LF",8,IF(C38="CF",9,IF(C38="RF",10,IF(C38="DH",12,IF(C38="SP",13,IF(C38="RP",14,IF(C38="P",15,16))))))))))))))) -> 11 | AG38: =VLOOKUP(B38,'Starter Calc'!$B$2:$BN$600,65,FALSE) -> Bench
B39: Dan Haren | C39: =IFERROR(IF(VLOOKUP(B39,'ADP-Rank'!$A$2:$B$600,2,FALSE)="OF",VLOOKUP(B39,'Starter Calc'!$B$2:$AM$600,38,FALSE),(VLOOKUP(B39,'ADP-Rank'!$A$2:$B$600,2,FALSE))),"") -> SP | D39: =IFERROR(IF(VLOOKUP(B39,'Starter Calc'!$B$2:$E$600,4,FALSE)="","",VLOOKUP(B39,'Starter Calc'!$B$2:$E$600,4,FALSE)),"") ->  | E39: =IFERROR(VLOOKUP($B39,'ADP-Rank'!$A$2:$D$600,3,FALSE),"") -> ANA | F39: =IFERROR(VLOOKUP($B39,'ADP-Rank'!$A$2:$W$600,23,FALSE),"") -> 32 | G39: =IFERROR((IF(Personalize!$E$38=1,VLOOKUP($B39,'ADP-Rank'!$A$2:$J$599,4,FALSE),(IF(Personalize!$E$38=2,VLOOKUP($B39,'ADP-Rank'!$A$2:$J$599,7,FALSE),(IF(Personalize!$E$38=3,VLOOKUP($B39,'ADP-Rank'!$A$2:$J$599,10,FALSE),(IF(Personalize!$E$38=4,VLOOKUP($B39,'ADP-Rank'!$A$2:$AD$599,24,FALSE),(IF(Personalize!$E$38=5,VLOOKUP($B39,'ADP-Rank'!$A$2:$AD$599,27,FALSE))))))))))),"") -> 39.05 | H39: =IFERROR((G39/(Personalize!$E$22+1))+1,"") -> 4.003846154 | I39: =IFERROR(CHOOSE(Personalize!$E$39,VLOOKUP($B39,'ADP-Rank'!$A$2:$U$600,13,FALSE),VLOOKUP($B39,'ADP-Rank'!$A$2:$U$600,14,FALSE),VLOOKUP($B39,'ADP-Rank'!$A$2:$U$600,15,FALSE),VLOOKUP($B39,'ADP-Rank'!$A$2:$U$600,16,FALSE),VLOOKUP($B39,'ADP-Rank'!$A$2:$U$600,17,FALSE),VLOOKUP($B39,'ADP-Rank'!$A$2:$U$600,18,FALSE),VLOOKUP($B39,'ADP-Rank'!$A$2:$U$600,19,FALSE),VLOOKUP($B39,'ADP-Rank'!$A$2:$U$600,20,FALSE)),"") -> 47 | J39: =IFERROR(RANK($M39,$M$4:$M$600,0),"") -> 52 | K39: =IFERROR(IF((OR($C39="RP",$C39="SP")),VLOOKUP($B39,Pitcher!$A$1:$Z$600,20,FALSE),(VLOOKUP($B39,Hitter!$A$1:$Z$600,26,FALSE))),"") -> 356.5180486 | L39: =IFERROR(IF((OR($C39="RP",$C39="SP")),VLOOKUP($C39,'Filtered-P'!$M$3:$P$4,4,FALSE), VLOOKUP($C39,Filtered!$Q$3:$T$14,4,FALSE)),"") -> 331.9275286 | M39: =IFERROR(K39-L39,"") -> 24.59051998 | N39: =IFERROR(IF((OR($C39="RP",$C39="SP")),VLOOKUP($B39,Pitcher!$A$1:$V$600,2,FALSE),""),"") -> 13.67700271 | O39: =IFERROR(IF((OR($C39="RP",$C39="SP")),VLOOKUP($B39,Pitcher!$A$1:$V$600,9,FALSE),""),"") -> 0 | P39: =IFERROR(IF((OR($C39="RP",$C39="SP")),VLOOKUP($B39,Pitcher!$A$1:$V$600,7,FALSE),""),"") -> 176.5542732 | Q39: =IFERROR(IF((OR($C39="RP",$C39="SP")),VLOOKUP($B39,Pitcher!$A$1:$AB$600,21,FALSE),""),"") -> 3.545336014 | R39: =IFERROR(IF((OR($C39="RP",$C39="SP")),VLOOKUP($B39,Pitcher!$A$1:$V$600,22,FALSE),""),"") -> 1.160722042 | S39: =IFERROR(IF((OR($C39="RP",$C39="SP")),"",VLOOKUP($B39,Hitter!$A$1:$AH$600,27,FALSE)),"") ->  | T39: =IFERROR(IF((OR($C39="RP",$C39="SP")),"",VLOOKUP($B39,Hitter!$A$1:$AH$600,9,FALSE)),"") ->  | U39: =IFERROR(IF((OR($C39="RP",$C39="SP")),"",VLOOKUP($B39,Hitter!$A$1:$AH$600,10,FALSE)),"") ->  | V39: =IFERROR(IF((OR($C39="RP",$C39="SP")),"",VLOOKUP($B39,Hitter!$A$1:$AH$600,4,FALSE)),"") ->  | W39: =IFERROR(IF((OR($C39="RP",$C39="SP")),"",VLOOKUP($B39,Hitter!$A$1:$AH$600,11,FALSE)),"") ->  | X39: =IFERROR(IF(ISTEXT($A39),"",(1-NORMDIST((COUNTA($A$4:$A$600)),($G39),((AB39-AA39)/6),TRUE))),"") -> 0.9999999999 | Y39: =IFERROR(IF(ISTEXT($A39),"",(1-NORMDIST((COUNTA($A$4:$A$600))+(Personalize!$E$18+1),$G39,((AB39-AA39)/6),TRUE))),"") -> 0.9999999959 | Z39: =IFERROR(IF(ISTEXT($A39),"",(1-NORMDIST((COUNTA($A$4:$A$600))+((Personalize!$E$18+1)*2),$G39,((AB39-AA39)/6),TRUE))),"") -> 0.9999998989 | AA39: =IF(Personalize!$E$34=1,VLOOKUP($B39,'ADP-Rank'!$A$2:$J$600,5,FALSE),(IF(Personalize!$E$34=2,VLOOKUP($B39,'ADP-Rank'!$A$2:$J$600,8,FALSE),(IF(Personalize!$E$34=3,VLOOKUP($B39,'ADP-Rank'!$A$2:$O$600,11,FALSE),""))))) -> 32 | AB39: =IF(Personalize!$E$34=1,VLOOKUP($B39,'ADP-Rank'!$A$2:$J$600,6,FALSE),(IF(Personalize!$E$34=2,VLOOKUP($B39,'ADP-Rank'!$A$2:$J$600,9,FALSE),(IF(Personalize!$E$34=3,VLOOKUP($B39,'ADP-Rank'!$A$2:$O$600,12,FALSE),""))))) -> 69 | AC39: =IF(ISBLANK(A39),0,1) -> 0 | AD39: =IF(K39="",0,1) -> 1 | AE39: =A39 -> 0 | AF39: =IF(C39="C",1,IF(C39="1B",2,IF(C39="2B",3,IF(C39="3B",4,IF(C39="SS",5,IF(C39="CI",6,IF(C39="MI",7,IF(C39="OF",11,IF(C39="LF",8,IF(C39="CF",9,IF(C39="RF",10,IF(C39="DH",12,IF(C39="SP",13,IF(C39="RP",14,IF(C39="P",15,16))))))))))))))) -> 13 | AG39: =VLOOKUP(B39,'Starter Calc'!$B$2:$BN$600,65,FALSE) -> Bench
B40: Zack Greinke | C40: =IFERROR(IF(VLOOKUP(B40,'ADP-Rank'!$A$2:$B$600,2,FALSE)="OF",VLOOKUP(B40,'Starter Calc'!$B$2:$AM$600,38,FALSE),(VLOOKUP(B40,'ADP-Rank'!$A$2:$B$600,2,FALSE))),"") -> SP | D40: =IFERROR(IF(VLOOKUP(B40,'Starter Calc'!$B$2:$E$600,4,FALSE)="","",VLOOKUP(B40,'Starter Calc'!$B$2:$E$600,4,FALSE)),"") ->  | E40: =IFERROR(VLOOKUP($B40,'ADP-Rank'!$A$2:$D$600,3,FALSE),"") -> MIL | F40: =IFERROR(VLOOKUP($B40,'ADP-Rank'!$A$2:$W$600,23,FALSE),"") -> 29 | G40: =IFERROR((IF(Personalize!$E$38=1,VLOOKUP($B40,'ADP-Rank'!$A$2:$J$599,4,FALSE),(IF(Personalize!$E$38=2,VLOOKUP($B40,'ADP-Rank'!$A$2:$J$599,7,FALSE),(IF(Personalize!$E$38=3,VLOOKUP($B40,'ADP-Rank'!$A$2:$J$599,10,FALSE),(IF(Personalize!$E$38=4,VLOOKUP($B40,'ADP-Rank'!$A$2:$AD$599,24,FALSE),(IF(Personalize!$E$38=5,VLOOKUP($B40,'ADP-Rank'!$A$2:$AD$599,27,FALSE))))))))))),"") -> 42.3225 | H40: =IFERROR((G40/(Personalize!$E$22+1))+1,"") -> 4.255576923 | I40: =IFERROR(CHOOSE(Personalize!$E$39,VLOOKUP($B40,'ADP-Rank'!$A$2:$U$600,13,FALSE),VLOOKUP($B40,'ADP-Rank'!$A$2:$U$600,14,FALSE),VLOOKUP($B40,'ADP-Rank'!$A$2:$U$600,15,FALSE),VLOOKUP($B40,'ADP-Rank'!$A$2:$U$600,16,FALSE),VLOOKUP($B40,'ADP-Rank'!$A$2:$U$600,17,FALSE),VLOOKUP($B40,'ADP-Rank'!$A$2:$U$600,18,FALSE),VLOOKUP($B40,'ADP-Rank'!$A$2:$U$600,19,FALSE),VLOOKUP($B40,'ADP-Rank'!$A$2:$U$600,20,FALSE)),"") -> 44.57142857 | J40: =IFERROR(RANK($M40,$M$4:$M$600,0),"") -> 18 | K40: =IFERROR(IF((OR($C40="RP",$C40="SP")),VLOOKUP($B40,Pitcher!$A$1:$Z$600,20,FALSE),(VLOOKUP($B40,Hitter!$A$1:$Z$600,26,FALSE))),"") -> 412.3286916 | L40: =IFERROR(IF((OR($C40="RP",$C40="SP")),VLOOKUP($C40,'Filtered-P'!$M$3:$P$4,4,FALSE), VLOOKUP($C40,Filtered!$Q$3:$T$14,4,FALSE)),"") -> 331.9275286 | M40: =IFERROR(K40-L40,"") -> 80.40116299 | N40: =IFERROR(IF((OR($C40="RP",$C40="SP")),VLOOKUP($B40,Pitcher!$A$1:$V$600,2,FALSE),""),"") -> 12.72945542 | O40: =IFERROR(IF((OR($C40="RP",$C40="SP")),VLOOKUP($B40,Pitcher!$A$1:$V$600,9,FALSE),""),"") -> 0 | P40: =IFERROR(IF((OR($C40="RP",$C40="SP")),VLOOKUP($B40,Pitcher!$A$1:$V$600,7,FALSE),""),"") -> 187.1469478 | Q40: =IFERROR(IF((OR($C40="RP",$C40="SP")),VLOOKUP($B40,Pitcher!$A$1:$AB$600,21,FALSE),""),"") -> 3.222597904 | R40: =IFERROR(IF((OR($C40="RP",$C40="SP")),VLOOKUP($B40,Pitcher!$A$1:$V$600,22,FALSE),""),"") -> 1.154250916 | S40: =IFERROR(IF((OR($C40="RP",$C40="SP")),"",VLOOKUP($B40,Hitter!$A$1:$AH$600,27,FALSE)),"") ->  | T40: =IFERROR(IF((OR($C40="RP",$C40="SP")),"",VLOOKUP($B40,Hitter!$A$1:$AH$600,9,FALSE)),"") ->  | U40: =IFERROR(IF((OR($C40="RP",$C40="SP")),"",VLOOKUP($B40,Hitter!$A$1:$AH$600,10,FALSE)),"") ->  | V40: =IFERROR(IF((OR($C40="RP",$C40="SP")),"",VLOOKUP($B40,Hitter!$A$1:$AH$600,4,FALSE)),"") ->  | W40: =IFERROR(IF((OR($C40="RP",$C40="SP")),"",VLOOKUP($B40,Hitter!$A$1:$AH$600,11,FALSE)),"") ->  | X40: =IFERROR(IF(ISTEXT($A40),"",(1-NORMDIST((COUNTA($A$4:$A$600)),($G40),((AB40-AA40)/6),TRUE))),"") -> 1 | Y40: =IFERROR(IF(ISTEXT($A40),"",(1-NORMDIST((COUNTA($A$4:$A$600))+(Personalize!$E$18+1),$G40,((AB40-AA40)/6),TRUE))),"") -> 1 | Z40: =IFERROR(IF(ISTEXT($A40),"",(1-NORMDIST((COUNTA($A$4:$A$600))+((Personalize!$E$18+1)*2),$G40,((AB40-AA40)/6),TRUE))),"") -> 0.999999998 | AA40: =IF(Personalize!$E$34=1,VLOOKUP($B40,'ADP-Rank'!$A$2:$J$600,5,FALSE),(IF(Personalize!$E$34=2,VLOOKUP($B40,'ADP-Rank'!$A$2:$J$600,8,FALSE),(IF(Personalize!$E$34=3,VLOOKUP($B40,'ADP-Rank'!$A$2:$O$600,11,FALSE),""))))) -> 32 | AB40: =IF(Personalize!$E$34=1,VLOOKUP($B40,'ADP-Rank'!$A$2:$J$600,6,FALSE),(IF(Personalize!$E$34=2,VLOOKUP($B40,'ADP-Rank'!$A$2:$J$600,9,FALSE),(IF(Personalize!$E$34=3,VLOOKUP($B40,'ADP-Rank'!$A$2:$O$600,12,FALSE),""))))) -> 68 | AC40: =IF(ISBLANK(A40),0,1) -> 0 | AD40: =IF(K40="",0,1) -> 1 | AE40: =A40 -> 0 | AF40: =IF(C40="C",1,IF(C40="1B",2,IF(C40="2B",3,IF(C40="3B",4,IF(C40="SS",5,IF(C40="CI",6,IF(C40="MI",7,IF(C40="OF",11,IF(C40="LF",8,IF(C40="CF",9,IF(C40="RF",10,IF(C40="DH",12,IF(C40="SP",13,IF(C40="RP",14,IF(C40="P",15,16))))))))))))))) -> 13 | AG40: =VLOOKUP(B40,'Starter Calc'!$B$2:$BN$600,65,FALSE) -> Bench
B41: David Price | C41: =IFERROR(IF(VLOOKUP(B41,'ADP-Rank'!$A$2:$B$600,2,FALSE)="OF",VLOOKUP(B41,'Starter Calc'!$B$2:$AM$600,38,FALSE),(VLOOKUP(B41,'ADP-Rank'!$A$2:$B$600,2,FALSE))),"") -> SP | D41: =IFERROR(IF(VLOOKUP(B41,'Starter Calc'!$B$2:$E$600,4,FALSE)="","",VLOOKUP(B41,'Starter Calc'!$B$2:$E$600,4,FALSE)),"") ->  | E41: =IFERROR(VLOOKUP($B41,'ADP-Rank'!$A$2:$D$600,3,FALSE),"") -> TB | F41: =IFERROR(VLOOKUP($B41,'ADP-Rank'!$A$2:$W$600,23,FALSE),"") -> 27 | G41: =IFERROR((IF(Personalize!$E$38=1,VLOOKUP($B41,'ADP-Rank'!$A$2:$J$599,4,FALSE),(IF(Personalize!$E$38=2,VLOOKUP($B41,'ADP-Rank'!$A$2:$J$599,7,FALSE),(IF(Personalize!$E$38=3,VLOOKUP($B41,'ADP-Rank'!$A$2:$J$599,10,FALSE),(IF(Personalize!$E$38=4,VLOOKUP($B41,'ADP-Rank'!$A$2:$AD$599,24,FALSE),(IF(Personalize!$E$38=5,VLOOKUP($B41,'ADP-Rank'!$A$2:$AD$599,27,FALSE))))))))))),"") -> 42.685 | H41: =IFERROR((G41/(Personalize!$E$22+1))+1,"") -> 4.283461538 | I41: =IFERROR(CHOOSE(Personalize!$E$39,VLOOKUP($B41,'ADP-Rank'!$A$2:$U$600,13,FALSE),VLOOKUP($B41,'ADP-Rank'!$A$2:$U$600,14,FALSE),VLOOKUP($B41,'ADP-Rank'!$A$2:$U$600,15,FALSE),VLOOKUP($B41,'ADP-Rank'!$A$2:$U$600,16,FALSE),VLOOKUP($B41,'ADP-Rank'!$A$2:$U$600,17,FALSE),VLOOKUP($B41,'ADP-Rank'!$A$2:$U$600,18,FALSE),VLOOKUP($B41,'ADP-Rank'!$A$2:$U$600,19,FALSE),VLOOKUP($B41,'ADP-Rank'!$A$2:$U$600,20,FALSE)),"") -> 55 | J41: =IFERROR(RANK($M41,$M$4:$M$600,0),"") -> 39 | K41: =IFERROR(IF((OR($C41="RP",$C41="SP")),VLOOKUP($B41,Pitcher!$A$1:$Z$600,20,FALSE),(VLOOKUP($B41,Hitter!$A$1:$Z$600,26,FALSE))),"") -> 372.7399093 | L41: =IFERROR(IF((OR($C41="RP",$C41="SP")),VLOOKUP($C41,'Filtered-P'!$M$3:$P$4,4,FALSE), VLOOKUP($C41,Filtered!$Q$3:$T$14,4,FALSE)),"") -> 331.9275286 | M41: =IFERROR(K41-L41,"") -> 40.81238065 | N41: =IFERROR(IF((OR($C41="RP",$C41="SP")),VLOOKUP($B41,Pitcher!$A$1:$V$600,2,FALSE),""),"") -> 13.4986804 | O41: =IFERROR(IF((OR($C41="RP",$C41="SP")),VLOOKUP($B41,Pitcher!$A$1:$V$600,9,FALSE),""),"") -> 0 | P41: =IFERROR(IF((OR($C41="RP",$C41="SP")),VLOOKUP($B41,Pitcher!$A$1:$V$600,7,FALSE),""),"") -> 182.3438041 | Q41: =IFERROR(IF((OR($C41="RP",$C41="SP")),VLOOKUP($B41,Pitcher!$A$1:$AB$600,21,FALSE),""),"") -> 3.458529135 | R41: =IFERROR(IF((OR($C41="RP",$C41="SP")),VLOOKUP($B41,Pitcher!$A$1:$V$600,22,FALSE),""),"") -> 1.217460338 | S41: =IFERROR(IF((OR($C41="RP",$C41="SP")),"",VLOOKUP($B41,Hitter!$A$1:$AH$600,27,FALSE)),"") ->  | T41: =IFERROR(IF((OR($C41="RP",$C41="SP")),"",VLOOKUP($B41,Hitter!$A$1:$AH$600,9,FALSE)),"") ->  | U41: =IFERROR(IF((OR($C41="RP",$C41="SP")),"",VLOOKUP($B41,Hitter!$A$1:$AH$600,10,FALSE)),"") ->  | V41: =IFERROR(IF((OR($C41="RP",$C41="SP")),"",VLOOKUP($B41,Hitter!$A$1:$AH$600,4,FALSE)),"") ->  | W41: =IFERROR(IF((OR($C41="RP",$C41="SP")),"",VLOOKUP($B41,Hitter!$A$1:$AH$600,11,FALSE)),"") ->  | X41: =IFERROR(IF(ISTEXT($A41),"",(1-NORMDIST((COUNTA($A$4:$A$600)),($G41),((AB41-AA41)/6),TRUE))),"") -> 1 | Y41: =IFERROR(IF(ISTEXT($A41),"",(1-NORMDIST((COUNTA($A$4:$A$600))+(Personalize!$E$18+1),$G41,((AB41-AA41)/6),TRUE))),"") -> 1 | Z41: =IFERROR(IF(ISTEXT($A41),"",(1-NORMDIST((COUNTA($A$4:$A$600))+((Personalize!$E$18+1)*2),$G41,((AB41-AA41)/6),TRUE))),"") -> 1 | AA41: =IF(Personalize!$E$34=1,VLOOKUP($B41,'ADP-Rank'!$A$2:$J$600,5,FALSE),(IF(Personalize!$E$34=2,VLOOKUP($B41,'ADP-Rank'!$A$2:$J$600,8,FALSE),(IF(Personalize!$E$34=3,VLOOKUP($B41,'ADP-Rank'!$A$2:$O$600,11,FALSE),""))))) -> 28 | AB41: =IF(Personalize!$E$34=1,VLOOKUP($B41,'ADP-Rank'!$A$2:$J$600,6,FALSE),(IF(Personalize!$E$34=2,VLOOKUP($B41,'ADP-Rank'!$A$2:$J$600,9,FALSE),(IF(Personalize!$E$34=3,VLOOKUP($B41,'ADP-Rank'!$A$2:$O$600,12,FALSE),""))))) -> 57 | AC41: =IF(ISBLANK(A41),0,1) -> 0 | AD41: =IF(K41="",0,1) -> 1 | AE41: =A41 -> 0 | AF41: =IF(C41="C",1,IF(C41="1B",2,IF(C41="2B",3,IF(C41="3B",4,IF(C41="SS",5,IF(C41="CI",6,IF(C41="MI",7,IF(C41="OF",11,IF(C41="LF",8,IF(C41="CF",9,IF(C41="RF",10,IF(C41="DH",12,IF(C41="SP",13,IF(C41="RP",14,IF(C41="P",15,16))))))))))))))) -> 13 | AG41: =VLOOKUP(B41,'Starter Calc'!$B$2:$BN$600,65,FALSE) -> Bench
B42: Carlos Santana | C42: =IFERROR(IF(VLOOKUP(B42,'ADP-Rank'!$A$2:$B$600,2,FALSE)="OF",VLOOKUP(B42,'Starter Calc'!$B$2:$AM$600,38,FALSE),(VLOOKUP(B42,'ADP-Rank'!$A$2:$B$600,2,FALSE))),"") -> C | D42: =IFERROR(IF(VLOOKUP(B42,'Starter Calc'!$B$2:$E$600,4,FALSE)="","",VLOOKUP(B42,'Starter Calc'!$B$2:$E$600,4,FALSE)),"") ->  | E42: =IFERROR(VLOOKUP($B42,'ADP-Rank'!$A$2:$D$600,3,FALSE),"") -> CLE | F42: =IFERROR(VLOOKUP($B42,'ADP-Rank'!$A$2:$W$600,23,FALSE),"") -> 26 | G42: =IFERROR((IF(Personalize!$E$38=1,VLOOKUP($B42,'ADP-Rank'!$A$2:$J$599,4,FALSE),(IF(Personalize!$E$38=2,VLOOKUP($B42,'ADP-Rank'!$A$2:$J$599,7,FALSE),(IF(Personalize!$E$38=3,VLOOKUP($B42,'ADP-Rank'!$A$2:$J$599,10,FALSE),(IF(Personalize!$E$38=4,VLOOKUP($B42,'ADP-Rank'!$A$2:$AD$599,24,FALSE),(IF(Personalize!$E$38=5,VLOOKUP($B42,'ADP-Rank'!$A$2:$AD$599,27,FALSE))))))))))),"") -> 43.235 | H42: =IFERROR((G42/(Personalize!$E$22+1))+1,"") -> 4.325769231 | I42: =IFERROR(CHOOSE(Personalize!$E$39,VLOOKUP($B42,'ADP-Rank'!$A$2:$U$600,13,FALSE),VLOOKUP($B42,'ADP-Rank'!$A$2:$U$600,14,FALSE),VLOOKUP($B42,'ADP-Rank'!$A$2:$U$600,15,FALSE),VLOOKUP($B42,'ADP-Rank'!$A$2:$U$600,16,FALSE),VLOOKUP($B42,'ADP-Rank'!$A$2:$U$600,17,FALSE),VLOOKUP($B42,'ADP-Rank'!$A$2:$U$600,18,FALSE),VLOOKUP($B42,'ADP-Rank'!$A$2:$U$600,19,FALSE),VLOOKUP($B42,'ADP-Rank'!$A$2:$U$600,20,FALSE)),"") -> 42.42857143 | J42: =IFERROR(RANK($M42,$M$4:$M$600,0),"") -> 24 | K42: =IFERROR(IF((OR($C42="RP",$C42="SP")),VLOOKUP($B42,Pitcher!$A$1:$Z$600,20,FALSE),(VLOOKUP($B42,Hitter!$A$1:$Z$600,26,FALSE))),"") -> 353.8084789 | L42: =IFERROR(IF((OR($C42="RP",$C42="SP")),VLOOKUP($C42,'Filtered-P'!$M$3:$P$4,4,FALSE), VLOOKUP($C42,Filtered!$Q$3:$T$14,4,FALSE)),"") -> 287.5109171 | M42: =IFERROR(K42-L42,"") -> 66.29756185 | N42: =IFERROR(IF((OR($C42="RP",$C42="SP")),VLOOKUP($B42,Pitcher!$A$1:$V$600,2,FALSE),""),"") ->  | O42: =IFERROR(IF((OR($C42="RP",$C42="SP")),VLOOKUP($B42,Pitcher!$A$1:$V$600,9,FALSE),""),"") ->  | P42: =IFERROR(IF((OR($C42="RP",$C42="SP")),VLOOKUP($B42,Pitcher!$A$1:$V$600,7,FALSE),""),"") ->  | Q42: =IFERROR(IF((OR($C42="RP",$C42="SP")),VLOOKUP($B42,Pitcher!$A$1:$AB$600,21,FALSE),""),"") ->  | R42: =IFERROR(IF((OR($C42="RP",$C42="SP")),VLOOKUP($B42,Pitcher!$A$1:$V$600,22,FALSE),""),"") ->  | S42: =IFERROR(IF((OR($C42="RP",$C42="SP")),"",VLOOKUP($B42,Hitter!$A$1:$AH$600,27,FALSE)),"") -> 0.2494456043 | T42: =IFERROR(IF((OR($C42="RP",$C42="SP")),"",VLOOKUP($B42,Hitter!$A$1:$AH$600,9,FALSE)),"") -> 21.97667385 | U42: =IFERROR(IF((OR($C42="RP",$C42="SP")),"",VLOOKUP($B42,Hitter!$A$1:$AH$600,10,FALSE)),"") -> 74.66550023 | V42: =IFERROR(IF((OR($C42="RP",$C42="SP")),"",VLOOKUP($B42,Hitter!$A$1:$AH$600,4,FALSE)),"") -> 75.79136527 | W42: =IFERROR(IF((OR($C42="RP",$C42="SP")),"",VLOOKUP($B42,Hitter!$A$1:$AH$600,11,FALSE)),"") -> 5.644762334 | X42: =IFERROR(IF(ISTEXT($A42),"",(1-NORMDIST((COUNTA($A$4:$A$600)),($G42),((AB42-AA42)/6),TRUE))),"") -> 1 | Y42: =IFERROR(IF(ISTEXT($A42),"",(1-NORMDIST((COUNTA($A$4:$A$600))+(Personalize!$E$18+1),$G42,((AB42-AA42)/6),TRUE))),"") -> 0.9999999999 | Z42: =IFERROR(IF(ISTEXT($A42),"",(1-NORMDIST((COUNTA($A$4:$A$600))+((Personalize!$E$18+1)*2),$G42,((AB42-AA42)/6),TRUE))),"") -> 0.9999999979 | AA42: =IF(Personalize!$E$34=1,VLOOKUP($B42,'ADP-Rank'!$A$2:$J$600,5,FALSE),(IF(Personalize!$E$34=2,VLOOKUP($B42,'ADP-Rank'!$A$2:$J$600,8,FALSE),(IF(Personalize!$E$34=3,VLOOKUP($B42,'ADP-Rank'!$A$2:$O$600,11,FALSE),""))))) -> 16 | AB42: =IF(Personalize!$E$34=1,VLOOKUP($B42,'ADP-Rank'!$A$2:$J$600,6,FALSE),(IF(Personalize!$E$34=2,VLOOKUP($B42,'ADP-Rank'!$A$2:$J$600,9,FALSE),(IF(Personalize!$E$34=3,VLOOKUP($B42,'ADP-Rank'!$A$2:$O$600,12,FALSE),""))))) -> 53 | AC42: =IF(ISBLANK(A42),0,1) -> 0 | AD42: =IF(K42="",0,1) -> 1 | AE42: =A42 -> 0 | AF42: =IF(C42="C",1,IF(C42="1B",2,IF(C42="2B",3,IF(C42="3B",4,IF(C42="SS",5,IF(C42="CI",6,IF(C42="MI",7,IF(C42="OF",11,IF(C42="LF",8,IF(C42="CF",9,IF(C42="RF",10,IF(C42="DH",12,IF(C42="SP",13,IF(C42="RP",14,IF(C42="P",15,16))))))))))))))) -> 1 | AG42: =VLOOKUP(B42,'Starter Calc'!$B$2:$BN$600,65,FALSE) -> Bench
B43: Ryan Zimmerman | C43: =IFERROR(IF(VLOOKUP(B43,'ADP-Rank'!$A$2:$B$600,2,FALSE)="OF",VLOOKUP(B43,'Starter Calc'!$B$2:$AM$600,38,FALSE),(VLOOKUP(B43,'ADP-Rank'!$A$2:$B$600,2,FALSE))),"") -> 3B | D43: =IFERROR(IF(VLOOKUP(B43,'Starter Calc'!$B$2:$E$600,4,FALSE)="","",VLOOKUP(B43,'Starter Calc'!$B$2:$E$600,4,FALSE)),"") ->  | E43: =IFERROR(VLOOKUP($B43,'ADP-Rank'!$A$2:$D$600,3,FALSE),"") -> WAS | F43: =IFERROR(VLOOKUP($B43,'ADP-Rank'!$A$2:$W$600,23,FALSE),"") -> 28 | G43: =IFERROR((IF(Personalize!$E$38=1,VLOOKUP($B43,'ADP-Rank'!$A$2:$J$599,4,FALSE),(IF(Personalize!$E$38=2,VLOOKUP($B43,'ADP-Rank'!$A$2:$J$599,7,FALSE),(IF(Personalize!$E$38=3,VLOOKUP($B43,'ADP-Rank'!$A$2:$J$599,10,FALSE),(IF(Personalize!$E$38=4,VLOOKUP($B43,'ADP-Rank'!$A$2:$AD$599,24,FALSE),(IF(Personalize!$E$38=5,VLOOKUP($B43,'ADP-Rank'!$A$2:$AD$599,27,FALSE))))))))))),"") -> 45.3475 | H43: =IFERROR((G43/(Personalize!$E$22+1))+1,"") -> 4.488269231 | I43: =IFERROR(CHOOSE(Personalize!$E$39,VLOOKUP($B43,'ADP-Rank'!$A$2:$U$600,13,FALSE),VLOOKUP($B43,'ADP-Rank'!$A$2:$U$600,14,FALSE),VLOOKUP($B43,'ADP-Rank'!$A$2:$U$600,15,FALSE),VLOOKUP($B43,'ADP-Rank'!$A$2:$U$600,16,FALSE),VLOOKUP($B43,'ADP-Rank'!$A$2:$U$600,17,FALSE),VLOOKUP($B43,'ADP-Rank'!$A$2:$U$600,18,FALSE),VLOOKUP($B43,'ADP-Rank'!$A$2:$U$600,19,FALSE),VLOOKUP($B43,'ADP-Rank'!$A$2:$U$600,20,FALSE)),"") -> 53 | J43: =IFERROR(RANK($M43,$M$4:$M$600,0),"") -> 67 | K43: =IFERROR(IF((OR($C43="RP",$C43="SP")),VLOOKUP($B43,Pitcher!$A$1:$Z$600,20,FALSE),(VLOOKUP($B43,Hitter!$A$1:$Z$600,26,FALSE))),"") -> 334.9373589 | L43: =IFERROR(IF((OR($C43="RP",$C43="SP")),VLOOKUP($C43,'Filtered-P'!$M$3:$P$4,4,FALSE), VLOOKUP($C43,Filtered!$Q$3:$T$14,4,FALSE)),"") -> 326.1386933 | M43: =IFERROR(K43-L43,"") -> 8.798665541 | N43: =IFERROR(IF((OR($C43="RP",$C43="SP")),VLOOKUP($B43,Pitcher!$A$1:$V$600,2,FALSE),""),"") ->  | O43: =IFERROR(IF((OR($C43="RP",$C43="SP")),VLOOKUP($B43,Pitcher!$A$1:$V$600,9,FALSE),""),"") ->  | P43: =IFERROR(IF((OR($C43="RP",$C43="SP")),VLOOKUP($B43,Pitcher!$A$1:$V$600,7,FALSE),""),"") ->  | Q43: =IFERROR(IF((OR($C43="RP",$C43="SP")),VLOOKUP($B43,Pitcher!$A$1:$AB$600,21,FALSE),""),"") ->  | R43: =IFERROR(IF((OR($C43="RP",$C43="SP")),VLOOKUP($B43,Pitcher!$A$1:$V$600,22,FALSE),""),"") ->  | S43: =IFERROR(IF((OR($C43="RP",$C43="SP")),"",VLOOKUP($B43,Hitter!$A$1:$AH$600,27,FALSE)),"") -> 0.2837792547 | T43: =IFERROR(IF((OR($C43="RP",$C43="SP")),"",VLOOKUP($B43,Hitter!$A$1:$AH$600,9,FALSE)),"") -> 19.74061435 | U43: =IFERROR(IF((OR($C43="RP",$C43="SP")),"",VLOOKUP($B43,Hitter!$A$1:$AH$600,10,FALSE)),"") -> 70.22553601 | V43: =IFERROR(IF((OR($C43="RP",$C43="SP")),"",VLOOKUP($B43,Hitter!$A$1:$AH$600,4,FALSE)),"") -> 71.46893709 | W43: =IFERROR(IF((OR($C43="RP",$C43="SP")),"",VLOOKUP($B43,Hitter!$A$1:$AH$600,11,FALSE)),"") -> 3.222172192 | X43: =IFERROR(IF(ISTEXT($A43),"",(1-NORMDIST((COUNTA($A$4:$A$600)),($G43),((AB43-AA43)/6),TRUE))),"") -> 1 | Y43: =IFERROR(IF(ISTEXT($A43),"",(1-NORMDIST((COUNTA($A$4:$A$600))+(Personalize!$E$18+1),$G43,((AB43-AA43)/6),TRUE))),"") -> 1 | Z43: =IFERROR(IF(ISTEXT($A43),"",(1-NORMDIST((COUNTA($A$4:$A$600))+((Personalize!$E$18+1)*2),$G43,((AB43-AA43)/6),TRUE))),"") -> 1 | AA43: =IF(Personalize!$E$34=1,VLOOKUP($B43,'ADP-Rank'!$A$2:$J$600,5,FALSE),(IF(Personalize!$E$34=2,VLOOKUP($B43,'ADP-Rank'!$A$2:$J$600,8,FALSE),(IF(Personalize!$E$34=3,VLOOKUP($B43,'ADP-Rank'!$A$2:$O$600,11,FALSE),""))))) -> 25 | AB43: =IF(Personalize!$E$34=1,VLOOKUP($B43,'ADP-Rank'!$A$2:$J$600,6,FALSE),(IF(Personalize!$E$34=2,VLOOKUP($B43,'ADP-Rank'!$A$2:$J$600,9,FALSE),(IF(Personalize!$E$34=3,VLOOKUP($B43,'ADP-Rank'!$A$2:$O$600,12,FALSE),""))))) -> 59 | AC43: =IF(ISBLANK(A43),0,1) -> 0 | AD43: =IF(K43="",0,1) -> 1 | AE43: =A43 -> 0 | AF43: =IF(C43="C",1,IF(C43="1B",2,IF(C43="2B",3,IF(C43="3B",4,IF(C43="SS",5,IF(C43="CI",6,IF(C43="MI",7,IF(C43="OF",11,IF(C43="LF",8,IF(C43="CF",9,IF(C43="RF",10,IF(C43="DH",12,IF(C43="SP",13,IF(C43="RP",14,IF(C43="P",15,16))))))))))))))) -> 4 | AG43: =VLOOKUP(B43,'Starter Calc'!$B$2:$BN$600,65,FALSE) -> Bench
B44: Starlin Castro | C44: =IFERROR(IF(VLOOKUP(B44,'ADP-Rank'!$A$2:$B$600,2,FALSE)="OF",VLOOKUP(B44,'Starter Calc'!$B$2:$AM$600,38,FALSE),(VLOOKUP(B44,'ADP-Rank'!$A$2:$B$600,2,FALSE))),"") -> SS | D44: =IFERROR(IF(VLOOKUP(B44,'Starter Calc'!$B$2:$E$600,4,FALSE)="","",VLOOKUP(B44,'Starter Calc'!$B$2:$E$600,4,FALSE)),"") ->  | E44: =IFERROR(VLOOKUP($B44,'ADP-Rank'!$A$2:$D$600,3,FALSE),"") -> CHC | F44: =IFERROR(VLOOKUP($B44,'ADP-Rank'!$A$2:$W$600,23,FALSE),"") -> 22 | G44: =IFERROR((IF(Personalize!$E$38=1,VLOOKUP($B44,'ADP-Rank'!$A$2:$J$599,4,FALSE),(IF(Personalize!$E$38=2,VLOOKUP($B44,'ADP-Rank'!$A$2:$J$599,7,FALSE),(IF(Personalize!$E$38=3,VLOOKUP($B44,'ADP-Rank'!$A$2:$J$599,10,FALSE),(IF(Personalize!$E$38=4,VLOOKUP($B44,'ADP-Rank'!$A$2:$AD$599,24,FALSE),(IF(Personalize!$E$38=5,VLOOKUP($B44,'ADP-Rank'!$A$2:$AD$599,27,FALSE))))))))))),"") -> 49.865 | H44: =IFERROR((G44/(Personalize!$E$22+1))+1,"") -> 4.835769231 | I44: =IFERROR(CHOOSE(Personalize!$E$39,VLOOKUP($B44,'ADP-Rank'!$A$2:$U$600,13,FALSE),VLOOKUP($B44,'ADP-Rank'!$A$2:$U$600,14,FALSE),VLOOKUP($B44,'ADP-Rank'!$A$2:$U$600,15,FALSE),VLOOKUP($B44,'ADP-Rank'!$A$2:$U$600,16,FALSE),VLOOKUP($B44,'ADP-Rank'!$A$2:$U$600,17,FALSE),VLOOKUP($B44,'ADP-Rank'!$A$2:$U$600,18,FALSE),VLOOKUP($B44,'ADP-Rank'!$A$2:$U$600,19,FALSE),VLOOKUP($B44,'ADP-Rank'!$A$2:$U$600,20,FALSE)),"") -> 46.57142857 | J44: =IFERROR(RANK($M44,$M$4:$M$600,0),"") -> 55 | K44: =IFERROR(IF((OR($C44="RP",$C44="SP")),VLOOKUP($B44,Pitcher!$A$1:$Z$600,20,FALSE),(VLOOKUP($B44,Hitter!$A$1:$Z$600,26,FALSE))),"") -> 361.9748072 | L44: =IFERROR(IF((OR($C44="RP",$C44="SP")),VLOOKUP($C44,'Filtered-P'!$M$3:$P$4,4,FALSE), VLOOKUP($C44,Filtered!$Q$3:$T$14,4,FALSE)),"") -> 341.4045566 | M44: =IFERROR(K44-L44,"") -> 20.57025063 | N44: =IFERROR(IF((OR($C44="RP",$C44="SP")),VLOOKUP($B44,Pitcher!$A$1:$V$600,2,FALSE),""),"") ->  | O44: =IFERROR(IF((OR($C44="RP",$C44="SP")),VLOOKUP($B44,Pitcher!$A$1:$V$600,9,FALSE),""),"") ->  | P44: =IFERROR(IF((OR($C44="RP",$C44="SP")),VLOOKUP($B44,Pitcher!$A$1:$V$600,7,FALSE),""),"") ->  | Q44: =IFERROR(IF((OR($C44="RP",$C44="SP")),VLOOKUP($B44,Pitcher!$A$1:$AB$600,21,FALSE),""),"") ->  | R44: =IFERROR(IF((OR($C44="RP",$C44="SP")),VLOOKUP($B44,Pitcher!$A$1:$V$600,22,FALSE),""),"") ->  | S44: =IFERROR(IF((OR($C44="RP",$C44="SP")),"",VLOOKUP($B44,Hitter!$A$1:$AH$600,27,FALSE)),"") -> 0.2992101699 | T44: =IFERROR(IF((OR($C44="RP",$C44="SP")),"",VLOOKUP($B44,Hitter!$A$1:$AH$600,9,FALSE)),"") -> 9.038153966 | U44: =IFERROR(IF((OR($C44="RP",$C44="SP")),"",VLOOKUP($B44,Hitter!$A$1:$AH$600,10,FALSE)),"") -> 60.42762517 | V44: =IFERROR(IF((OR($C44="RP",$C44="SP")),"",VLOOKUP($B44,Hitter!$A$1:$AH$600,4,FALSE)),"") -> 78.96470683 | W44: =IFERROR(IF((OR($C44="RP",$C44="SP")),"",VLOOKUP($B44,Hitter!$A$1:$AH$600,11,FALSE)),"") -> 18.68777634 | X44: =IFERROR(IF(ISTEXT($A44),"",(1-NORMDIST((COUNTA($A$4:$A$600)),($G44),((AB44-AA44)/6),TRUE))),"") -> 1 | Y44: =IFERROR(IF(ISTEXT($A44),"",(1-NORMDIST((COUNTA($A$4:$A$600))+(Personalize!$E$18+1),$G44,((AB44-AA44)/6),TRUE))),"") -> 1 | Z44: =IFERROR(IF(ISTEXT($A44),"",(1-NORMDIST((COUNTA($A$4:$A$600))+((Personalize!$E$18+1)*2),$G44,((AB44-AA44)/6),TRUE))),"") -> 0.9999999989 | AA44: =IF(Personalize!$E$34=1,VLOOKUP($B44,'ADP-Rank'!$A$2:$J$600,5,FALSE),(IF(Personalize!$E$34=2,VLOOKUP($B44,'ADP-Rank'!$A$2:$J$600,8,FALSE),(IF(Personalize!$E$34=3,VLOOKUP($B44,'ADP-Rank'!$A$2:$O$600,11,FALSE),""))))) -> 23 | AB44: =IF(Personalize!$E$34=1,VLOOKUP($B44,'ADP-Rank'!$A$2:$J$600,6,FALSE),(IF(Personalize!$E$34=2,VLOOKUP($B44,'ADP-Rank'!$A$2:$J$600,9,FALSE),(IF(Personalize!$E$34=3,VLOOKUP($B44,'ADP-Rank'!$A$2:$O$600,12,FALSE),""))))) -> 66 | AC44: =IF(ISBLANK(A44),0,1) -> 0 | AD44: =IF(K44="",0,1) -> 1 | AE44: =A44 -> 0 | AF44: =IF(C44="C",1,IF(C44="1B",2,IF(C44="2B",3,IF(C44="3B",4,IF(C44="SS",5,IF(C44="CI",6,IF(C44="MI",7,IF(C44="OF",11,IF(C44="LF",8,IF(C44="CF",9,IF(C44="RF",10,IF(C44="DH",12,IF(C44="SP",13,IF(C44="RP",14,IF(C44="P",15,16))))))))))))))) -> 5 | AG44: =VLOOKUP(B44,'Starter Calc'!$B$2:$BN$600,65,FALSE) -> Bench
B45: Hunter Pence | C45: =IFERROR(IF(VLOOKUP(B45,'ADP-Rank'!$A$2:$B$600,2,FALSE)="OF",VLOOKUP(B45,'Starter Calc'!$B$2:$AM$600,38,FALSE),(VLOOKUP(B45,'ADP-Rank'!$A$2:$B$600,2,FALSE))),"") -> OF | D45: =IFERROR(IF(VLOOKUP(B45,'Starter Calc'!$B$2:$E$600,4,FALSE)="","",VLOOKUP(B45,'Starter Calc'!$B$2:$E$600,4,FALSE)),"") -> RF | E45: =IFERROR(VLOOKUP($B45,'ADP-Rank'!$A$2:$D$600,3,FALSE),"") -> PHI | F45: =IFERROR(VLOOKUP($B45,'ADP-Rank'!$A$2:$W$600,23,FALSE),"") -> 29 | G45: =IFERROR((IF(Personalize!$E$38=1,VLOOKUP($B45,'ADP-Rank'!$A$2:$J$599,4,FALSE),(IF(Personalize!$E$38=2,VLOOKUP($B45,'ADP-Rank'!$A$2:$J$599,7,FALSE),(IF(Personalize!$E$38=3,VLOOKUP($B45,'ADP-Rank'!$A$2:$J$599,10,FALSE),(IF(Personalize!$E$38=4,VLOOKUP($B45,'ADP-Rank'!$A$2:$AD$599,24,FALSE),(IF(Personalize!$E$38=5,VLOOKUP($B45,'ADP-Rank'!$A$2:$AD$599,27,FALSE))))))))))),"") -> 50.015 | H45: =IFERROR((G45/(Personalize!$E$22+1))+1,"") -> 4.847307692 | I45: =IFERROR(CHOOSE(Personalize!$E$39,VLOOKUP($B45,'ADP-Rank'!$A$2:$U$600,13,FALSE),VLOOKUP($B45,'ADP-Rank'!$A$2:$U$600,14,FALSE),VLOOKUP($B45,'ADP-Rank'!$A$2:$U$600,15,FALSE),VLOOKUP($B45,'ADP-Rank'!$A$2:$U$600,16,FALSE),VLOOKUP($B45,'ADP-Rank'!$A$2:$U$600,17,FALSE),VLOOKUP($B45,'ADP-Rank'!$A$2:$U$600,18,FALSE),VLOOKUP($B45,'ADP-Rank'!$A$2:$U$600,19,FALSE),VLOOKUP($B45,'ADP-Rank'!$A$2:$U$600,20,FALSE)),"") -> 36.57142857 | J45: =IFERROR(RANK($M45,$M$4:$M$600,0),"") -> 51 | K45: =IFERROR(IF((OR($C45="RP",$C45="SP")),VLOOKUP($B45,Pitcher!$A$1:$Z$600,20,FALSE),(VLOOKUP($B45,Hitter!$A$1:$Z$600,26,FALSE))),"") -> 375.3645226 | L45: =IFERROR(IF((OR($C45="RP",$C45="SP")),VLOOKUP($C45,'Filtered-P'!$M$3:$P$4,4,FALSE), VLOOKUP($C45,Filtered!$Q$3:$T$14,4,FALSE)),"") -> 347.6626137 | M45: =IFERROR(K45-L45,"") -> 27.7019089 | N45: =IFERROR(IF((OR($C45="RP",$C45="SP")),VLOOKUP($B45,Pitcher!$A$1:$V$600,2,FALSE),""),"") ->  | O45: =IFERROR(IF((OR($C45="RP",$C45="SP")),VLOOKUP($B45,Pitcher!$A$1:$V$600,9,FALSE),""),"") ->  | P45: =IFERROR(IF((OR($C45="RP",$C45="SP")),VLOOKUP($B45,Pitcher!$A$1:$V$600,7,FALSE),""),"") ->  | Q45: =IFERROR(IF((OR($C45="RP",$C45="SP")),VLOOKUP($B45,Pitcher!$A$1:$AB$600,21,FALSE),""),"") ->  | R45: =IFERROR(IF((OR($C45="RP",$C45="SP")),VLOOKUP($B45,Pitcher!$A$1:$V$600,22,FALSE),""),"") ->  | S45: =IFERROR(IF((OR($C45="RP",$C45="SP")),"",VLOOKUP($B45,Hitter!$A$1:$AH$600,27,FALSE)),"") -> 0.2844253918 | T45: =IFERROR(IF((OR($C45="RP",$C45="SP")),"",VLOOKUP($B45,Hitter!$A$1:$AH$600,9,FALSE)),"") -> 21.39386327 | U45: =IFERROR(IF((OR($C45="RP",$C45="SP")),"",VLOOKUP($B45,Hitter!$A$1:$AH$600,10,FALSE)),"") -> 86.62022101 | V45: =IFERROR(IF((OR($C45="RP",$C45="SP")),"",VLOOKUP($B45,Hitter!$A$1:$AH$600,4,FALSE)),"") -> 78.93275109 | W45: =IFERROR(IF((OR($C45="RP",$C45="SP")),"",VLOOKUP($B45,Hitter!$A$1:$AH$600,11,FALSE)),"") -> 10.95565016 | X45: =IFERROR(IF(ISTEXT($A45),"",(1-NORMDIST((COUNTA($A$4:$A$600)),($G45),((AB45-AA45)/6),TRUE))),"") -> 1 | Y45: =IFERROR(IF(ISTEXT($A45),"",(1-NORMDIST((COUNTA($A$4:$A$600))+(Personalize!$E$18+1),$G45,((AB45-AA45)/6),TRUE))),"") -> 0.9999999997 | Z45: =IFERROR(IF(ISTEXT($A45),"",(1-NORMDIST((COUNTA($A$4:$A$600))+((Personalize!$E$18+1)*2),$G45,((AB45-AA45)/6),TRUE))),"") -> 0.9999999951 | AA45: =IF(Personalize!$E$34=1,VLOOKUP($B45,'ADP-Rank'!$A$2:$J$600,5,FALSE),(IF(Personalize!$E$34=2,VLOOKUP($B45,'ADP-Rank'!$A$2:$J$600,8,FALSE),(IF(Personalize!$E$34=3,VLOOKUP($B45,'ADP-Rank'!$A$2:$O$600,11,FALSE),""))))) -> 25 | AB45: =IF(Personalize!$E$34=1,VLOOKUP($B45,'ADP-Rank'!$A$2:$J$600,6,FALSE),(IF(Personalize!$E$34=2,VLOOKUP($B45,'ADP-Rank'!$A$2:$J$600,9,FALSE),(IF(Personalize!$E$34=3,VLOOKUP($B45,'ADP-Rank'!$A$2:$O$600,12,FALSE),""))))) -> 70 | AC45: =IF(ISBLANK(A45),0,1) -> 0 | AD45: =IF(K45="",0,1) -> 1 | AE45: =A45 -> 0 | AF45: =IF(C45="C",1,IF(C45="1B",2,IF(C45="2B",3,IF(C45="3B",4,IF(C45="SS",5,IF(C45="CI",6,IF(C45="MI",7,IF(C45="OF",11,IF(C45="LF",8,IF(C45="CF",9,IF(C45="RF",10,IF(C45="DH",12,IF(C45="SP",13,IF(C45="RP",14,IF(C45="P",15,16))))))))))))))) -> 11 | AG45: =VLOOKUP(B45,'Starter Calc'!$B$2:$BN$600,65,FALSE) -> Bench
B46: Jon Lester | C46: =IFERROR(IF(VLOOKUP(B46,'ADP-Rank'!$A$2:$B$600,2,FALSE)="OF",VLOOKUP(B46,'Starter Calc'!$B$2:$AM$600,38,FALSE),(VLOOKUP(B46,'ADP-Rank'!$A$2:$B$600,2,FALSE))),"") -> SP | D46: =IFERROR(IF(VLOOKUP(B46,'Starter Calc'!$B$2:$E$600,4,FALSE)="","",VLOOKUP(B46,'Starter Calc'!$B$2:$E$600,4,FALSE)),"") ->  | E46: =IFERROR(VLOOKUP($B46,'ADP-Rank'!$A$2:$D$600,3,FALSE),"") -> BOS | F46: =IFERROR(VLOOKUP($B46,'ADP-Rank'!$A$2:$W$600,23,FALSE),"") -> 29 | G46: =IFERROR((IF(Personalize!$E$38=1,VLOOKUP($B46,'ADP-Rank'!$A$2:$J$599,4,FALSE),(IF(Personalize!$E$38=2,VLOOKUP($B46,'ADP-Rank'!$A$2:$J$599,7,FALSE),(IF(Personalize!$E$38=3,VLOOKUP($B46,'ADP-Rank'!$A$2:$J$599,10,FALSE),(IF(Personalize!$E$38=4,VLOOKUP($B46,'ADP-Rank'!$A$2:$AD$599,24,FALSE),(IF(Personalize!$E$38=5,VLOOKUP($B46,'ADP-Rank'!$A$2:$AD$599,27,FALSE))))))))))),"") -> 50.6225 | H46: =IFERROR((G46/(Personalize!$E$22+1))+1,"") -> 4.894038462 | I46: =IFERROR(CHOOSE(Personalize!$E$39,VLOOKUP($B46,'ADP-Rank'!$A$2:$U$600,13,FALSE),VLOOKUP($B46,'ADP-Rank'!$A$2:$U$600,14,FALSE),VLOOKUP($B46,'ADP-Rank'!$A$2:$U$600,15,FALSE),VLOOKUP($B46,'ADP-Rank'!$A$2:$U$600,16,FALSE),VLOOKUP($B46,'ADP-Rank'!$A$2:$U$600,17,FALSE),VLOOKUP($B46,'ADP-Rank'!$A$2:$U$600,18,FALSE),VLOOKUP($B46,'ADP-Rank'!$A$2:$U$600,19,FALSE),VLOOKUP($B46,'ADP-Rank'!$A$2:$U$600,20,FALSE)),"") -> 70.28571429 | J46: =IFERROR(RANK($M46,$M$4:$M$600,0),"") -> 36 | K46: =IFERROR(IF((OR($C46="RP",$C46="SP")),VLOOKUP($B46,Pitcher!$A$1:$Z$600,20,FALSE),(VLOOKUP($B46,Hitter!$A$1:$Z$600,26,FALSE))),"") -> 377.8636921 | L46: =IFERROR(IF((OR($C46="RP",$C46="SP")),VLOOKUP($C46,'Filtered-P'!$M$3:$P$4,4,FALSE), VLOOKUP($C46,Filtered!$Q$3:$T$14,4,FALSE)),"") -> 331.9275286 | M46: =IFERROR(K46-L46,"") -> 45.9361635 | N46: =IFERROR(IF((OR($C46="RP",$C46="SP")),VLOOKUP($B46,Pitcher!$A$1:$V$600,2,FALSE),""),"") -> 14.49293619 | O46: =IFERROR(IF((OR($C46="RP",$C46="SP")),VLOOKUP($B46,Pitcher!$A$1:$V$600,9,FALSE),""),"") -> 0 | P46: =IFERROR(IF((OR($C46="RP",$C46="SP")),VLOOKUP($B46,Pitcher!$A$1:$V$600,7,FALSE),""),"") -> 185.2654191 | Q46: =IFERROR(IF((OR($C46="RP",$C46="SP")),VLOOKUP($B46,Pitcher!$A$1:$AB$600,21,FALSE),""),"") -> 3.544971597 | R46: =IFERROR(IF((OR($C46="RP",$C46="SP")),VLOOKUP($B46,Pitcher!$A$1:$V$600,22,FALSE),""),"") -> 1.278335721 | S46: =IFERROR(IF((OR($C46="RP",$C46="SP")),"",VLOOKUP($B46,Hitter!$A$1:$AH$600,27,FALSE)),"") ->  | T46: =IFERROR(IF((OR($C46="RP",$C46="SP")),"",VLOOKUP($B46,Hitter!$A$1:$AH$600,9,FALSE)),"") ->  | U46: =IFERROR(IF((OR($C46="RP",$C46="SP")),"",VLOOKUP($B46,Hitter!$A$1:$AH$600,10,FALSE)),"") ->  | V46: =IFERROR(IF((OR($C46="RP",$C46="SP")),"",VLOOKUP($B46,Hitter!$A$1:$AH$600,4,FALSE)),"") ->  | W46: =IFERROR(IF((OR($C46="RP",$C46="SP")),"",VLOOKUP($B46,Hitter!$A$1:$AH$600,11,FALSE)),"") ->  | X46: =IFERROR(IF(ISTEXT($A46),"",(1-NORMDIST((COUNTA($A$4:$A$600)),($G46),((AB46-AA46)/6),TRUE))),"") -> 1 | Y46: =IFERROR(IF(ISTEXT($A46),"",(1-NORMDIST((COUNTA($A$4:$A$600))+(Personalize!$E$18+1),$G46,((AB46-AA46)/6),TRUE))),"") -> 1 | Z46: =IFERROR(IF(ISTEXT($A46),"",(1-NORMDIST((COUNTA($A$4:$A$600))+((Personalize!$E$18+1)*2),$G46,((AB46-AA46)/6),TRUE))),"") -> 1 | AA46: =IF(Personalize!$E$34=1,VLOOKUP($B46,'ADP-Rank'!$A$2:$J$600,5,FALSE),(IF(Personalize!$E$34=2,VLOOKUP($B46,'ADP-Rank'!$A$2:$J$600,8,FALSE),(IF(Personalize!$E$34=3,VLOOKUP($B46,'ADP-Rank'!$A$2:$O$600,11,FALSE),""))))) -> 33 | AB46: =IF(Personalize!$E$34=1,VLOOKUP($B46,'ADP-Rank'!$A$2:$J$600,6,FALSE),(IF(Personalize!$E$34=2,VLOOKUP($B46,'ADP-Rank'!$A$2:$J$600,9,FALSE),(IF(Personalize!$E$34=3,VLOOKUP($B46,'ADP-Rank'!$A$2:$O$600,12,FALSE),""))))) -> 73 | AC46: =IF(ISBLANK(A46),0,1) -> 0 | AD46: =IF(K46="",0,1) -> 1 | AE46: =A46 -> 0 | AF46: =IF(C46="C",1,IF(C46="1B",2,IF(C46="2B",3,IF(C46="3B",4,IF(C46="SS",5,IF(C46="CI",6,IF(C46="MI",7,IF(C46="OF",11,IF(C46="LF",8,IF(C46="CF",9,IF(C46="RF",10,IF(C46="DH",12,IF(C46="SP",13,IF(C46="RP",14,IF(C46="P",15,16))))))))))))))) -> 13 | AG46: =VLOOKUP(B46,'Starter Calc'!$B$2:$BN$600,65,FALSE) -> Bench
B47: Nelson Cruz | C47: =IFERROR(IF(VLOOKUP(B47,'ADP-Rank'!$A$2:$B$600,2,FALSE)="OF",VLOOKUP(B47,'Starter Calc'!$B$2:$AM$600,38,FALSE),(VLOOKUP(B47,'ADP-Rank'!$A$2:$B$600,2,FALSE))),"") -> OF | D47: =IFERROR(IF(VLOOKUP(B47,'Starter Calc'!$B$2:$E$600,4,FALSE)="","",VLOOKUP(B47,'Starter Calc'!$B$2:$E$600,4,FALSE)),"") -> RF | E47: =IFERROR(VLOOKUP($B47,'ADP-Rank'!$A$2:$D$600,3,FALSE),"") -> TEX | F47: =IFERROR(VLOOKUP($B47,'ADP-Rank'!$A$2:$W$600,23,FALSE),"") -> 32 | G47: =IFERROR((IF(Personalize!$E$38=1,VLOOKUP($B47,'ADP-Rank'!$A$2:$J$599,4,FALSE),(IF(Personalize!$E$38=2,VLOOKUP($B47,'ADP-Rank'!$A$2:$J$599,7,FALSE),(IF(Personalize!$E$38=3,VLOOKUP($B47,'ADP-Rank'!$A$2:$J$599,10,FALSE),(IF(Personalize!$E$38=4,VLOOKUP($B47,'ADP-Rank'!$A$2:$AD$599,24,FALSE),(IF(Personalize!$E$38=5,VLOOKUP($B47,'ADP-Rank'!$A$2:$AD$599,27,FALSE))))))))))),"") -> 51.775 | H47: =IFERROR((G47/(Personalize!$E$22+1))+1,"") -> 4.982692308 | I47: =IFERROR(CHOOSE(Personalize!$E$39,VLOOKUP($B47,'ADP-Rank'!$A$2:$U$600,13,FALSE),VLOOKUP($B47,'ADP-Rank'!$A$2:$U$600,14,FALSE),VLOOKUP($B47,'ADP-Rank'!$A$2:$U$600,15,FALSE),VLOOKUP($B47,'ADP-Rank'!$A$2:$U$600,16,FALSE),VLOOKUP($B47,'ADP-Rank'!$A$2:$U$600,17,FALSE),VLOOKUP($B47,'ADP-Rank'!$A$2:$U$600,18,FALSE),VLOOKUP($B47,'ADP-Rank'!$A$2:$U$600,19,FALSE),VLOOKUP($B47,'ADP-Rank'!$A$2:$U$600,20,FALSE)),"") -> 53 | J47: =IFERROR(RANK($M47,$M$4:$M$600,0),"") -> 133 | K47: =IFERROR(IF((OR($C47="RP",$C47="SP")),VLOOKUP($B47,Pitcher!$A$1:$Z$600,20,FALSE),(VLOOKUP($B47,Hitter!$A$1:$Z$600,26,FALSE))),"") -> 306.6156249 | L47: =IFERROR(IF((OR($C47="RP",$C47="SP")),VLOOKUP($C47,'Filtered-P'!$M$3:$P$4,4,FALSE), VLOOKUP($C47,Filtered!$Q$3:$T$14,4,FALSE)),"") -> 347.6626137 | M47: =IFERROR(K47-L47,"") -> -41.04698882 | N47: =IFERROR(IF((OR($C47="RP",$C47="SP")),VLOOKUP($B47,Pitcher!$A$1:$V$600,2,FALSE),""),"") ->  | O47: =IFERROR(IF((OR($C47="RP",$C47="SP")),VLOOKUP($B47,Pitcher!$A$1:$V$600,9,FALSE),""),"") ->  | P47: =IFERROR(IF((OR($C47="RP",$C47="SP")),VLOOKUP($B47,Pitcher!$A$1:$V$600,7,FALSE),""),"") ->  | Q47: =IFERROR(IF((OR($C47="RP",$C47="SP")),VLOOKUP($B47,Pitcher!$A$1:$AB$600,21,FALSE),""),"") ->  | R47: =IFERROR(IF((OR($C47="RP",$C47="SP")),VLOOKUP($B47,Pitcher!$A$1:$V$600,22,FALSE),""),"") ->  | S47: =IFERROR(IF((OR($C47="RP",$C47="SP")),"",VLOOKUP($B47,Hitter!$A$1:$AH$600,27,FALSE)),"") -> 0.2718971977 | T47: =IFERROR(IF((OR($C47="RP",$C47="SP")),"",VLOOKUP($B47,Hitter!$A$1:$AH$600,9,FALSE)),"") -> 24.90011236 | U47: =IFERROR(IF((OR($C47="RP",$C47="SP")),"",VLOOKUP($B47,Hitter!$A$1:$AH$600,10,FALSE)),"") -> 74.96927259 | V47: =IFERROR(IF((OR($C47="RP",$C47="SP")),"",VLOOKUP($B47,Hitter!$A$1:$AH$600,4,FALSE)),"") -> 63.45992532 | W47: =IFERROR(IF((OR($C47="RP",$C47="SP")),"",VLOOKUP($B47,Hitter!$A$1:$AH$600,11,FALSE)),"") -> 12.18924265 | X47: =IFERROR(IF(ISTEXT($A47),"",(1-NORMDIST((COUNTA($A$4:$A$600)),($G47),((AB47-AA47)/6),TRUE))),"") -> 0.9999999994 | Y47: =IFERROR(IF(ISTEXT($A47),"",(1-NORMDIST((COUNTA($A$4:$A$600))+(Personalize!$E$18+1),$G47,((AB47-AA47)/6),TRUE))),"") -> 0.9999999932 | Z47: =IFERROR(IF(ISTEXT($A47),"",(1-NORMDIST((COUNTA($A$4:$A$600))+((Personalize!$E$18+1)*2),$G47,((AB47-AA47)/6),TRUE))),"") -> 0.9999999309 | AA47: =IF(Personalize!$E$34=1,VLOOKUP($B47,'ADP-Rank'!$A$2:$J$600,5,FALSE),(IF(Personalize!$E$34=2,VLOOKUP($B47,'ADP-Rank'!$A$2:$J$600,8,FALSE),(IF(Personalize!$E$34=3,VLOOKUP($B47,'ADP-Rank'!$A$2:$O$600,11,FALSE),""))))) -> 17 | AB47: =IF(Personalize!$E$34=1,VLOOKUP($B47,'ADP-Rank'!$A$2:$J$600,6,FALSE),(IF(Personalize!$E$34=2,VLOOKUP($B47,'ADP-Rank'!$A$2:$J$600,9,FALSE),(IF(Personalize!$E$34=3,VLOOKUP($B47,'ADP-Rank'!$A$2:$O$600,12,FALSE),""))))) -> 68 | AC47: =IF(ISBLANK(A47),0,1) -> 0 | AD47: =IF(K47="",0,1) -> 1 | AE47: =A47 -> 0 | AF47: =IF(C47="C",1,IF(C47="1B",2,IF(C47="2B",3,IF(C47="3B",4,IF(C47="SS",5,IF(C47="CI",6,IF(C47="MI",7,IF(C47="OF",11,IF(C47="LF",8,IF(C47="CF",9,IF(C47="RF",10,IF(C47="DH",12,IF(C47="SP",13,IF(C47="RP",14,IF(C47="P",15,16))))))))))))))) -> 11 | AG47: =VLOOKUP(B47,'Starter Calc'!$B$2:$BN$600,65,FALSE) -> Bench
B48: Yovani Gallardo | C48: =IFERROR(IF(VLOOKUP(B48,'ADP-Rank'!$A$2:$B$600,2,FALSE)="OF",VLOOKUP(B48,'Starter Calc'!$B$2:$AM$600,38,FALSE),(VLOOKUP(B48,'ADP-Rank'!$A$2:$B$600,2,FALSE))),"") -> SP | D48: =IFERROR(IF(VLOOKUP(B48,'Starter Calc'!$B$2:$E$600,4,FALSE)="","",VLOOKUP(B48,'Starter Calc'!$B$2:$E$600,4,FALSE)),"") ->  | E48: =IFERROR(VLOOKUP($B48,'ADP-Rank'!$A$2:$D$600,3,FALSE),"") -> MIL | F48: =IFERROR(VLOOKUP($B48,'ADP-Rank'!$A$2:$W$600,23,FALSE),"") -> 26 | G48: =IFERROR((IF(Personalize!$E$38=1,VLOOKUP($B48,'ADP-Rank'!$A$2:$J$599,4,FALSE),(IF(Personalize!$E$38=2,VLOOKUP($B48,'ADP-Rank'!$A$2:$J$599,7,FALSE),(IF(Personalize!$E$38=3,VLOOKUP($B48,'ADP-Rank'!$A$2:$J$599,10,FALSE),(IF(Personalize!$E$38=4,VLOOKUP($B48,'ADP-Rank'!$A$2:$AD$599,24,FALSE),(IF(Personalize!$E$38=5,VLOOKUP($B48,'ADP-Rank'!$A$2:$AD$599,27,FALSE))))))))))),"") -> 53.6225 | H48: =IFERROR((G48/(Personalize!$E$22+1))+1,"") -> 5.124807692 | I48: =IFERROR(CHOOSE(Personalize!$E$39,VLOOKUP($B48,'ADP-Rank'!$A$2:$U$600,13,FALSE),VLOOKUP($B48,'ADP-Rank'!$A$2:$U$600,14,FALSE),VLOOKUP($B48,'ADP-Rank'!$A$2:$U$600,15,FALSE),VLOOKUP($B48,'ADP-Rank'!$A$2:$U$600,16,FALSE),VLOOKUP($B48,'ADP-Rank'!$A$2:$U$600,17,FALSE),VLOOKUP($B48,'ADP-Rank'!$A$2:$U$600,18,FALSE),VLOOKUP($B48,'ADP-Rank'!$A$2:$U$600,19,FALSE),VLOOKUP($B48,'ADP-Rank'!$A$2:$U$600,20,FALSE)),"") -> 69.85714286 | J48: =IFERROR(RANK($M48,$M$4:$M$600,0),"") -> 28 | K48: =IFERROR(IF((OR($C48="RP",$C48="SP")),VLOOKUP($B48,Pitcher!$A$1:$Z$600,20,FALSE),(VLOOKUP($B48,Hitter!$A$1:$Z$600,26,FALSE))),"") -> 390.4188958 | L48: =IFERROR(IF((OR($C48="RP",$C48="SP")),VLOOKUP($C48,'Filtered-P'!$M$3:$P$4,4,FALSE), VLOOKUP($C48,Filtered!$Q$3:$T$14,4,FALSE)),"") -> 331.9275286 | M48: =IFERROR(K48-L48,"") -> 58.49136714 | N48: =IFERROR(IF((OR($C48="RP",$C48="SP")),VLOOKUP($B48,Pitcher!$A$1:$V$600,2,FALSE),""),"") -> 13.34523068 | O48: =IFERROR(IF((OR($C48="RP",$C48="SP")),VLOOKUP($B48,Pitcher!$A$1:$V$600,9,FALSE),""),"") -> 0 | P48: =IFERROR(IF((OR($C48="RP",$C48="SP")),VLOOKUP($B48,Pitcher!$A$1:$V$600,7,FALSE),""),"") -> 191.2749007 | Q48: =IFERROR(IF((OR($C48="RP",$C48="SP")),VLOOKUP($B48,Pitcher!$A$1:$AB$600,21,FALSE),""),"") -> 3.558361222 | R48: =IFERROR(IF((OR($C48="RP",$C48="SP")),VLOOKUP($B48,Pitcher!$A$1:$V$600,22,FALSE),""),"") -> 1.256800341 | S48: =IFERROR(IF((OR($C48="RP",$C48="SP")),"",VLOOKUP($B48,Hitter!$A$1:$AH$600,27,FALSE)),"") ->  | T48: =IFERROR(IF((OR($C48="RP",$C48="SP")),"",VLOOKUP($B48,Hitter!$A$1:$AH$600,9,FALSE)),"") ->  | U48: =IFERROR(IF((OR($C48="RP",$C48="SP")),"",VLOOKUP($B48,Hitter!$A$1:$AH$600,10,FALSE)),"") ->  | V48: =IFERROR(IF((OR($C48="RP",$C48="SP")),"",VLOOKUP($B48,Hitter!$A$1:$AH$600,4,FALSE)),"") ->  | W48: =IFERROR(IF((OR($C48="RP",$C48="SP")),"",VLOOKUP($B48,Hitter!$A$1:$AH$600,11,FALSE)),"") ->  | X48: =IFERROR(IF(ISTEXT($A48),"",(1-NORMDIST((COUNTA($A$4:$A$600)),($G48),((AB48-AA48)/6),TRUE))),"") -> 1 | Y48: =IFERROR(IF(ISTEXT($A48),"",(1-NORMDIST((COUNTA($A$4:$A$600))+(Personalize!$E$18+1),$G48,((AB48-AA48)/6),TRUE))),"") -> 1 | Z48: =IFERROR(IF(ISTEXT($A48),"",(1-NORMDIST((COUNTA($A$4:$A$600))+((Personalize!$E$18+1)*2),$G48,((AB48-AA48)/6),TRUE))),"") -> 1 | AA48: =IF(Personalize!$E$34=1,VLOOKUP($B48,'ADP-Rank'!$A$2:$J$600,5,FALSE),(IF(Personalize!$E$34=2,VLOOKUP($B48,'ADP-Rank'!$A$2:$J$600,8,FALSE),(IF(Personalize!$E$34=3,VLOOKUP($B48,'ADP-Rank'!$A$2:$O$600,11,FALSE),""))))) -> 35 | AB48: =IF(Personalize!$E$34=1,VLOOKUP($B48,'ADP-Rank'!$A$2:$J$600,6,FALSE),(IF(Personalize!$E$34=2,VLOOKUP($B48,'ADP-Rank'!$A$2:$J$600,9,FALSE),(IF(Personalize!$E$34=3,VLOOKUP($B48,'ADP-Rank'!$A$2:$O$600,12,FALSE),""))))) -> 74 | AC48: =IF(ISBLANK(A48),0,1) -> 0 | AD48: =IF(K48="",0,1) -> 1 | AE48: =A48 -> 0 | AF48: =IF(C48="C",1,IF(C48="1B",2,IF(C48="2B",3,IF(C48="3B",4,IF(C48="SS",5,IF(C48="CI",6,IF(C48="MI",7,IF(C48="OF",11,IF(C48="LF",8,IF(C48="CF",9,IF(C48="RF",10,IF(C48="DH",12,IF(C48="SP",13,IF(C48="RP",14,IF(C48="P",15,16))))))))))))))) -> 13 | AG48: =VLOOKUP(B48,'Starter Calc'!$B$2:$BN$600,65,FALSE) -> Bench
B49: Jay Bruce | C49: =IFERROR(IF(VLOOKUP(B49,'ADP-Rank'!$A$2:$B$600,2,FALSE)="OF",VLOOKUP(B49,'Starter Calc'!$B$2:$AM$600,38,FALSE),(VLOOKUP(B49,'ADP-Rank'!$A$2:$B$600,2,FALSE))),"") -> OF | D49: =IFERROR(IF(VLOOKUP(B49,'Starter Calc'!$B$2:$E$600,4,FALSE)="","",VLOOKUP(B49,'Starter Calc'!$B$2:$E$600,4,FALSE)),"") -> RF | E49: =IFERROR(VLOOKUP($B49,'ADP-Rank'!$A$2:$D$600,3,FALSE),"") -> CIN | F49: =IFERROR(VLOOKUP($B49,'ADP-Rank'!$A$2:$W$600,23,FALSE),"") -> 25 | G49: =IFERROR((IF(Personalize!$E$38=1,VLOOKUP($B49,'ADP-Rank'!$A$2:$J$599,4,FALSE),(IF(Personalize!$E$38=2,VLOOKUP($B49,'ADP-Rank'!$A$2:$J$599,7,FALSE),(IF(Personalize!$E$38=3,VLOOKUP($B49,'ADP-Rank'!$A$2:$J$599,10,FALSE),(IF(Personalize!$E$38=4,VLOOKUP($B49,'ADP-Rank'!$A$2:$AD$599,24,FALSE),(IF(Personalize!$E$38=5,VLOOKUP($B49,'ADP-Rank'!$A$2:$AD$599,27,FALSE))))))))))),"") -> 54.8125 | H49: =IFERROR((G49/(Personalize!$E$22+1))+1,"") -> 5.216346154 | I49: =IFERROR(CHOOSE(Personalize!$E$39,VLOOKUP($B49,'ADP-Rank'!$A$2:$U$600,13,FALSE),VLOOKUP($B49,'ADP-Rank'!$A$2:$U$600,14,FALSE),VLOOKUP($B49,'ADP-Rank'!$A$2:$U$600,15,FALSE),VLOOKUP($B49,'ADP-Rank'!$A$2:$U$600,16,FALSE),VLOOKUP($B49,'ADP-Rank'!$A$2:$U$600,17,FALSE),VLOOKUP($B49,'ADP-Rank'!$A$2:$U$600,18,FALSE),VLOOKUP($B49,'ADP-Rank'!$A$2:$U$600,19,FALSE),VLOOKUP($B49,'ADP-Rank'!$A$2:$U$600,20,FALSE)),"") -> 43 | J49: =IFERROR(RANK($M49,$M$4:$M$600,0),"") -> 69 | K49: =IFERROR(IF((OR($C49="RP",$C49="SP")),VLOOKUP($B49,Pitcher!$A$1:$Z$600,20,FALSE),(VLOOKUP($B49,Hitter!$A$1:$Z$600,26,FALSE))),"") -> 354.1998306 | L49: =IFERROR(IF((OR($C49="RP",$C49="SP")),VLOOKUP($C49,'Filtered-P'!$M$3:$P$4,4,FALSE), VLOOKUP($C49,Filtered!$Q$3:$T$14,4,FALSE)),"") -> 347.6626137 | M49: =IFERROR(K49-L49,"") -> 6.53721692 | N49: =IFERROR(IF((OR($C49="RP",$C49="SP")),VLOOKUP($B49,Pitcher!$A$1:$V$600,2,FALSE),""),"") ->  | O49: =IFERROR(IF((OR($C49="RP",$C49="SP")),VLOOKUP($B49,Pitcher!$A$1:$V$600,9,FALSE),""),"") ->  | P49: =IFERROR(IF((OR($C49="RP",$C49="SP")),VLOOKUP($B49,Pitcher!$A$1:$V$600,7,FALSE),""),"") ->  | Q49: =IFERROR(IF((OR($C49="RP",$C49="SP")),VLOOKUP($B49,Pitcher!$A$1:$AB$600,21,FALSE),""),"") ->  | R49: =IFERROR(IF((OR($C49="RP",$C49="SP")),VLOOKUP($B49,Pitcher!$A$1:$V$600,22,FALSE),""),"") ->  | S49: =IFERROR(IF((OR($C49="RP",$C49="SP")),"",VLOOKUP($B49,Hitter!$A$1:$AH$600,27,FALSE)),"") -> 0.262358276 | T49: =IFERROR(IF((OR($C49="RP",$C49="SP")),"",VLOOKUP($B49,Hitter!$A$1:$AH$600,9,FALSE)),"") -> 28.34971961 | U49: =IFERROR(IF((OR($C49="RP",$C49="SP")),"",VLOOKUP($B49,Hitter!$A$1:$AH$600,10,FALSE)),"") -> 87.74648814 | V49: =IFERROR(IF((OR($C49="RP",$C49="SP")),"",VLOOKUP($B49,Hitter!$A$1:$AH$600,4,FALSE)),"") -> 79.80572955 | W49: =IFERROR(IF((OR($C49="RP",$C49="SP")),"",VLOOKUP($B49,Hitter!$A$1:$AH$600,11,FALSE)),"") -> 6.912897483 | X49: =IFERROR(IF(ISTEXT($A49),"",(1-NORMDIST((COUNTA($A$4:$A$600)),($G49),((AB49-AA49)/6),TRUE))),"") -> 1 | Y49: =IFERROR(IF(ISTEXT($A49),"",(1-NORMDIST((COUNTA($A$4:$A$600))+(Personalize!$E$18+1),$G49,((AB49-AA49)/6),TRUE))),"") -> 1 | Z49: =IFERROR(IF(ISTEXT($A49),"",(1-NORMDIST((COUNTA($A$4:$A$600))+((Personalize!$E$18+1)*2),$G49,((AB49-AA49)/6),TRUE))),"") -> 1 | AA49: =IF(Personalize!$E$34=1,VLOOKUP($B49,'ADP-Rank'!$A$2:$J$600,5,FALSE),(IF(Personalize!$E$34=2,VLOOKUP($B49,'ADP-Rank'!$A$2:$J$600,8,FALSE),(IF(Personalize!$E$34=3,VLOOKUP($B49,'ADP-Rank'!$A$2:$O$600,11,FALSE),""))))) -> 26 | AB49: =IF(Personalize!$E$34=1,VLOOKUP($B49,'ADP-Rank'!$A$2:$J$600,6,FALSE),(IF(Personalize!$E$34=2,VLOOKUP($B49,'ADP-Rank'!$A$2:$J$600,9,FALSE),(IF(Personalize!$E$34=3,VLOOKUP($B49,'ADP-Rank'!$A$2:$O$600,12,FALSE),""))))) -> 62 | AC49: =IF(ISBLANK(A49),0,1) -> 0 | AD49: =IF(K49="",0,1) -> 1 | AE49: =A49 -> 0 | AF49: =IF(C49="C",1,IF(C49="1B",2,IF(C49="2B",3,IF(C49="3B",4,IF(C49="SS",5,IF(C49="CI",6,IF(C49="MI",7,IF(C49="OF",11,IF(C49="LF",8,IF(C49="CF",9,IF(C49="RF",10,IF(C49="DH",12,IF(C49="SP",13,IF(C49="RP",14,IF(C49="P",15,16))))))))))))))) -> 11 | AG49: =VLOOKUP(B49,'Starter Calc'!$B$2:$BN$600,65,FALSE) -> Bench
B50: Dan Uggla | C50: =IFERROR(IF(VLOOKUP(B50,'ADP-Rank'!$A$2:$B$600,2,FALSE)="OF",VLOOKUP(B50,'Starter Calc'!$B$2:$AM$600,38,FALSE),(VLOOKUP(B50,'ADP-Rank'!$A$2:$B$600,2,FALSE))),"") -> 2B | D50: =IFERROR(IF(VLOOKUP(B50,'Starter Calc'!$B$2:$E$600,4,FALSE)="","",VLOOKUP(B50,'Starter Calc'!$B$2:$E$600,4,FALSE)),"") ->  | E50: =IFERROR(VLOOKUP($B50,'ADP-Rank'!$A$2:$D$600,3,FALSE),"") -> ATL | F50: =IFERROR(VLOOKUP($B50,'ADP-Rank'!$A$2:$W$600,23,FALSE),"") -> 32 | G50: =IFERROR((IF(Personalize!$E$38=1,VLOOKUP($B50,'ADP-Rank'!$A$2:$J$599,4,FALSE),(IF(Personalize!$E$38=2,VLOOKUP($B50,'ADP-Rank'!$A$2:$J$599,7,FALSE),(IF(Personalize!$E$38=3,VLOOKUP($B50,'ADP-Rank'!$A$2:$J$599,10,FALSE),(IF(Personalize!$E$38=4,VLOOKUP($B50,'ADP-Rank'!$A$2:$AD$599,24,FALSE),(IF(Personalize!$E$38=5,VLOOKUP($B50,'ADP-Rank'!$A$2:$AD$599,27,FALSE))))))))))),"") -> 55.69 | H50: =IFERROR((G50/(Personalize!$E$22+1))+1,"") -> 5.283846154 | I50: =IFERROR(CHOOSE(Personalize!$E$39,VLOOKUP($B50,'ADP-Rank'!$A$2:$U$600,13,FALSE),VLOOKUP($B50,'ADP-Rank'!$A$2:$U$600,14,FALSE),VLOOKUP($B50,'ADP-Rank'!$A$2:$U$600,15,FALSE),VLOOKUP($B50,'ADP-Rank'!$A$2:$U$600,16,FALSE),VLOOKUP($B50,'ADP-Rank'!$A$2:$U$600,17,FALSE),VLOOKUP($B50,'ADP-Rank'!$A$2:$U$600,18,FALSE),VLOOKUP($B50,'ADP-Rank'!$A$2:$U$600,19,FALSE),VLOOKUP($B50,'ADP-Rank'!$A$2:$U$600,20,FALSE)),"") -> 45 | J50: =IFERROR(RANK($M50,$M$4:$M$600,0),"") -> 82 | K50: =IFERROR(IF((OR($C50="RP",$C50="SP")),VLOOKUP($B50,Pitcher!$A$1:$Z$600,20,FALSE),(VLOOKUP($B50,Hitter!$A$1:$Z$600,26,FALSE))),"") -> 351.3279055 | L50: =IFERROR(IF((OR($C50="RP",$C50="SP")),VLOOKUP($C50,'Filtered-P'!$M$3:$P$4,4,FALSE), VLOOKUP($C50,Filtered!$Q$3:$T$14,4,FALSE)),"") -> 354.8310871 | M50: =IFERROR(K50-L50,"") -> -3.50318163 | N50: =IFERROR(IF((OR($C50="RP",$C50="SP")),VLOOKUP($B50,Pitcher!$A$1:$V$600,2,FALSE),""),"") ->  | O50: =IFERROR(IF((OR($C50="RP",$C50="SP")),VLOOKUP($B50,Pitcher!$A$1:$V$600,9,FALSE),""),"") ->  | P50: =IFERROR(IF((OR($C50="RP",$C50="SP")),VLOOKUP($B50,Pitcher!$A$1:$V$600,7,FALSE),""),"") ->  | Q50: =IFERROR(IF((OR($C50="RP",$C50="SP")),VLOOKUP($B50,Pitcher!$A$1:$AB$600,21,FALSE),""),"") ->  | R50: =IFERROR(IF((OR($C50="RP",$C50="SP")),VLOOKUP($B50,Pitcher!$A$1:$V$600,22,FALSE),""),"") ->  | S50: =IFERROR(IF((OR($C50="RP",$C50="SP")),"",VLOOKUP($B50,Hitter!$A$1:$AH$600,27,FALSE)),"") -> 0.250159992 | T50: =IFERROR(IF((OR($C50="RP",$C50="SP")),"",VLOOKUP($B50,Hitter!$A$1:$AH$600,9,FALSE)),"") -> 29.45713137 | U50: =IFERROR(IF((OR($C50="RP",$C50="SP")),"",VLOOKUP($B50,Hitter!$A$1:$AH$600,10,FALSE)),"") -> 87.29477967 | V50: =IFERROR(IF((OR($C50="RP",$C50="SP")),"",VLOOKUP($B50,Hitter!$A$1:$AH$600,4,FALSE)),"") -> 83.6947093 | W50: =IFERROR(IF((OR($C50="RP",$C50="SP")),"",VLOOKUP($B50,Hitter!$A$1:$AH$600,11,FALSE)),"") -> 2.638121788 | X50: =IFERROR(IF(ISTEXT($A50),"",(1-NORMDIST((COUNTA($A$4:$A$600)),($G50),((AB50-AA50)/6),TRUE))),"") -> 0.9999999994 | Y50: =IFERROR(IF(ISTEXT($A50),"",(1-NORMDIST((COUNTA($A$4:$A$600))+(Personalize!$E$18+1),$G50,((AB50-AA50)/6),TRUE))),"") -> 0.9999999938 | Z50: =IFERROR(IF(ISTEXT($A50),"",(1-NORMDIST((COUNTA($A$4:$A$600))+((Personalize!$E$18+1)*2),$G50,((AB50-AA50)/6),TRUE))),"") -> 0.9999999457 | AA50: =IF(Personalize!$E$34=1,VLOOKUP($B50,'ADP-Rank'!$A$2:$J$600,5,FALSE),(IF(Personalize!$E$34=2,VLOOKUP($B50,'ADP-Rank'!$A$2:$J$600,8,FALSE),(IF(Personalize!$E$34=3,VLOOKUP($B50,'ADP-Rank'!$A$2:$O$600,11,FALSE),""))))) -> 26 | AB50: =IF(Personalize!$E$34=1,VLOOKUP($B50,'ADP-Rank'!$A$2:$J$600,6,FALSE),(IF(Personalize!$E$34=2,VLOOKUP($B50,'ADP-Rank'!$A$2:$J$600,9,FALSE),(IF(Personalize!$E$34=3,VLOOKUP($B50,'ADP-Rank'!$A$2:$O$600,12,FALSE),""))))) -> 81 | AC50: =IF(ISBLANK(A50),0,1) -> 0 | AD50: =IF(K50="",0,1) -> 1 | AE50: =A50 -> 0 | AF50: =IF(C50="C",1,IF(C50="1B",2,IF(C50="2B",3,IF(C50="3B",4,IF(C50="SS",5,IF(C50="CI",6,IF(C50="MI",7,IF(C50="OF",11,IF(C50="LF",8,IF(C50="CF",9,IF(C50="RF",10,IF(C50="DH",12,IF(C50="SP",13,IF(C50="RP",14,IF(C50="P",15,16))))))))))))))) -> 3 | AG50: =VLOOKUP(B50,'Starter Calc'!$B$2:$BN$600,65,FALSE) -> Bench
B51: Paul Konerko | C51: =IFERROR(IF(VLOOKUP(B51,'ADP-Rank'!$A$2:$B$600,2,FALSE)="OF",VLOOKUP(B51,'Starter Calc'!$B$2:$AM$600,38,FALSE),(VLOOKUP(B51,'ADP-Rank'!$A$2:$B$600,2,FALSE))),"") -> 1B | D51: =IFERROR(IF(VLOOKUP(B51,'Starter Calc'!$B$2:$E$600,4,FALSE)="","",VLOOKUP(B51,'Starter Calc'!$B$2:$E$600,4,FALSE)),"") ->  | E51: =IFERROR(VLOOKUP($B51,'ADP-Rank'!$A$2:$D$600,3,FALSE),"") -> CHW | F51: =IFERROR(VLOOKUP($B51,'ADP-Rank'!$A$2:$W$600,23,FALSE),"") -> 36 | G51: =IFERROR((IF(Personalize!$E$38=1,VLOOKUP($B51,'ADP-Rank'!$A$2:$J$599,4,FALSE),(IF(Personalize!$E$38=2,VLOOKUP($B51,'ADP-Rank'!$A$2:$J$599,7,FALSE),(IF(Personalize!$E$38=3,VLOOKUP($B51,'ADP-Rank'!$A$2:$J$599,10,FALSE),(IF(Personalize!$E$38=4,VLOOKUP($B51,'ADP-Rank'!$A$2:$AD$599,24,FALSE),(IF(Personalize!$E$38=5,VLOOKUP($B51,'ADP-Rank'!$A$2:$AD$599,27,FALSE))))))))))),"") -> 55.875 | H51: =IFERROR((G51/(Personalize!$E$22+1))+1,"") -> 5.298076923 | I51: =IFERROR(CHOOSE(Personalize!$E$39,VLOOKUP($B51,'ADP-Rank'!$A$2:$U$600,13,FALSE),VLOOKUP($B51,'ADP-Rank'!$A$2:$U$600,14,FALSE),VLOOKUP($B51,'ADP-Rank'!$A$2:$U$600,15,FALSE),VLOOKUP($B51,'ADP-Rank'!$A$2:$U$600,16,FALSE),VLOOKUP($B51,'ADP-Rank'!$A$2:$U$600,17,FALSE),VLOOKUP($B51,'ADP-Rank'!$A$2:$U$600,18,FALSE),VLOOKUP($B51,'ADP-Rank'!$A$2:$U$600,19,FALSE),VLOOKUP($B51,'ADP-Rank'!$A$2:$U$600,20,FALSE)),"") -> 47.57142857 | J51: =IFERROR(RANK($M51,$M$4:$M$600,0),"") -> 71 | K51: =IFERROR(IF((OR($C51="RP",$C51="SP")),VLOOKUP($B51,Pitcher!$A$1:$Z$600,20,FALSE),(VLOOKUP($B51,Hitter!$A$1:$Z$600,26,FALSE))),"") -> 394.0014143 | L51: =IFERROR(IF((OR($C51="RP",$C51="SP")),VLOOKUP($C51,'Filtered-P'!$M$3:$P$4,4,FALSE), VLOOKUP($C51,Filtered!$Q$3:$T$14,4,FALSE)),"") -> 389.4967263 | M51: =IFERROR(K51-L51,"") -> 4.504687983 | N51: =IFERROR(IF((OR($C51="RP",$C51="SP")),VLOOKUP($B51,Pitcher!$A$1:$V$600,2,FALSE),""),"") ->  | O51: =IFERROR(IF((OR($C51="RP",$C51="SP")),VLOOKUP($B51,Pitcher!$A$1:$V$600,9,FALSE),""),"") ->  | P51: =IFERROR(IF((OR($C51="RP",$C51="SP")),VLOOKUP($B51,Pitcher!$A$1:$V$600,7,FALSE),""),"") ->  | Q51: =IFERROR(IF((OR($C51="RP",$C51="SP")),VLOOKUP($B51,Pitcher!$A$1:$AB$600,21,FALSE),""),"") ->  | R51: =IFERROR(IF((OR($C51="RP",$C51="SP")),VLOOKUP($B51,Pitcher!$A$1:$V$600,22,FALSE),""),"") ->  | S51: =IFERROR(IF((OR($C51="RP",$C51="SP")),"",VLOOKUP($B51,Hitter!$A$1:$AH$600,27,FALSE)),"") -> 0.2792281064 | T51: =IFERROR(IF((OR($C51="RP",$C51="SP")),"",VLOOKUP($B51,Hitter!$A$1:$AH$600,9,FALSE)),"") -> 28.01230461 | U51: =IFERROR(IF((OR($C51="RP",$C51="SP")),"",VLOOKUP($B51,Hitter!$A$1:$AH$600,10,FALSE)),"") -> 91.71585215 | V51: =IFERROR(IF((OR($C51="RP",$C51="SP")),"",VLOOKUP($B51,Hitter!$A$1:$AH$600,4,FALSE)),"") -> 74.34865775 | W51: =IFERROR(IF((OR($C51="RP",$C51="SP")),"",VLOOKUP($B51,Hitter!$A$1:$AH$600,11,FALSE)),"") -> 1.448553798 | X51: =IFERROR(IF(ISTEXT($A51),"",(1-NORMDIST((COUNTA($A$4:$A$600)),($G51),((AB51-AA51)/6),TRUE))),"") -> 1 | Y51: =IFERROR(IF(ISTEXT($A51),"",(1-NORMDIST((COUNTA($A$4:$A$600))+(Personalize!$E$18+1),$G51,((AB51-AA51)/6),TRUE))),"") -> 1 | Z51: =IFERROR(IF(ISTEXT($A51),"",(1-NORMDIST((COUNTA($A$4:$A$600))+((Personalize!$E$18+1)*2),$G51,((AB51-AA51)/6),TRUE))),"") -> 1 | AA51: =IF(Personalize!$E$34=1,VLOOKUP($B51,'ADP-Rank'!$A$2:$J$600,5,FALSE),(IF(Personalize!$E$34=2,VLOOKUP($B51,'ADP-Rank'!$A$2:$J$600,8,FALSE),(IF(Personalize!$E$34=3,VLOOKUP($B51,'ADP-Rank'!$A$2:$O$600,11,FALSE),""))))) -> 29 | AB51: =IF(Personalize!$E$34=1,VLOOKUP($B51,'ADP-Rank'!$A$2:$J$600,6,FALSE),(IF(Personalize!$E$34=2,VLOOKUP($B51,'ADP-Rank'!$A$2:$J$600,9,FALSE),(IF(Personalize!$E$34=3,VLOOKUP($B51,'ADP-Rank'!$A$2:$O$600,12,FALSE),""))))) -> 72 | AC51: =IF(ISBLANK(A51),0,1) -> 0 | AD51: =IF(K51="",0,1) -> 1 | AE51: =A51 -> 0 | AF51: =IF(C51="C",1,IF(C51="1B",2,IF(C51="2B",3,IF(C51="3B",4,IF(C51="SS",5,IF(C51="CI",6,IF(C51="MI",7,IF(C51="OF",11,IF(C51="LF",8,IF(C51="CF",9,IF(C51="RF",10,IF(C51="DH",12,IF(C51="SP",13,IF(C51="RP",14,IF(C51="P",15,16))))))))))))))) -> 2 | AG51: =VLOOKUP(B51,'Starter Calc'!$B$2:$BN$600,65,FALSE) -> Bench
B52: Mike Napoli | C52: =IFERROR(IF(VLOOKUP(B52,'ADP-Rank'!$A$2:$B$600,2,FALSE)="OF",VLOOKUP(B52,'Starter Calc'!$B$2:$AM$600,38,FALSE),(VLOOKUP(B52,'ADP-Rank'!$A$2:$B$600,2,FALSE))),"") -> C | D52: =IFERROR(IF(VLOOKUP(B52,'Starter Calc'!$B$2:$E$600,4,FALSE)="","",VLOOKUP(B52,'Starter Calc'!$B$2:$E$600,4,FALSE)),"") ->  | E52: =IFERROR(VLOOKUP($B52,'ADP-Rank'!$A$2:$D$600,3,FALSE),"") -> TEX | F52: =IFERROR(VLOOKUP($B52,'ADP-Rank'!$A$2:$W$600,23,FALSE),"") -> 31 | G52: =IFERROR((IF(Personalize!$E$38=1,VLOOKUP($B52,'ADP-Rank'!$A$2:$J$599,4,FALSE),(IF(Personalize!$E$38=2,VLOOKUP($B52,'ADP-Rank'!$A$2:$J$599,7,FALSE),(IF(Personalize!$E$38=3,VLOOKUP($B52,'ADP-Rank'!$A$2:$J$599,10,FALSE),(IF(Personalize!$E$38=4,VLOOKUP($B52,'ADP-Rank'!$A$2:$AD$599,24,FALSE),(IF(Personalize!$E$38=5,VLOOKUP($B52,'ADP-Rank'!$A$2:$AD$599,27,FALSE))))))))))),"") -> 56.0125 | H52: =IFERROR((G52/(Personalize!$E$22+1))+1,"") -> 5.308653846 | I52: =IFERROR(CHOOSE(Personalize!$E$39,VLOOKUP($B52,'ADP-Rank'!$A$2:$U$600,13,FALSE),VLOOKUP($B52,'ADP-Rank'!$A$2:$U$600,14,FALSE),VLOOKUP($B52,'ADP-Rank'!$A$2:$U$600,15,FALSE),VLOOKUP($B52,'ADP-Rank'!$A$2:$U$600,16,FALSE),VLOOKUP($B52,'ADP-Rank'!$A$2:$U$600,17,FALSE),VLOOKUP($B52,'ADP-Rank'!$A$2:$U$600,18,FALSE),VLOOKUP($B52,'ADP-Rank'!$A$2:$U$600,19,FALSE),VLOOKUP($B52,'ADP-Rank'!$A$2:$U$600,20,FALSE)),"") -> 41.85714286 | J52: =IFERROR(RANK($M52,$M$4:$M$600,0),"") -> 66 | K52: =IFERROR(IF((OR($C52="RP",$C52="SP")),VLOOKUP($B52,Pitcher!$A$1:$Z$600,20,FALSE),(VLOOKUP($B52,Hitter!$A$1:$Z$600,26,FALSE))),"") -> 296.3456748 | L52: =IFERROR(IF((OR($C52="RP",$C52="SP")),VLOOKUP($C52,'Filtered-P'!$M$3:$P$4,4,FALSE), VLOOKUP($C52,Filtered!$Q$3:$T$14,4,FALSE)),"") -> 287.5109171 | M52: =IFERROR(K52-L52,"") -> 8.834757786 | N52: =IFERROR(IF((OR($C52="RP",$C52="SP")),VLOOKUP($B52,Pitcher!$A$1:$V$600,2,FALSE),""),"") ->  | O52: =IFERROR(IF((OR($C52="RP",$C52="SP")),VLOOKUP($B52,Pitcher!$A$1:$V$600,9,FALSE),""),"") ->  | P52: =IFERROR(IF((OR($C52="RP",$C52="SP")),VLOOKUP($B52,Pitcher!$A$1:$V$600,7,FALSE),""),"") ->  | Q52: =IFERROR(IF((OR($C52="RP",$C52="SP")),VLOOKUP($B52,Pitcher!$A$1:$AB$600,21,FALSE),""),"") ->  | R52: =IFERROR(IF((OR($C52="RP",$C52="SP")),VLOOKUP($B52,Pitcher!$A$1:$V$600,22,FALSE),""),"") ->  | S52: =IFERROR(IF((OR($C52="RP",$C52="SP")),"",VLOOKUP($B52,Hitter!$A$1:$AH$600,27,FALSE)),"") -> 0.272246954 | T52: =IFERROR(IF((OR($C52="RP",$C52="SP")),"",VLOOKUP($B52,Hitter!$A$1:$AH$600,9,FALSE)),"") -> 25.95453255 | U52: =IFERROR(IF((OR($C52="RP",$C52="SP")),"",VLOOKUP($B52,Hitter!$A$1:$AH$600,10,FALSE)),"") -> 68.19604698 | V52: =IFERROR(IF((OR($C52="RP",$C52="SP")),"",VLOOKUP($B52,Hitter!$A$1:$AH$600,4,FALSE)),"") -> 66.29558795 | W52: =IFERROR(IF((OR($C52="RP",$C52="SP")),"",VLOOKUP($B52,Hitter!$A$1:$AH$600,11,FALSE)),"") -> 4.532702559 | X52: =IFERROR(IF(ISTEXT($A52),"",(1-NORMDIST((COUNTA($A$4:$A$600)),($G52),((AB52-AA52)/6),TRUE))),"") -> 1 | Y52: =IFERROR(IF(ISTEXT($A52),"",(1-NORMDIST((COUNTA($A$4:$A$600))+(Personalize!$E$18+1),$G52,((AB52-AA52)/6),TRUE))),"") -> 1 | Z52: =IFERROR(IF(ISTEXT($A52),"",(1-NORMDIST((COUNTA($A$4:$A$600))+((Personalize!$E$18+1)*2),$G52,((AB52-AA52)/6),TRUE))),"") -> 1 | AA52: =IF(Personalize!$E$34=1,VLOOKUP($B52,'ADP-Rank'!$A$2:$J$600,5,FALSE),(IF(Personalize!$E$34=2,VLOOKUP($B52,'ADP-Rank'!$A$2:$J$600,8,FALSE),(IF(Personalize!$E$34=3,VLOOKUP($B52,'ADP-Rank'!$A$2:$O$600,11,FALSE),""))))) -> 23 | AB52: =IF(Personalize!$E$34=1,VLOOKUP($B52,'ADP-Rank'!$A$2:$J$600,6,FALSE),(IF(Personalize!$E$34=2,VLOOKUP($B52,'ADP-Rank'!$A$2:$J$600,9,FALSE),(IF(Personalize!$E$34=3,VLOOKUP($B52,'ADP-Rank'!$A$2:$O$600,12,FALSE),""))))) -> 64 | AC52: =IF(ISBLANK(A52),0,1) -> 0 | AD52: =IF(K52="",0,1) -> 1 | AE52: =A52 -> 0 | AF52: =IF(C52="C",1,IF(C52="1B",2,IF(C52="2B",3,IF(C52="3B",4,IF(C52="SS",5,IF(C52="CI",6,IF(C52="MI",7,IF(C52="OF",11,IF(C52="LF",8,IF(C52="CF",9,IF(C52="RF",10,IF(C52="DH",12,IF(C52="SP",13,IF(C52="RP",14,IF(C52="P",15,16))))))))))))))) -> 1 | AG52: =VLOOKUP(B52,'Starter Calc'!$B$2:$BN$600,65,FALSE) -> Bench
B53: Craig Kimbrel | C53: =IFERROR(IF(VLOOKUP(B53,'ADP-Rank'!$A$2:$B$600,2,FALSE)="OF",VLOOKUP(B53,'Starter Calc'!$B$2:$AM$600,38,FALSE),(VLOOKUP(B53,'ADP-Rank'!$A$2:$B$600,2,FALSE))),"") -> RP | D53: =IFERROR(IF(VLOOKUP(B53,'Starter Calc'!$B$2:$E$600,4,FALSE)="","",VLOOKUP(B53,'Starter Calc'!$B$2:$E$600,4,FALSE)),"") ->  | E53: =IFERROR(VLOOKUP($B53,'ADP-Rank'!$A$2:$D$600,3,FALSE),"") -> ATL | F53: =IFERROR(VLOOKUP($B53,'ADP-Rank'!$A$2:$W$600,23,FALSE),"") -> 24 | G53: =IFERROR((IF(Personalize!$E$38=1,VLOOKUP($B53,'ADP-Rank'!$A$2:$J$599,4,FALSE),(IF(Personalize!$E$38=2,VLOOKUP($B53,'ADP-Rank'!$A$2:$J$599,7,FALSE),(IF(Personalize!$E$38=3,VLOOKUP($B53,'ADP-Rank'!$A$2:$J$599,10,FALSE),(IF(Personalize!$E$38=4,VLOOKUP($B53,'ADP-Rank'!$A$2:$AD$599,24,FALSE),(IF(Personalize!$E$38=5,VLOOKUP($B53,'ADP-Rank'!$A$2:$AD$599,27,FALSE))))))))))),"") -> 56.0725 | H53: =IFERROR((G53/(Personalize!$E$22+1))+1,"") -> 5.313269231 | I53: =IFERROR(CHOOSE(Personalize!$E$39,VLOOKUP($B53,'ADP-Rank'!$A$2:$U$600,13,FALSE),VLOOKUP($B53,'ADP-Rank'!$A$2:$U$600,14,FALSE),VLOOKUP($B53,'ADP-Rank'!$A$2:$U$600,15,FALSE),VLOOKUP($B53,'ADP-Rank'!$A$2:$U$600,16,FALSE),VLOOKUP($B53,'ADP-Rank'!$A$2:$U$600,17,FALSE),VLOOKUP($B53,'ADP-Rank'!$A$2:$U$600,18,FALSE),VLOOKUP($B53,'ADP-Rank'!$A$2:$U$600,19,FALSE),VLOOKUP($B53,'ADP-Rank'!$A$2:$U$600,20,FALSE)),"") -> 62.42857143 | J53: =IFERROR(RANK($M53,$M$4:$M$600,0),"") -> 4 | K53: =IFERROR(IF((OR($C53="RP",$C53="SP")),VLOOKUP($B53,Pitcher!$A$1:$Z$600,20,FALSE),(VLOOKUP($B53,Hitter!$A$1:$Z$600,26,FALSE))),"") -> 562.1526926 | L53: =IFERROR(IF((OR($C53="RP",$C53="SP")),VLOOKUP($C53,'Filtered-P'!$M$3:$P$4,4,FALSE), VLOOKUP($C53,Filtered!$Q$3:$T$14,4,FALSE)),"") -> 431.7125746 | M53: =IFERROR(K53-L53,"") -> 130.440118 | N53: =IFERROR(IF((OR($C53="RP",$C53="SP")),VLOOKUP($B53,Pitcher!$A$1:$V$600,2,FALSE),""),"") -> 4.358806526 | O53: =IFERROR(IF((OR($C53="RP",$C53="SP")),VLOOKUP($B53,Pitcher!$A$1:$V$600,9,FALSE),""),"") -> 33.43627451 | P53: =IFERROR(IF((OR($C53="RP",$C53="SP")),VLOOKUP($B53,Pitcher!$A$1:$V$600,7,FALSE),""),"") -> 98.12099999 | Q53: =IFERROR(IF((OR($C53="RP",$C53="SP")),VLOOKUP($B53,Pitcher!$A$1:$AB$600,21,FALSE),""),"") -> 2.46873604 | R53: =IFERROR(IF((OR($C53="RP",$C53="SP")),VLOOKUP($B53,Pitcher!$A$1:$V$600,22,FALSE),""),"") -> 1.166626956 | S53: =IFERROR(IF((OR($C53="RP",$C53="SP")),"",VLOOKUP($B53,Hitter!$A$1:$AH$600,27,FALSE)),"") ->  | T53: =IFERROR(IF((OR($C53="RP",$C53="SP")),"",VLOOKUP($B53,Hitter!$A$1:$AH$600,9,FALSE)),"") ->  | U53: =IFERROR(IF((OR($C53="RP",$C53="SP")),"",VLOOKUP($B53,Hitter!$A$1:$AH$600,10,FALSE)),"") ->  | V53: =IFERROR(IF((OR($C53="RP",$C53="SP")),"",VLOOKUP($B53,Hitter!$A$1:$AH$600,4,FALSE)),"") ->  | W53: =IFERROR(IF((OR($C53="RP",$C53="SP")),"",VLOOKUP($B53,Hitter!$A$1:$AH$600,11,FALSE)),"") ->  | X53: =IFERROR(IF(ISTEXT($A53),"",(1-NORMDIST((COUNTA($A$4:$A$600)),($G53),((AB53-AA53)/6),TRUE))),"") -> 1 | Y53: =IFERROR(IF(ISTEXT($A53),"",(1-NORMDIST((COUNTA($A$4:$A$600))+(Personalize!$E$18+1),$G53,((AB53-AA53)/6),TRUE))),"") -> 1 | Z53: =IFERROR(IF(ISTEXT($A53),"",(1-NORMDIST((COUNTA($A$4:$A$600))+((Personalize!$E$18+1)*2),$G53,((AB53-AA53)/6),TRUE))),"") -> 1 | AA53: =IF(Personalize!$E$34=1,VLOOKUP($B53,'ADP-Rank'!$A$2:$J$600,5,FALSE),(IF(Personalize!$E$34=2,VLOOKUP($B53,'ADP-Rank'!$A$2:$J$600,8,FALSE),(IF(Personalize!$E$34=3,VLOOKUP($B53,'ADP-Rank'!$A$2:$O$600,11,FALSE),""))))) -> 39 | AB53: =IF(Personalize!$E$34=1,VLOOKUP($B53,'ADP-Rank'!$A$2:$J$600,6,FALSE),(IF(Personalize!$E$34=2,VLOOKUP($B53,'ADP-Rank'!$A$2:$J$600,9,FALSE),(IF(Personalize!$E$34=3,VLOOKUP($B53,'ADP-Rank'!$A$2:$O$600,12,FALSE),""))))) -> 81 | AC53: =IF(ISBLANK(A53),0,1) -> 0 | AD53: =IF(K53="",0,1) -> 1 | AE53: =A53 -> 0 | AF53: =IF(C53="C",1,IF(C53="1B",2,IF(C53="2B",3,IF(C53="3B",4,IF(C53="SS",5,IF(C53="CI",6,IF(C53="MI",7,IF(C53="OF",11,IF(C53="LF",8,IF(C53="CF",9,IF(C53="RF",10,IF(C53="DH",12,IF(C53="SP",13,IF(C53="RP",14,IF(C53="P",15,16))))))))))))))) -> 14 | AG53: =VLOOKUP(B53,'Starter Calc'!$B$2:$BN$600,65,FALSE) -> Bench
B54: Matt Cain | C54: =IFERROR(IF(VLOOKUP(B54,'ADP-Rank'!$A$2:$B$600,2,FALSE)="OF",VLOOKUP(B54,'Starter Calc'!$B$2:$AM$600,38,FALSE),(VLOOKUP(B54,'ADP-Rank'!$A$2:$B$600,2,FALSE))),"") -> SP | D54: =IFERROR(IF(VLOOKUP(B54,'Starter Calc'!$B$2:$E$600,4,FALSE)="","",VLOOKUP(B54,'Starter Calc'!$B$2:$E$600,4,FALSE)),"") ->  | E54: =IFERROR(VLOOKUP($B54,'ADP-Rank'!$A$2:$D$600,3,FALSE),"") -> SF | F54: =IFERROR(VLOOKUP($B54,'ADP-Rank'!$A$2:$W$600,23,FALSE),"") -> 28 | G54: =IFERROR((IF(Personalize!$E$38=1,VLOOKUP($B54,'ADP-Rank'!$A$2:$J$599,4,FALSE),(IF(Personalize!$E$38=2,VLOOKUP($B54,'ADP-Rank'!$A$2:$J$599,7,FALSE),(IF(Personalize!$E$38=3,VLOOKUP($B54,'ADP-Rank'!$A$2:$J$599,10,FALSE),(IF(Personalize!$E$38=4,VLOOKUP($B54,'ADP-Rank'!$A$2:$AD$599,24,FALSE),(IF(Personalize!$E$38=5,VLOOKUP($B54,'ADP-Rank'!$A$2:$AD$599,27,FALSE))))))))))),"") -> 58.4425 | H54: =IFERROR((G54/(Personalize!$E$22+1))+1,"") -> 5.495576923 | I54: =IFERROR(CHOOSE(Personalize!$E$39,VLOOKUP($B54,'ADP-Rank'!$A$2:$U$600,13,FALSE),VLOOKUP($B54,'ADP-Rank'!$A$2:$U$600,14,FALSE),VLOOKUP($B54,'ADP-Rank'!$A$2:$U$600,15,FALSE),VLOOKUP($B54,'ADP-Rank'!$A$2:$U$600,16,FALSE),VLOOKUP($B54,'ADP-Rank'!$A$2:$U$600,17,FALSE),VLOOKUP($B54,'ADP-Rank'!$A$2:$U$600,18,FALSE),VLOOKUP($B54,'ADP-Rank'!$A$2:$U$600,19,FALSE),VLOOKUP($B54,'ADP-Rank'!$A$2:$U$600,20,FALSE)),"") -> 62.42857143 | J54: =IFERROR(RANK($M54,$M$4:$M$600,0),"") -> 73 | K54: =IFERROR(IF((OR($C54="RP",$C54="SP")),VLOOKUP($B54,Pitcher!$A$1:$Z$600,20,FALSE),(VLOOKUP($B54,Hitter!$A$1:$Z$600,26,FALSE))),"") -> 335.2654356 | L54: =IFERROR(IF((OR($C54="RP",$C54="SP")),VLOOKUP($C54,'Filtered-P'!$M$3:$P$4,4,FALSE), VLOOKUP($C54,Filtered!$Q$3:$T$14,4,FALSE)),"") -> 331.9275286 | M54: =IFERROR(K54-L54,"") -> 3.337906992 | N54: =IFERROR(IF((OR($C54="RP",$C54="SP")),VLOOKUP($B54,Pitcher!$A$1:$V$600,2,FALSE),""),"") -> 12.56391125 | O54: =IFERROR(IF((OR($C54="RP",$C54="SP")),VLOOKUP($B54,Pitcher!$A$1:$V$600,9,FALSE),""),"") -> 0 | P54: =IFERROR(IF((OR($C54="RP",$C54="SP")),VLOOKUP($B54,Pitcher!$A$1:$V$600,7,FALSE),""),"") -> 166.2756422 | Q54: =IFERROR(IF((OR($C54="RP",$C54="SP")),VLOOKUP($B54,Pitcher!$A$1:$AB$600,21,FALSE),""),"") -> 3.313692211 | R54: =IFERROR(IF((OR($C54="RP",$C54="SP")),VLOOKUP($B54,Pitcher!$A$1:$V$600,22,FALSE),""),"") -> 1.168675114 | S54: =IFERROR(IF((OR($C54="RP",$C54="SP")),"",VLOOKUP($B54,Hitter!$A$1:$AH$600,27,FALSE)),"") ->  | T54: =IFERROR(IF((OR($C54="RP",$C54="SP")),"",VLOOKUP($B54,Hitter!$A$1:$AH$600,9,FALSE)),"") ->  | U54: =IFERROR(IF((OR($C54="RP",$C54="SP")),"",VLOOKUP($B54,Hitter!$A$1:$AH$600,10,FALSE)),"") ->  | V54: =IFERROR(IF((OR($C54="RP",$C54="SP")),"",VLOOKUP($B54,Hitter!$A$1:$AH$600,4,FALSE)),"") ->  | W54: =IFERROR(IF((OR($C54="RP",$C54="SP")),"",VLOOKUP($B54,Hitter!$A$1:$AH$600,11,FALSE)),"") ->  | X54: =IFERROR(IF(ISTEXT($A54),"",(1-NORMDIST((COUNTA($A$4:$A$600)),($G54),((AB54-AA54)/6),TRUE))),"") -> 1 | Y54: =IFERROR(IF(ISTEXT($A54),"",(1-NORMDIST((COUNTA($A$4:$A$600))+(Personalize!$E$18+1),$G54,((AB54-AA54)/6),TRUE))),"") -> 1 | Z54: =IFERROR(IF(ISTEXT($A54),"",(1-NORMDIST((COUNTA($A$4:$A$600))+((Personalize!$E$18+1)*2),$G54,((AB54-AA54)/6),TRUE))),"") -> 1 | AA54: =IF(Personalize!$E$34=1,VLOOKUP($B54,'ADP-Rank'!$A$2:$J$600,5,FALSE),(IF(Personalize!$E$34=2,VLOOKUP($B54,'ADP-Rank'!$A$2:$J$600,8,FALSE),(IF(Personalize!$E$34=3,VLOOKUP($B54,'ADP-Rank'!$A$2:$O$600,11,FALSE),""))))) -> 40 | AB54: =IF(Personalize!$E$34=1,VLOOKUP($B54,'ADP-Rank'!$A$2:$J$600,6,FALSE),(IF(Personalize!$E$34=2,VLOOKUP($B54,'ADP-Rank'!$A$2:$J$600,9,FALSE),(IF(Personalize!$E$34=3,VLOOKUP($B54,'ADP-Rank'!$A$2:$O$600,12,FALSE),""))))) -> 87 | AC54: =IF(ISBLANK(A54),0,1) -> 0 | AD54: =IF(K54="",0,1) -> 1 | AE54: =A54 -> 0 | AF54: =IF(C54="C",1,IF(C54="1B",2,IF(C54="2B",3,IF(C54="3B",4,IF(C54="SS",5,IF(C54="CI",6,IF(C54="MI",7,IF(C54="OF",11,IF(C54="LF",8,IF(C54="CF",9,IF(C54="RF",10,IF(C54="DH",12,IF(C54="SP",13,IF(C54="RP",14,IF(C54="P",15,16))))))))))))))) -> 13 | AG54: =VLOOKUP(B54,'Starter Calc'!$B$2:$BN$600,65,FALSE) -> Bench
B55: Stephen Strasburg | C55: =IFERROR(IF(VLOOKUP(B55,'ADP-Rank'!$A$2:$B$600,2,FALSE)="OF",VLOOKUP(B55,'Starter Calc'!$B$2:$AM$600,38,FALSE),(VLOOKUP(B55,'ADP-Rank'!$A$2:$B$600,2,FALSE))),"") -> SP | D55: =IFERROR(IF(VLOOKUP(B55,'Starter Calc'!$B$2:$E$600,4,FALSE)="","",VLOOKUP(B55,'Starter Calc'!$B$2:$E$600,4,FALSE)),"") ->  | E55: =IFERROR(VLOOKUP($B55,'ADP-Rank'!$A$2:$D$600,3,FALSE),"") -> WAS | F55: =IFERROR(VLOOKUP($B55,'ADP-Rank'!$A$2:$W$600,23,FALSE),"") -> 24 | G55: =IFERROR((IF(Personalize!$E$38=1,VLOOKUP($B55,'ADP-Rank'!$A$2:$J$599,4,FALSE),(IF(Personalize!$E$38=2,VLOOKUP($B55,'ADP-Rank'!$A$2:$J$599,7,FALSE),(IF(Personalize!$E$38=3,VLOOKUP($B55,'ADP-Rank'!$A$2:$J$599,10,FALSE),(IF(Personalize!$E$38=4,VLOOKUP($B55,'ADP-Rank'!$A$2:$AD$599,24,FALSE),(IF(Personalize!$E$38=5,VLOOKUP($B55,'ADP-Rank'!$A$2:$AD$599,27,FALSE))))))))))),"") -> 59.205 | H55: =IFERROR((G55/(Personalize!$E$22+1))+1,"") -> 5.554230769 | I55: =IFERROR(CHOOSE(Personalize!$E$39,VLOOKUP($B55,'ADP-Rank'!$A$2:$U$600,13,FALSE),VLOOKUP($B55,'ADP-Rank'!$A$2:$U$600,14,FALSE),VLOOKUP($B55,'ADP-Rank'!$A$2:$U$600,15,FALSE),VLOOKUP($B55,'ADP-Rank'!$A$2:$U$600,16,FALSE),VLOOKUP($B55,'ADP-Rank'!$A$2:$U$600,17,FALSE),VLOOKUP($B55,'ADP-Rank'!$A$2:$U$600,18,FALSE),VLOOKUP($B55,'ADP-Rank'!$A$2:$U$600,19,FALSE),VLOOKUP($B55,'ADP-Rank'!$A$2:$U$600,20,FALSE)),"") -> 73.14285714 | J55: =IFERROR(RANK($M55,$M$4:$M$600,0),"") -> 254 | K55: =IFERROR(IF((OR($C55="RP",$C55="SP")),VLOOKUP($B55,Pitcher!$A$1:$Z$600,20,FALSE),(VLOOKUP($B55,Hitter!$A$1:$Z$600,26,FALSE))),"") -> 223.7622735 | L55: =IFERROR(IF((OR($C55="RP",$C55="SP")),VLOOKUP($C55,'Filtered-P'!$M$3:$P$4,4,FALSE), VLOOKUP($C55,Filtered!$Q$3:$T$14,4,FALSE)),"") -> 331.9275286 | M55: =IFERROR(K55-L55,"") -> -108.1652551 | N55: =IFERROR(IF((OR($C55="RP",$C55="SP")),VLOOKUP($B55,Pitcher!$A$1:$V$600,2,FALSE),""),"") -> 6.814859211 | O55: =IFERROR(IF((OR($C55="RP",$C55="SP")),VLOOKUP($B55,Pitcher!$A$1:$V$600,9,FALSE),""),"") -> 0 | P55: =IFERROR(IF((OR($C55="RP",$C55="SP")),VLOOKUP($B55,Pitcher!$A$1:$V$600,7,FALSE),""),"") -> 98.32872141 | Q55: =IFERROR(IF((OR($C55="RP",$C55="SP")),VLOOKUP($B55,Pitcher!$A$1:$AB$600,21,FALSE),""),"") -> 2.88093267 | R55: =IFERROR(IF((OR($C55="RP",$C55="SP")),VLOOKUP($B55,Pitcher!$A$1:$V$600,22,FALSE),""),"") -> 1.119904768 | S55: =IFERROR(IF((OR($C55="RP",$C55="SP")),"",VLOOKUP($B55,Hitter!$A$1:$AH$600,27,FALSE)),"") ->  | T55: =IFERROR(IF((OR($C55="RP",$C55="SP")),"",VLOOKUP($B55,Hitter!$A$1:$AH$600,9,FALSE)),"") ->  | U55: =IFERROR(IF((OR($C55="RP",$C55="SP")),"",VLOOKUP($B55,Hitter!$A$1:$AH$600,10,FALSE)),"") ->  | V55: =IFERROR(IF((OR($C55="RP",$C55="SP")),"",VLOOKUP($B55,Hitter!$A$1:$AH$600,4,FALSE)),"") ->  | W55: =IFERROR(IF((OR($C55="RP",$C55="SP")),"",VLOOKUP($B55,Hitter!$A$1:$AH$600,11,FALSE)),"") ->  | X55: =IFERROR(IF(ISTEXT($A55),"",(1-NORMDIST((COUNTA($A$4:$A$600)),($G55),((AB55-AA55)/6),TRUE))),"") -> 1 | Y55: =IFERROR(IF(ISTEXT($A55),"",(1-NORMDIST((COUNTA($A$4:$A$600))+(Personalize!$E$18+1),$G55,((AB55-AA55)/6),TRUE))),"") -> 0.9999999999 | Z55: =IFERROR(IF(ISTEXT($A55),"",(1-NORMDIST((COUNTA($A$4:$A$600))+((Personalize!$E$18+1)*2),$G55,((AB55-AA55)/6),TRUE))),"") -> 0.9999999991 | AA55: =IF(Personalize!$E$34=1,VLOOKUP($B55,'ADP-Rank'!$A$2:$J$600,5,FALSE),(IF(Personalize!$E$34=2,VLOOKUP($B55,'ADP-Rank'!$A$2:$J$600,8,FALSE),(IF(Personalize!$E$34=3,VLOOKUP($B55,'ADP-Rank'!$A$2:$O$600,11,FALSE),""))))) -> 33 | AB55: =IF(Personalize!$E$34=1,VLOOKUP($B55,'ADP-Rank'!$A$2:$J$600,6,FALSE),(IF(Personalize!$E$34=2,VLOOKUP($B55,'ADP-Rank'!$A$2:$J$600,9,FALSE),(IF(Personalize!$E$34=3,VLOOKUP($B55,'ADP-Rank'!$A$2:$O$600,12,FALSE),""))))) -> 85 | AC55: =IF(ISBLANK(A55),0,1) -> 0 | AD55: =IF(K55="",0,1) -> 1 | AE55: =A55 -> 0 | AF55: =IF(C55="C",1,IF(C55="1B",2,IF(C55="2B",3,IF(C55="3B",4,IF(C55="SS",5,IF(C55="CI",6,IF(C55="MI",7,IF(C55="OF",11,IF(C55="LF",8,IF(C55="CF",9,IF(C55="RF",10,IF(C55="DH",12,IF(C55="SP",13,IF(C55="RP",14,IF(C55="P",15,16))))))))))))))) -> 13 | AG55: =VLOOKUP(B55,'Starter Calc'!$B$2:$BN$600,65,FALSE) -> Bench
B56: Alex Rodriguez | C56: =IFERROR(IF(VLOOKUP(B56,'ADP-Rank'!$A$2:$B$600,2,FALSE)="OF",VLOOKUP(B56,'Starter Calc'!$B$2:$AM$600,38,FALSE),(VLOOKUP(B56,'ADP-Rank'!$A$2:$B$600,2,FALSE))),"") -> 3B | D56: =IFERROR(IF(VLOOKUP(B56,'Starter Calc'!$B$2:$E$600,4,FALSE)="","",VLOOKUP(B56,'Starter Calc'!$B$2:$E$600,4,FALSE)),"") ->  | E56: =IFERROR(VLOOKUP($B56,'ADP-Rank'!$A$2:$D$600,3,FALSE),"") -> NYY | F56: =IFERROR(VLOOKUP($B56,'ADP-Rank'!$A$2:$W$600,23,FALSE),"") -> 37 | G56: =IFERROR((IF(Personalize!$E$38=1,VLOOKUP($B56,'ADP-Rank'!$A$2:$J$599,4,FALSE),(IF(Personalize!$E$38=2,VLOOKUP($B56,'ADP-Rank'!$A$2:$J$599,7,FALSE),(IF(Personalize!$E$38=3,VLOOKUP($B56,'ADP-Rank'!$A$2:$J$599,10,FALSE),(IF(Personalize!$E$38=4,VLOOKUP($B56,'ADP-Rank'!$A$2:$AD$599,24,FALSE),(IF(Personalize!$E$38=5,VLOOKUP($B56,'ADP-Rank'!$A$2:$AD$599,27,FALSE))))))))))),"") -> 59.7975 | H56: =IFERROR((G56/(Personalize!$E$22+1))+1,"") -> 5.599807692 | I56: =IFERROR(CHOOSE(Personalize!$E$39,VLOOKUP($B56,'ADP-Rank'!$A$2:$U$600,13,FALSE),VLOOKUP($B56,'ADP-Rank'!$A$2:$U$600,14,FALSE),VLOOKUP($B56,'ADP-Rank'!$A$2:$U$600,15,FALSE),VLOOKUP($B56,'ADP-Rank'!$A$2:$U$600,16,FALSE),VLOOKUP($B56,'ADP-Rank'!$A$2:$U$600,17,FALSE),VLOOKUP($B56,'ADP-Rank'!$A$2:$U$600,18,FALSE),VLOOKUP($B56,'ADP-Rank'!$A$2:$U$600,19,FALSE),VLOOKUP($B56,'ADP-Rank'!$A$2:$U$600,20,FALSE)),"") -> 72 | J56: =IFERROR(RANK($M56,$M$4:$M$600,0),"") -> 92 | K56: =IFERROR(IF((OR($C56="RP",$C56="SP")),VLOOKUP($B56,Pitcher!$A$1:$Z$600,20,FALSE),(VLOOKUP($B56,Hitter!$A$1:$Z$600,26,FALSE))),"") -> 314.0865543 | L56: =IFERROR(IF((OR($C56="RP",$C56="SP")),VLOOKUP($C56,'Filtered-P'!$M$3:$P$4,4,FALSE), VLOOKUP($C56,Filtered!$Q$3:$T$14,4,FALSE)),"") -> 326.1386933 | M56: =IFERROR(K56-L56,"") -> -12.05213907 | N56: =IFERROR(IF((OR($C56="RP",$C56="SP")),VLOOKUP($B56,Pitcher!$A$1:$V$600,2,FALSE),""),"") ->  | O56: =IFERROR(IF((OR($C56="RP",$C56="SP")),VLOOKUP($B56,Pitcher!$A$1:$V$600,9,FALSE),""),"") ->  | P56: =IFERROR(IF((OR($C56="RP",$C56="SP")),VLOOKUP($B56,Pitcher!$A$1:$V$600,7,FALSE),""),"") ->  | Q56: =IFERROR(IF((OR($C56="RP",$C56="SP")),VLOOKUP($B56,Pitcher!$A$1:$AB$600,21,FALSE),""),"") ->  | R56: =IFERROR(IF((OR($C56="RP",$C56="SP")),VLOOKUP($B56,Pitcher!$A$1:$V$600,22,FALSE),""),"") ->  | S56: =IFERROR(IF((OR($C56="RP",$C56="SP")),"",VLOOKUP($B56,Hitter!$A$1:$AH$600,27,FALSE)),"") -> 0.2665345981 | T56: =IFERROR(IF((OR($C56="RP",$C56="SP")),"",VLOOKUP($B56,Hitter!$A$1:$AH$600,9,FALSE)),"") -> 21.18322503 | U56: =IFERROR(IF((OR($C56="RP",$C56="SP")),"",VLOOKUP($B56,Hitter!$A$1:$AH$600,10,FALSE)),"") -> 79.31937564 | V56: =IFERROR(IF((OR($C56="RP",$C56="SP")),"",VLOOKUP($B56,Hitter!$A$1:$AH$600,4,FALSE)),"") -> 66.68439329 | W56: =IFERROR(IF((OR($C56="RP",$C56="SP")),"",VLOOKUP($B56,Hitter!$A$1:$AH$600,11,FALSE)),"") -> 6.164122304 | X56: =IFERROR(IF(ISTEXT($A56),"",(1-NORMDIST((COUNTA($A$4:$A$600)),($G56),((AB56-AA56)/6),TRUE))),"") -> 1 | Y56: =IFERROR(IF(ISTEXT($A56),"",(1-NORMDIST((COUNTA($A$4:$A$600))+(Personalize!$E$18+1),$G56,((AB56-AA56)/6),TRUE))),"") -> 1 | Z56: =IFERROR(IF(ISTEXT($A56),"",(1-NORMDIST((COUNTA($A$4:$A$600))+((Personalize!$E$18+1)*2),$G56,((AB56-AA56)/6),TRUE))),"") -> 1 | AA56: =IF(Personalize!$E$34=1,VLOOKUP($B56,'ADP-Rank'!$A$2:$J$600,5,FALSE),(IF(Personalize!$E$34=2,VLOOKUP($B56,'ADP-Rank'!$A$2:$J$600,8,FALSE),(IF(Personalize!$E$34=3,VLOOKUP($B56,'ADP-Rank'!$A$2:$O$600,11,FALSE),""))))) -> 39 | AB56: =IF(Personalize!$E$34=1,VLOOKUP($B56,'ADP-Rank'!$A$2:$J$600,6,FALSE),(IF(Personalize!$E$34=2,VLOOKUP($B56,'ADP-Rank'!$A$2:$J$600,9,FALSE),(IF(Personalize!$E$34=3,VLOOKUP($B56,'ADP-Rank'!$A$2:$O$600,12,FALSE),""))))) -> 87 | AC56: =IF(ISBLANK(A56),0,1) -> 0 | AD56: =IF(K56="",0,1) -> 1 | AE56: =A56 -> 0 | AF56: =IF(C56="C",1,IF(C56="1B",2,IF(C56="2B",3,IF(C56="3B",4,IF(C56="SS",5,IF(C56="CI",6,IF(C56="MI",7,IF(C56="OF",11,IF(C56="LF",8,IF(C56="CF",9,IF(C56="RF",10,IF(C56="DH",12,IF(C56="SP",13,IF(C56="RP",14,IF(C56="P",15,16))))))))))))))) -> 4 | AG56: =VLOOKUP(B56,'Starter Calc'!$B$2:$BN$600,65,FALSE) -> Bench
B57: Pablo Sandoval | C57: =IFERROR(IF(VLOOKUP(B57,'ADP-Rank'!$A$2:$B$600,2,FALSE)="OF",VLOOKUP(B57,'Starter Calc'!$B$2:$AM$600,38,FALSE),(VLOOKUP(B57,'ADP-Rank'!$A$2:$B$600,2,FALSE))),"") -> 3B | D57: =IFERROR(IF(VLOOKUP(B57,'Starter Calc'!$B$2:$E$600,4,FALSE)="","",VLOOKUP(B57,'Starter Calc'!$B$2:$E$600,4,FALSE)),"") ->  | E57: =IFERROR(VLOOKUP($B57,'ADP-Rank'!$A$2:$D$600,3,FALSE),"") -> SF | F57: =IFERROR(VLOOKUP($B57,'ADP-Rank'!$A$2:$W$600,23,FALSE),"") -> 26 | G57: =IFERROR((IF(Personalize!$E$38=1,VLOOKUP($B57,'ADP-Rank'!$A$2:$J$599,4,FALSE),(IF(Personalize!$E$38=2,VLOOKUP($B57,'ADP-Rank'!$A$2:$J$599,7,FALSE),(IF(Personalize!$E$38=3,VLOOKUP($B57,'ADP-Rank'!$A$2:$J$599,10,FALSE),(IF(Personalize!$E$38=4,VLOOKUP($B57,'ADP-Rank'!$A$2:$AD$599,24,FALSE),(IF(Personalize!$E$38=5,VLOOKUP($B57,'ADP-Rank'!$A$2:$AD$599,27,FALSE))))))))))),"") -> 60.2475 | H57: =IFERROR((G57/(Personalize!$E$22+1))+1,"") -> 5.634423077 | I57: =IFERROR(CHOOSE(Personalize!$E$39,VLOOKUP($B57,'ADP-Rank'!$A$2:$U$600,13,FALSE),VLOOKUP($B57,'ADP-Rank'!$A$2:$U$600,14,FALSE),VLOOKUP($B57,'ADP-Rank'!$A$2:$U$600,15,FALSE),VLOOKUP($B57,'ADP-Rank'!$A$2:$U$600,16,FALSE),VLOOKUP($B57,'ADP-Rank'!$A$2:$U$600,17,FALSE),VLOOKUP($B57,'ADP-Rank'!$A$2:$U$600,18,FALSE),VLOOKUP($B57,'ADP-Rank'!$A$2:$U$600,19,FALSE),VLOOKUP($B57,'ADP-Rank'!$A$2:$U$600,20,FALSE)),"") -> 43 | J57: =IFERROR(RANK($M57,$M$4:$M$600,0),"") -> 46 | K57: =IFERROR(IF((OR($C57="RP",$C57="SP")),VLOOKUP($B57,Pitcher!$A$1:$Z$600,20,FALSE),(VLOOKUP($B57,Hitter!$A$1:$Z$600,26,FALSE))),"") -> 358.5379384 | L57: =IFERROR(IF((OR($C57="RP",$C57="SP")),VLOOKUP($C57,'Filtered-P'!$M$3:$P$4,4,FALSE), VLOOKUP($C57,Filtered!$Q$3:$T$14,4,FALSE)),"") -> 326.1386933 | M57: =IFERROR(K57-L57,"") -> 32.39924503 | N57: =IFERROR(IF((OR($C57="RP",$C57="SP")),VLOOKUP($B57,Pitcher!$A$1:$V$600,2,FALSE),""),"") ->  | O57: =IFERROR(IF((OR($C57="RP",$C57="SP")),VLOOKUP($B57,Pitcher!$A$1:$V$600,9,FALSE),""),"") ->  | P57: =IFERROR(IF((OR($C57="RP",$C57="SP")),VLOOKUP($B57,Pitcher!$A$1:$V$600,7,FALSE),""),"") ->  | Q57: =IFERROR(IF((OR($C57="RP",$C57="SP")),VLOOKUP($B57,Pitcher!$A$1:$AB$600,21,FALSE),""),"") ->  | R57: =IFERROR(IF((OR($C57="RP",$C57="SP")),VLOOKUP($B57,Pitcher!$A$1:$V$600,22,FALSE),""),"") ->  | S57: =IFERROR(IF((OR($C57="RP",$C57="SP")),"",VLOOKUP($B57,Hitter!$A$1:$AH$600,27,FALSE)),"") -> 0.2997452183 | T57: =IFERROR(IF((OR($C57="RP",$C57="SP")),"",VLOOKUP($B57,Hitter!$A$1:$AH$600,9,FALSE)),"") -> 20.10906566 | U57: =IFERROR(IF((OR($C57="RP",$C57="SP")),"",VLOOKUP($B57,Hitter!$A$1:$AH$600,10,FALSE)),"") -> 74.10855032 | V57: =IFERROR(IF((OR($C57="RP",$C57="SP")),"",VLOOKUP($B57,Hitter!$A$1:$AH$600,4,FALSE)),"") -> 66.8097041 | W57: =IFERROR(IF((OR($C57="RP",$C57="SP")),"",VLOOKUP($B57,Hitter!$A$1:$AH$600,11,FALSE)),"") -> 3.438412158 | X57: =IFERROR(IF(ISTEXT($A57),"",(1-NORMDIST((COUNTA($A$4:$A$600)),($G57),((AB57-AA57)/6),TRUE))),"") -> 0.9999999972 | Y57: =IFERROR(IF(ISTEXT($A57),"",(1-NORMDIST((COUNTA($A$4:$A$600))+(Personalize!$E$18+1),$G57,((AB57-AA57)/6),TRUE))),"") -> 0.9999999801 | Z57: =IFERROR(IF(ISTEXT($A57),"",(1-NORMDIST((COUNTA($A$4:$A$600))+((Personalize!$E$18+1)*2),$G57,((AB57-AA57)/6),TRUE))),"") -> 0.9999998718 | AA57: =IF(Personalize!$E$34=1,VLOOKUP($B57,'ADP-Rank'!$A$2:$J$600,5,FALSE),(IF(Personalize!$E$34=2,VLOOKUP($B57,'ADP-Rank'!$A$2:$J$600,8,FALSE),(IF(Personalize!$E$34=3,VLOOKUP($B57,'ADP-Rank'!$A$2:$O$600,11,FALSE),""))))) -> 35 | AB57: =IF(Personalize!$E$34=1,VLOOKUP($B57,'ADP-Rank'!$A$2:$J$600,6,FALSE),(IF(Personalize!$E$34=2,VLOOKUP($B57,'ADP-Rank'!$A$2:$J$600,9,FALSE),(IF(Personalize!$E$34=3,VLOOKUP($B57,'ADP-Rank'!$A$2:$O$600,12,FALSE),""))))) -> 97 | AC57: =IF(ISBLANK(A57),0,1) -> 0 | AD57: =IF(K57="",0,1) -> 1 | AE57: =A57 -> 0 | AF57: =IF(C57="C",1,IF(C57="1B",2,IF(C57="2B",3,IF(C57="3B",4,IF(C57="SS",5,IF(C57="CI",6,IF(C57="MI",7,IF(C57="OF",11,IF(C57="LF",8,IF(C57="CF",9,IF(C57="RF",10,IF(C57="DH",12,IF(C57="SP",13,IF(C57="RP",14,IF(C57="P",15,16))))))))))))))) -> 4 | AG57: =VLOOKUP(B57,'Starter Calc'!$B$2:$BN$600,65,FALSE) -> Bench
B58: Brian McCann | C58: =IFERROR(IF(VLOOKUP(B58,'ADP-Rank'!$A$2:$B$600,2,FALSE)="OF",VLOOKUP(B58,'Starter Calc'!$B$2:$AM$600,38,FALSE),(VLOOKUP(B58,'ADP-Rank'!$A$2:$B$600,2,FALSE))),"") -> C | D58: =IFERROR(IF(VLOOKUP(B58,'Starter Calc'!$B$2:$E$600,4,FALSE)="","",VLOOKUP(B58,'Starter Calc'!$B$2:$E$600,4,FALSE)),"") ->  | E58: =IFERROR(VLOOKUP($B58,'ADP-Rank'!$A$2:$D$600,3,FALSE),"") -> ATL | F58: =IFERROR(VLOOKUP($B58,'ADP-Rank'!$A$2:$W$600,23,FALSE),"") -> 28 | G58: =IFERROR((IF(Personalize!$E$38=1,VLOOKUP($B58,'ADP-Rank'!$A$2:$J$599,4,FALSE),(IF(Personalize!$E$38=2,VLOOKUP($B58,'ADP-Rank'!$A$2:$J$599,7,FALSE),(IF(Personalize!$E$38=3,VLOOKUP($B58,'ADP-Rank'!$A$2:$J$599,10,FALSE),(IF(Personalize!$E$38=4,VLOOKUP($B58,'ADP-Rank'!$A$2:$AD$599,24,FALSE),(IF(Personalize!$E$38=5,VLOOKUP($B58,'ADP-Rank'!$A$2:$AD$599,27,FALSE))))))))))),"") -> 61.11 | H58: =IFERROR((G58/(Personalize!$E$22+1))+1,"") -> 5.700769231 | I58: =IFERROR(CHOOSE(Personalize!$E$39,VLOOKUP($B58,'ADP-Rank'!$A$2:$U$600,13,FALSE),VLOOKUP($B58,'ADP-Rank'!$A$2:$U$600,14,FALSE),VLOOKUP($B58,'ADP-Rank'!$A$2:$U$600,15,FALSE),VLOOKUP($B58,'ADP-Rank'!$A$2:$U$600,16,FALSE),VLOOKUP($B58,'ADP-Rank'!$A$2:$U$600,17,FALSE),VLOOKUP($B58,'ADP-Rank'!$A$2:$U$600,18,FALSE),VLOOKUP($B58,'ADP-Rank'!$A$2:$U$600,19,FALSE),VLOOKUP($B58,'ADP-Rank'!$A$2:$U$600,20,FALSE)),"") -> 55.42857143 | J58: =IFERROR(RANK($M58,$M$4:$M$600,0),"") -> 48 | K58: =IFERROR(IF((OR($C58="RP",$C58="SP")),VLOOKUP($B58,Pitcher!$A$1:$Z$600,20,FALSE),(VLOOKUP($B58,Hitter!$A$1:$Z$600,26,FALSE))),"") -> 319.0175175 | L58: =IFERROR(IF((OR($C58="RP",$C58="SP")),VLOOKUP($C58,'Filtered-P'!$M$3:$P$4,4,FALSE), VLOOKUP($C58,Filtered!$Q$3:$T$14,4,FALSE)),"") -> 287.5109171 | M58: =IFERROR(K58-L58,"") -> 31.50660042 | N58: =IFERROR(IF((OR($C58="RP",$C58="SP")),VLOOKUP($B58,Pitcher!$A$1:$V$600,2,FALSE),""),"") ->  | O58: =IFERROR(IF((OR($C58="RP",$C58="SP")),VLOOKUP($B58,Pitcher!$A$1:$V$600,9,FALSE),""),"") ->  | P58: =IFERROR(IF((OR($C58="RP",$C58="SP")),VLOOKUP($B58,Pitcher!$A$1:$V$600,7,FALSE),""),"") ->  | Q58: =IFERROR(IF((OR($C58="RP",$C58="SP")),VLOOKUP($B58,Pitcher!$A$1:$AB$600,21,FALSE),""),"") ->  | R58: =IFERROR(IF((OR($C58="RP",$C58="SP")),VLOOKUP($B58,Pitcher!$A$1:$V$600,22,FALSE),""),"") ->  | S58: =IFERROR(IF((OR($C58="RP",$C58="SP")),"",VLOOKUP($B58,Hitter!$A$1:$AH$600,27,FALSE)),"") -> 0.2679021975 | T58: =IFERROR(IF((OR($C58="RP",$C58="SP")),"",VLOOKUP($B58,Hitter!$A$1:$AH$600,9,FALSE)),"") -> 20.57795629 | U58: =IFERROR(IF((OR($C58="RP",$C58="SP")),"",VLOOKUP($B58,Hitter!$A$1:$AH$600,10,FALSE)),"") -> 74.01585258 | V58: =IFERROR(IF((OR($C58="RP",$C58="SP")),"",VLOOKUP($B58,Hitter!$A$1:$AH$600,4,FALSE)),"") -> 58.17606291 | W58: =IFERROR(IF((OR($C58="RP",$C58="SP")),"",VLOOKUP($B58,Hitter!$A$1:$AH$600,11,FALSE)),"") -> 4.005125551 | X58: =IFERROR(IF(ISTEXT($A58),"",(1-NORMDIST((COUNTA($A$4:$A$600)),($G58),((AB58-AA58)/6),TRUE))),"") -> 1 | Y58: =IFERROR(IF(ISTEXT($A58),"",(1-NORMDIST((COUNTA($A$4:$A$600))+(Personalize!$E$18+1),$G58,((AB58-AA58)/6),TRUE))),"") -> 1 | Z58: =IFERROR(IF(ISTEXT($A58),"",(1-NORMDIST((COUNTA($A$4:$A$600))+((Personalize!$E$18+1)*2),$G58,((AB58-AA58)/6),TRUE))),"") -> 1 | AA58: =IF(Personalize!$E$34=1,VLOOKUP($B58,'ADP-Rank'!$A$2:$J$600,5,FALSE),(IF(Personalize!$E$34=2,VLOOKUP($B58,'ADP-Rank'!$A$2:$J$600,8,FALSE),(IF(Personalize!$E$34=3,VLOOKUP($B58,'ADP-Rank'!$A$2:$O$600,11,FALSE),""))))) -> 31 | AB58: =IF(Personalize!$E$34=1,VLOOKUP($B58,'ADP-Rank'!$A$2:$J$600,6,FALSE),(IF(Personalize!$E$34=2,VLOOKUP($B58,'ADP-Rank'!$A$2:$J$600,9,FALSE),(IF(Personalize!$E$34=3,VLOOKUP($B58,'ADP-Rank'!$A$2:$O$600,12,FALSE),""))))) -> 70 | AC58: =IF(ISBLANK(A58),0,1) -> 0 | AD58: =IF(K58="",0,1) -> 1 | AE58: =A58 -> 0 | AF58: =IF(C58="C",1,IF(C58="1B",2,IF(C58="2B",3,IF(C58="3B",4,IF(C58="SS",5,IF(C58="CI",6,IF(C58="MI",7,IF(C58="OF",11,IF(C58="LF",8,IF(C58="CF",9,IF(C58="RF",10,IF(C58="DH",12,IF(C58="SP",13,IF(C58="RP",14,IF(C58="P",15,16))))))))))))))) -> 1 | AG58: =VLOOKUP(B58,'Starter Calc'!$B$2:$BN$600,65,FALSE) -> Bench
B59: Brett Lawrie | C59: =IFERROR(IF(VLOOKUP(B59,'ADP-Rank'!$A$2:$B$600,2,FALSE)="OF",VLOOKUP(B59,'Starter Calc'!$B$2:$AM$600,38,FALSE),(VLOOKUP(B59,'ADP-Rank'!$A$2:$B$600,2,FALSE))),"") -> 3B | D59: =IFERROR(IF(VLOOKUP(B59,'Starter Calc'!$B$2:$E$600,4,FALSE)="","",VLOOKUP(B59,'Starter Calc'!$B$2:$E$600,4,FALSE)),"") ->  | E59: =IFERROR(VLOOKUP($B59,'ADP-Rank'!$A$2:$D$600,3,FALSE),"") -> TOR | F59: =IFERROR(VLOOKUP($B59,'ADP-Rank'!$A$2:$W$600,23,FALSE),"") -> 22 | G59: =IFERROR((IF(Personalize!$E$38=1,VLOOKUP($B59,'ADP-Rank'!$A$2:$J$599,4,FALSE),(IF(Personalize!$E$38=2,VLOOKUP($B59,'ADP-Rank'!$A$2:$J$599,7,FALSE),(IF(Personalize!$E$38=3,VLOOKUP($B59,'ADP-Rank'!$A$2:$J$599,10,FALSE),(IF(Personalize!$E$38=4,VLOOKUP($B59,'ADP-Rank'!$A$2:$AD$599,24,FALSE),(IF(Personalize!$E$38=5,VLOOKUP($B59,'ADP-Rank'!$A$2:$AD$599,27,FALSE))))))))))),"") -> 61.57 | H59: =IFERROR((G59/(Personalize!$E$22+1))+1,"") -> 5.736153846 | I59: =IFERROR(CHOOSE(Personalize!$E$39,VLOOKUP($B59,'ADP-Rank'!$A$2:$U$600,13,FALSE),VLOOKUP($B59,'ADP-Rank'!$A$2:$U$600,14,FALSE),VLOOKUP($B59,'ADP-Rank'!$A$2:$U$600,15,FALSE),VLOOKUP($B59,'ADP-Rank'!$A$2:$U$600,16,FALSE),VLOOKUP($B59,'ADP-Rank'!$A$2:$U$600,17,FALSE),VLOOKUP($B59,'ADP-Rank'!$A$2:$U$600,18,FALSE),VLOOKUP($B59,'ADP-Rank'!$A$2:$U$600,19,FALSE),VLOOKUP($B59,'ADP-Rank'!$A$2:$U$600,20,FALSE)),"") -> 57.28571429 | J59: =IFERROR(RANK($M59,$M$4:$M$600,0),"") -> 130 | K59: =IFERROR(IF((OR($C59="RP",$C59="SP")),VLOOKUP($B59,Pitcher!$A$1:$Z$600,20,FALSE),(VLOOKUP($B59,Hitter!$A$1:$Z$600,26,FALSE))),"") -> 287.3504907 | L59: =IFERROR(IF((OR($C59="RP",$C59="SP")),VLOOKUP($C59,'Filtered-P'!$M$3:$P$4,4,FALSE), VLOOKUP($C59,Filtered!$Q$3:$T$14,4,FALSE)),"") -> 326.1386933 | M59: =IFERROR(K59-L59,"") -> -38.78820259 | N59: =IFERROR(IF((OR($C59="RP",$C59="SP")),VLOOKUP($B59,Pitcher!$A$1:$V$600,2,FALSE),""),"") ->  | O59: =IFERROR(IF((OR($C59="RP",$C59="SP")),VLOOKUP($B59,Pitcher!$A$1:$V$600,9,FALSE),""),"") ->  | P59: =IFERROR(IF((OR($C59="RP",$C59="SP")),VLOOKUP($B59,Pitcher!$A$1:$V$600,7,FALSE),""),"") ->  | Q59: =IFERROR(IF((OR($C59="RP",$C59="SP")),VLOOKUP($B59,Pitcher!$A$1:$AB$600,21,FALSE),""),"") ->  | R59: =IFERROR(IF((OR($C59="RP",$C59="SP")),VLOOKUP($B59,Pitcher!$A$1:$V$600,22,FALSE),""),"") ->  | S59: =IFERROR(IF((OR($C59="RP",$C59="SP")),"",VLOOKUP($B59,Hitter!$A$1:$AH$600,27,FALSE)),"") -> 0.2683201021 | T59: =IFERROR(IF((OR($C59="RP",$C59="SP")),"",VLOOKUP($B59,Hitter!$A$1:$AH$600,9,FALSE)),"") -> 17.28212723 | U59: =IFERROR(IF((OR($C59="RP",$C59="SP")),"",VLOOKUP($B59,Hitter!$A$1:$AH$600,10,FALSE)),"") -> 58.6359363 | V59: =IFERROR(IF((OR($C59="RP",$C59="SP")),"",VLOOKUP($B59,Hitter!$A$1:$AH$600,4,FALSE)),"") -> 64.69231141 | W59: =IFERROR(IF((OR($C59="RP",$C59="SP")),"",VLOOKUP($B59,Hitter!$A$1:$AH$600,11,FALSE)),"") -> 15.53262794 | X59: =IFERROR(IF(ISTEXT($A59),"",(1-NORMDIST((COUNTA($A$4:$A$600)),($G59),((AB59-AA59)/6),TRUE))),"") -> 1 | Y59: =IFERROR(IF(ISTEXT($A59),"",(1-NORMDIST((COUNTA($A$4:$A$600))+(Personalize!$E$18+1),$G59,((AB59-AA59)/6),TRUE))),"") -> 1 | Z59: =IFERROR(IF(ISTEXT($A59),"",(1-NORMDIST((COUNTA($A$4:$A$600))+((Personalize!$E$18+1)*2),$G59,((AB59-AA59)/6),TRUE))),"") -> 1 | AA59: =IF(Personalize!$E$34=1,VLOOKUP($B59,'ADP-Rank'!$A$2:$J$600,5,FALSE),(IF(Personalize!$E$34=2,VLOOKUP($B59,'ADP-Rank'!$A$2:$J$600,8,FALSE),(IF(Personalize!$E$34=3,VLOOKUP($B59,'ADP-Rank'!$A$2:$O$600,11,FALSE),""))))) -> 25 | AB59: =IF(Personalize!$E$34=1,VLOOKUP($B59,'ADP-Rank'!$A$2:$J$600,6,FALSE),(IF(Personalize!$E$34=2,VLOOKUP($B59,'ADP-Rank'!$A$2:$J$600,9,FALSE),(IF(Personalize!$E$34=3,VLOOKUP($B59,'ADP-Rank'!$A$2:$O$600,12,FALSE),""))))) -> 75 | AC59: =IF(ISBLANK(A59),0,1) -> 0 | AD59: =IF(K59="",0,1) -> 1 | AE59: =A59 -> 0 | AF59: =IF(C59="C",1,IF(C59="1B",2,IF(C59="2B",3,IF(C59="3B",4,IF(C59="SS",5,IF(C59="CI",6,IF(C59="MI",7,IF(C59="OF",11,IF(C59="LF",8,IF(C59="CF",9,IF(C59="RF",10,IF(C59="DH",12,IF(C59="SP",13,IF(C59="RP",14,IF(C59="P",15,16))))))))))))))) -> 4 | AG59: =VLOOKUP(B59,'Starter Calc'!$B$2:$BN$600,65,FALSE) -> Bench
B60: Ben Zobrist | C60: =IFERROR(IF(VLOOKUP(B60,'ADP-Rank'!$A$2:$B$600,2,FALSE)="OF",VLOOKUP(B60,'Starter Calc'!$B$2:$AM$600,38,FALSE),(VLOOKUP(B60,'ADP-Rank'!$A$2:$B$600,2,FALSE))),"") -> 2B | D60: =IFERROR(IF(VLOOKUP(B60,'Starter Calc'!$B$2:$E$600,4,FALSE)="","",VLOOKUP(B60,'Starter Calc'!$B$2:$E$600,4,FALSE)),"") -> RF | E60: =IFERROR(VLOOKUP($B60,'ADP-Rank'!$A$2:$D$600,3,FALSE),"") -> TB | F60: =IFERROR(VLOOKUP($B60,'ADP-Rank'!$A$2:$W$600,23,FALSE),"") -> 31 | G60: =IFERROR((IF(Personalize!$E$38=1,VLOOKUP($B60,'ADP-Rank'!$A$2:$J$599,4,FALSE),(IF(Personalize!$E$38=2,VLOOKUP($B60,'ADP-Rank'!$A$2:$J$599,7,FALSE),(IF(Personalize!$E$38=3,VLOOKUP($B60,'ADP-Rank'!$A$2:$J$599,10,FALSE),(IF(Personalize!$E$38=4,VLOOKUP($B60,'ADP-Rank'!$A$2:$AD$599,24,FALSE),(IF(Personalize!$E$38=5,VLOOKUP($B60,'ADP-Rank'!$A$2:$AD$599,27,FALSE))))))))))),"") -> 62.1475 | H60: =IFERROR((G60/(Personalize!$E$22+1))+1,"") -> 5.780576923 | I60: =IFERROR(CHOOSE(Personalize!$E$39,VLOOKUP($B60,'ADP-Rank'!$A$2:$U$600,13,FALSE),VLOOKUP($B60,'ADP-Rank'!$A$2:$U$600,14,FALSE),VLOOKUP($B60,'ADP-Rank'!$A$2:$U$600,15,FALSE),VLOOKUP($B60,'ADP-Rank'!$A$2:$U$600,16,FALSE),VLOOKUP($B60,'ADP-Rank'!$A$2:$U$600,17,FALSE),VLOOKUP($B60,'ADP-Rank'!$A$2:$U$600,18,FALSE),VLOOKUP($B60,'ADP-Rank'!$A$2:$U$600,19,FALSE),VLOOKUP($B60,'ADP-Rank'!$A$2:$U$600,20,FALSE)),"") -> 63.57142857 | J60: =IFERROR(RANK($M60,$M$4:$M$600,0),"") -> 59 | K60: =IFERROR(IF((OR($C60="RP",$C60="SP")),VLOOKUP($B60,Pitcher!$A$1:$Z$600,20,FALSE),(VLOOKUP($B60,Hitter!$A$1:$Z$600,26,FALSE))),"") -> 369.8547693 | L60: =IFERROR(IF((OR($C60="RP",$C60="SP")),VLOOKUP($C60,'Filtered-P'!$M$3:$P$4,4,FALSE), VLOOKUP($C60,Filtered!$Q$3:$T$14,4,FALSE)),"") -> 354.8310871 | M60: =IFERROR(K60-L60,"") -> 15.0236822 | N60: =IFERROR(IF((OR($C60="RP",$C60="SP")),VLOOKUP($B60,Pitcher!$A$1:$V$600,2,FALSE),""),"") ->  | O60: =IFERROR(IF((OR($C60="RP",$C60="SP")),VLOOKUP($B60,Pitcher!$A$1:$V$600,9,FALSE),""),"") ->  | P60: =IFERROR(IF((OR($C60="RP",$C60="SP")),VLOOKUP($B60,Pitcher!$A$1:$V$600,7,FALSE),""),"") ->  | Q60: =IFERROR(IF((OR($C60="RP",$C60="SP")),VLOOKUP($B60,Pitcher!$A$1:$AB$600,21,FALSE),""),"") ->  | R60: =IFERROR(IF((OR($C60="RP",$C60="SP")),VLOOKUP($B60,Pitcher!$A$1:$V$600,22,FALSE),""),"") ->  | S60: =IFERROR(IF((OR($C60="RP",$C60="SP")),"",VLOOKUP($B60,Hitter!$A$1:$AH$600,27,FALSE)),"") -> 0.2592598048 | T60: =IFERROR(IF((OR($C60="RP",$C60="SP")),"",VLOOKUP($B60,Hitter!$A$1:$AH$600,9,FALSE)),"") -> 17.50933694 | U60: =IFERROR(IF((OR($C60="RP",$C60="SP")),"",VLOOKUP($B60,Hitter!$A$1:$AH$600,10,FALSE)),"") -> 79.66487413 | V60: =IFERROR(IF((OR($C60="RP",$C60="SP")),"",VLOOKUP($B60,Hitter!$A$1:$AH$600,4,FALSE)),"") -> 81.85496943 | W60: =IFERROR(IF((OR($C60="RP",$C60="SP")),"",VLOOKUP($B60,Hitter!$A$1:$AH$600,11,FALSE)),"") -> 16.99574554 | X60: =IFERROR(IF(ISTEXT($A60),"",(1-NORMDIST((COUNTA($A$4:$A$600)),($G60),((AB60-AA60)/6),TRUE))),"") -> 0.9999998884 | Y60: =IFERROR(IF(ISTEXT($A60),"",(1-NORMDIST((COUNTA($A$4:$A$600))+(Personalize!$E$18+1),$G60,((AB60-AA60)/6),TRUE))),"") -> 0.9999994888 | Z60: =IFERROR(IF(ISTEXT($A60),"",(1-NORMDIST((COUNTA($A$4:$A$600))+((Personalize!$E$18+1)*2),$G60,((AB60-AA60)/6),TRUE))),"") -> 0.9999978427 | AA60: =IF(Personalize!$E$34=1,VLOOKUP($B60,'ADP-Rank'!$A$2:$J$600,5,FALSE),(IF(Personalize!$E$34=2,VLOOKUP($B60,'ADP-Rank'!$A$2:$J$600,8,FALSE),(IF(Personalize!$E$34=3,VLOOKUP($B60,'ADP-Rank'!$A$2:$O$600,11,FALSE),""))))) -> 36 | AB60: =IF(Personalize!$E$34=1,VLOOKUP($B60,'ADP-Rank'!$A$2:$J$600,6,FALSE),(IF(Personalize!$E$34=2,VLOOKUP($B60,'ADP-Rank'!$A$2:$J$600,9,FALSE),(IF(Personalize!$E$34=3,VLOOKUP($B60,'ADP-Rank'!$A$2:$O$600,12,FALSE),""))))) -> 108 | AC60: =IF(ISBLANK(A60),0,1) -> 0 | AD60: =IF(K60="",0,1) -> 1 | AE60: =A60 -> 0 | AF60: =IF(C60="C",1,IF(C60="1B",2,IF(C60="2B",3,IF(C60="3B",4,IF(C60="SS",5,IF(C60="CI",6,IF(C60="MI",7,IF(C60="OF",11,IF(C60="LF",8,IF(C60="CF",9,IF(C60="RF",10,IF(C60="DH",12,IF(C60="SP",13,IF(C60="RP",14,IF(C60="P",15,16))))))))))))))) -> 3 | AG60: =VLOOKUP(B60,'Starter Calc'!$B$2:$BN$600,65,FALSE) -> Bench
B61: James Shields | C61: =IFERROR(IF(VLOOKUP(B61,'ADP-Rank'!$A$2:$B$600,2,FALSE)="OF",VLOOKUP(B61,'Starter Calc'!$B$2:$AM$600,38,FALSE),(VLOOKUP(B61,'ADP-Rank'!$A$2:$B$600,2,FALSE))),"") -> SP | D61: =IFERROR(IF(VLOOKUP(B61,'Starter Calc'!$B$2:$E$600,4,FALSE)="","",VLOOKUP(B61,'Starter Calc'!$B$2:$E$600,4,FALSE)),"") ->  | E61: =IFERROR(VLOOKUP($B61,'ADP-Rank'!$A$2:$D$600,3,FALSE),"") -> TB | F61: =IFERROR(VLOOKUP($B61,'ADP-Rank'!$A$2:$W$600,23,FALSE),"") -> 31 | G61: =IFERROR((IF(Personalize!$E$38=1,VLOOKUP($B61,'ADP-Rank'!$A$2:$J$599,4,FALSE),(IF(Personalize!$E$38=2,VLOOKUP($B61,'ADP-Rank'!$A$2:$J$599,7,FALSE),(IF(Personalize!$E$38=3,VLOOKUP($B61,'ADP-Rank'!$A$2:$J$599,10,FALSE),(IF(Personalize!$E$38=4,VLOOKUP($B61,'ADP-Rank'!$A$2:$AD$599,24,FALSE),(IF(Personalize!$E$38=5,VLOOKUP($B61,'ADP-Rank'!$A$2:$AD$599,27,FALSE))))))))))),"") -> 62.92 | H61: =IFERROR((G61/(Personalize!$E$22+1))+1,"") -> 5.84 | I61: =IFERROR(CHOOSE(Personalize!$E$39,VLOOKUP($B61,'ADP-Rank'!$A$2:$U$600,13,FALSE),VLOOKUP($B61,'ADP-Rank'!$A$2:$U$600,14,FALSE),VLOOKUP($B61,'ADP-Rank'!$A$2:$U$600,15,FALSE),VLOOKUP($B61,'ADP-Rank'!$A$2:$U$600,16,FALSE),VLOOKUP($B61,'ADP-Rank'!$A$2:$U$600,17,FALSE),VLOOKUP($B61,'ADP-Rank'!$A$2:$U$600,18,FALSE),VLOOKUP($B61,'ADP-Rank'!$A$2:$U$600,19,FALSE),VLOOKUP($B61,'ADP-Rank'!$A$2:$U$600,20,FALSE)),"") -> 79.28571429 | J61: =IFERROR(RANK($M61,$M$4:$M$600,0),"") -> 61 | K61: =IFERROR(IF((OR($C61="RP",$C61="SP")),VLOOKUP($B61,Pitcher!$A$1:$Z$600,20,FALSE),(VLOOKUP($B61,Hitter!$A$1:$Z$600,26,FALSE))),"") -> 346.3306548 | L61: =IFERROR(IF((OR($C61="RP",$C61="SP")),VLOOKUP($C61,'Filtered-P'!$M$3:$P$4,4,FALSE), VLOOKUP($C61,Filtered!$Q$3:$T$14,4,FALSE)),"") -> 331.9275286 | M61: =IFERROR(K61-L61,"") -> 14.40312613 | N61: =IFERROR(IF((OR($C61="RP",$C61="SP")),VLOOKUP($B61,Pitcher!$A$1:$V$600,2,FALSE),""),"") -> 13.19977106 | O61: =IFERROR(IF((OR($C61="RP",$C61="SP")),VLOOKUP($B61,Pitcher!$A$1:$V$600,9,FALSE),""),"") -> 0 | P61: =IFERROR(IF((OR($C61="RP",$C61="SP")),VLOOKUP($B61,Pitcher!$A$1:$V$600,7,FALSE),""),"") -> 181.1065188 | Q61: =IFERROR(IF((OR($C61="RP",$C61="SP")),VLOOKUP($B61,Pitcher!$A$1:$AB$600,21,FALSE),""),"") -> 3.744401979 | R61: =IFERROR(IF((OR($C61="RP",$C61="SP")),VLOOKUP($B61,Pitcher!$A$1:$V$600,22,FALSE),""),"") -> 1.230665458 | S61: =IFERROR(IF((OR($C61="RP",$C61="SP")),"",VLOOKUP($B61,Hitter!$A$1:$AH$600,27,FALSE)),"") ->  | T61: =IFERROR(IF((OR($C61="RP",$C61="SP")),"",VLOOKUP($B61,Hitter!$A$1:$AH$600,9,FALSE)),"") ->  | U61: =IFERROR(IF((OR($C61="RP",$C61="SP")),"",VLOOKUP($B61,Hitter!$A$1:$AH$600,10,FALSE)),"") ->  | V61: =IFERROR(IF((OR($C61="RP",$C61="SP")),"",VLOOKUP($B61,Hitter!$A$1:$AH$600,4,FALSE)),"") ->  | W61: =IFERROR(IF((OR($C61="RP",$C61="SP")),"",VLOOKUP($B61,Hitter!$A$1:$AH$600,11,FALSE)),"") ->  | X61: =IFERROR(IF(ISTEXT($A61),"",(1-NORMDIST((COUNTA($A$4:$A$600)),($G61),((AB61-AA61)/6),TRUE))),"") -> 1 | Y61: =IFERROR(IF(ISTEXT($A61),"",(1-NORMDIST((COUNTA($A$4:$A$600))+(Personalize!$E$18+1),$G61,((AB61-AA61)/6),TRUE))),"") -> 1 | Z61: =IFERROR(IF(ISTEXT($A61),"",(1-NORMDIST((COUNTA($A$4:$A$600))+((Personalize!$E$18+1)*2),$G61,((AB61-AA61)/6),TRUE))),"") -> 0.9999999995 | AA61: =IF(Personalize!$E$34=1,VLOOKUP($B61,'ADP-Rank'!$A$2:$J$600,5,FALSE),(IF(Personalize!$E$34=2,VLOOKUP($B61,'ADP-Rank'!$A$2:$J$600,8,FALSE),(IF(Personalize!$E$34=3,VLOOKUP($B61,'ADP-Rank'!$A$2:$O$600,11,FALSE),""))))) -> 41 | AB61: =IF(Personalize!$E$34=1,VLOOKUP($B61,'ADP-Rank'!$A$2:$J$600,6,FALSE),(IF(Personalize!$E$34=2,VLOOKUP($B61,'ADP-Rank'!$A$2:$J$600,9,FALSE),(IF(Personalize!$E$34=3,VLOOKUP($B61,'ADP-Rank'!$A$2:$O$600,12,FALSE),""))))) -> 96 | AC61: =IF(ISBLANK(A61),0,1) -> 0 | AD61: =IF(K61="",0,1) -> 1 | AE61: =A61 -> 0 | AF61: =IF(C61="C",1,IF(C61="1B",2,IF(C61="2B",3,IF(C61="3B",4,IF(C61="SS",5,IF(C61="CI",6,IF(C61="MI",7,IF(C61="OF",11,IF(C61="LF",8,IF(C61="CF",9,IF(C61="RF",10,IF(C61="DH",12,IF(C61="SP",13,IF(C61="RP",14,IF(C61="P",15,16))))))))))))))) -> 13 | AG61: =VLOOKUP(B61,'Starter Calc'!$B$2:$BN$600,65,FALSE) -> Bench
B62: Brandon Phillips | C62: =IFERROR(IF(VLOOKUP(B62,'ADP-Rank'!$A$2:$B$600,2,FALSE)="OF",VLOOKUP(B62,'Starter Calc'!$B$2:$AM$600,38,FALSE),(VLOOKUP(B62,'ADP-Rank'!$A$2:$B$600,2,FALSE))),"") -> 2B | D62: =IFERROR(IF(VLOOKUP(B62,'Starter Calc'!$B$2:$E$600,4,FALSE)="","",VLOOKUP(B62,'Starter Calc'!$B$2:$E$600,4,FALSE)),"") ->  | E62: =IFERROR(VLOOKUP($B62,'ADP-Rank'!$A$2:$D$600,3,FALSE),"") -> CIN | F62: =IFERROR(VLOOKUP($B62,'ADP-Rank'!$A$2:$W$600,23,FALSE),"") -> 31 | G62: =IFERROR((IF(Personalize!$E$38=1,VLOOKUP($B62,'ADP-Rank'!$A$2:$J$599,4,FALSE),(IF(Personalize!$E$38=2,VLOOKUP($B62,'ADP-Rank'!$A$2:$J$599,7,FALSE),(IF(Personalize!$E$38=3,VLOOKUP($B62,'ADP-Rank'!$A$2:$J$599,10,FALSE),(IF(Personalize!$E$38=4,VLOOKUP($B62,'ADP-Rank'!$A$2:$AD$599,24,FALSE),(IF(Personalize!$E$38=5,VLOOKUP($B62,'ADP-Rank'!$A$2:$AD$599,27,FALSE))))))))))),"") -> 63.2475 | H62: =IFERROR((G62/(Personalize!$E$22+1))+1,"") -> 5.865192308 | I62: =IFERROR(CHOOSE(Personalize!$E$39,VLOOKUP($B62,'ADP-Rank'!$A$2:$U$600,13,FALSE),VLOOKUP($B62,'ADP-Rank'!$A$2:$U$600,14,FALSE),VLOOKUP($B62,'ADP-Rank'!$A$2:$U$600,15,FALSE),VLOOKUP($B62,'ADP-Rank'!$A$2:$U$600,16,FALSE),VLOOKUP($B62,'ADP-Rank'!$A$2:$U$600,17,FALSE),VLOOKUP($B62,'ADP-Rank'!$A$2:$U$600,18,FALSE),VLOOKUP($B62,'ADP-Rank'!$A$2:$U$600,19,FALSE),VLOOKUP($B62,'ADP-Rank'!$A$2:$U$600,20,FALSE)),"") -> 54.28571429 | J62: =IFERROR(RANK($M62,$M$4:$M$600,0),"") -> 43 | K62: =IFERROR(IF((OR($C62="RP",$C62="SP")),VLOOKUP($B62,Pitcher!$A$1:$Z$600,20,FALSE),(VLOOKUP($B62,Hitter!$A$1:$Z$600,26,FALSE))),"") -> 388.9767298 | L62: =IFERROR(IF((OR($C62="RP",$C62="SP")),VLOOKUP($C62,'Filtered-P'!$M$3:$P$4,4,FALSE), VLOOKUP($C62,Filtered!$Q$3:$T$14,4,FALSE)),"") -> 354.8310871 | M62: =IFERROR(K62-L62,"") -> 34.14564268 | N62: =IFERROR(IF((OR($C62="RP",$C62="SP")),VLOOKUP($B62,Pitcher!$A$1:$V$600,2,FALSE),""),"") ->  | O62: =IFERROR(IF((OR($C62="RP",$C62="SP")),VLOOKUP($B62,Pitcher!$A$1:$V$600,9,FALSE),""),"") ->  | P62: =IFERROR(IF((OR($C62="RP",$C62="SP")),VLOOKUP($B62,Pitcher!$A$1:$V$600,7,FALSE),""),"") ->  | Q62: =IFERROR(IF((OR($C62="RP",$C62="SP")),VLOOKUP($B62,Pitcher!$A$1:$AB$600,21,FALSE),""),"") ->  | R62: =IFERROR(IF((OR($C62="RP",$C62="SP")),VLOOKUP($B62,Pitcher!$A$1:$V$600,22,FALSE),""),"") ->  | S62: =IFERROR(IF((OR($C62="RP",$C62="SP")),"",VLOOKUP($B62,Hitter!$A$1:$AH$600,27,FALSE)),"") -> 0.2774886227 | T62: =IFERROR(IF((OR($C62="RP",$C62="SP")),"",VLOOKUP($B62,Hitter!$A$1:$AH$600,9,FALSE)),"") -> 18.2028643 | U62: =IFERROR(IF((OR($C62="RP",$C62="SP")),"",VLOOKUP($B62,Hitter!$A$1:$AH$600,10,FALSE)),"") -> 75.89362606 | V62: =IFERROR(IF((OR($C62="RP",$C62="SP")),"",VLOOKUP($B62,Hitter!$A$1:$AH$600,4,FALSE)),"") -> 87.25385607 | W62: =IFERROR(IF((OR($C62="RP",$C62="SP")),"",VLOOKUP($B62,Hitter!$A$1:$AH$600,11,FALSE)),"") -> 15.9824178 | X62: =IFERROR(IF(ISTEXT($A62),"",(1-NORMDIST((COUNTA($A$4:$A$600)),($G62),((AB62-AA62)/6),TRUE))),"") -> 1 | Y62: =IFERROR(IF(ISTEXT($A62),"",(1-NORMDIST((COUNTA($A$4:$A$600))+(Personalize!$E$18+1),$G62,((AB62-AA62)/6),TRUE))),"") -> 1 | Z62: =IFERROR(IF(ISTEXT($A62),"",(1-NORMDIST((COUNTA($A$4:$A$600))+((Personalize!$E$18+1)*2),$G62,((AB62-AA62)/6),TRUE))),"") -> 1 | AA62: =IF(Personalize!$E$34=1,VLOOKUP($B62,'ADP-Rank'!$A$2:$J$600,5,FALSE),(IF(Personalize!$E$34=2,VLOOKUP($B62,'ADP-Rank'!$A$2:$J$600,8,FALSE),(IF(Personalize!$E$34=3,VLOOKUP($B62,'ADP-Rank'!$A$2:$O$600,11,FALSE),""))))) -> 36 | AB62: =IF(Personalize!$E$34=1,VLOOKUP($B62,'ADP-Rank'!$A$2:$J$600,6,FALSE),(IF(Personalize!$E$34=2,VLOOKUP($B62,'ADP-Rank'!$A$2:$J$600,9,FALSE),(IF(Personalize!$E$34=3,VLOOKUP($B62,'ADP-Rank'!$A$2:$O$600,12,FALSE),""))))) -> 81 | AC62: =IF(ISBLANK(A62),0,1) -> 0 | AD62: =IF(K62="",0,1) -> 1 | AE62: =A62 -> 0 | AF62: =IF(C62="C",1,IF(C62="1B",2,IF(C62="2B",3,IF(C62="3B",4,IF(C62="SS",5,IF(C62="CI",6,IF(C62="MI",7,IF(C62="OF",11,IF(C62="LF",8,IF(C62="CF",9,IF(C62="RF",10,IF(C62="DH",12,IF(C62="SP",13,IF(C62="RP",14,IF(C62="P",15,16))))))))))))))) -> 3 | AG62: =VLOOKUP(B62,'Starter Calc'!$B$2:$BN$600,65,FALSE) -> Bench
B63: Elvis Andrus | C63: =IFERROR(IF(VLOOKUP(B63,'ADP-Rank'!$A$2:$B$600,2,FALSE)="OF",VLOOKUP(B63,'Starter Calc'!$B$2:$AM$600,38,FALSE),(VLOOKUP(B63,'ADP-Rank'!$A$2:$B$600,2,FALSE))),"") -> SS | D63: =IFERROR(IF(VLOOKUP(B63,'Starter Calc'!$B$2:$E$600,4,FALSE)="","",VLOOKUP(B63,'Starter Calc'!$B$2:$E$600,4,FALSE)),"") ->  | E63: =IFERROR(VLOOKUP($B63,'ADP-Rank'!$A$2:$D$600,3,FALSE),"") -> TEX | F63: =IFERROR(VLOOKUP($B63,'ADP-Rank'!$A$2:$W$600,23,FALSE),"") -> 24 | G63: =IFERROR((IF(Personalize!$E$38=1,VLOOKUP($B63,'ADP-Rank'!$A$2:$J$599,4,FALSE),(IF(Personalize!$E$38=2,VLOOKUP($B63,'ADP-Rank'!$A$2:$J$599,7,FALSE),(IF(Personalize!$E$38=3,VLOOKUP($B63,'ADP-Rank'!$A$2:$J$599,10,FALSE),(IF(Personalize!$E$38=4,VLOOKUP($B63,'ADP-Rank'!$A$2:$AD$599,24,FALSE),(IF(Personalize!$E$38=5,VLOOKUP($B63,'ADP-Rank'!$A$2:$AD$599,27,FALSE))))))))))),"") -> 63.75 | H63: =IFERROR((G63/(Personalize!$E$22+1))+1,"") -> 5.903846154 | I63: =IFERROR(CHOOSE(Personalize!$E$39,VLOOKUP($B63,'ADP-Rank'!$A$2:$U$600,13,FALSE),VLOOKUP($B63,'ADP-Rank'!$A$2:$U$600,14,FALSE),VLOOKUP($B63,'ADP-Rank'!$A$2:$U$600,15,FALSE),VLOOKUP($B63,'ADP-Rank'!$A$2:$U$600,16,FALSE),VLOOKUP($B63,'ADP-Rank'!$A$2:$U$600,17,FALSE),VLOOKUP($B63,'ADP-Rank'!$A$2:$U$600,18,FALSE),VLOOKUP($B63,'ADP-Rank'!$A$2:$U$600,19,FALSE),VLOOKUP($B63,'ADP-Rank'!$A$2:$U$600,20,FALSE)),"") -> 53.71428571 | J63: =IFERROR(RANK($M63,$M$4:$M$600,0),"") -> 77 | K63: =IFERROR(IF((OR($C63="RP",$C63="SP")),VLOOKUP($B63,Pitcher!$A$1:$Z$600,20,FALSE),(VLOOKUP($B63,Hitter!$A$1:$Z$600,26,FALSE))),"") -> 342.0310956 | L63: =IFERROR(IF((OR($C63="RP",$C63="SP")),VLOOKUP($C63,'Filtered-P'!$M$3:$P$4,4,FALSE), VLOOKUP($C63,Filtered!$Q$3:$T$14,4,FALSE)),"") -> 341.4045566 | M63: =IFERROR(K63-L63,"") -> 0.6265390945 | N63: =IFERROR(IF((OR($C63="RP",$C63="SP")),VLOOKUP($B63,Pitcher!$A$1:$V$600,2,FALSE),""),"") ->  | O63: =IFERROR(IF((OR($C63="RP",$C63="SP")),VLOOKUP($B63,Pitcher!$A$1:$V$600,9,FALSE),""),"") ->  | P63: =IFERROR(IF((OR($C63="RP",$C63="SP")),VLOOKUP($B63,Pitcher!$A$1:$V$600,7,FALSE),""),"") ->  | Q63: =IFERROR(IF((OR($C63="RP",$C63="SP")),VLOOKUP($B63,Pitcher!$A$1:$AB$600,21,FALSE),""),"") ->  | R63: =IFERROR(IF((OR($C63="RP",$C63="SP")),VLOOKUP($B63,Pitcher!$A$1:$V$600,22,FALSE),""),"") ->  | S63: =IFERROR(IF((OR($C63="RP",$C63="SP")),"",VLOOKUP($B63,Hitter!$A$1:$AH$600,27,FALSE)),"") -> 0.2740739073 | T63: =IFERROR(IF((OR($C63="RP",$C63="SP")),"",VLOOKUP($B63,Hitter!$A$1:$AH$600,9,FALSE)),"") -> 5.119957679 | U63: =IFERROR(IF((OR($C63="RP",$C63="SP")),"",VLOOKUP($B63,Hitter!$A$1:$AH$600,10,FALSE)),"") -> 50.04017673 | V63: =IFERROR(IF((OR($C63="RP",$C63="SP")),"",VLOOKUP($B63,Hitter!$A$1:$AH$600,4,FALSE)),"") -> 85.46293709 | W63: =IFERROR(IF((OR($C63="RP",$C63="SP")),"",VLOOKUP($B63,Hitter!$A$1:$AH$600,11,FALSE)),"") -> 34.64304717 | X63: =IFERROR(IF(ISTEXT($A63),"",(1-NORMDIST((COUNTA($A$4:$A$600)),($G63),((AB63-AA63)/6),TRUE))),"") -> 1 | Y63: =IFERROR(IF(ISTEXT($A63),"",(1-NORMDIST((COUNTA($A$4:$A$600))+(Personalize!$E$18+1),$G63,((AB63-AA63)/6),TRUE))),"") -> 1 | Z63: =IFERROR(IF(ISTEXT($A63),"",(1-NORMDIST((COUNTA($A$4:$A$600))+((Personalize!$E$18+1)*2),$G63,((AB63-AA63)/6),TRUE))),"") -> 1 | AA63: =IF(Personalize!$E$34=1,VLOOKUP($B63,'ADP-Rank'!$A$2:$J$600,5,FALSE),(IF(Personalize!$E$34=2,VLOOKUP($B63,'ADP-Rank'!$A$2:$J$600,8,FALSE),(IF(Personalize!$E$34=3,VLOOKUP($B63,'ADP-Rank'!$A$2:$O$600,11,FALSE),""))))) -> 26 | AB63: =IF(Personalize!$E$34=1,VLOOKUP($B63,'ADP-Rank'!$A$2:$J$600,6,FALSE),(IF(Personalize!$E$34=2,VLOOKUP($B63,'ADP-Rank'!$A$2:$J$600,9,FALSE),(IF(Personalize!$E$34=3,VLOOKUP($B63,'ADP-Rank'!$A$2:$O$600,12,FALSE),""))))) -> 66 | AC63: =IF(ISBLANK(A63),0,1) -> 0 | AD63: =IF(K63="",0,1) -> 1 | AE63: =A63 -> 0 | AF63: =IF(C63="C",1,IF(C63="1B",2,IF(C63="2B",3,IF(C63="3B",4,IF(C63="SS",5,IF(C63="CI",6,IF(C63="MI",7,IF(C63="OF",11,IF(C63="LF",8,IF(C63="CF",9,IF(C63="RF",10,IF(C63="DH",12,IF(C63="SP",13,IF(C63="RP",14,IF(C63="P",15,16))))))))))))))) -> 5 | AG63: =VLOOKUP(B63,'Starter Calc'!$B$2:$BN$600,65,FALSE) -> Bench
B64: Eric Hosmer | C64: =IFERROR(IF(VLOOKUP(B64,'ADP-Rank'!$A$2:$B$600,2,FALSE)="OF",VLOOKUP(B64,'Starter Calc'!$B$2:$AM$600,38,FALSE),(VLOOKUP(B64,'ADP-Rank'!$A$2:$B$600,2,FALSE))),"") -> 1B | D64: =IFERROR(IF(VLOOKUP(B64,'Starter Calc'!$B$2:$E$600,4,FALSE)="","",VLOOKUP(B64,'Starter Calc'!$B$2:$E$600,4,FALSE)),"") ->  | E64: =IFERROR(VLOOKUP($B64,'ADP-Rank'!$A$2:$D$600,3,FALSE),"") -> KC | F64: =IFERROR(VLOOKUP($B64,'ADP-Rank'!$A$2:$W$600,23,FALSE),"") -> 23 | G64: =IFERROR((IF(Personalize!$E$38=1,VLOOKUP($B64,'ADP-Rank'!$A$2:$J$599,4,FALSE),(IF(Personalize!$E$38=2,VLOOKUP($B64,'ADP-Rank'!$A$2:$J$599,7,FALSE),(IF(Personalize!$E$38=3,VLOOKUP($B64,'ADP-Rank'!$A$2:$J$599,10,FALSE),(IF(Personalize!$E$38=4,VLOOKUP($B64,'ADP-Rank'!$A$2:$AD$599,24,FALSE),(IF(Personalize!$E$38=5,VLOOKUP($B64,'ADP-Rank'!$A$2:$AD$599,27,FALSE))))))))))),"") -> 64.24 | H64: =IFERROR((G64/(Personalize!$E$22+1))+1,"") -> 5.941538462 | I64: =IFERROR(CHOOSE(Personalize!$E$39,VLOOKUP($B64,'ADP-Rank'!$A$2:$U$600,13,FALSE),VLOOKUP($B64,'ADP-Rank'!$A$2:$U$600,14,FALSE),VLOOKUP($B64,'ADP-Rank'!$A$2:$U$600,15,FALSE),VLOOKUP($B64,'ADP-Rank'!$A$2:$U$600,16,FALSE),VLOOKUP($B64,'ADP-Rank'!$A$2:$U$600,17,FALSE),VLOOKUP($B64,'ADP-Rank'!$A$2:$U$600,18,FALSE),VLOOKUP($B64,'ADP-Rank'!$A$2:$U$600,19,FALSE),VLOOKUP($B64,'ADP-Rank'!$A$2:$U$600,20,FALSE)),"") -> 47.85714286 | J64: =IFERROR(RANK($M64,$M$4:$M$600,0),"") -> 123 | K64: =IFERROR(IF((OR($C64="RP",$C64="SP")),VLOOKUP($B64,Pitcher!$A$1:$Z$600,20,FALSE),(VLOOKUP($B64,Hitter!$A$1:$Z$600,26,FALSE))),"") -> 354.055334 | L64: =IFERROR(IF((OR($C64="RP",$C64="SP")),VLOOKUP($C64,'Filtered-P'!$M$3:$P$4,4,FALSE), VLOOKUP($C64,Filtered!$Q$3:$T$14,4,FALSE)),"") -> 389.4967263 | M64: =IFERROR(K64-L64,"") -> -35.44139229 | N64: =IFERROR(IF((OR($C64="RP",$C64="SP")),VLOOKUP($B64,Pitcher!$A$1:$V$600,2,FALSE),""),"") ->  | O64: =IFERROR(IF((OR($C64="RP",$C64="SP")),VLOOKUP($B64,Pitcher!$A$1:$V$600,9,FALSE),""),"") ->  | P64: =IFERROR(IF((OR($C64="RP",$C64="SP")),VLOOKUP($B64,Pitcher!$A$1:$V$600,7,FALSE),""),"") ->  | Q64: =IFERROR(IF((OR($C64="RP",$C64="SP")),VLOOKUP($B64,Pitcher!$A$1:$AB$600,21,FALSE),""),"") ->  | R64: =IFERROR(IF((OR($C64="RP",$C64="SP")),VLOOKUP($B64,Pitcher!$A$1:$V$600,22,FALSE),""),"") ->  | S64: =IFERROR(IF((OR($C64="RP",$C64="SP")),"",VLOOKUP($B64,Hitter!$A$1:$AH$600,27,FALSE)),"") -> 0.2885174589 | T64: =IFERROR(IF((OR($C64="RP",$C64="SP")),"",VLOOKUP($B64,Hitter!$A$1:$AH$600,9,FALSE)),"") -> 17.25894545 | U64: =IFERROR(IF((OR($C64="RP",$C64="SP")),"",VLOOKUP($B64,Hitter!$A$1:$AH$600,10,FALSE)),"") -> 73.44905586 | V64: =IFERROR(IF((OR($C64="RP",$C64="SP")),"",VLOOKUP($B64,Hitter!$A$1:$AH$600,4,FALSE)),"") -> 69.66783375 | W64: =IFERROR(IF((OR($C64="RP",$C64="SP")),"",VLOOKUP($B64,Hitter!$A$1:$AH$600,11,FALSE)),"") -> 10.57467206 | X64: =IFERROR(IF(ISTEXT($A64),"",(1-NORMDIST((COUNTA($A$4:$A$600)),($G64),((AB64-AA64)/6),TRUE))),"") -> 1 | Y64: =IFERROR(IF(ISTEXT($A64),"",(1-NORMDIST((COUNTA($A$4:$A$600))+(Personalize!$E$18+1),$G64,((AB64-AA64)/6),TRUE))),"") -> 1 | Z64: =IFERROR(IF(ISTEXT($A64),"",(1-NORMDIST((COUNTA($A$4:$A$600))+((Personalize!$E$18+1)*2),$G64,((AB64-AA64)/6),TRUE))),"") -> 1 | AA64: =IF(Personalize!$E$34=1,VLOOKUP($B64,'ADP-Rank'!$A$2:$J$600,5,FALSE),(IF(Personalize!$E$34=2,VLOOKUP($B64,'ADP-Rank'!$A$2:$J$600,8,FALSE),(IF(Personalize!$E$34=3,VLOOKUP($B64,'ADP-Rank'!$A$2:$O$600,11,FALSE),""))))) -> 30 | AB64: =IF(Personalize!$E$34=1,VLOOKUP($B64,'ADP-Rank'!$A$2:$J$600,6,FALSE),(IF(Personalize!$E$34=2,VLOOKUP($B64,'ADP-Rank'!$A$2:$J$600,9,FALSE),(IF(Personalize!$E$34=3,VLOOKUP($B64,'ADP-Rank'!$A$2:$O$600,12,FALSE),""))))) -> 69 | AC64: =IF(ISBLANK(A64),0,1) -> 0 | AD64: =IF(K64="",0,1) -> 1 | AE64: =A64 -> 0 | AF64: =IF(C64="C",1,IF(C64="1B",2,IF(C64="2B",3,IF(C64="3B",4,IF(C64="SS",5,IF(C64="CI",6,IF(C64="MI",7,IF(C64="OF",11,IF(C64="LF",8,IF(C64="CF",9,IF(C64="RF",10,IF(C64="DH",12,IF(C64="SP",13,IF(C64="RP",14,IF(C64="P",15,16))))))))))))))) -> 2 | AG64: =VLOOKUP(B64,'Starter Calc'!$B$2:$BN$600,65,FALSE) -> Bench
B65: Ian Kennedy | C65: =IFERROR(IF(VLOOKUP(B65,'ADP-Rank'!$A$2:$B$600,2,FALSE)="OF",VLOOKUP(B65,'Starter Calc'!$B$2:$AM$600,38,FALSE),(VLOOKUP(B65,'ADP-Rank'!$A$2:$B$600,2,FALSE))),"") -> SP | D65: =IFERROR(IF(VLOOKUP(B65,'Starter Calc'!$B$2:$E$600,4,FALSE)="","",VLOOKUP(B65,'Starter Calc'!$B$2:$E$600,4,FALSE)),"") ->  | E65: =IFERROR(VLOOKUP($B65,'ADP-Rank'!$A$2:$D$600,3,FALSE),"") -> ARI | F65: =IFERROR(VLOOKUP($B65,'ADP-Rank'!$A$2:$W$600,23,FALSE),"") -> 28 | G65: =IFERROR((IF(Personalize!$E$38=1,VLOOKUP($B65,'ADP-Rank'!$A$2:$J$599,4,FALSE),(IF(Personalize!$E$38=2,VLOOKUP($B65,'ADP-Rank'!$A$2:$J$599,7,FALSE),(IF(Personalize!$E$38=3,VLOOKUP($B65,'ADP-Rank'!$A$2:$J$599,10,FALSE),(IF(Personalize!$E$38=4,VLOOKUP($B65,'ADP-Rank'!$A$2:$AD$599,24,FALSE),(IF(Personalize!$E$38=5,VLOOKUP($B65,'ADP-Rank'!$A$2:$AD$599,27,FALSE))))))))))),"") -> 64.8425 | H65: =IFERROR((G65/(Personalize!$E$22+1))+1,"") -> 5.987884615 | I65: =IFERROR(CHOOSE(Personalize!$E$39,VLOOKUP($B65,'ADP-Rank'!$A$2:$U$600,13,FALSE),VLOOKUP($B65,'ADP-Rank'!$A$2:$U$600,14,FALSE),VLOOKUP($B65,'ADP-Rank'!$A$2:$U$600,15,FALSE),VLOOKUP($B65,'ADP-Rank'!$A$2:$U$600,16,FALSE),VLOOKUP($B65,'ADP-Rank'!$A$2:$U$600,17,FALSE),VLOOKUP($B65,'ADP-Rank'!$A$2:$U$600,18,FALSE),VLOOKUP($B65,'ADP-Rank'!$A$2:$U$600,19,FALSE),VLOOKUP($B65,'ADP-Rank'!$A$2:$U$600,20,FALSE)),"") -> 89.14285714 | J65: =IFERROR(RANK($M65,$M$4:$M$600,0),"") -> 93 | K65: =IFERROR(IF((OR($C65="RP",$C65="SP")),VLOOKUP($B65,Pitcher!$A$1:$Z$600,20,FALSE),(VLOOKUP($B65,Hitter!$A$1:$Z$600,26,FALSE))),"") -> 318.5913097 | L65: =IFERROR(IF((OR($C65="RP",$C65="SP")),VLOOKUP($C65,'Filtered-P'!$M$3:$P$4,4,FALSE), VLOOKUP($C65,Filtered!$Q$3:$T$14,4,FALSE)),"") -> 331.9275286 | M65: =IFERROR(K65-L65,"") -> -13.33621893 | N65: =IFERROR(IF((OR($C65="RP",$C65="SP")),VLOOKUP($B65,Pitcher!$A$1:$V$600,2,FALSE),""),"") -> 12.11961665 | O65: =IFERROR(IF((OR($C65="RP",$C65="SP")),VLOOKUP($B65,Pitcher!$A$1:$V$600,9,FALSE),""),"") -> 0 | P65: =IFERROR(IF((OR($C65="RP",$C65="SP")),VLOOKUP($B65,Pitcher!$A$1:$V$600,7,FALSE),""),"") -> 157.5996796 | Q65: =IFERROR(IF((OR($C65="RP",$C65="SP")),VLOOKUP($B65,Pitcher!$A$1:$AB$600,21,FALSE),""),"") -> 3.571120708 | R65: =IFERROR(IF((OR($C65="RP",$C65="SP")),VLOOKUP($B65,Pitcher!$A$1:$V$600,22,FALSE),""),"") -> 1.202047426 | S65: =IFERROR(IF((OR($C65="RP",$C65="SP")),"",VLOOKUP($B65,Hitter!$A$1:$AH$600,27,FALSE)),"") ->  | T65: =IFERROR(IF((OR($C65="RP",$C65="SP")),"",VLOOKUP($B65,Hitter!$A$1:$AH$600,9,FALSE)),"") ->  | U65: =IFERROR(IF((OR($C65="RP",$C65="SP")),"",VLOOKUP($B65,Hitter!$A$1:$AH$600,10,FALSE)),"") ->  | V65: =IFERROR(IF((OR($C65="RP",$C65="SP")),"",VLOOKUP($B65,Hitter!$A$1:$AH$600,4,FALSE)),"") ->  | W65: =IFERROR(IF((OR($C65="RP",$C65="SP")),"",VLOOKUP($B65,Hitter!$A$1:$AH$600,11,FALSE)),"") ->  | X65: =IFERROR(IF(ISTEXT($A65),"",(1-NORMDIST((COUNTA($A$4:$A$600)),($G65),((AB65-AA65)/6),TRUE))),"") -> 1 | Y65: =IFERROR(IF(ISTEXT($A65),"",(1-NORMDIST((COUNTA($A$4:$A$600))+(Personalize!$E$18+1),$G65,((AB65-AA65)/6),TRUE))),"") -> 1 | Z65: =IFERROR(IF(ISTEXT($A65),"",(1-NORMDIST((COUNTA($A$4:$A$600))+((Personalize!$E$18+1)*2),$G65,((AB65-AA65)/6),TRUE))),"") -> 0.9999999999 | AA65: =IF(Personalize!$E$34=1,VLOOKUP($B65,'ADP-Rank'!$A$2:$J$600,5,FALSE),(IF(Personalize!$E$34=2,VLOOKUP($B65,'ADP-Rank'!$A$2:$J$600,8,FALSE),(IF(Personalize!$E$34=3,VLOOKUP($B65,'ADP-Rank'!$A$2:$O$600,11,FALSE),""))))) -> 38 | AB65: =IF(Personalize!$E$34=1,VLOOKUP($B65,'ADP-Rank'!$A$2:$J$600,6,FALSE),(IF(Personalize!$E$34=2,VLOOKUP($B65,'ADP-Rank'!$A$2:$J$600,9,FALSE),(IF(Personalize!$E$34=3,VLOOKUP($B65,'ADP-Rank'!$A$2:$O$600,12,FALSE),""))))) -> 92 | AC65: =IF(ISBLANK(A65),0,1) -> 0 | AD65: =IF(K65="",0,1) -> 1 | AE65: =A65 -> 0 | AF65: =IF(C65="C",1,IF(C65="1B",2,IF(C65="2B",3,IF(C65="3B",4,IF(C65="SS",5,IF(C65="CI",6,IF(C65="MI",7,IF(C65="OF",11,IF(C65="LF",8,IF(C65="CF",9,IF(C65="RF",10,IF(C65="DH",12,IF(C65="SP",13,IF(C65="RP",14,IF(C65="P",15,16))))))))))))))) -> 13 | AG65: =VLOOKUP(B65,'Starter Calc'!$B$2:$BN$600,65,FALSE) -> Bench
B66: Alex Gordon | C66: =IFERROR(IF(VLOOKUP(B66,'ADP-Rank'!$A$2:$B$600,2,FALSE)="OF",VLOOKUP(B66,'Starter Calc'!$B$2:$AM$600,38,FALSE),(VLOOKUP(B66,'ADP-Rank'!$A$2:$B$600,2,FALSE))),"") -> OF | D66: =IFERROR(IF(VLOOKUP(B66,'Starter Calc'!$B$2:$E$600,4,FALSE)="","",VLOOKUP(B66,'Starter Calc'!$B$2:$E$600,4,FALSE)),"") -> LF | E66: =IFERROR(VLOOKUP($B66,'ADP-Rank'!$A$2:$D$600,3,FALSE),"") -> KC | F66: =IFERROR(VLOOKUP($B66,'ADP-Rank'!$A$2:$W$600,23,FALSE),"") -> 28 | G66: =IFERROR((IF(Personalize!$E$38=1,VLOOKUP($B66,'ADP-Rank'!$A$2:$J$599,4,FALSE),(IF(Personalize!$E$38=2,VLOOKUP($B66,'ADP-Rank'!$A$2:$J$599,7,FALSE),(IF(Personalize!$E$38=3,VLOOKUP($B66,'ADP-Rank'!$A$2:$J$599,10,FALSE),(IF(Personalize!$E$38=4,VLOOKUP($B66,'ADP-Rank'!$A$2:$AD$599,24,FALSE),(IF(Personalize!$E$38=5,VLOOKUP($B66,'ADP-Rank'!$A$2:$AD$599,27,FALSE))))))))))),"") -> 67.43 | H66: =IFERROR((G66/(Personalize!$E$22+1))+1,"") -> 6.186923077 | I66: =IFERROR(CHOOSE(Personalize!$E$39,VLOOKUP($B66,'ADP-Rank'!$A$2:$U$600,13,FALSE),VLOOKUP($B66,'ADP-Rank'!$A$2:$U$600,14,FALSE),VLOOKUP($B66,'ADP-Rank'!$A$2:$U$600,15,FALSE),VLOOKUP($B66,'ADP-Rank'!$A$2:$U$600,16,FALSE),VLOOKUP($B66,'ADP-Rank'!$A$2:$U$600,17,FALSE),VLOOKUP($B66,'ADP-Rank'!$A$2:$U$600,18,FALSE),VLOOKUP($B66,'ADP-Rank'!$A$2:$U$600,19,FALSE),VLOOKUP($B66,'ADP-Rank'!$A$2:$U$600,20,FALSE)),"") -> 63.14285714 | J66: =IFERROR(RANK($M66,$M$4:$M$600,0),"") -> 103 | K66: =IFERROR(IF((OR($C66="RP",$C66="SP")),VLOOKUP($B66,Pitcher!$A$1:$Z$600,20,FALSE),(VLOOKUP($B66,Hitter!$A$1:$Z$600,26,FALSE))),"") -> 322.6303191 | L66: =IFERROR(IF((OR($C66="RP",$C66="SP")),VLOOKUP($C66,'Filtered-P'!$M$3:$P$4,4,FALSE), VLOOKUP($C66,Filtered!$Q$3:$T$14,4,FALSE)),"") -> 347.6626137 | M66: =IFERROR(K66-L66,"") -> -25.03229457 | N66: =IFERROR(IF((OR($C66="RP",$C66="SP")),VLOOKUP($B66,Pitcher!$A$1:$V$600,2,FALSE),""),"") ->  | O66: =IFERROR(IF((OR($C66="RP",$C66="SP")),VLOOKUP($B66,Pitcher!$A$1:$V$600,9,FALSE),""),"") ->  | P66: =IFERROR(IF((OR($C66="RP",$C66="SP")),VLOOKUP($B66,Pitcher!$A$1:$V$600,7,FALSE),""),"") ->  | Q66: =IFERROR(IF((OR($C66="RP",$C66="SP")),VLOOKUP($B66,Pitcher!$A$1:$AB$600,21,FALSE),""),"") ->  | R66: =IFERROR(IF((OR($C66="RP",$C66="SP")),VLOOKUP($B66,Pitcher!$A$1:$V$600,22,FALSE),""),"") ->  | S66: =IFERROR(IF((OR($C66="RP",$C66="SP")),"",VLOOKUP($B66,Hitter!$A$1:$AH$600,27,FALSE)),"") -> 0.2690859739 | T66: =IFERROR(IF((OR($C66="RP",$C66="SP")),"",VLOOKUP($B66,Hitter!$A$1:$AH$600,9,FALSE)),"") -> 17.9129468 | U66: =IFERROR(IF((OR($C66="RP",$C66="SP")),"",VLOOKUP($B66,Hitter!$A$1:$AH$600,10,FALSE)),"") -> 65.71099136 | V66: =IFERROR(IF((OR($C66="RP",$C66="SP")),"",VLOOKUP($B66,Hitter!$A$1:$AH$600,4,FALSE)),"") -> 81.0089598 | W66: =IFERROR(IF((OR($C66="RP",$C66="SP")),"",VLOOKUP($B66,Hitter!$A$1:$AH$600,11,FALSE)),"") -> 11.97882568 | X66: =IFERROR(IF(ISTEXT($A66),"",(1-NORMDIST((COUNTA($A$4:$A$600)),($G66),((AB66-AA66)/6),TRUE))),"") -> 1 | Y66: =IFERROR(IF(ISTEXT($A66),"",(1-NORMDIST((COUNTA($A$4:$A$600))+(Personalize!$E$18+1),$G66,((AB66-AA66)/6),TRUE))),"") -> 1 | Z66: =IFERROR(IF(ISTEXT($A66),"",(1-NORMDIST((COUNTA($A$4:$A$600))+((Personalize!$E$18+1)*2),$G66,((AB66-AA66)/6),TRUE))),"") -> 0.9999999999 | AA66: =IF(Personalize!$E$34=1,VLOOKUP($B66,'ADP-Rank'!$A$2:$J$600,5,FALSE),(IF(Personalize!$E$34=2,VLOOKUP($B66,'ADP-Rank'!$A$2:$J$600,8,FALSE),(IF(Personalize!$E$34=3,VLOOKUP($B66,'ADP-Rank'!$A$2:$O$600,11,FALSE),""))))) -> 28 | AB66: =IF(Personalize!$E$34=1,VLOOKUP($B66,'ADP-Rank'!$A$2:$J$600,6,FALSE),(IF(Personalize!$E$34=2,VLOOKUP($B66,'ADP-Rank'!$A$2:$J$600,9,FALSE),(IF(Personalize!$E$34=3,VLOOKUP($B66,'ADP-Rank'!$A$2:$O$600,12,FALSE),""))))) -> 85 | AC66: =IF(ISBLANK(A66),0,1) -> 0 | AD66: =IF(K66="",0,1) -> 1 | AE66: =A66 -> 0 | AF66: =IF(C66="C",1,IF(C66="1B",2,IF(C66="2B",3,IF(C66="3B",4,IF(C66="SS",5,IF(C66="CI",6,IF(C66="MI",7,IF(C66="OF",11,IF(C66="LF",8,IF(C66="CF",9,IF(C66="RF",10,IF(C66="DH",12,IF(C66="SP",13,IF(C66="RP",14,IF(C66="P",15,16))))))))))))))) -> 11 | AG66: =VLOOKUP(B66,'Starter Calc'!$B$2:$BN$600,65,FALSE) -> Bench
B67: Shane Victorino | C67: =IFERROR(IF(VLOOKUP(B67,'ADP-Rank'!$A$2:$B$600,2,FALSE)="OF",VLOOKUP(B67,'Starter Calc'!$B$2:$AM$600,38,FALSE),(VLOOKUP(B67,'ADP-Rank'!$A$2:$B$600,2,FALSE))),"") -> OF | D67: =IFERROR(IF(VLOOKUP(B67,'Starter Calc'!$B$2:$E$600,4,FALSE)="","",VLOOKUP(B67,'Starter Calc'!$B$2:$E$600,4,FALSE)),"") -> CF | E67: =IFERROR(VLOOKUP($B67,'ADP-Rank'!$A$2:$D$600,3,FALSE),"") -> PHI | F67: =IFERROR(VLOOKUP($B67,'ADP-Rank'!$A$2:$W$600,23,FALSE),"") -> 32 | G67: =IFERROR((IF(Personalize!$E$38=1,VLOOKUP($B67,'ADP-Rank'!$A$2:$J$599,4,FALSE),(IF(Personalize!$E$38=2,VLOOKUP($B67,'ADP-Rank'!$A$2:$J$599,7,FALSE),(IF(Personalize!$E$38=3,VLOOKUP($B67,'ADP-Rank'!$A$2:$J$599,10,FALSE),(IF(Personalize!$E$38=4,VLOOKUP($B67,'ADP-Rank'!$A$2:$AD$599,24,FALSE),(IF(Personalize!$E$38=5,VLOOKUP($B67,'ADP-Rank'!$A$2:$AD$599,27,FALSE))))))))))),"") -> 69.99 | H67: =IFERROR((G67/(Personalize!$E$22+1))+1,"") -> 6.383846154 | I67: =IFERROR(CHOOSE(Personalize!$E$39,VLOOKUP($B67,'ADP-Rank'!$A$2:$U$600,13,FALSE),VLOOKUP($B67,'ADP-Rank'!$A$2:$U$600,14,FALSE),VLOOKUP($B67,'ADP-Rank'!$A$2:$U$600,15,FALSE),VLOOKUP($B67,'ADP-Rank'!$A$2:$U$600,16,FALSE),VLOOKUP($B67,'ADP-Rank'!$A$2:$U$600,17,FALSE),VLOOKUP($B67,'ADP-Rank'!$A$2:$U$600,18,FALSE),VLOOKUP($B67,'ADP-Rank'!$A$2:$U$600,19,FALSE),VLOOKUP($B67,'ADP-Rank'!$A$2:$U$600,20,FALSE)),"") -> 65.42857143 | J67: =IFERROR(RANK($M67,$M$4:$M$600,0),"") -> 57 | K67: =IFERROR(IF((OR($C67="RP",$C67="SP")),VLOOKUP($B67,Pitcher!$A$1:$Z$600,20,FALSE),(VLOOKUP($B67,Hitter!$A$1:$Z$600,26,FALSE))),"") -> 364.8818967 | L67: =IFERROR(IF((OR($C67="RP",$C67="SP")),VLOOKUP($C67,'Filtered-P'!$M$3:$P$4,4,FALSE), VLOOKUP($C67,Filtered!$Q$3:$T$14,4,FALSE)),"") -> 347.6626137 | M67: =IFERROR(K67-L67,"") -> 17.21928299 | N67: =IFERROR(IF((OR($C67="RP",$C67="SP")),VLOOKUP($B67,Pitcher!$A$1:$V$600,2,FALSE),""),"") ->  | O67: =IFERROR(IF((OR($C67="RP",$C67="SP")),VLOOKUP($B67,Pitcher!$A$1:$V$600,9,FALSE),""),"") ->  | P67: =IFERROR(IF((OR($C67="RP",$C67="SP")),VLOOKUP($B67,Pitcher!$A$1:$V$600,7,FALSE),""),"") ->  | Q67: =IFERROR(IF((OR($C67="RP",$C67="SP")),VLOOKUP($B67,Pitcher!$A$1:$AB$600,21,FALSE),""),"") ->  | R67: =IFERROR(IF((OR($C67="RP",$C67="SP")),VLOOKUP($B67,Pitcher!$A$1:$V$600,22,FALSE),""),"") ->  | S67: =IFERROR(IF((OR($C67="RP",$C67="SP")),"",VLOOKUP($B67,Hitter!$A$1:$AH$600,27,FALSE)),"") -> 0.2718813718 | T67: =IFERROR(IF((OR($C67="RP",$C67="SP")),"",VLOOKUP($B67,Hitter!$A$1:$AH$600,9,FALSE)),"") -> 13.91851503 | U67: =IFERROR(IF((OR($C67="RP",$C67="SP")),"",VLOOKUP($B67,Hitter!$A$1:$AH$600,10,FALSE)),"") -> 61.95794937 | V67: =IFERROR(IF((OR($C67="RP",$C67="SP")),"",VLOOKUP($B67,Hitter!$A$1:$AH$600,4,FALSE)),"") -> 77.6214577 | W67: =IFERROR(IF((OR($C67="RP",$C67="SP")),"",VLOOKUP($B67,Hitter!$A$1:$AH$600,11,FALSE)),"") -> 20.88255843 | X67: =IFERROR(IF(ISTEXT($A67),"",(1-NORMDIST((COUNTA($A$4:$A$600)),($G67),((AB67-AA67)/6),TRUE))),"") -> 1 | Y67: =IFERROR(IF(ISTEXT($A67),"",(1-NORMDIST((COUNTA($A$4:$A$600))+(Personalize!$E$18+1),$G67,((AB67-AA67)/6),TRUE))),"") -> 1 | Z67: =IFERROR(IF(ISTEXT($A67),"",(1-NORMDIST((COUNTA($A$4:$A$600))+((Personalize!$E$18+1)*2),$G67,((AB67-AA67)/6),TRUE))),"") -> 1 | AA67: =IF(Personalize!$E$34=1,VLOOKUP($B67,'ADP-Rank'!$A$2:$J$600,5,FALSE),(IF(Personalize!$E$34=2,VLOOKUP($B67,'ADP-Rank'!$A$2:$J$600,8,FALSE),(IF(Personalize!$E$34=3,VLOOKUP($B67,'ADP-Rank'!$A$2:$O$600,11,FALSE),""))))) -> 48 | AB67: =IF(Personalize!$E$34=1,VLOOKUP($B67,'ADP-Rank'!$A$2:$J$600,6,FALSE),(IF(Personalize!$E$34=2,VLOOKUP($B67,'ADP-Rank'!$A$2:$J$600,9,FALSE),(IF(Personalize!$E$34=3,VLOOKUP($B67,'ADP-Rank'!$A$2:$O$600,12,FALSE),""))))) -> 96 | AC67: =IF(ISBLANK(A67),0,1) -> 0 | AD67: =IF(K67="",0,1) -> 1 | AE67: =A67 -> 0 | AF67: =IF(C67="C",1,IF(C67="1B",2,IF(C67="2B",3,IF(C67="3B",4,IF(C67="SS",5,IF(C67="CI",6,IF(C67="MI",7,IF(C67="OF",11,IF(C67="LF",8,IF(C67="CF",9,IF(C67="RF",10,IF(C67="DH",12,IF(C67="SP",13,IF(C67="RP",14,IF(C67="P",15,16))))))))))))))) -> 11 | AG67: =VLOOKUP(B67,'Starter Calc'!$B$2:$BN$600,65,FALSE) -> Bench
B68: Michael Bourn | C68: =IFERROR(IF(VLOOKUP(B68,'ADP-Rank'!$A$2:$B$600,2,FALSE)="OF",VLOOKUP(B68,'Starter Calc'!$B$2:$AM$600,38,FALSE),(VLOOKUP(B68,'ADP-Rank'!$A$2:$B$600,2,FALSE))),"") -> OF | D68: =IFERROR(IF(VLOOKUP(B68,'Starter Calc'!$B$2:$E$600,4,FALSE)="","",VLOOKUP(B68,'Starter Calc'!$B$2:$E$600,4,FALSE)),"") -> CF | E68: =IFERROR(VLOOKUP($B68,'ADP-Rank'!$A$2:$D$600,3,FALSE),"") -> ATL | F68: =IFERROR(VLOOKUP($B68,'ADP-Rank'!$A$2:$W$600,23,FALSE),"") -> 30 | G68: =IFERROR((IF(Personalize!$E$38=1,VLOOKUP($B68,'ADP-Rank'!$A$2:$J$599,4,FALSE),(IF(Personalize!$E$38=2,VLOOKUP($B68,'ADP-Rank'!$A$2:$J$599,7,FALSE),(IF(Personalize!$E$38=3,VLOOKUP($B68,'ADP-Rank'!$A$2:$J$599,10,FALSE),(IF(Personalize!$E$38=4,VLOOKUP($B68,'ADP-Rank'!$A$2:$AD$599,24,FALSE),(IF(Personalize!$E$38=5,VLOOKUP($B68,'ADP-Rank'!$A$2:$AD$599,27,FALSE))))))))))),"") -> 70.45 | H68: =IFERROR((G68/(Personalize!$E$22+1))+1,"") -> 6.419230769 | I68: =IFERROR(CHOOSE(Personalize!$E$39,VLOOKUP($B68,'ADP-Rank'!$A$2:$U$600,13,FALSE),VLOOKUP($B68,'ADP-Rank'!$A$2:$U$600,14,FALSE),VLOOKUP($B68,'ADP-Rank'!$A$2:$U$600,15,FALSE),VLOOKUP($B68,'ADP-Rank'!$A$2:$U$600,16,FALSE),VLOOKUP($B68,'ADP-Rank'!$A$2:$U$600,17,FALSE),VLOOKUP($B68,'ADP-Rank'!$A$2:$U$600,18,FALSE),VLOOKUP($B68,'ADP-Rank'!$A$2:$U$600,19,FALSE),VLOOKUP($B68,'ADP-Rank'!$A$2:$U$600,20,FALSE)),"") -> 59.85714286 | J68: =IFERROR(RANK($M68,$M$4:$M$600,0),"") -> 113 | K68: =IFERROR(IF((OR($C68="RP",$C68="SP")),VLOOKUP($B68,Pitcher!$A$1:$Z$600,20,FALSE),(VLOOKUP($B68,Hitter!$A$1:$Z$600,26,FALSE))),"") -> 316.6431312 | L68: =IFERROR(IF((OR($C68="RP",$C68="SP")),VLOOKUP($C68,'Filtered-P'!$M$3:$P$4,4,FALSE), VLOOKUP($C68,Filtered!$Q$3:$T$14,4,FALSE)),"") -> 347.6626137 | M68: =IFERROR(K68-L68,"") -> -31.01948255 | N68: =IFERROR(IF((OR($C68="RP",$C68="SP")),VLOOKUP($B68,Pitcher!$A$1:$V$600,2,FALSE),""),"") ->  | O68: =IFERROR(IF((OR($C68="RP",$C68="SP")),VLOOKUP($B68,Pitcher!$A$1:$V$600,9,FALSE),""),"") ->  | P68: =IFERROR(IF((OR($C68="RP",$C68="SP")),VLOOKUP($B68,Pitcher!$A$1:$V$600,7,FALSE),""),"") ->  | Q68: =IFERROR(IF((OR($C68="RP",$C68="SP")),VLOOKUP($B68,Pitcher!$A$1:$AB$600,21,FALSE),""),"") ->  | R68: =IFERROR(IF((OR($C68="RP",$C68="SP")),VLOOKUP($B68,Pitcher!$A$1:$V$600,22,FALSE),""),"") ->  | S68: =IFERROR(IF((OR($C68="RP",$C68="SP")),"",VLOOKUP($B68,Hitter!$A$1:$AH$600,27,FALSE)),"") -> 0.2717143249 | T68: =IFERROR(IF((OR($C68="RP",$C68="SP")),"",VLOOKUP($B68,Hitter!$A$1:$AH$600,9,FALSE)),"") -> 3.457491571 | U68: =IFERROR(IF((OR($C68="RP",$C68="SP")),"",VLOOKUP($B68,Hitter!$A$1:$AH$600,10,FALSE)),"") -> 46.08099383 | V68: =IFERROR(IF((OR($C68="RP",$C68="SP")),"",VLOOKUP($B68,Hitter!$A$1:$AH$600,4,FALSE)),"") -> 87.10395299 | W68: =IFERROR(IF((OR($C68="RP",$C68="SP")),"",VLOOKUP($B68,Hitter!$A$1:$AH$600,11,FALSE)),"") -> 51.49327245 | X68: =IFERROR(IF(ISTEXT($A68),"",(1-NORMDIST((COUNTA($A$4:$A$600)),($G68),((AB68-AA68)/6),TRUE))),"") -> 1 | Y68: =IFERROR(IF(ISTEXT($A68),"",(1-NORMDIST((COUNTA($A$4:$A$600))+(Personalize!$E$18+1),$G68,((AB68-AA68)/6),TRUE))),"") -> 1 | Z68: =IFERROR(IF(ISTEXT($A68),"",(1-NORMDIST((COUNTA($A$4:$A$600))+((Personalize!$E$18+1)*2),$G68,((AB68-AA68)/6),TRUE))),"") -> 1 | AA68: =IF(Personalize!$E$34=1,VLOOKUP($B68,'ADP-Rank'!$A$2:$J$600,5,FALSE),(IF(Personalize!$E$34=2,VLOOKUP($B68,'ADP-Rank'!$A$2:$J$600,8,FALSE),(IF(Personalize!$E$34=3,VLOOKUP($B68,'ADP-Rank'!$A$2:$O$600,11,FALSE),""))))) -> 35 | AB68: =IF(Personalize!$E$34=1,VLOOKUP($B68,'ADP-Rank'!$A$2:$J$600,6,FALSE),(IF(Personalize!$E$34=2,VLOOKUP($B68,'ADP-Rank'!$A$2:$J$600,9,FALSE),(IF(Personalize!$E$34=3,VLOOKUP($B68,'ADP-Rank'!$A$2:$O$600,12,FALSE),""))))) -> 79 | AC68: =IF(ISBLANK(A68),0,1) -> 0 | AD68: =IF(K68="",0,1) -> 1 | AE68: =A68 -> 0 | AF68: =IF(C68="C",1,IF(C68="1B",2,IF(C68="2B",3,IF(C68="3B",4,IF(C68="SS",5,IF(C68="CI",6,IF(C68="MI",7,IF(C68="OF",11,IF(C68="LF",8,IF(C68="CF",9,IF(C68="RF",10,IF(C68="DH",12,IF(C68="SP",13,IF(C68="RP",14,IF(C68="P",15,16))))))))))))))) -> 11 | AG68: =VLOOKUP(B68,'Starter Calc'!$B$2:$BN$600,65,FALSE) -> Bench
B69: Carl Crawford | C69: =IFERROR(IF(VLOOKUP(B69,'ADP-Rank'!$A$2:$B$600,2,FALSE)="OF",VLOOKUP(B69,'Starter Calc'!$B$2:$AM$600,38,FALSE),(VLOOKUP(B69,'ADP-Rank'!$A$2:$B$600,2,FALSE))),"") -> OF | D69: =IFERROR(IF(VLOOKUP(B69,'Starter Calc'!$B$2:$E$600,4,FALSE)="","",VLOOKUP(B69,'Starter Calc'!$B$2:$E$600,4,FALSE)),"") -> LF | E69: =IFERROR(VLOOKUP($B69,'ADP-Rank'!$A$2:$D$600,3,FALSE),"") -> BOS | F69: =IFERROR(VLOOKUP($B69,'ADP-Rank'!$A$2:$W$600,23,FALSE),"") -> 31 | G69: =IFERROR((IF(Personalize!$E$38=1,VLOOKUP($B69,'ADP-Rank'!$A$2:$J$599,4,FALSE),(IF(Personalize!$E$38=2,VLOOKUP($B69,'ADP-Rank'!$A$2:$J$599,7,FALSE),(IF(Personalize!$E$38=3,VLOOKUP($B69,'ADP-Rank'!$A$2:$J$599,10,FALSE),(IF(Personalize!$E$38=4,VLOOKUP($B69,'ADP-Rank'!$A$2:$AD$599,24,FALSE),(IF(Personalize!$E$38=5,VLOOKUP($B69,'ADP-Rank'!$A$2:$AD$599,27,FALSE))))))))))),"") -> 70.72 | H69: =IFERROR((G69/(Personalize!$E$22+1))+1,"") -> 6.44 | I69: =IFERROR(CHOOSE(Personalize!$E$39,VLOOKUP($B69,'ADP-Rank'!$A$2:$U$600,13,FALSE),VLOOKUP($B69,'ADP-Rank'!$A$2:$U$600,14,FALSE),VLOOKUP($B69,'ADP-Rank'!$A$2:$U$600,15,FALSE),VLOOKUP($B69,'ADP-Rank'!$A$2:$U$600,16,FALSE),VLOOKUP($B69,'ADP-Rank'!$A$2:$U$600,17,FALSE),VLOOKUP($B69,'ADP-Rank'!$A$2:$U$600,18,FALSE),VLOOKUP($B69,'ADP-Rank'!$A$2:$U$600,19,FALSE),VLOOKUP($B69,'ADP-Rank'!$A$2:$U$600,20,FALSE)),"") -> 79.28571429 | J69: =IFERROR(RANK($M69,$M$4:$M$600,0),"") -> 97 | K69: =IFERROR(IF((OR($C69="RP",$C69="SP")),VLOOKUP($B69,Pitcher!$A$1:$Z$600,20,FALSE),(VLOOKUP($B69,Hitter!$A$1:$Z$600,26,FALSE))),"") -> 330.7438854 | L69: =IFERROR(IF((OR($C69="RP",$C69="SP")),VLOOKUP($C69,'Filtered-P'!$M$3:$P$4,4,FALSE), VLOOKUP($C69,Filtered!$Q$3:$T$14,4,FALSE)),"") -> 347.6626137 | M69: =IFERROR(K69-L69,"") -> -16.91872835 | N69: =IFERROR(IF((OR($C69="RP",$C69="SP")),VLOOKUP($B69,Pitcher!$A$1:$V$600,2,FALSE),""),"") ->  | O69: =IFERROR(IF((OR($C69="RP",$C69="SP")),VLOOKUP($B69,Pitcher!$A$1:$V$600,9,FALSE),""),"") ->  | P69: =IFERROR(IF((OR($C69="RP",$C69="SP")),VLOOKUP($B69,Pitcher!$A$1:$V$600,7,FALSE),""),"") ->  | Q69: =IFERROR(IF((OR($C69="RP",$C69="SP")),VLOOKUP($B69,Pitcher!$A$1:$AB$600,21,FALSE),""),"") ->  | R69: =IFERROR(IF((OR($C69="RP",$C69="SP")),VLOOKUP($B69,Pitcher!$A$1:$V$600,22,FALSE),""),"") ->  | S69: =IFERROR(IF((OR($C69="RP",$C69="SP")),"",VLOOKUP($B69,Hitter!$A$1:$AH$600,27,FALSE)),"") -> 0.2846378494 | T69: =IFERROR(IF((OR($C69="RP",$C69="SP")),"",VLOOKUP($B69,Hitter!$A$1:$AH$600,9,FALSE)),"") -> 12.88471924 | U69: =IFERROR(IF((OR($C69="RP",$C69="SP")),"",VLOOKUP($B69,Hitter!$A$1:$AH$600,10,FALSE)),"") -> 63.38419054 | V69: =IFERROR(IF((OR($C69="RP",$C69="SP")),"",VLOOKUP($B69,Hitter!$A$1:$AH$600,4,FALSE)),"") -> 76.61228127 | W69: =IFERROR(IF((OR($C69="RP",$C69="SP")),"",VLOOKUP($B69,Hitter!$A$1:$AH$600,11,FALSE)),"") -> 28.92247117 | X69: =IFERROR(IF(ISTEXT($A69),"",(1-NORMDIST((COUNTA($A$4:$A$600)),($G69),((AB69-AA69)/6),TRUE))),"") -> 1 | Y69: =IFERROR(IF(ISTEXT($A69),"",(1-NORMDIST((COUNTA($A$4:$A$600))+(Personalize!$E$18+1),$G69,((AB69-AA69)/6),TRUE))),"") -> 1 | Z69: =IFERROR(IF(ISTEXT($A69),"",(1-NORMDIST((COUNTA($A$4:$A$600))+((Personalize!$E$18+1)*2),$G69,((AB69-AA69)/6),TRUE))),"") -> 1 | AA69: =IF(Personalize!$E$34=1,VLOOKUP($B69,'ADP-Rank'!$A$2:$J$600,5,FALSE),(IF(Personalize!$E$34=2,VLOOKUP($B69,'ADP-Rank'!$A$2:$J$600,8,FALSE),(IF(Personalize!$E$34=3,VLOOKUP($B69,'ADP-Rank'!$A$2:$O$600,11,FALSE),""))))) -> 25 | AB69: =IF(Personalize!$E$34=1,VLOOKUP($B69,'ADP-Rank'!$A$2:$J$600,6,FALSE),(IF(Personalize!$E$34=2,VLOOKUP($B69,'ADP-Rank'!$A$2:$J$600,9,FALSE),(IF(Personalize!$E$34=3,VLOOKUP($B69,'ADP-Rank'!$A$2:$O$600,12,FALSE),""))))) -> 69 | AC69: =IF(ISBLANK(A69),0,1) -> 0 | AD69: =IF(K69="",0,1) -> 1 | AE69: =A69 -> 0 | AF69: =IF(C69="C",1,IF(C69="1B",2,IF(C69="2B",3,IF(C69="3B",4,IF(C69="SS",5,IF(C69="CI",6,IF(C69="MI",7,IF(C69="OF",11,IF(C69="LF",8,IF(C69="CF",9,IF(C69="RF",10,IF(C69="DH",12,IF(C69="SP",13,IF(C69="RP",14,IF(C69="P",15,16))))))))))))))) -> 11 | AG69: =VLOOKUP(B69,'Starter Calc'!$B$2:$BN$600,65,FALSE) -> Bench
B70: C.J. Wilson | C70: =IFERROR(IF(VLOOKUP(B70,'ADP-Rank'!$A$2:$B$600,2,FALSE)="OF",VLOOKUP(B70,'Starter Calc'!$B$2:$AM$600,38,FALSE),(VLOOKUP(B70,'ADP-Rank'!$A$2:$B$600,2,FALSE))),"") -> SP | D70: =IFERROR(IF(VLOOKUP(B70,'Starter Calc'!$B$2:$E$600,4,FALSE)="","",VLOOKUP(B70,'Starter Calc'!$B$2:$E$600,4,FALSE)),"") ->  | E70: =IFERROR(VLOOKUP($B70,'ADP-Rank'!$A$2:$D$600,3,FALSE),"") -> ANA | F70: =IFERROR(VLOOKUP($B70,'ADP-Rank'!$A$2:$W$600,23,FALSE),"") -> 32 | G70: =IFERROR((IF(Personalize!$E$38=1,VLOOKUP($B70,'ADP-Rank'!$A$2:$J$599,4,FALSE),(IF(Personalize!$E$38=2,VLOOKUP($B70,'ADP-Rank'!$A$2:$J$599,7,FALSE),(IF(Personalize!$E$38=3,VLOOKUP($B70,'ADP-Rank'!$A$2:$J$599,10,FALSE),(IF(Personalize!$E$38=4,VLOOKUP($B70,'ADP-Rank'!$A$2:$AD$599,24,FALSE),(IF(Personalize!$E$38=5,VLOOKUP($B70,'ADP-Rank'!$A$2:$AD$599,27,FALSE))))))))))),"") -> 71.83 | H70: =IFERROR((G70/(Personalize!$E$22+1))+1,"") -> 6.525384615 | I70: =IFERROR(CHOOSE(Personalize!$E$39,VLOOKUP($B70,'ADP-Rank'!$A$2:$U$600,13,FALSE),VLOOKUP($B70,'ADP-Rank'!$A$2:$U$600,14,FALSE),VLOOKUP($B70,'ADP-Rank'!$A$2:$U$600,15,FALSE),VLOOKUP($B70,'ADP-Rank'!$A$2:$U$600,16,FALSE),VLOOKUP($B70,'ADP-Rank'!$A$2:$U$600,17,FALSE),VLOOKUP($B70,'ADP-Rank'!$A$2:$U$600,18,FALSE),VLOOKUP($B70,'ADP-Rank'!$A$2:$U$600,19,FALSE),VLOOKUP($B70,'ADP-Rank'!$A$2:$U$600,20,FALSE)),"") -> 70.85714286 | J70: =IFERROR(RANK($M70,$M$4:$M$600,0),"") -> 68 | K70: =IFERROR(IF((OR($C70="RP",$C70="SP")),VLOOKUP($B70,Pitcher!$A$1:$Z$600,20,FALSE),(VLOOKUP($B70,Hitter!$A$1:$Z$600,26,FALSE))),"") -> 339.1920041 | L70: =IFERROR(IF((OR($C70="RP",$C70="SP")),VLOOKUP($C70,'Filtered-P'!$M$3:$P$4,4,FALSE), VLOOKUP($C70,Filtered!$Q$3:$T$14,4,FALSE)),"") -> 331.9275286 | M70: =IFERROR(K70-L70,"") -> 7.264475476 | N70: =IFERROR(IF((OR($C70="RP",$C70="SP")),VLOOKUP($B70,Pitcher!$A$1:$V$600,2,FALSE),""),"") -> 12.98586073 | O70: =IFERROR(IF((OR($C70="RP",$C70="SP")),VLOOKUP($B70,Pitcher!$A$1:$V$600,9,FALSE),""),"") -> 0.5 | P70: =IFERROR(IF((OR($C70="RP",$C70="SP")),VLOOKUP($B70,Pitcher!$A$1:$V$600,7,FALSE),""),"") -> 168.2423844 | Q70: =IFERROR(IF((OR($C70="RP",$C70="SP")),VLOOKUP($B70,Pitcher!$A$1:$AB$600,21,FALSE),""),"") -> 3.416771749 | R70: =IFERROR(IF((OR($C70="RP",$C70="SP")),VLOOKUP($B70,Pitcher!$A$1:$V$600,22,FALSE),""),"") -> 1.264020929 | S70: =IFERROR(IF((OR($C70="RP",$C70="SP")),"",VLOOKUP($B70,Hitter!$A$1:$AH$600,27,FALSE)),"") ->  | T70: =IFERROR(IF((OR($C70="RP",$C70="SP")),"",VLOOKUP($B70,Hitter!$A$1:$AH$600,9,FALSE)),"") ->  | U70: =IFERROR(IF((OR($C70="RP",$C70="SP")),"",VLOOKUP($B70,Hitter!$A$1:$AH$600,10,FALSE)),"") ->  | V70: =IFERROR(IF((OR($C70="RP",$C70="SP")),"",VLOOKUP($B70,Hitter!$A$1:$AH$600,4,FALSE)),"") ->  | W70: =IFERROR(IF((OR($C70="RP",$C70="SP")),"",VLOOKUP($B70,Hitter!$A$1:$AH$600,11,FALSE)),"") ->  | X70: =IFERROR(IF(ISTEXT($A70),"",(1-NORMDIST((COUNTA($A$4:$A$600)),($G70),((AB70-AA70)/6),TRUE))),"") -> 1 | Y70: =IFERROR(IF(ISTEXT($A70),"",(1-NORMDIST((COUNTA($A$4:$A$600))+(Personalize!$E$18+1),$G70,((AB70-AA70)/6),TRUE))),"") -> 1 | Z70: =IFERROR(IF(ISTEXT($A70),"",(1-NORMDIST((COUNTA($A$4:$A$600))+((Personalize!$E$18+1)*2),$G70,((AB70-AA70)/6),TRUE))),"") -> 0.9999999998 | AA70: =IF(Personalize!$E$34=1,VLOOKUP($B70,'ADP-Rank'!$A$2:$J$600,5,FALSE),(IF(Personalize!$E$34=2,VLOOKUP($B70,'ADP-Rank'!$A$2:$J$600,8,FALSE),(IF(Personalize!$E$34=3,VLOOKUP($B70,'ADP-Rank'!$A$2:$O$600,11,FALSE),""))))) -> 45 | AB70: =IF(Personalize!$E$34=1,VLOOKUP($B70,'ADP-Rank'!$A$2:$J$600,6,FALSE),(IF(Personalize!$E$34=2,VLOOKUP($B70,'ADP-Rank'!$A$2:$J$600,9,FALSE),(IF(Personalize!$E$34=3,VLOOKUP($B70,'ADP-Rank'!$A$2:$O$600,12,FALSE),""))))) -> 107 | AC70: =IF(ISBLANK(A70),0,1) -> 0 | AD70: =IF(K70="",0,1) -> 1 | AE70: =A70 -> 0 | AF70: =IF(C70="C",1,IF(C70="1B",2,IF(C70="2B",3,IF(C70="3B",4,IF(C70="SS",5,IF(C70="CI",6,IF(C70="MI",7,IF(C70="OF",11,IF(C70="LF",8,IF(C70="CF",9,IF(C70="RF",10,IF(C70="DH",12,IF(C70="SP",13,IF(C70="RP",14,IF(C70="P",15,16))))))))))))))) -> 13 | AG70: =VLOOKUP(B70,'Starter Calc'!$B$2:$BN$600,65,FALSE) -> Bench
B71: Desmond Jennings | C71: =IFERROR(IF(VLOOKUP(B71,'ADP-Rank'!$A$2:$B$600,2,FALSE)="OF",VLOOKUP(B71,'Starter Calc'!$B$2:$AM$600,38,FALSE),(VLOOKUP(B71,'ADP-Rank'!$A$2:$B$600,2,FALSE))),"") -> OF | D71: =IFERROR(IF(VLOOKUP(B71,'Starter Calc'!$B$2:$E$600,4,FALSE)="","",VLOOKUP(B71,'Starter Calc'!$B$2:$E$600,4,FALSE)),"") -> LF | E71: =IFERROR(VLOOKUP($B71,'ADP-Rank'!$A$2:$D$600,3,FALSE),"") -> TB | F71: =IFERROR(VLOOKUP($B71,'ADP-Rank'!$A$2:$W$600,23,FALSE),"") -> 26 | G71: =IFERROR((IF(Personalize!$E$38=1,VLOOKUP($B71,'ADP-Rank'!$A$2:$J$599,4,FALSE),(IF(Personalize!$E$38=2,VLOOKUP($B71,'ADP-Rank'!$A$2:$J$599,7,FALSE),(IF(Personalize!$E$38=3,VLOOKUP($B71,'ADP-Rank'!$A$2:$J$599,10,FALSE),(IF(Personalize!$E$38=4,VLOOKUP($B71,'ADP-Rank'!$A$2:$AD$599,24,FALSE),(IF(Personalize!$E$38=5,VLOOKUP($B71,'ADP-Rank'!$A$2:$AD$599,27,FALSE))))))))))),"") -> 72.65 | H71: =IFERROR((G71/(Personalize!$E$22+1))+1,"") -> 6.588461538 | I71: =IFERROR(CHOOSE(Personalize!$E$39,VLOOKUP($B71,'ADP-Rank'!$A$2:$U$600,13,FALSE),VLOOKUP($B71,'ADP-Rank'!$A$2:$U$600,14,FALSE),VLOOKUP($B71,'ADP-Rank'!$A$2:$U$600,15,FALSE),VLOOKUP($B71,'ADP-Rank'!$A$2:$U$600,16,FALSE),VLOOKUP($B71,'ADP-Rank'!$A$2:$U$600,17,FALSE),VLOOKUP($B71,'ADP-Rank'!$A$2:$U$600,18,FALSE),VLOOKUP($B71,'ADP-Rank'!$A$2:$U$600,19,FALSE),VLOOKUP($B71,'ADP-Rank'!$A$2:$U$600,20,FALSE)),"") -> 61.71428571 | J71: =IFERROR(RANK($M71,$M$4:$M$600,0),"") -> 183 | K71: =IFERROR(IF((OR($C71="RP",$C71="SP")),VLOOKUP($B71,Pitcher!$A$1:$Z$600,20,FALSE),(VLOOKUP($B71,Hitter!$A$1:$Z$600,26,FALSE))),"") -> 275.6025053 | L71: =IFERROR(IF((OR($C71="RP",$C71="SP")),VLOOKUP($C71,'Filtered-P'!$M$3:$P$4,4,FALSE), VLOOKUP($C71,Filtered!$Q$3:$T$14,4,FALSE)),"") -> 347.6626137 | M71: =IFERROR(K71-L71,"") -> -72.06010841 | N71: =IFERROR(IF((OR($C71="RP",$C71="SP")),VLOOKUP($B71,Pitcher!$A$1:$V$600,2,FALSE),""),"") ->  | O71: =IFERROR(IF((OR($C71="RP",$C71="SP")),VLOOKUP($B71,Pitcher!$A$1:$V$600,9,FALSE),""),"") ->  | P71: =IFERROR(IF((OR($C71="RP",$C71="SP")),VLOOKUP($B71,Pitcher!$A$1:$V$600,7,FALSE),""),"") ->  | Q71: =IFERROR(IF((OR($C71="RP",$C71="SP")),VLOOKUP($B71,Pitcher!$A$1:$AB$600,21,FALSE),""),"") ->  | R71: =IFERROR(IF((OR($C71="RP",$C71="SP")),VLOOKUP($B71,Pitcher!$A$1:$V$600,22,FALSE),""),"") ->  | S71: =IFERROR(IF((OR($C71="RP",$C71="SP")),"",VLOOKUP($B71,Hitter!$A$1:$AH$600,27,FALSE)),"") -> 0.2572102231 | T71: =IFERROR(IF((OR($C71="RP",$C71="SP")),"",VLOOKUP($B71,Hitter!$A$1:$AH$600,9,FALSE)),"") -> 10.9607075 | U71: =IFERROR(IF((OR($C71="RP",$C71="SP")),"",VLOOKUP($B71,Hitter!$A$1:$AH$600,10,FALSE)),"") -> 45.80338465 | V71: =IFERROR(IF((OR($C71="RP",$C71="SP")),"",VLOOKUP($B71,Hitter!$A$1:$AH$600,4,FALSE)),"") -> 73.3179362 | W71: =IFERROR(IF((OR($C71="RP",$C71="SP")),"",VLOOKUP($B71,Hitter!$A$1:$AH$600,11,FALSE)),"") -> 26.752227 | X71: =IFERROR(IF(ISTEXT($A71),"",(1-NORMDIST((COUNTA($A$4:$A$600)),($G71),((AB71-AA71)/6),TRUE))),"") -> 1 | Y71: =IFERROR(IF(ISTEXT($A71),"",(1-NORMDIST((COUNTA($A$4:$A$600))+(Personalize!$E$18+1),$G71,((AB71-AA71)/6),TRUE))),"") -> 1 | Z71: =IFERROR(IF(ISTEXT($A71),"",(1-NORMDIST((COUNTA($A$4:$A$600))+((Personalize!$E$18+1)*2),$G71,((AB71-AA71)/6),TRUE))),"") -> 1 | AA71: =IF(Personalize!$E$34=1,VLOOKUP($B71,'ADP-Rank'!$A$2:$J$600,5,FALSE),(IF(Personalize!$E$34=2,VLOOKUP($B71,'ADP-Rank'!$A$2:$J$600,8,FALSE),(IF(Personalize!$E$34=3,VLOOKUP($B71,'ADP-Rank'!$A$2:$O$600,11,FALSE),""))))) -> 34 | AB71: =IF(Personalize!$E$34=1,VLOOKUP($B71,'ADP-Rank'!$A$2:$J$600,6,FALSE),(IF(Personalize!$E$34=2,VLOOKUP($B71,'ADP-Rank'!$A$2:$J$600,9,FALSE),(IF(Personalize!$E$34=3,VLOOKUP($B71,'ADP-Rank'!$A$2:$O$600,12,FALSE),""))))) -> 81 | AC71: =IF(ISBLANK(A71),0,1) -> 0 | AD71: =IF(K71="",0,1) -> 1 | AE71: =A71 -> 0 | AF71: =IF(C71="C",1,IF(C71="1B",2,IF(C71="2B",3,IF(C71="3B",4,IF(C71="SS",5,IF(C71="CI",6,IF(C71="MI",7,IF(C71="OF",11,IF(C71="LF",8,IF(C71="CF",9,IF(C71="RF",10,IF(C71="DH",12,IF(C71="SP",13,IF(C71="RP",14,IF(C71="P",15,16))))))))))))))) -> 11 | AG71: =VLOOKUP(B71,'Starter Calc'!$B$2:$BN$600,65,FALSE) -> Bench
B72: Michael Morse | C72: =IFERROR(IF(VLOOKUP(B72,'ADP-Rank'!$A$2:$B$600,2,FALSE)="OF",VLOOKUP(B72,'Starter Calc'!$B$2:$AM$600,38,FALSE),(VLOOKUP(B72,'ADP-Rank'!$A$2:$B$600,2,FALSE))),"") -> 1B | D72: =IFERROR(IF(VLOOKUP(B72,'Starter Calc'!$B$2:$E$600,4,FALSE)="","",VLOOKUP(B72,'Starter Calc'!$B$2:$E$600,4,FALSE)),"") -> LF | E72: =IFERROR(VLOOKUP($B72,'ADP-Rank'!$A$2:$D$600,3,FALSE),"") -> WAS | F72: =IFERROR(VLOOKUP($B72,'ADP-Rank'!$A$2:$W$600,23,FALSE),"") -> 30 | G72: =IFERROR((IF(Personalize!$E$38=1,VLOOKUP($B72,'ADP-Rank'!$A$2:$J$599,4,FALSE),(IF(Personalize!$E$38=2,VLOOKUP($B72,'ADP-Rank'!$A$2:$J$599,7,FALSE),(IF(Personalize!$E$38=3,VLOOKUP($B72,'ADP-Rank'!$A$2:$J$599,10,FALSE),(IF(Personalize!$E$38=4,VLOOKUP($B72,'ADP-Rank'!$A$2:$AD$599,24,FALSE),(IF(Personalize!$E$38=5,VLOOKUP($B72,'ADP-Rank'!$A$2:$AD$599,27,FALSE))))))))))),"") -> 73.25 | H72: =IFERROR((G72/(Personalize!$E$22+1))+1,"") -> 6.634615385 | I72: =IFERROR(CHOOSE(Personalize!$E$39,VLOOKUP($B72,'ADP-Rank'!$A$2:$U$600,13,FALSE),VLOOKUP($B72,'ADP-Rank'!$A$2:$U$600,14,FALSE),VLOOKUP($B72,'ADP-Rank'!$A$2:$U$600,15,FALSE),VLOOKUP($B72,'ADP-Rank'!$A$2:$U$600,16,FALSE),VLOOKUP($B72,'ADP-Rank'!$A$2:$U$600,17,FALSE),VLOOKUP($B72,'ADP-Rank'!$A$2:$U$600,18,FALSE),VLOOKUP($B72,'ADP-Rank'!$A$2:$U$600,19,FALSE),VLOOKUP($B72,'ADP-Rank'!$A$2:$U$600,20,FALSE)),"") -> 69.14285714 | J72: =IFERROR(RANK($M72,$M$4:$M$600,0),"") -> 246 | K72: =IFERROR(IF((OR($C72="RP",$C72="SP")),VLOOKUP($B72,Pitcher!$A$1:$Z$600,20,FALSE),(VLOOKUP($B72,Hitter!$A$1:$Z$600,26,FALSE))),"") -> 282.6321435 | L72: =IFERROR(IF((OR($C72="RP",$C72="SP")),VLOOKUP($C72,'Filtered-P'!$M$3:$P$4,4,FALSE), VLOOKUP($C72,Filtered!$Q$3:$T$14,4,FALSE)),"") -> 389.4967263 | M72: =IFERROR(K72-L72,"") -> -106.8645828 | N72: =IFERROR(IF((OR($C72="RP",$C72="SP")),VLOOKUP($B72,Pitcher!$A$1:$V$600,2,FALSE),""),"") ->  | O72: =IFERROR(IF((OR($C72="RP",$C72="SP")),VLOOKUP($B72,Pitcher!$A$1:$V$600,9,FALSE),""),"") ->  | P72: =IFERROR(IF((OR($C72="RP",$C72="SP")),VLOOKUP($B72,Pitcher!$A$1:$V$600,7,FALSE),""),"") ->  | Q72: =IFERROR(IF((OR($C72="RP",$C72="SP")),VLOOKUP($B72,Pitcher!$A$1:$AB$600,21,FALSE),""),"") ->  | R72: =IFERROR(IF((OR($C72="RP",$C72="SP")),VLOOKUP($B72,Pitcher!$A$1:$V$600,22,FALSE),""),"") ->  | S72: =IFERROR(IF((OR($C72="RP",$C72="SP")),"",VLOOKUP($B72,Hitter!$A$1:$AH$600,27,FALSE)),"") -> 0.2794492493 | T72: =IFERROR(IF((OR($C72="RP",$C72="SP")),"",VLOOKUP($B72,Hitter!$A$1:$AH$600,9,FALSE)),"") -> 22.02282104 | U72: =IFERROR(IF((OR($C72="RP",$C72="SP")),"",VLOOKUP($B72,Hitter!$A$1:$AH$600,10,FALSE)),"") -> 73.73705864 | V72: =IFERROR(IF((OR($C72="RP",$C72="SP")),"",VLOOKUP($B72,Hitter!$A$1:$AH$600,4,FALSE)),"") -> 59.46687223 | W72: =IFERROR(IF((OR($C72="RP",$C72="SP")),"",VLOOKUP($B72,Hitter!$A$1:$AH$600,11,FALSE)),"") -> 1.981051686 | X72: =IFERROR(IF(ISTEXT($A72),"",(1-NORMDIST((COUNTA($A$4:$A$600)),($G72),((AB72-AA72)/6),TRUE))),"") -> 1 | Y72: =IFERROR(IF(ISTEXT($A72),"",(1-NORMDIST((COUNTA($A$4:$A$600))+(Personalize!$E$18+1),$G72,((AB72-AA72)/6),TRUE))),"") -> 0.9999999998 | Z72: =IFERROR(IF(ISTEXT($A72),"",(1-NORMDIST((COUNTA($A$4:$A$600))+((Personalize!$E$18+1)*2),$G72,((AB72-AA72)/6),TRUE))),"") -> 0.9999999985 | AA72: =IF(Personalize!$E$34=1,VLOOKUP($B72,'ADP-Rank'!$A$2:$J$600,5,FALSE),(IF(Personalize!$E$34=2,VLOOKUP($B72,'ADP-Rank'!$A$2:$J$600,8,FALSE),(IF(Personalize!$E$34=3,VLOOKUP($B72,'ADP-Rank'!$A$2:$O$600,11,FALSE),""))))) -> 41 | AB72: =IF(Personalize!$E$34=1,VLOOKUP($B72,'ADP-Rank'!$A$2:$J$600,6,FALSE),(IF(Personalize!$E$34=2,VLOOKUP($B72,'ADP-Rank'!$A$2:$J$600,9,FALSE),(IF(Personalize!$E$34=3,VLOOKUP($B72,'ADP-Rank'!$A$2:$O$600,12,FALSE),""))))) -> 108 | AC72: =IF(ISBLANK(A72),0,1) -> 0 | AD72: =IF(K72="",0,1) -> 1 | AE72: =A72 -> 0 | AF72: =IF(C72="C",1,IF(C72="1B",2,IF(C72="2B",3,IF(C72="3B",4,IF(C72="SS",5,IF(C72="CI",6,IF(C72="MI",7,IF(C72="OF",11,IF(C72="LF",8,IF(C72="CF",9,IF(C72="RF",10,IF(C72="DH",12,IF(C72="SP",13,IF(C72="RP",14,IF(C72="P",15,16))))))))))))))) -> 2 | AG72: =VLOOKUP(B72,'Starter Calc'!$B$2:$BN$600,65,FALSE) -> Bench
B73: Asdrubal Cabrera | C73: =IFERROR(IF(VLOOKUP(B73,'ADP-Rank'!$A$2:$B$600,2,FALSE)="OF",VLOOKUP(B73,'Starter Calc'!$B$2:$AM$600,38,FALSE),(VLOOKUP(B73,'ADP-Rank'!$A$2:$B$600,2,FALSE))),"") -> SS | D73: =IFERROR(IF(VLOOKUP(B73,'Starter Calc'!$B$2:$E$600,4,FALSE)="","",VLOOKUP(B73,'Starter Calc'!$B$2:$E$600,4,FALSE)),"") ->  | E73: =IFERROR(VLOOKUP($B73,'ADP-Rank'!$A$2:$D$600,3,FALSE),"") -> CLE | F73: =IFERROR(VLOOKUP($B73,'ADP-Rank'!$A$2:$W$600,23,FALSE),"") -> 27 | G73: =IFERROR((IF(Personalize!$E$38=1,VLOOKUP($B73,'ADP-Rank'!$A$2:$J$599,4,FALSE),(IF(Personalize!$E$38=2,VLOOKUP($B73,'ADP-Rank'!$A$2:$J$599,7,FALSE),(IF(Personalize!$E$38=3,VLOOKUP($B73,'ADP-Rank'!$A$2:$J$599,10,FALSE),(IF(Personalize!$E$38=4,VLOOKUP($B73,'ADP-Rank'!$A$2:$AD$599,24,FALSE),(IF(Personalize!$E$38=5,VLOOKUP($B73,'ADP-Rank'!$A$2:$AD$599,27,FALSE))))))))))),"") -> 74.4175 | H73: =IFERROR((G73/(Personalize!$E$22+1))+1,"") -> 6.724423077 | I73: =IFERROR(CHOOSE(Personalize!$E$39,VLOOKUP($B73,'ADP-Rank'!$A$2:$U$600,13,FALSE),VLOOKUP($B73,'ADP-Rank'!$A$2:$U$600,14,FALSE),VLOOKUP($B73,'ADP-Rank'!$A$2:$U$600,15,FALSE),VLOOKUP($B73,'ADP-Rank'!$A$2:$U$600,16,FALSE),VLOOKUP($B73,'ADP-Rank'!$A$2:$U$600,17,FALSE),VLOOKUP($B73,'ADP-Rank'!$A$2:$U$600,18,FALSE),VLOOKUP($B73,'ADP-Rank'!$A$2:$U$600,19,FALSE),VLOOKUP($B73,'ADP-Rank'!$A$2:$U$600,20,FALSE)),"") -> 72.28571429 | J73: =IFERROR(RANK($M73,$M$4:$M$600,0),"") -> 91 | K73: =IFERROR(IF((OR($C73="RP",$C73="SP")),VLOOKUP($B73,Pitcher!$A$1:$Z$600,20,FALSE),(VLOOKUP($B73,Hitter!$A$1:$Z$600,26,FALSE))),"") -> 330.3516298 | L73: =IFERROR(IF((OR($C73="RP",$C73="SP")),VLOOKUP($C73,'Filtered-P'!$M$3:$P$4,4,FALSE), VLOOKUP($C73,Filtered!$Q$3:$T$14,4,FALSE)),"") -> 341.4045566 | M73: =IFERROR(K73-L73,"") -> -11.05292679 | N73: =IFERROR(IF((OR($C73="RP",$C73="SP")),VLOOKUP($B73,Pitcher!$A$1:$V$600,2,FALSE),""),"") ->  | O73: =IFERROR(IF((OR($C73="RP",$C73="SP")),VLOOKUP($B73,Pitcher!$A$1:$V$600,9,FALSE),""),"") ->  | P73: =IFERROR(IF((OR($C73="RP",$C73="SP")),VLOOKUP($B73,Pitcher!$A$1:$V$600,7,FALSE),""),"") ->  | Q73: =IFERROR(IF((OR($C73="RP",$C73="SP")),VLOOKUP($B73,Pitcher!$A$1:$AB$600,21,FALSE),""),"") ->  | R73: =IFERROR(IF((OR($C73="RP",$C73="SP")),VLOOKUP($B73,Pitcher!$A$1:$V$600,22,FALSE),""),"") ->  | S73: =IFERROR(IF((OR($C73="RP",$C73="SP")),"",VLOOKUP($B73,Hitter!$A$1:$AH$600,27,FALSE)),"") -> 0.2773189248 | T73: =IFERROR(IF((OR($C73="RP",$C73="SP")),"",VLOOKUP($B73,Hitter!$A$1:$AH$600,9,FALSE)),"") -> 14.49950657 | U73: =IFERROR(IF((OR($C73="RP",$C73="SP")),"",VLOOKUP($B73,Hitter!$A$1:$AH$600,10,FALSE)),"") -> 68.5041906 | V73: =IFERROR(IF((OR($C73="RP",$C73="SP")),"",VLOOKUP($B73,Hitter!$A$1:$AH$600,4,FALSE)),"") -> 76.41119849 | W73: =IFERROR(IF((OR($C73="RP",$C73="SP")),"",VLOOKUP($B73,Hitter!$A$1:$AH$600,11,FALSE)),"") -> 13.64727086 | X73: =IFERROR(IF(ISTEXT($A73),"",(1-NORMDIST((COUNTA($A$4:$A$600)),($G73),((AB73-AA73)/6),TRUE))),"") -> 1 | Y73: =IFERROR(IF(ISTEXT($A73),"",(1-NORMDIST((COUNTA($A$4:$A$600))+(Personalize!$E$18+1),$G73,((AB73-AA73)/6),TRUE))),"") -> 0.9999999999 | Z73: =IFERROR(IF(ISTEXT($A73),"",(1-NORMDIST((COUNTA($A$4:$A$600))+((Personalize!$E$18+1)*2),$G73,((AB73-AA73)/6),TRUE))),"") -> 0.9999999996 | AA73: =IF(Personalize!$E$34=1,VLOOKUP($B73,'ADP-Rank'!$A$2:$J$600,5,FALSE),(IF(Personalize!$E$34=2,VLOOKUP($B73,'ADP-Rank'!$A$2:$J$600,8,FALSE),(IF(Personalize!$E$34=3,VLOOKUP($B73,'ADP-Rank'!$A$2:$O$600,11,FALSE),""))))) -> 30 | AB73: =IF(Personalize!$E$34=1,VLOOKUP($B73,'ADP-Rank'!$A$2:$J$600,6,FALSE),(IF(Personalize!$E$34=2,VLOOKUP($B73,'ADP-Rank'!$A$2:$J$600,9,FALSE),(IF(Personalize!$E$34=3,VLOOKUP($B73,'ADP-Rank'!$A$2:$O$600,12,FALSE),""))))) -> 96 | AC73: =IF(ISBLANK(A73),0,1) -> 0 | AD73: =IF(K73="",0,1) -> 1 | AE73: =A73 -> 0 | AF73: =IF(C73="C",1,IF(C73="1B",2,IF(C73="2B",3,IF(C73="3B",4,IF(C73="SS",5,IF(C73="CI",6,IF(C73="MI",7,IF(C73="OF",11,IF(C73="LF",8,IF(C73="CF",9,IF(C73="RF",10,IF(C73="DH",12,IF(C73="SP",13,IF(C73="RP",14,IF(C73="P",15,16))))))))))))))) -> 5 | AG73: =VLOOKUP(B73,'Starter Calc'!$B$2:$BN$600,65,FALSE) -> Bench
B74: Michael Young | C74: =IFERROR(IF(VLOOKUP(B74,'ADP-Rank'!$A$2:$B$600,2,FALSE)="OF",VLOOKUP(B74,'Starter Calc'!$B$2:$AM$600,38,FALSE),(VLOOKUP(B74,'ADP-Rank'!$A$2:$B$600,2,FALSE))),"") -> DH | D74: =IFERROR(IF(VLOOKUP(B74,'Starter Calc'!$B$2:$E$600,4,FALSE)="","",VLOOKUP(B74,'Starter Calc'!$B$2:$E$600,4,FALSE)),"") ->  | E74: =IFERROR(VLOOKUP($B74,'ADP-Rank'!$A$2:$D$600,3,FALSE),"") -> TEX | F74: =IFERROR(VLOOKUP($B74,'ADP-Rank'!$A$2:$W$600,23,FALSE),"") -> 36 | G74: =IFERROR((IF(Personalize!$E$38=1,VLOOKUP($B74,'ADP-Rank'!$A$2:$J$599,4,FALSE),(IF(Personalize!$E$38=2,VLOOKUP($B74,'ADP-Rank'!$A$2:$J$599,7,FALSE),(IF(Personalize!$E$38=3,VLOOKUP($B74,'ADP-Rank'!$A$2:$J$599,10,FALSE),(IF(Personalize!$E$38=4,VLOOKUP($B74,'ADP-Rank'!$A$2:$AD$599,24,FALSE),(IF(Personalize!$E$38=5,VLOOKUP($B74,'ADP-Rank'!$A$2:$AD$599,27,FALSE))))))))))),"") -> 75.37 | H74: =IFERROR((G74/(Personalize!$E$22+1))+1,"") -> 6.797692308 | I74: =IFERROR(CHOOSE(Personalize!$E$39,VLOOKUP($B74,'ADP-Rank'!$A$2:$U$600,13,FALSE),VLOOKUP($B74,'ADP-Rank'!$A$2:$U$600,14,FALSE),VLOOKUP($B74,'ADP-Rank'!$A$2:$U$600,15,FALSE),VLOOKUP($B74,'ADP-Rank'!$A$2:$U$600,16,FALSE),VLOOKUP($B74,'ADP-Rank'!$A$2:$U$600,17,FALSE),VLOOKUP($B74,'ADP-Rank'!$A$2:$U$600,18,FALSE),VLOOKUP($B74,'ADP-Rank'!$A$2:$U$600,19,FALSE),VLOOKUP($B74,'ADP-Rank'!$A$2:$U$600,20,FALSE)),"") -> 60.85714286 | J74: =IFERROR(RANK($M74,$M$4:$M$600,0),"") ->  | K74: =IFERROR(IF((OR($C74="RP",$C74="SP")),VLOOKUP($B74,Pitcher!$A$1:$Z$600,20,FALSE),(VLOOKUP($B74,Hitter!$A$1:$Z$600,26,FALSE))),"") -> 380.377513 | L74: =IFERROR(IF((OR($C74="RP",$C74="SP")),VLOOKUP($C74,'Filtered-P'!$M$3:$P$4,4,FALSE), VLOOKUP($C74,Filtered!$Q$3:$T$14,4,FALSE)),"") ->  | M74: =IFERROR(K74-L74,"") ->  | N74: =IFERROR(IF((OR($C74="RP",$C74="SP")),VLOOKUP($B74,Pitcher!$A$1:$V$600,2,FALSE),""),"") ->  | O74: =IFERROR(IF((OR($C74="RP",$C74="SP")),VLOOKUP($B74,Pitcher!$A$1:$V$600,9,FALSE),""),"") ->  | P74: =IFERROR(IF((OR($C74="RP",$C74="SP")),VLOOKUP($B74,Pitcher!$A$1:$V$600,7,FALSE),""),"") ->  | Q74: =IFERROR(IF((OR($C74="RP",$C74="SP")),VLOOKUP($B74,Pitcher!$A$1:$AB$600,21,FALSE),""),"") ->  | R74: =IFERROR(IF((OR($C74="RP",$C74="SP")),VLOOKUP($B74,Pitcher!$A$1:$V$600,22,FALSE),""),"") ->  | S74: =IFERROR(IF((OR($C74="RP",$C74="SP")),"",VLOOKUP($B74,Hitter!$A$1:$AH$600,27,FALSE)),"") -> 0.2967033978 | T74: =IFERROR(IF((OR($C74="RP",$C74="SP")),"",VLOOKUP($B74,Hitter!$A$1:$AH$600,9,FALSE)),"") -> 15.03157231 | U74: =IFERROR(IF((OR($C74="RP",$C74="SP")),"",VLOOKUP($B74,Hitter!$A$1:$AH$600,10,FALSE)),"") -> 83.44925191 | V74: =IFERROR(IF((OR($C74="RP",$C74="SP")),"",VLOOKUP($B74,Hitter!$A$1:$AH$600,4,FALSE)),"") -> 78.72365761 | W74: =IFERROR(IF((OR($C74="RP",$C74="SP")),"",VLOOKUP($B74,Hitter!$A$1:$AH$600,11,FALSE)),"") -> 5.667554248 | X74: =IFERROR(IF(ISTEXT($A74),"",(1-NORMDIST((COUNTA($A$4:$A$600)),($G74),((AB74-AA74)/6),TRUE))),"") -> 1 | Y74: =IFERROR(IF(ISTEXT($A74),"",(1-NORMDIST((COUNTA($A$4:$A$600))+(Personalize!$E$18+1),$G74,((AB74-AA74)/6),TRUE))),"") -> 1 | Z74: =IFERROR(IF(ISTEXT($A74),"",(1-NORMDIST((COUNTA($A$4:$A$600))+((Personalize!$E$18+1)*2),$G74,((AB74-AA74)/6),TRUE))),"") -> 1 | AA74: =IF(Personalize!$E$34=1,VLOOKUP($B74,'ADP-Rank'!$A$2:$J$600,5,FALSE),(IF(Personalize!$E$34=2,VLOOKUP($B74,'ADP-Rank'!$A$2:$J$600,8,FALSE),(IF(Personalize!$E$34=3,VLOOKUP($B74,'ADP-Rank'!$A$2:$O$600,11,FALSE),""))))) -> 39 | AB74: =IF(Personalize!$E$34=1,VLOOKUP($B74,'ADP-Rank'!$A$2:$J$600,6,FALSE),(IF(Personalize!$E$34=2,VLOOKUP($B74,'ADP-Rank'!$A$2:$J$600,9,FALSE),(IF(Personalize!$E$34=3,VLOOKUP($B74,'ADP-Rank'!$A$2:$O$600,12,FALSE),""))))) -> 95 | AC74: =IF(ISBLANK(A74),0,1) -> 0 | AD74: =IF(K74="",0,1) -> 1 | AE74: =A74 -> 0 | AF74: =IF(C74="C",1,IF(C74="1B",2,IF(C74="2B",3,IF(C74="3B",4,IF(C74="SS",5,IF(C74="CI",6,IF(C74="MI",7,IF(C74="OF",11,IF(C74="LF",8,IF(C74="CF",9,IF(C74="RF",10,IF(C74="DH",12,IF(C74="SP",13,IF(C74="RP",14,IF(C74="P",15,16))))))))))))))) -> 12 | AG74: =VLOOKUP(B74,'Starter Calc'!$B$2:$BN$600,65,FALSE) -> Bench
B75: Chase Utley | C75: =IFERROR(IF(VLOOKUP(B75,'ADP-Rank'!$A$2:$B$600,2,FALSE)="OF",VLOOKUP(B75,'Starter Calc'!$B$2:$AM$600,38,FALSE),(VLOOKUP(B75,'ADP-Rank'!$A$2:$B$600,2,FALSE))),"") -> 2B | D75: =IFERROR(IF(VLOOKUP(B75,'Starter Calc'!$B$2:$E$600,4,FALSE)="","",VLOOKUP(B75,'Starter Calc'!$B$2:$E$600,4,FALSE)),"") ->  | E75: =IFERROR(VLOOKUP($B75,'ADP-Rank'!$A$2:$D$600,3,FALSE),"") -> PHI | F75: =IFERROR(VLOOKUP($B75,'ADP-Rank'!$A$2:$W$600,23,FALSE),"") -> 34 | G75: =IFERROR((IF(Personalize!$E$38=1,VLOOKUP($B75,'ADP-Rank'!$A$2:$J$599,4,FALSE),(IF(Personalize!$E$38=2,VLOOKUP($B75,'ADP-Rank'!$A$2:$J$599,7,FALSE),(IF(Personalize!$E$38=3,VLOOKUP($B75,'ADP-Rank'!$A$2:$J$599,10,FALSE),(IF(Personalize!$E$38=4,VLOOKUP($B75,'ADP-Rank'!$A$2:$AD$599,24,FALSE),(IF(Personalize!$E$38=5,VLOOKUP($B75,'ADP-Rank'!$A$2:$AD$599,27,FALSE))))))))))),"") -> 75.85 | H75: =IFERROR((G75/(Personalize!$E$22+1))+1,"") -> 6.834615385 | I75: =IFERROR(CHOOSE(Personalize!$E$39,VLOOKUP($B75,'ADP-Rank'!$A$2:$U$600,13,FALSE),VLOOKUP($B75,'ADP-Rank'!$A$2:$U$600,14,FALSE),VLOOKUP($B75,'ADP-Rank'!$A$2:$U$600,15,FALSE),VLOOKUP($B75,'ADP-Rank'!$A$2:$U$600,16,FALSE),VLOOKUP($B75,'ADP-Rank'!$A$2:$U$600,17,FALSE),VLOOKUP($B75,'ADP-Rank'!$A$2:$U$600,18,FALSE),VLOOKUP($B75,'ADP-Rank'!$A$2:$U$600,19,FALSE),VLOOKUP($B75,'ADP-Rank'!$A$2:$U$600,20,FALSE)),"") -> 83.85714286 | J75: =IFERROR(RANK($M75,$M$4:$M$600,0),"") -> 116 | K75: =IFERROR(IF((OR($C75="RP",$C75="SP")),VLOOKUP($B75,Pitcher!$A$1:$Z$600,20,FALSE),(VLOOKUP($B75,Hitter!$A$1:$Z$600,26,FALSE))),"") -> 322.2577565 | L75: =IFERROR(IF((OR($C75="RP",$C75="SP")),VLOOKUP($C75,'Filtered-P'!$M$3:$P$4,4,FALSE), VLOOKUP($C75,Filtered!$Q$3:$T$14,4,FALSE)),"") -> 354.8310871 | M75: =IFERROR(K75-L75,"") -> -32.57333062 | N75: =IFERROR(IF((OR($C75="RP",$C75="SP")),VLOOKUP($B75,Pitcher!$A$1:$V$600,2,FALSE),""),"") ->  | O75: =IFERROR(IF((OR($C75="RP",$C75="SP")),VLOOKUP($B75,Pitcher!$A$1:$V$600,9,FALSE),""),"") ->  | P75: =IFERROR(IF((OR($C75="RP",$C75="SP")),VLOOKUP($B75,Pitcher!$A$1:$V$600,7,FALSE),""),"") ->  | Q75: =IFERROR(IF((OR($C75="RP",$C75="SP")),VLOOKUP($B75,Pitcher!$A$1:$AB$600,21,FALSE),""),"") ->  | R75: =IFERROR(IF((OR($C75="RP",$C75="SP")),VLOOKUP($B75,Pitcher!$A$1:$V$600,22,FALSE),""),"") ->  | S75: =IFERROR(IF((OR($C75="RP",$C75="SP")),"",VLOOKUP($B75,Hitter!$A$1:$AH$600,27,FALSE)),"") -> 0.2670700055 | T75: =IFERROR(IF((OR($C75="RP",$C75="SP")),"",VLOOKUP($B75,Hitter!$A$1:$AH$600,9,FALSE)),"") -> 16.58359166 | U75: =IFERROR(IF((OR($C75="RP",$C75="SP")),"",VLOOKUP($B75,Hitter!$A$1:$AH$600,10,FALSE)),"") -> 61.08053196 | V75: =IFERROR(IF((OR($C75="RP",$C75="SP")),"",VLOOKUP($B75,Hitter!$A$1:$AH$600,4,FALSE)),"") -> 69.36458461 | W75: =IFERROR(IF((OR($C75="RP",$C75="SP")),"",VLOOKUP($B75,Hitter!$A$1:$AH$600,11,FALSE)),"") -> 13.03269543 | X75: =IFERROR(IF(ISTEXT($A75),"",(1-NORMDIST((COUNTA($A$4:$A$600)),($G75),((AB75-AA75)/6),TRUE))),"") -> 1 | Y75: =IFERROR(IF(ISTEXT($A75),"",(1-NORMDIST((COUNTA($A$4:$A$600))+(Personalize!$E$18+1),$G75,((AB75-AA75)/6),TRUE))),"") -> 1 | Z75: =IFERROR(IF(ISTEXT($A75),"",(1-NORMDIST((COUNTA($A$4:$A$600))+((Personalize!$E$18+1)*2),$G75,((AB75-AA75)/6),TRUE))),"") -> 0.9999999998 | AA75: =IF(Personalize!$E$34=1,VLOOKUP($B75,'ADP-Rank'!$A$2:$J$600,5,FALSE),(IF(Personalize!$E$34=2,VLOOKUP($B75,'ADP-Rank'!$A$2:$J$600,8,FALSE),(IF(Personalize!$E$34=3,VLOOKUP($B75,'ADP-Rank'!$A$2:$O$600,11,FALSE),""))))) -> 41 | AB75: =IF(Personalize!$E$34=1,VLOOKUP($B75,'ADP-Rank'!$A$2:$J$600,6,FALSE),(IF(Personalize!$E$34=2,VLOOKUP($B75,'ADP-Rank'!$A$2:$J$600,9,FALSE),(IF(Personalize!$E$34=3,VLOOKUP($B75,'ADP-Rank'!$A$2:$O$600,12,FALSE),""))))) -> 107 | AC75: =IF(ISBLANK(A75),0,1) -> 0 | AD75: =IF(K75="",0,1) -> 1 | AE75: =A75 -> 0 | AF75: =IF(C75="C",1,IF(C75="1B",2,IF(C75="2B",3,IF(C75="3B",4,IF(C75="SS",5,IF(C75="CI",6,IF(C75="MI",7,IF(C75="OF",11,IF(C75="LF",8,IF(C75="CF",9,IF(C75="RF",10,IF(C75="DH",12,IF(C75="SP",13,IF(C75="RP",14,IF(C75="P",15,16))))))))))))))) -> 3 | AG75: =VLOOKUP(B75,'Starter Calc'!$B$2:$BN$600,65,FALSE) -> Bench
B76: Jimmy Rollins | C76: =IFERROR(IF(VLOOKUP(B76,'ADP-Rank'!$A$2:$B$600,2,FALSE)="OF",VLOOKUP(B76,'Starter Calc'!$B$2:$AM$600,38,FALSE),(VLOOKUP(B76,'ADP-Rank'!$A$2:$B$600,2,FALSE))),"") -> SS | D76: =IFERROR(IF(VLOOKUP(B76,'Starter Calc'!$B$2:$E$600,4,FALSE)="","",VLOOKUP(B76,'Starter Calc'!$B$2:$E$600,4,FALSE)),"") ->  | E76: =IFERROR(VLOOKUP($B76,'ADP-Rank'!$A$2:$D$600,3,FALSE),"") -> PHI | F76: =IFERROR(VLOOKUP($B76,'ADP-Rank'!$A$2:$W$600,23,FALSE),"") -> 34 | G76: =IFERROR((IF(Personalize!$E$38=1,VLOOKUP($B76,'ADP-Rank'!$A$2:$J$599,4,FALSE),(IF(Personalize!$E$38=2,VLOOKUP($B76,'ADP-Rank'!$A$2:$J$599,7,FALSE),(IF(Personalize!$E$38=3,VLOOKUP($B76,'ADP-Rank'!$A$2:$J$599,10,FALSE),(IF(Personalize!$E$38=4,VLOOKUP($B76,'ADP-Rank'!$A$2:$AD$599,24,FALSE),(IF(Personalize!$E$38=5,VLOOKUP($B76,'ADP-Rank'!$A$2:$AD$599,27,FALSE))))))))))),"") -> 76.795 | H76: =IFERROR((G76/(Personalize!$E$22+1))+1,"") -> 6.907307692 | I76: =IFERROR(CHOOSE(Personalize!$E$39,VLOOKUP($B76,'ADP-Rank'!$A$2:$U$600,13,FALSE),VLOOKUP($B76,'ADP-Rank'!$A$2:$U$600,14,FALSE),VLOOKUP($B76,'ADP-Rank'!$A$2:$U$600,15,FALSE),VLOOKUP($B76,'ADP-Rank'!$A$2:$U$600,16,FALSE),VLOOKUP($B76,'ADP-Rank'!$A$2:$U$600,17,FALSE),VLOOKUP($B76,'ADP-Rank'!$A$2:$U$600,18,FALSE),VLOOKUP($B76,'ADP-Rank'!$A$2:$U$600,19,FALSE),VLOOKUP($B76,'ADP-Rank'!$A$2:$U$600,20,FALSE)),"") -> 74 | J76: =IFERROR(RANK($M76,$M$4:$M$600,0),"") -> 58 | K76: =IFERROR(IF((OR($C76="RP",$C76="SP")),VLOOKUP($B76,Pitcher!$A$1:$Z$600,20,FALSE),(VLOOKUP($B76,Hitter!$A$1:$Z$600,26,FALSE))),"") -> 357.0302295 | L76: =IFERROR(IF((OR($C76="RP",$C76="SP")),VLOOKUP($C76,'Filtered-P'!$M$3:$P$4,4,FALSE), VLOOKUP($C76,Filtered!$Q$3:$T$14,4,FALSE)),"") -> 341.4045566 | M76: =IFERROR(K76-L76,"") -> 15.62567296 | N76: =IFERROR(IF((OR($C76="RP",$C76="SP")),VLOOKUP($B76,Pitcher!$A$1:$V$600,2,FALSE),""),"") ->  | O76: =IFERROR(IF((OR($C76="RP",$C76="SP")),VLOOKUP($B76,Pitcher!$A$1:$V$600,9,FALSE),""),"") ->  | P76: =IFERROR(IF((OR($C76="RP",$C76="SP")),VLOOKUP($B76,Pitcher!$A$1:$V$600,7,FALSE),""),"") ->  | Q76: =IFERROR(IF((OR($C76="RP",$C76="SP")),VLOOKUP($B76,Pitcher!$A$1:$AB$600,21,FALSE),""),"") ->  | R76: =IFERROR(IF((OR($C76="RP",$C76="SP")),VLOOKUP($B76,Pitcher!$A$1:$V$600,22,FALSE),""),"") ->  | S76: =IFERROR(IF((OR($C76="RP",$C76="SP")),"",VLOOKUP($B76,Hitter!$A$1:$AH$600,27,FALSE)),"") -> 0.2573638177 | T76: =IFERROR(IF((OR($C76="RP",$C76="SP")),"",VLOOKUP($B76,Hitter!$A$1:$AH$600,9,FALSE)),"") -> 13.78816146 | U76: =IFERROR(IF((OR($C76="RP",$C76="SP")),"",VLOOKUP($B76,Hitter!$A$1:$AH$600,10,FALSE)),"") -> 60.38707004 | V76: =IFERROR(IF((OR($C76="RP",$C76="SP")),"",VLOOKUP($B76,Hitter!$A$1:$AH$600,4,FALSE)),"") -> 76.29254905 | W76: =IFERROR(IF((OR($C76="RP",$C76="SP")),"",VLOOKUP($B76,Hitter!$A$1:$AH$600,11,FALSE)),"") -> 24.12297843 | X76: =IFERROR(IF(ISTEXT($A76),"",(1-NORMDIST((COUNTA($A$4:$A$600)),($G76),((AB76-AA76)/6),TRUE))),"") -> 0.9999999999 | Y76: =IFERROR(IF(ISTEXT($A76),"",(1-NORMDIST((COUNTA($A$4:$A$600))+(Personalize!$E$18+1),$G76,((AB76-AA76)/6),TRUE))),"") -> 0.9999999995 | Z76: =IFERROR(IF(ISTEXT($A76),"",(1-NORMDIST((COUNTA($A$4:$A$600))+((Personalize!$E$18+1)*2),$G76,((AB76-AA76)/6),TRUE))),"") -> 0.999999997 | AA76: =IF(Personalize!$E$34=1,VLOOKUP($B76,'ADP-Rank'!$A$2:$J$600,5,FALSE),(IF(Personalize!$E$34=2,VLOOKUP($B76,'ADP-Rank'!$A$2:$J$600,8,FALSE),(IF(Personalize!$E$34=3,VLOOKUP($B76,'ADP-Rank'!$A$2:$O$600,11,FALSE),""))))) -> 44 | AB76: =IF(Personalize!$E$34=1,VLOOKUP($B76,'ADP-Rank'!$A$2:$J$600,6,FALSE),(IF(Personalize!$E$34=2,VLOOKUP($B76,'ADP-Rank'!$A$2:$J$600,9,FALSE),(IF(Personalize!$E$34=3,VLOOKUP($B76,'ADP-Rank'!$A$2:$O$600,12,FALSE),""))))) -> 116 | AC76: =IF(ISBLANK(A76),0,1) -> 0 | AD76: =IF(K76="",0,1) -> 1 | AE76: =A76 -> 0 | AF76: =IF(C76="C",1,IF(C76="1B",2,IF(C76="2B",3,IF(C76="3B",4,IF(C76="SS",5,IF(C76="CI",6,IF(C76="MI",7,IF(C76="OF",11,IF(C76="LF",8,IF(C76="CF",9,IF(C76="RF",10,IF(C76="DH",12,IF(C76="SP",13,IF(C76="RP",14,IF(C76="P",15,16))))))))))))))) -> 5 | AG76: =VLOOKUP(B76,'Starter Calc'!$B$2:$BN$600,65,FALSE) -> Bench
